Workbook

Sheet Entrada de datos
B1: Entrada de datos para el comparativo de combustibles | V1: B2BG
B3: Fecha
B4: Cliente: | E4: Actividad:
B5: Provincia: | C5: Toledo | E5: Municipio: | F5: Puebla de Montalbán (La)
I6: Entre los combustibles líquidos y gaseosos hay una diferencia de rendimiento entorno al 10-20%. Si no se indica nada por defecto se aplicará un 15%
B7: Combustible actual | E7: *Los Precios unitarios deben venir sin impuestos incluídos
B8: Combustible | C8: Consumo anual | D8: Unidad | E8: Precio unitario | F8: Unidad | G8: Consumo kWh
B9: Fuel | C9: 0 | D9: kg | E9: 0 | F9: €/kg | G9: =Cálculos!D4 -> 0
B10: Gasóleo | C10: 0 | D10: litros | E10: 0 | F10: €/litro | G10: =Cálculos!D5 -> 0 | I10: Rendimiento | J10: -
B11: Gas natural | C11: 0 | D11: kWh | E11: 0 | F11: €/kWh | G11: =Cálculos!D6 -> 0
B12: Propano 11 | C12: 0 | D12: ud | E12: 0 | F12: €/ud | G12: =Cálculos!D7 -> 0
B13: Propano 35 | C13: 0 | D13: ud | E13: 0 | F13: €/ud | G13: =Cálculos!D8 -> 0
B14: GLP granel | C14: 0 | D14: kg | E14: 0 | F14: €/kg | G14: =Cálculos!D9 -> 0
B15: Butano 12,5 | C15: 0 | D15: ud | E15: 0 | F15: €/ud | G15: =Cálculos!D10 -> 0
B16: Pellets | C16: 0 | D16: kg | E16: 0 | F16: €/kg | G16: =Cálculos!D11 -> 0
B17: Carbón (coque) | C17: 0 | D17: kg | E17: 0 | F17: €/kg | G17: =Cálculos!D12 -> 0
F18: TOTAL | G18: =SUM(G9:G16) -> 0
B20: GLP canalizado
B21: Consumo anual | C21: Unidad | D21: Término variable | F21: Unidad | G21: Término fijo | H21: Unidad
B22: =Cálculos!D17 -> 0 | C22: kg | D22: Precio actual | E22: =IF(D22="Precio actual",'Evolución precio'!P1/100,IF(D22="Media anual",'GRAFICO precios año'!B11,AVERAGE('GRAFICO precios año'!B6:B11))) -> 0.924689 | F22: €/kg | G22: =IF(D22="Precio actual",'Evolución precio'!O1,IF(D22="Media anual",DAVERAGE('Evolución precio'!$A$1:$J$116,"Término Fijo (€/mes)",'Evolución precio'!$J$1:$J$37),DAVERAGE('Evolución precio'!$A$1:$J$116,"Término Fijo (€/mes)",Cálculos!T2:T6))) -> 1.59 | H22: €/mes
B23: =Cálculos!F17 -> 0 | C23: kWh | D23: Descuento | E23: 0 | F23: €/kg
B26: Alquileres de equipo de medición
B27: Alquiler de contador | C27: SI
B28: Puntos de suministro | C28: 2
B29: Contador 1 | C29: G-25 | D29: =VLOOKUP(C29,Contadores!A4:C20,3,FALSE) -> 18.82425 | E29: €/mes
B30: Contador 2 | C30: G-25 | D30: =VLOOKUP(C30,Contadores!A4:C20,3,FALSE) -> 18.82425 | E30: €/mes
B31: Contador 3 | C31: G-6 | D31: =VLOOKUP(C31,Contadores!A4:C20,3,FALSE) -> 1.22 | E31: €/mes
B32: Otros | C32: Concepto | D32: Canon | E32: Precio €/mes | F32: 0

Sheet Resultados
D3: COMPARATIVO DE COMBUSTIBLES GLP CANALIZADO
D4: Balance energético, económico y medioambiental
E5: Empresa: | F5: ='Entrada de datos'!C4 -> 0
E6: Población: | F6: ='Entrada de datos'!F5 -> Puebla de Montalbán (La) | J6: ='Entrada de datos'!C3 -> 00:00:00
D8: Balance económico
E9: Combustibles actuales | G9: Consumo anual | I9: Precio unitario | K9: Coste anual
E10: =Cálculos!A43 ->  | G10: =Cálculos!H43 ->  | H10: =Cálculos!I43 ->  | I10: =Cálculos!J43 ->  | J10: =Cálculos!K43 ->  | K10: =Cálculos!B43 -> 
E11: =Cálculos!A44 ->  | G11: =Cálculos!H44 ->  | H11: =Cálculos!I44 ->  | I11: =Cálculos!J44 ->  | J11: =Cálculos!K44 ->  | K11: =Cálculos!B44 -> 
E12: =Cálculos!A45 ->  | G12: =Cálculos!H45 ->  | H12: =Cálculos!I45 ->  | I12: =Cálculos!J45 ->  | J12: =Cálculos!K45 ->  | K12: =Cálculos!B45 -> 
E13: =Cálculos!A46 ->  | G13: =Cálculos!H46 ->  | H13: =Cálculos!I46 ->  | I13: =Cálculos!J46 ->  | J13: =Cálculos!K46 ->  | K13: =Cálculos!B46 -> 
G14: =Cálculos!H47 ->  | H14: =Cálculos!I47 ->  | I14: =Cálculos!J47 ->  | J14: =Cálculos!K47 ->  | K14: =Cálculos!B47 -> 
E15: =Cálculos!A48 ->  | G15: =Cálculos!H48 ->  | H15: =Cálculos!I48 ->  | I15: =Cálculos!J48 ->  | J15: =Cálculos!K48 ->  | K15: =Cálculos!B48 -> 
E16: =Cálculos!A49 ->  | G16: =Cálculos!H49 ->  | H16: =Cálculos!I49 ->  | I16: =Cálculos!J49 ->  | J16: =Cálculos!K49 ->  | K16: =Cálculos!B49 -> 
E17: =Cálculos!A50 ->  | G17: =Cálculos!H50 ->  | H17: =Cálculos!I50 ->  | I17: =Cálculos!J50 ->  | J17: =Cálculos!K50 ->  | K17: =Cálculos!B50 -> 
E18: =Cálculos!A51 ->  | G18: =Cálculos!H51 ->  | H18: =Cálculos!I51 ->  | I18: =Cálculos!J51 ->  | J18: =Cálculos!K51 ->  | K18: =Cálculos!B51 -> 
E19: =Cálculos!A52 ->  | G19: =Cálculos!H52 ->  | H19: =Cálculos!I52 ->  | I19: =Cálculos!J52 ->  | J19: =Cálculos!K52 ->  | K19: =Cálculos!B52 -> 
E20: Total | K20: =Cálculos!B13 -> 0
E21: GLP canalizado Redexis | G21: Cantidad | I21: Precio unitario | K21: Coste anual
E22: Término fijo, mensual | G22: 12 | H22: meses | I22: =Cálculos!C57 -> 1.6 | J22: €/mes | K22: =Cálculos!D57 -> 38.4
E23: Término variable | G23: =Cálculos!B58 -> 0 | H23: kg/año | I23: B2BG | J23: €/kg | K23: =Cálculos!D58 -> 0
E24: b2b | K24: =Cálculos!D59 -> 451.782
E25: =Cálculos!A60 ->  | K25: =Cálculos!D60 -> 
E26: =Cálculos!A61 ->  | K26: =Cálculos!D61 -> 
E27: Total | K27: =Cálculos!D62 -> 490.182
E28: Ahorro anual estimado | K28: =K20-K27 -> -490.182
D29: Como coste adicional, se deben tener en cuenta los derechos de alta y acometida. Estos costes sólo se pagarán el primer año.
E30: Derecho de alta | K30: =Cálculos!D92 -> 144.84
E31: Derecho de acometida | K31: =Cálculos!C87 -> 488.8
E32: Total | K32: =SUM(K30,K31) -> 633.64
D34: Balance medioambiental
E35: Emisión de contaminantes | G35: tm de CO2 año | H35: kg de CO año | I35: kg de SO2 año | K35: kg de NOx año
E36: Combustibles actuales | G36: =Cálculos!B76 -> 0 | H36: =Cálculos!C76 -> 0 | I36: =Cálculos!D76 -> 0 | K36: =Cálculos!E76 -> 0
E37: =E21 -> GLP canalizado Redexis | G37: =Cálculos!B79 -> 0 | H37: =Cálculos!C79 -> 0 | I37: =Cálculos!D79 -> 0 | K37: =Cálculos!E79 -> 0
K51: TARIFA
E64: *Datos obtenidos a partir del libro guía de la Agencia Medioambiental Europea y del informe del IPCC:
E65: https://www.ipcc-nggip.iges.or.jp/public/2006gl/spanish/pdf/2_Volume2/V2_2_Ch2_Stationary_Combustion.pdf
E66: https://www.miteco.gob.es/es/calidad-y-evaluacion-ambiental/temas/sistema-espanol-de-inventario-sei-/02-combust-estacionaria-no-industrial_tcm30-430161.pdf
K67: 0

Sheet Cálculos (hidden)
T2: Año
A3: Combustible actual | B3: Coste actual adquisición | C3: Unidad1 | D3: Consumo | E3: Unidad2 | F3: Energía útil | G3: Unidad3 | H3: Consumo2 | I3: Unidad4 | J3: precio unitario | K3: Unidad5 | O3: SI | P3: 1 | T3: 2022 | V3: 0
A4: Fuel | B4: ='Entrada de datos'!C9*'Entrada de datos'!E9 -> 0 | C4: € | D4: ='Entrada de datos'!C9*'Poder calorífico'!E6 -> 0 | E4: kWh | F4: =D4*Q7 -> 0 | G4: kWh | H4: ='Entrada de datos'!C9*1 -> 0 | I4: kg | J4: ='Entrada de datos'!E9 -> 0 | K4: €/kg | O4: NO | P4: 2 | T4: =T3-1 -> 2021
A5: Gasóleo | B5: ='Entrada de datos'!C10*'Entrada de datos'!E10 -> 0 | C5: € | D5: ='Entrada de datos'!C10*'Poder calorífico'!G5 -> 0 | E5: kWh | F5: =D5*Q7 -> 0 | G5: kWh | H5: ='Entrada de datos'!C10*1 -> 0 | I5: litros | J5: ='Entrada de datos'!E10 -> 0 | K5: €/litro | P5: 3 | T5: =T4-1 -> 2020
A6: Gas natural | B6: ='Entrada de datos'!C11*'Entrada de datos'!E11 -> 0 | C6: € | D6: ='Entrada de datos'!C11*'Poder calorífico'!G7 -> 0 | E6: kWh | F6: =D6*O7 -> 0 | G6: kWh | H6: ='Entrada de datos'!C11*1 -> 0 | I6: kWh | J6: ='Entrada de datos'!E11 -> 0 | K6: €/kWh | N6: Rendimientos | O6: Gaseoso | P6: Seleccionado | Q6: Líquido | R6: Pellet | T6: 2019
A7: Propano 11 | B7: ='Entrada de datos'!C12*'Entrada de datos'!E12 -> 0 | C7: € | D7: ='Entrada de datos'!C12*'Poder calorífico'!G8*O19 -> 0 | E7: kWh | F7: =D7*O7 -> 0 | G7: kWh | H7: ='Entrada de datos'!C12*1 -> 0 | I7: ud | J7: ='Entrada de datos'!E12 -> 0 | K7: €/ud | N7: - | O7: 0.95 | P7: ='Entrada de datos'!J10 -> - | Q7: 0.85 | R7: 0.8
A8: Propano 35 | B8: ='Entrada de datos'!C13*'Entrada de datos'!E13 -> 0 | C8: € | D8: ='Entrada de datos'!C13*'Poder calorífico'!G8*35 -> 0 | E8: kWh | F8: =D8*O7 -> 0 | G8: kWh | H8: ='Entrada de datos'!C13*1 -> 0 | I8: ud | J8: ='Entrada de datos'!E13 -> 0 | K8: €/ud | N8: 0.1
A9: GLP granel | B9: ='Entrada de datos'!C14*'Entrada de datos'!E14 -> 0 | C9: € | D9: ='Entrada de datos'!C14*'Poder calorífico'!G8 -> 0 | E9: kWh | F9: =D9*O7 -> 0 | G9: kWh | H9: ='Entrada de datos'!C14*1 -> 0 | I9: kg | J9: ='Entrada de datos'!E14 -> 0 | K9: €/kg | N9: 0.12
A10: Butano 12,5 | B10: ='Entrada de datos'!C15*'Entrada de datos'!E15 -> 0 | C10: € | D10: =O18*H10*'Poder calorífico'!G9 -> 0 | E10: kWh | F10: =D10*O7 -> 0 | G10: kWh | H10: ='Entrada de datos'!C15*1 -> 0 | I10: ud | J10: ='Entrada de datos'!E15 -> 0 | K10: €/ud | N10: 0.15
A11: Pellets | B11: ='Entrada de datos'!C16*'Entrada de datos'!E16 -> 0 | C11: € | D11: ='Entrada de datos'!C16*'Poder calorífico'!F10 -> 0 | E11: kWh | F11: =D11*R7 -> 0 | G11: kWh | H11: ='Entrada de datos'!C16*1 -> 0 | I11: kg | J11: ='Entrada de datos'!E16 -> 0 | K11: €/kg | N11: 0.18
A12: Carbón (coque) | B12: ='Entrada de datos'!C17*'Entrada de datos'!E17 -> 0 | C12: € | D12: ='Entrada de datos'!C17*'Poder calorífico'!F11 -> 0 | E12: kWh | F12: =D12*Q7 -> 0 | G12: kWh | H12: ='Entrada de datos'!C17*1 -> 0 | I12: kg | J12: ='Entrada de datos'!E17 -> 0 | K12: €/kg | N12: 0.2
A13: TOTAL | B13: =SUM(B4:B12) -> 0 | C13: € | D13: =SUM(D4:D12) -> 0 | E13: kWh | F13: =SUM(F4:F12) -> 0 | G13: kWh
A15: Nuevo combustible
B16: Coste actual adquisición | D16: Consumo | F16: Consumo
A17: GLP | B17: =D17*'Entrada de datos'!E22 -> 0 | C17: € | D17: =F17/'Poder calorífico'!G8 -> 0 | E17: kg/año | F17: =F13/O7 -> 0 | G17: kWh | O17: Kg | P17: Precio de bombona sin impuestos | Q17: €/Kg
A18: Descuento | B18: ='Entrada de datos'!E23*Cálculos!D17 -> 0 | N18: Butano 12,5 | O18: 12.5 | P18: =G21*O18/100 -> 15.972975 | Q18: =P18/O18 -> 1.277838
N19: Propano 11 | O19: 11 | P19: 11.2 | Q19: =P19/O19 -> 1.018181818
G20: c€/Kg | H20: Actualización precio | N20: Propano 35 | O20: 35 | P20: 78.9 | Q20: =P20/O20 -> 2.254285714
A21: Precio actual | B21: ='Evolución precio'!E37 -> 104.1211 | C21: GLP | E21: Precio regulado del butano | G21: 127.7838 | H21: 2022-07-01
A22: Media anual | B22: =DAVERAGE('Evolución precio'!A1:J116,"Término Variable (c€/Kg)",T2:T3)/100 -> 1.034520417 | E22: Precio regulado del propano | G22: =G21 -> 127.7838 | H22: 2022-07-01
A23: Media cuatro años | B23: =DAVERAGE('Evolución precio'!A1:J116,"Término Variable (c€/Kg)",T2:T6)/100 -> 0.81741725
A25: Costes fijos
D26: Contador 1 | E26: =IF('Entrada de datos'!C27= "SI",'Entrada de datos'!D29,0) -> 18.82425 | F26: 12 | G26: =E26*F26 -> 225.891
A27: Término fijo GLP | B27: ='Evolución precio'!D37 -> 1.6 | D27: Contador 2 | E27: =IF(OR('Entrada de datos'!C27="NO",'Entrada de datos'!C28=1),0,'Entrada de datos'!D30) -> 18.82425 | F27: 12 | G27: =E27*F27 -> 225.891 | I27: Otros | J27: ='Entrada de datos'!F32 -> 0 | K27: 12 | L27: =IF(J27>0,J27*K27,"") -> 
D28: Contador 3 | E28: =IF(AND('Entrada de datos'!C27="SI", 'Entrada de datos'!C28=3),'Entrada de datos'!D31,0) -> 0 | F28: 12 | G28: =E28*F28 -> 0
D29: Total contadores | G29: =SUM(G26:G28) -> 451.782
A30: Emisones
B31: CO2 (g) | C31: CO (g) | D31: SO2 (g) | E31: Nox (g)
A32: Fuel | B32: =D4*Emisiones!D6 -> 0 | C32: =D4*Emisiones!E6 -> 0 | D32: =D4*Emisiones!F6 -> 0 | E32: =D4*Emisiones!G6 -> 0
A33: Gasóleo | B33: =D5*Emisiones!D7 -> 0 | C33: =D5*Emisiones!E7 -> 0 | D33: =D5*Emisiones!F7 -> 0 | E33: =D5*Emisiones!G7 -> 0
A34: gas natural | B34: =D6*Emisiones!D9 -> 0 | C34: =D6*Emisiones!E9 -> 0 | D34: =D6*Emisiones!F9 -> 0 | E34: =D6*Emisiones!G9 -> 0
A35: Propano 11 | B35: =D7*Emisiones!D8 -> 0 | C35: =D7*Emisiones!E8 -> 0 | D35: =D7*Emisiones!F8 -> 0 | E35: =D7*Emisiones!G8 -> 0
A36: Propano 35 | B36: =D8*Emisiones!D8 -> 0 | C36: =D8*Emisiones!E8 -> 0 | D36: =D8*Emisiones!F8 -> 0 | E36: =D8*Emisiones!G8 -> 0
A37: GLP | B37: =F17*Emisiones!D8 -> 0 | C37: =F17*Emisiones!E8 -> 0 | D37: =F17*Emisiones!F8 -> 0 | E37: =F17*Emisiones!G8 -> 0
A38: Carbón (coque)
A39: Pellets
A40: Butano | B40: =D10*Emisiones!D10 -> 0 | C40: =D10*Emisiones!E9 -> 0 | D40: =D10*Emisiones!F10 -> 0 | E40: =D10*Emisiones!G9 -> 0
A41: GLP granel | B41: =$D$9*Emisiones!D8 -> 0 | C41: =$D$9*Emisiones!E8 -> 0 | D41: =$D$9*Emisiones!F8 -> 0 | E41: =$D$9*Emisiones!G8 -> 0
A42: Hoja de resultados
A43: =IFERROR(INDEX($A$4:$K$12, SMALL(IF((0<$H$4:$H$12),MATCH(ROW(Datos[Combustible actual]), ROW(Datos[Combustible actual]))), ROWS($A$1:A1)), COLUMN(A1)),"") ->  | B43: =IFERROR(INDEX($A$4:$K$12, SMALL(IF((0<$H$4:$H$12),MATCH(ROW(Datos[Coste actual adquisición]), ROW(Datos[Coste actual adquisición]))), ROWS($A$1:B1)), COLUMN(B1)),"") ->  | C43: =IFERROR(INDEX($A$4:$K$12, SMALL(IF((0<$H$4:$H$12),MATCH(ROW(Datos[Unidad1]), ROW(Datos[Unidad1]))), ROWS($A$1:C1)), COLUMN(C1)),"") ->  | D43: =IFERROR(INDEX($A$4:$K$12, SMALL(IF((0<$H$4:$H$12),MATCH(ROW(Datos[Consumo]), ROW(Datos[Consumo]))), ROWS($A$1:D1)), COLUMN(D1)),"") ->  | E43: =IFERROR(INDEX($A$4:$K$12, SMALL(IF((0<$H$4:$H$12),MATCH(ROW(Datos[Unidad2]), ROW(Datos[Unidad2]))), ROWS($A$1:E1)), COLUMN(E1)),"") ->  | F43: =IFERROR(INDEX($A$4:$K$12, SMALL(IF((0<$H$4:$H$12),MATCH(ROW(Datos[Energía útil]), ROW(Datos[Energía útil]))), ROWS($A$1:F1)), COLUMN(F1)),"") ->  | G43: =IFERROR(INDEX($A$4:$K$12, SMALL(IF((0<$H$4:$H$12),MATCH(ROW(Datos[Unidad3]), ROW(Datos[Unidad3]))), ROWS($A$1:G1)), COLUMN(G1)),"") ->  | H43: =IFERROR(INDEX($A$4:$K$12, SMALL(IF((0<$H$4:$H$12),MATCH(ROW(Datos[Consumo2]), ROW(Datos[Consumo2]))), ROWS($A$1:H1)), COLUMN(H1)),"") ->  | I43: =IFERROR(INDEX($A$4:$K$12, SMALL(IF((0<$H$4:$H$12),MATCH(ROW(Datos[Unidad4]), ROW(Datos[Unidad4]))), ROWS($A$1:I1)), COLUMN(I1)),"") ->  | J43: =IFERROR(INDEX($A$4:$K$12, SMALL(IF((0<$H$4:$H$12),MATCH(ROW(Datos[precio unitario]), ROW(Datos[precio unitario]))), ROWS($A$1:J1)), COLUMN(J1)),"") ->  | K43: =IFERROR(INDEX($A$4:$K$12, SMALL(IF((0<$H$4:$H$12),MATCH(ROW(Datos[Unidad5]), ROW(Datos[Unidad5]))), ROWS($A$1:K1)), COLUMN(K1)),"") -> 
A44: =IFERROR(INDEX($A$4:$K$12, SMALL(IF((0<$H$4:$H$12),MATCH(ROW(Datos[Combustible actual]), ROW(Datos[Combustible actual]))), ROWS($A$1:A2)), COLUMN(A2)),"") ->  | B44: =IFERROR(INDEX($A$4:$K$12, SMALL(IF((0<$H$4:$H$12),MATCH(ROW(Datos[Coste actual adquisición]), ROW(Datos[Coste actual adquisición]))), ROWS($A$1:B2)), COLUMN(B2)),"") ->  | C44: =IFERROR(INDEX($A$4:$K$12, SMALL(IF((0<$H$4:$H$12),MATCH(ROW(Datos[Unidad1]), ROW(Datos[Unidad1]))), ROWS($A$1:C2)), COLUMN(C2)),"") ->  | D44: =IFERROR(INDEX($A$4:$K$12, SMALL(IF((0<$H$4:$H$12),MATCH(ROW(Datos[Consumo]), ROW(Datos[Consumo]))), ROWS($A$1:D2)), COLUMN(D2)),"") ->  | E44: =IFERROR(INDEX($A$4:$K$12, SMALL(IF((0<$H$4:$H$12),MATCH(ROW(Datos[Unidad2]), ROW(Datos[Unidad2]))), ROWS($A$1:E2)), COLUMN(E2)),"") ->  | F44: =IFERROR(INDEX($A$4:$K$12, SMALL(IF((0<$H$4:$H$12),MATCH(ROW(Datos[Energía útil]), ROW(Datos[Energía útil]))), ROWS($A$1:F2)), COLUMN(F2)),"") ->  | G44: =IFERROR(INDEX($A$4:$K$12, SMALL(IF((0<$H$4:$H$12),MATCH(ROW(Datos[Unidad3]), ROW(Datos[Unidad3]))), ROWS($A$1:G2)), COLUMN(G2)),"") ->  | H44: =IFERROR(INDEX($A$4:$K$12, SMALL(IF((0<$H$4:$H$12),MATCH(ROW(Datos[Consumo2]), ROW(Datos[Consumo2]))), ROWS($A$1:H2)), COLUMN(H2)),"") ->  | I44: =IFERROR(INDEX($A$4:$K$12, SMALL(IF((0<$H$4:$H$12),MATCH(ROW(Datos[Unidad4]), ROW(Datos[Unidad4]))), ROWS($A$1:I2)), COLUMN(I2)),"") ->  | J44: =IFERROR(INDEX($A$4:$K$12, SMALL(IF((0<$H$4:$H$12),MATCH(ROW(Datos[precio unitario]), ROW(Datos[precio unitario]))), ROWS($A$1:J2)), COLUMN(J2)),"") ->  | K44: =IFERROR(INDEX($A$4:$K$12, SMALL(IF((0<$H$4:$H$12),MATCH(ROW(Datos[Unidad5]), ROW(Datos[Unidad5]))), ROWS($A$1:K2)), COLUMN(K2)),"") -> 
A45: =IFERROR(INDEX($A$4:$K$12, SMALL(IF((0<$H$4:$H$12),MATCH(ROW(Datos[Combustible actual]), ROW(Datos[Combustible actual]))), ROWS($A$1:A3)), COLUMN(A3)),"") ->  | B45: =IFERROR(INDEX($A$4:$K$12, SMALL(IF((0<$H$4:$H$12),MATCH(ROW(Datos[Coste actual adquisición]), ROW(Datos[Coste actual adquisición]))), ROWS($A$1:B3)), COLUMN(B3)),"") ->  | C45: =IFERROR(INDEX($A$4:$K$12, SMALL(IF((0<$H$4:$H$12),MATCH(ROW(Datos[Unidad1]), ROW(Datos[Unidad1]))), ROWS($A$1:C3)), COLUMN(C3)),"") ->  | D45: =IFERROR(INDEX($A$4:$K$12, SMALL(IF((0<$H$4:$H$12),MATCH(ROW(Datos[Consumo]), ROW(Datos[Consumo]))), ROWS($A$1:D3)), COLUMN(D3)),"") ->  | E45: =IFERROR(INDEX($A$4:$K$12, SMALL(IF((0<$H$4:$H$12),MATCH(ROW(Datos[Unidad2]), ROW(Datos[Unidad2]))), ROWS($A$1:E3)), COLUMN(E3)),"") ->  | F45: =IFERROR(INDEX($A$4:$K$12, SMALL(IF((0<$H$4:$H$12),MATCH(ROW(Datos[Energía útil]), ROW(Datos[Energía útil]))), ROWS($A$1:F3)), COLUMN(F3)),"") ->  | G45: =IFERROR(INDEX($A$4:$K$12, SMALL(IF((0<$H$4:$H$12),MATCH(ROW(Datos[Unidad3]), ROW(Datos[Unidad3]))), ROWS($A$1:G3)), COLUMN(G3)),"") ->  | H45: =IFERROR(INDEX($A$4:$K$12, SMALL(IF((0<$H$4:$H$12),MATCH(ROW(Datos[Consumo2]), ROW(Datos[Consumo2]))), ROWS($A$1:H3)), COLUMN(H3)),"") ->  | I45: =IFERROR(INDEX($A$4:$K$12, SMALL(IF((0<$H$4:$H$12),MATCH(ROW(Datos[Unidad4]), ROW(Datos[Unidad4]))), ROWS($A$1:I3)), COLUMN(I3)),"") ->  | J45: =IFERROR(INDEX($A$4:$K$12, SMALL(IF((0<$H$4:$H$12),MATCH(ROW(Datos[precio unitario]), ROW(Datos[precio unitario]))), ROWS($A$1:J3)), COLUMN(J3)),"") ->  | K45: =IFERROR(INDEX($A$4:$K$12, SMALL(IF((0<$H$4:$H$12),MATCH(ROW(Datos[Unidad5]), ROW(Datos[Unidad5]))), ROWS($A$1:K3)), COLUMN(K3)),"") -> 
A46: =IFERROR(INDEX($A$4:$K$12, SMALL(IF((0<$H$4:$H$12),MATCH(ROW(Datos[Combustible actual]), ROW(Datos[Combustible actual]))), ROWS($A$1:A4)), COLUMN(A4)),"") ->  | B46: =IFERROR(INDEX($A$4:$K$12, SMALL(IF((0<$H$4:$H$12),MATCH(ROW(Datos[Coste actual adquisición]), ROW(Datos[Coste actual adquisición]))), ROWS($A$1:B4)), COLUMN(B4)),"") ->  | C46: =IFERROR(INDEX($A$4:$K$12, SMALL(IF((0<$H$4:$H$12),MATCH(ROW(Datos[Unidad1]), ROW(Datos[Unidad1]))), ROWS($A$1:C4)), COLUMN(C4)),"") ->  | D46: =IFERROR(INDEX($A$4:$K$12, SMALL(IF((0<$H$4:$H$12),MATCH(ROW(Datos[Consumo]), ROW(Datos[Consumo]))), ROWS($A$1:D4)), COLUMN(D4)),"") ->  | E46: =IFERROR(INDEX($A$4:$K$12, SMALL(IF((0<$H$4:$H$12),MATCH(ROW(Datos[Unidad2]), ROW(Datos[Unidad2]))), ROWS($A$1:E4)), COLUMN(E4)),"") ->  | F46: =IFERROR(INDEX($A$4:$K$12, SMALL(IF((0<$H$4:$H$12),MATCH(ROW(Datos[Energía útil]), ROW(Datos[Energía útil]))), ROWS($A$1:F4)), COLUMN(F4)),"") ->  | G46: =IFERROR(INDEX($A$4:$K$12, SMALL(IF((0<$H$4:$H$12),MATCH(ROW(Datos[Unidad3]), ROW(Datos[Unidad3]))), ROWS($A$1:G4)), COLUMN(G4)),"") ->  | H46: =IFERROR(INDEX($A$4:$K$12, SMALL(IF((0<$H$4:$H$12),MATCH(ROW(Datos[Consumo2]), ROW(Datos[Consumo2]))), ROWS($A$1:H4)), COLUMN(H4)),"") ->  | I46: =IFERROR(INDEX($A$4:$K$12, SMALL(IF((0<$H$4:$H$12),MATCH(ROW(Datos[Unidad4]), ROW(Datos[Unidad4]))), ROWS($A$1:I4)), COLUMN(I4)),"") ->  | J46: =IFERROR(INDEX($A$4:$K$12, SMALL(IF((0<$H$4:$H$12),MATCH(ROW(Datos[precio unitario]), ROW(Datos[precio unitario]))), ROWS($A$1:J4)), COLUMN(J4)),"") ->  | K46: =IFERROR(INDEX($A$4:$K$12, SMALL(IF((0<$H$4:$H$12),MATCH(ROW(Datos[Unidad5]), ROW(Datos[Unidad5]))), ROWS($A$1:K4)), COLUMN(K4)),"") -> 
A47: =IFERROR(INDEX($A$4:$K$12, SMALL(IF((0<$H$4:$H$12),MATCH(ROW(Datos[Combustible actual]), ROW(Datos[Combustible actual]))), ROWS($A$1:A5)), COLUMN(A5)),"") ->  | B47: =IFERROR(INDEX($A$4:$K$12, SMALL(IF((0<$H$4:$H$12),MATCH(ROW(Datos[Coste actual adquisición]), ROW(Datos[Coste actual adquisición]))), ROWS($A$1:B5)), COLUMN(B5)),"") ->  | C47: =IFERROR(INDEX($A$4:$K$12, SMALL(IF((0<$H$4:$H$12),MATCH(ROW(Datos[Unidad1]), ROW(Datos[Unidad1]))), ROWS($A$1:C5)), COLUMN(C5)),"") ->  | D47: =IFERROR(INDEX($A$4:$K$12, SMALL(IF((0<$H$4:$H$12),MATCH(ROW(Datos[Consumo]), ROW(Datos[Consumo]))), ROWS($A$1:D5)), COLUMN(D5)),"") ->  | E47: =IFERROR(INDEX($A$4:$K$12, SMALL(IF((0<$H$4:$H$12),MATCH(ROW(Datos[Unidad2]), ROW(Datos[Unidad2]))), ROWS($A$1:E5)), COLUMN(E5)),"") ->  | F47: =IFERROR(INDEX($A$4:$K$12, SMALL(IF((0<$H$4:$H$12),MATCH(ROW(Datos[Energía útil]), ROW(Datos[Energía útil]))), ROWS($A$1:F5)), COLUMN(F5)),"") ->  | G47: =IFERROR(INDEX($A$4:$K$12, SMALL(IF((0<$H$4:$H$12),MATCH(ROW(Datos[Unidad3]), ROW(Datos[Unidad3]))), ROWS($A$1:G5)), COLUMN(G5)),"") ->  | H47: =IFERROR(INDEX($A$4:$K$12, SMALL(IF((0<$H$4:$H$12),MATCH(ROW(Datos[Consumo2]), ROW(Datos[Consumo2]))), ROWS($A$1:H5)), COLUMN(H5)),"") ->  | I47: =IFERROR(INDEX($A$4:$K$12, SMALL(IF((0<$H$4:$H$12),MATCH(ROW(Datos[Unidad4]), ROW(Datos[Unidad4]))), ROWS($A$1:I5)), COLUMN(I5)),"") ->  | J47: =IFERROR(INDEX($A$4:$K$12, SMALL(IF((0<$H$4:$H$12),MATCH(ROW(Datos[precio unitario]), ROW(Datos[precio unitario]))), ROWS($A$1:J5)), COLUMN(J5)),"") ->  | K47: =IFERROR(INDEX($A$4:$K$12, SMALL(IF((0<$H$4:$H$12),MATCH(ROW(Datos[Unidad5]), ROW(Datos[Unidad5]))), ROWS($A$1:K5)), COLUMN(K5)),"") -> 
A48: =IFERROR(INDEX($A$4:$K$12, SMALL(IF((0<$H$4:$H$12),MATCH(ROW(Datos[Combustible actual]), ROW(Datos[Combustible actual]))), ROWS($A$1:A6)), COLUMN(A6)),"") ->  | B48: =IFERROR(INDEX($A$4:$K$12, SMALL(IF((0<$H$4:$H$12),MATCH(ROW(Datos[Coste actual adquisición]), ROW(Datos[Coste actual adquisición]))), ROWS($A$1:B6)), COLUMN(B6)),"") ->  | C48: =IFERROR(INDEX($A$4:$K$12, SMALL(IF((0<$H$4:$H$12),MATCH(ROW(Datos[Unidad1]), ROW(Datos[Unidad1]))), ROWS($A$1:C6)), COLUMN(C6)),"") ->  | D48: =IFERROR(INDEX($A$4:$K$12, SMALL(IF((0<$H$4:$H$12),MATCH(ROW(Datos[Consumo]), ROW(Datos[Consumo]))), ROWS($A$1:D6)), COLUMN(D6)),"") ->  | E48: =IFERROR(INDEX($A$4:$K$12, SMALL(IF((0<$H$4:$H$12),MATCH(ROW(Datos[Unidad2]), ROW(Datos[Unidad2]))), ROWS($A$1:E6)), COLUMN(E6)),"") ->  | F48: =IFERROR(INDEX($A$4:$K$12, SMALL(IF((0<$H$4:$H$12),MATCH(ROW(Datos[Energía útil]), ROW(Datos[Energía útil]))), ROWS($A$1:F6)), COLUMN(F6)),"") ->  | G48: =IFERROR(INDEX($A$4:$K$12, SMALL(IF((0<$H$4:$H$12),MATCH(ROW(Datos[Unidad3]), ROW(Datos[Unidad3]))), ROWS($A$1:G6)), COLUMN(G6)),"") ->  | H48: =IFERROR(INDEX($A$4:$K$12, SMALL(IF((0<$H$4:$H$12),MATCH(ROW(Datos[Consumo2]), ROW(Datos[Consumo2]))), ROWS($A$1:H6)), COLUMN(H6)),"") ->  | I48: =IFERROR(INDEX($A$4:$K$12, SMALL(IF((0<$H$4:$H$12),MATCH(ROW(Datos[Unidad4]), ROW(Datos[Unidad4]))), ROWS($A$1:I6)), COLUMN(I6)),"") ->  | J48: =IFERROR(INDEX($A$4:$K$12, SMALL(IF((0<$H$4:$H$12),MATCH(ROW(Datos[precio unitario]), ROW(Datos[precio unitario]))), ROWS($A$1:J6)), COLUMN(J6)),"") ->  | K48: =IFERROR(INDEX($A$4:$K$12, SMALL(IF((0<$H$4:$H$12),MATCH(ROW(Datos[Unidad5]), ROW(Datos[Unidad5]))), ROWS($A$1:K6)), COLUMN(K6)),"") -> 
A49: =IFERROR(INDEX($A$4:$K$12, SMALL(IF((0<$H$4:$H$12),MATCH(ROW(Datos[Combustible actual]), ROW(Datos[Combustible actual]))), ROWS($A$1:A7)), COLUMN(A7)),"") ->  | B49: =IFERROR(INDEX($A$4:$K$12, SMALL(IF((0<$H$4:$H$12),MATCH(ROW(Datos[Coste actual adquisición]), ROW(Datos[Coste actual adquisición]))), ROWS($A$1:B7)), COLUMN(B7)),"") ->  | C49: =IFERROR(INDEX($A$4:$K$12, SMALL(IF((0<$H$4:$H$12),MATCH(ROW(Datos[Unidad1]), ROW(Datos[Unidad1]))), ROWS($A$1:C7)), COLUMN(C7)),"") ->  | D49: =IFERROR(INDEX($A$4:$K$12, SMALL(IF((0<$H$4:$H$12),MATCH(ROW(Datos[Consumo]), ROW(Datos[Consumo]))), ROWS($A$1:D7)), COLUMN(D7)),"") ->  | E49: =IFERROR(INDEX($A$4:$K$12, SMALL(IF((0<$H$4:$H$12),MATCH(ROW(Datos[Unidad2]), ROW(Datos[Unidad2]))), ROWS($A$1:E7)), COLUMN(E7)),"") ->  | F49: =IFERROR(INDEX($A$4:$K$12, SMALL(IF((0<$H$4:$H$12),MATCH(ROW(Datos[Energía útil]), ROW(Datos[Energía útil]))), ROWS($A$1:F7)), COLUMN(F7)),"") ->  | G49: =IFERROR(INDEX($A$4:$K$12, SMALL(IF((0<$H$4:$H$12),MATCH(ROW(Datos[Unidad3]), ROW(Datos[Unidad3]))), ROWS($A$1:G7)), COLUMN(G7)),"") ->  | H49: =IFERROR(INDEX($A$4:$K$12, SMALL(IF((0<$H$4:$H$12),MATCH(ROW(Datos[Consumo2]), ROW(Datos[Consumo2]))), ROWS($A$1:H7)), COLUMN(H7)),"") ->  | I49: =IFERROR(INDEX($A$4:$K$12, SMALL(IF((0<$H$4:$H$12),MATCH(ROW(Datos[Unidad4]), ROW(Datos[Unidad4]))), ROWS($A$1:I7)), COLUMN(I7)),"") ->  | J49: =IFERROR(INDEX($A$4:$K$12, SMALL(IF((0<$H$4:$H$12),MATCH(ROW(Datos[precio unitario]), ROW(Datos[precio unitario]))), ROWS($A$1:J7)), COLUMN(J7)),"") ->  | K49: =IFERROR(INDEX($A$4:$K$12, SMALL(IF((0<$H$4:$H$12),MATCH(ROW(Datos[Unidad5]), ROW(Datos[Unidad5]))), ROWS($A$1:K7)), COLUMN(K7)),"") -> 
A50: =IFERROR(INDEX($A$4:$K$12, SMALL(IF((0<$H$4:$H$12),MATCH(ROW(Datos[Combustible actual]), ROW(Datos[Combustible actual]))), ROWS($A$1:A8)), COLUMN(A8)),"") ->  | B50: =IFERROR(INDEX($A$4:$K$12, SMALL(IF((0<$H$4:$H$12),MATCH(ROW(Datos[Coste actual adquisición]), ROW(Datos[Coste actual adquisición]))), ROWS($A$1:B8)), COLUMN(B8)),"") ->  | C50: =IFERROR(INDEX($A$4:$K$12, SMALL(IF((0<$H$4:$H$12),MATCH(ROW(Datos[Unidad1]), ROW(Datos[Unidad1]))), ROWS($A$1:C8)), COLUMN(C8)),"") ->  | D50: =IFERROR(INDEX($A$4:$K$12, SMALL(IF((0<$H$4:$H$12),MATCH(ROW(Datos[Consumo]), ROW(Datos[Consumo]))), ROWS($A$1:D8)), COLUMN(D8)),"") ->  | E50: =IFERROR(INDEX($A$4:$K$12, SMALL(IF((0<$H$4:$H$12),MATCH(ROW(Datos[Unidad2]), ROW(Datos[Unidad2]))), ROWS($A$1:E8)), COLUMN(E8)),"") ->  | F50: =IFERROR(INDEX($A$4:$K$12, SMALL(IF((0<$H$4:$H$12),MATCH(ROW(Datos[Energía útil]), ROW(Datos[Energía útil]))), ROWS($A$1:F8)), COLUMN(F8)),"") ->  | G50: =IFERROR(INDEX($A$4:$K$12, SMALL(IF((0<$H$4:$H$12),MATCH(ROW(Datos[Unidad3]), ROW(Datos[Unidad3]))), ROWS($A$1:G8)), COLUMN(G8)),"") ->  | H50: =IFERROR(INDEX($A$4:$K$12, SMALL(IF((0<$H$4:$H$12),MATCH(ROW(Datos[Consumo2]), ROW(Datos[Consumo2]))), ROWS($A$1:H8)), COLUMN(H8)),"") ->  | I50: =IFERROR(INDEX($A$4:$K$12, SMALL(IF((0<$H$4:$H$12),MATCH(ROW(Datos[Unidad4]), ROW(Datos[Unidad4]))), ROWS($A$1:I8)), COLUMN(I8)),"") ->  | J50: =IFERROR(INDEX($A$4:$K$12, SMALL(IF((0<$H$4:$H$12),MATCH(ROW(Datos[precio unitario]), ROW(Datos[precio unitario]))), ROWS($A$1:J8)), COLUMN(J8)),"") ->  | K50: =IFERROR(INDEX($A$4:$K$12, SMALL(IF((0<$H$4:$H$12),MATCH(ROW(Datos[Unidad5]), ROW(Datos[Unidad5]))), ROWS($A$1:K8)), COLUMN(K8)),"") -> 
A51: =IFERROR(INDEX($A$4:$K$12, SMALL(IF((0<$H$4:$H$12),MATCH(ROW(Datos[Combustible actual]), ROW(Datos[Combustible actual]))), ROWS($A$1:A9)), COLUMN(A9)),"") ->  | B51: =IFERROR(INDEX($A$4:$K$12, SMALL(IF((0<$H$4:$H$12),MATCH(ROW(Datos[Coste actual adquisición]), ROW(Datos[Coste actual adquisición]))), ROWS($A$1:B9)), COLUMN(B9)),"") ->  | C51: =IFERROR(INDEX($A$4:$K$12, SMALL(IF((0<$H$4:$H$12),MATCH(ROW(Datos[Unidad1]), ROW(Datos[Unidad1]))), ROWS($A$1:C9)), COLUMN(C9)),"") ->  | D51: =IFERROR(INDEX($A$4:$K$12, SMALL(IF((0<$H$4:$H$12),MATCH(ROW(Datos[Consumo]), ROW(Datos[Consumo]))), ROWS($A$1:D9)), COLUMN(D9)),"") ->  | E51: =IFERROR(INDEX($A$4:$K$12, SMALL(IF((0<$H$4:$H$12),MATCH(ROW(Datos[Unidad2]), ROW(Datos[Unidad2]))), ROWS($A$1:E9)), COLUMN(E9)),"") ->  | F51: =IFERROR(INDEX($A$4:$K$12, SMALL(IF((0<$H$4:$H$12),MATCH(ROW(Datos[Energía útil]), ROW(Datos[Energía útil]))), ROWS($A$1:F9)), COLUMN(F9)),"") ->  | G51: =IFERROR(INDEX($A$4:$K$12, SMALL(IF((0<$H$4:$H$12),MATCH(ROW(Datos[Unidad3]), ROW(Datos[Unidad3]))), ROWS($A$1:G9)), COLUMN(G9)),"") ->  | H51: =IFERROR(INDEX($A$4:$K$12, SMALL(IF((0<$H$4:$H$12),MATCH(ROW(Datos[Consumo2]), ROW(Datos[Consumo2]))), ROWS($A$1:H9)), COLUMN(H9)),"") ->  | I51: =IFERROR(INDEX($A$4:$K$12, SMALL(IF((0<$H$4:$H$12),MATCH(ROW(Datos[Unidad4]), ROW(Datos[Unidad4]))), ROWS($A$1:I9)), COLUMN(I9)),"") ->  | J51: =IFERROR(INDEX($A$4:$K$12, SMALL(IF((0<$H$4:$H$12),MATCH(ROW(Datos[precio unitario]), ROW(Datos[precio unitario]))), ROWS($A$1:J9)), COLUMN(J9)),"") ->  | K51: =IFERROR(INDEX($A$4:$K$12, SMALL(IF((0<$H$4:$H$12),MATCH(ROW(Datos[Unidad5]), ROW(Datos[Unidad5]))), ROWS($A$1:K9)), COLUMN(K9)),"") -> 
A52: =IFERROR(INDEX($A$4:$K$12, SMALL(IF((0<$H$4:$H$12),MATCH(ROW(Datos[Combustible actual]), ROW(Datos[Combustible actual]))), ROWS($A$1:A10)), COLUMN(A10)),"") ->  | B52: =IFERROR(INDEX($A$4:$K$12, SMALL(IF((0<$H$4:$H$12),MATCH(ROW(Datos[Coste actual adquisición]), ROW(Datos[Coste actual adquisición]))), ROWS($A$1:B10)), COLUMN(B10)),"") ->  | C52: =IFERROR(INDEX($A$4:$K$12, SMALL(IF((0<$H$4:$H$12),MATCH(ROW(Datos[Unidad1]), ROW(Datos[Unidad1]))), ROWS($A$1:C10)), COLUMN(C10)),"") ->  | D52: =IFERROR(INDEX($A$4:$K$12, SMALL(IF((0<$H$4:$H$12),MATCH(ROW(Datos[Consumo]), ROW(Datos[Consumo]))), ROWS($A$1:D10)), COLUMN(D10)),"") ->  | E52: =IFERROR(INDEX($A$4:$K$12, SMALL(IF((0<$H$4:$H$12),MATCH(ROW(Datos[Unidad2]), ROW(Datos[Unidad2]))), ROWS($A$1:E10)), COLUMN(E10)),"") ->  | F52: =IFERROR(INDEX($A$4:$K$12, SMALL(IF((0<$H$4:$H$12),MATCH(ROW(Datos[Energía útil]), ROW(Datos[Energía útil]))), ROWS($A$1:F10)), COLUMN(F10)),"") ->  | G52: =IFERROR(INDEX($A$4:$K$12, SMALL(IF((0<$H$4:$H$12),MATCH(ROW(Datos[Unidad3]), ROW(Datos[Unidad3]))), ROWS($A$1:G10)), COLUMN(G10)),"") ->  | H52: =IFERROR(INDEX($A$4:$K$12, SMALL(IF((0<$H$4:$H$12),MATCH(ROW(Datos[Consumo2]), ROW(Datos[Consumo2]))), ROWS($A$1:H10)), COLUMN(H10)),"") ->  | I52: =IFERROR(INDEX($A$4:$K$12, SMALL(IF((0<$H$4:$H$12),MATCH(ROW(Datos[Unidad4]), ROW(Datos[Unidad4]))), ROWS($A$1:I10)), COLUMN(I10)),"") ->  | J52: =IFERROR(INDEX($A$4:$K$12, SMALL(IF((0<$H$4:$H$12),MATCH(ROW(Datos[precio unitario]), ROW(Datos[precio unitario]))), ROWS($A$1:J10)), COLUMN(J10)),"") ->  | K52: =IFERROR(INDEX($A$4:$K$12, SMALL(IF((0<$H$4:$H$12),MATCH(ROW(Datos[Unidad5]), ROW(Datos[Unidad5]))), ROWS($A$1:K10)), COLUMN(K10)),"") -> 
B56: Cantidad | C56: Precio unitario | D56: Coste anual
A57: Término fijo, mensual | B57: 12 | C57: =B27 -> 1.6 | D57: =IF('Entrada de datos'!C28=1,C57*B57, IF('Entrada de datos'!C28=2,C57*B57*2, IF('Entrada de datos'!C28=3, C57*B57*3))) -> 38.4
A58: Término variable | B58: =D17 -> 0 | C58: ='Entrada de datos'!E22 -> 0.924689 | D58: =B17 -> 0
A59: =IF('Entrada de datos'!C27="SI","Alquiler de contadores", IF(AND('Entrada de datos'!F32=0,'Entrada de datos'!E23=0),"",IF(AND('Entrada de datos'!F32>0,'Entrada de datos'!E23=0),'Entrada de datos'!D32,IF(AND('Entrada de datos'!F32>0,'Entrada de datos'!E23>0),'Entrada de datos'!D32,IF(AND('Entrada de datos'!F32=0,'Entrada de datos'!E23>0),'Entrada de datos'!D23))))) -> Alquiler de contadores | D59: =IF(A59="","",VLOOKUP(A59,A64:B66,2,FALSE)) -> 451.782
A60: =IF('Entrada de datos'!C27="SI",IF(AND('Entrada de datos'!F32=0,'Entrada de datos'!E23=0),"",IF(AND('Entrada de datos'!F32>0,'Entrada de datos'!E23=0),'Entrada de datos'!D32,IF(AND('Entrada de datos'!F32>0,'Entrada de datos'!E23>0),'Entrada de datos'!D32,IF(AND('Entrada de datos'!F32=0,'Entrada de datos'!E23>0),'Entrada de datos'!D23)))),IF(AND('Entrada de datos'!F32>0,'Entrada de datos'!E23>0),'Entrada de datos'!D23,IF(AND('Entrada de datos'!F32>0,'Entrada de datos'!E23=0),"",""))) ->  | D60: =IF(A60="","",VLOOKUP(A60,A64:B66,2,FALSE)) -> 
A61: =IF('Entrada de datos'!C27= "SI",IF(AND('Entrada de datos'!F32=0,'Entrada de datos'!E23=0),"",IF(AND('Entrada de datos'!F32>0,'Entrada de datos'!E23=0),"",IF(AND('Entrada de datos'!F32>0,'Entrada de datos'!E23>0), 'Entrada de datos'!D23,IF(AND('Entrada de datos'!F32=0,'Entrada de datos'!E23>0),"")))), "") ->  | D61: =IF(A61="","",VLOOKUP(A61,A64:B66,2,FALSE)) -> 
A62: Total | D62: =SUM(D57:D60) -> 490.182
A64: Alquiler de contadores | B64: =G29 -> 451.782
A65: ='Entrada de datos'!D32 -> Canon | B65: =L27 -> 
A66: Descuento | B66: =-B18 -> 0 | I66: =B76 -> 0 | J66: =C76 -> 0 | K66: =D76 -> 0 | L66: =E76 -> 0
B67: CO2 (tm) | C67: CO | D67: SO2 | E67: NOx | I67: 1 | J67: 1 | K67: 1 | L67: 1
A68: Fuel | B68: =B32 -> 0 | C68: 0 | D68: 0 | E68: 0
A69: Gasóleo | B69: 0 | C69: 0 | D69: 0 | E69: 0
A70: Propano 11 | B70: =B35 -> 0 | C70: 0 | D70: 0 | E70: 0 | I70: =B79 -> 0 | J70: =C79 -> 0 | K70: =D79 -> 0 | L70: =E79 -> 0
A71: Propano 35 | B71: 0 | C71: 0 | D71: 0 | E71: 0 | I71: =I70/I66 ->  | J71: =J70/J66 -> 
A72: Butano | B72: =B40 -> 0 | C72: =C40 -> 0 | D72: =D40 -> 0 | E72: =E40 -> 0 | I72: =1-I71 ->  | J72: =1-J71 -> 
A73: Pellets | B73: =B39 -> 0 | C73: =C39 -> 0 | D73: =D39 -> 0 | E73: =E39 -> 0
A74: GLP granel | B74: =B41 -> 0 | C74: =C41 -> 0 | D74: =D41 -> 0 | E74: =E41 -> 0
A75: Carbón (coque)
A76: Total | B76: =SUM(B68:B74)/1000000 -> 0 | C76: =SUM(C68:C74)/1000 -> 0 | D76: =SUM(D68:D74)/1000 -> 0 | E76: =SUM(E68:E74)/1000 -> 0
A79: =Resultados!E21 -> GLP canalizado Redexis | B79: =B37/1000000 -> 0 | C79: =C37/1000 -> 0 | D79: =D37/1000 -> 0 | E79: =E37/1000 -> 0
F82: 106.34
A83: Contadores | B83: Tipo | C83: D. acometida | E83: G<4 | F83: 244.4
A84: ='Entrada de datos'!C29 -> G-25 | B84: =VLOOKUP(A84,Contadores!A4:D20,4,FALSE) -> 25 | C84: =IF(E26=0,F82,IF(B84>4,F83,F82)) -> 244.4 | E84: G>4
A85: ='Entrada de datos'!C30 -> G-25 | B85: =VLOOKUP(A85,Contadores!A4:D20,4,FALSE) -> 25 | C85: =IF(AND(E27=0,'Entrada de datos'!C28=2,'Entrada de datos'!C28=3),F82,IF(AND(E27=0,'Entrada de datos'!C28=1),0,IF(B85>4,F83,F82))) -> 244.4
A86: ='Entrada de datos'!C31 -> G-6 | B86: =VLOOKUP(A86,Contadores!A4:D20,4,FALSE) -> 6 | C86: =IF(AND(E28=0,'Entrada de datos'!C28=3),F82,IF(AND(E28=0,OR('Entrada de datos'!C28=2,'Entrada de datos'!C28=1)),0,IF(B86>4,F83,F82))) -> 0
A87: TOTAL | C87: =SUM(C84:C86) -> 488.8
A91: Población | B91: CCAA | C91: D.alta | D91: según ptos de suministro
A92: ='Entrada de datos'!F5 -> Puebla de Montalbán (La) | B92: =VLOOKUP(A92,'Aux1'!A1:C8113,3,) -> Castilla La Mancha | C92: =VLOOKUP(B92,'Aux2'!A1:B18,2,FALSE) -> 72.42 | D92: =IF('Entrada de datos'!C28=1,C92, IF('Entrada de datos'!C28=2,C92*2, IF('Entrada de datos'!C28=3, C92*3))) -> 144.84
A95: Impuesto de hidrocarburos | B95: 1.5
A96: IVA | B96: 0.21
A98: TOTALES CON IVA
A99: Coste combustible actual | B99: =B13+B13*B96 -> 0
A100: Coste nuevo combustible | B100: =D62+D62*B96 -> 593.12022 | C100: =SUM(B100:B102) -> 1272.19642
A101: D. acometida | B101: =C87+C87*B96 -> 591.448
A102: D. alta | B102: =C92+C92*B96 -> 87.6282

Sheet Poder calorífico (hidden)
D3: BOE | F3: IDAE
D4: PCI | E4: PCS | F4: PCI | G4: PCS | H4: unidad
C5: Gasóleo | D5: - | E5: - | F5: 10.28 | G5: 10.89 | H5: KWh/l
C6: Fuel | D6: 11.0485 | E6: 11.63 | F6: - | G6: - | H6: KWh/kg
C7: Gas Natural | D7: - | E7: - | F7: 10.83 | G7: 1 | H7: KWh/m3
C8: GLP | D8: 12.5604 | E8: 13.8397 | F8: 12.86 | G8: 13.97 | H8: KWh/kg
C9: Butano | D9: 12.4441 | E9: 13.7234 | F9: 12.73 | G9: 13.79 | H9: KWh/kg
C10: Pellets | D10: - | E10: - | F10: 4.64 | G10: - | H10: KWh/kg
C11: Carbón (cocque) | F11: 7.595 | H11: KWh/kg
C14: BOE-A-2006-2779 Real Decreto 61/2006
C15: Guía técnica. Diseño de centrales de calor eficientes - IDAE
C16: Guía técnica. Instalaciones de biomasa térmica en edificios - IDAE
C17: Poderes caloríficos inferiores de los principales residuos- IDAE

Sheet Emisiones (hidden)
D5: CO2 (g/KWh) | E5: CO (g/KWh) | F5: SO2 (g/KWh) | G5: NOx (g/KWh)
C6: Fuel | D6: =77.4*1000*3600/1000000 -> 278.64 | E6: =57*3600/1000000 -> 0.2052 | F6: =70*3600/1000000 -> 0.252 | G6: =51*3600/1000000 -> 0.1836
C7: Gasóleo | D7: =74.1*1000*3600/1000000 -> 266.76 | E7: =37*3600/1000000 -> 0.1332 | F7: =79*3600/1000000 -> 0.2844 | G7: =69*3600/1000000 -> 0.2484
C8: GLP | D8: =63.1*1000*3600/1000000 -> 227.16 | E8: =26*3600/1000000 -> 0.0936 | F8: =0.3*3600/1000000 -> 0.00108 | G8: =51*3600/1000000 -> 0.1836
C9: Gas Natural | D9: =56*1000*3600/1000000 -> 201.6 | E9: =22*3600/1000000 -> 0.0792 | F9: =0.3*3600/1000000 -> 0.00108 | G9: =42*3600/1000000 -> 0.1512
C10: Butano | D10: =66.1*1000*3600/1000000 -> 237.96 | E10: =26*3600/1000000 -> 0.0936 | F10: =0.3*3600/1000000 -> 0.00108 | G10: =51*3600/1000000 -> 0.1836
C11: Pellets
C12: Carbón (coque) | D12: =94.6*1000*3600/1000000 -> 340.56
C13: Fuente: Libro Guía EMEP/EEA 2019, Capítulo 1A4, Tablas 3-4, 3-5, 3-6, 3-15, 3-16, 3-18, 3-43
C14: IPCC 2006. Volumen 2, Capítulo 2

Sheet Evolución precio (hidden)
A1: Fecha publicación BOE | B1: Número de BOE | C1: Periodo de vigencia | D1: Término Fijo (€/mes) | E1: Término Variable (c€/Kg) | F1: GN (€/MWh) | G1: Fecha inicio | H1: Fecha Fin | I1: Mes | J1: Año | K1: C€/KWh | L1: GLP (€/KWh) | M1: GN (€/kWh) | O1: 1.59 | P1: =+E9 -> 92.4689
A2: 2025-06-16 | B2: 120 | C2: 17/06/25 - 17/07/25 | D2: 1.59 | E2: 77.2944 | F2: =37.4*1.2 -> 44.88 | G2: 2025-06-17 | H2: 2025-07-17 | I2: 2025-06-01 | J2: =YEAR(G2) -> 2025 | K2: =E2/14 -> 5.521028571 | L2: =K2/100 -> 0.05521028571 | M2: =F2/1000 -> 0.04488
A3: 2025-05-19 | B3: 120 | C3: 20/05/25 - 16/06/25 | D3: 1.59 | E3: 80.8606 | F3: =34.09*1.2 -> 40.908 | G3: 2025-05-20 | H3: 2025-06-16 | I3: 2025-05-01 | J3: =YEAR(G3) -> 2025 | K3: =E3/14 -> 5.775757143 | L3: =K3/100 -> 0.05775757143 | M3: =F3/1000 -> 0.040908
A4: 2025-04-14 | B4: 90 | C4: 15/04/25 - 19/05/25 | D4: 1.59 | E4: 88.6778 | F4: =33.06*1.2 -> 39.672 | G4: 2025-04-15 | H4: 2025-05-19 | I4: 2025-04-01 | J4: =YEAR(G4) -> 2025 | K4: =E4/14 -> 6.334128571 | L4: =K4/100 -> 0.06334128571 | M4: =F4/1000 -> 0.039672
A5: 2025-03-17 | B5: 65 | C5: 18/03/25 - 17/04/25 | D5: 1.59 | E5: 91.8548 | F5: =40.88*1.2 -> 49.056 | G5: 2025-03-18 | H5: 2025-04-17 | I5: 2025-03-01 | J5: =YEAR(G5) -> 2025 | K5: =E5/14 -> 6.561057143 | L5: =K5/100 -> 0.06561057143 | M5: =F5/1000 -> 0.049056
A6: 2025-02-17 | B6: 17 | C6: 18/02/25 - 17/03/25 | D6: 1.59 | E6: 93.1462 | F6: =49.33*1.2 -> 59.196 | G6: 2025-02-18 | H6: 2025-03-17 | I6: 2025-02-01 | J6: =YEAR(G6) -> 2025 | K6: =E6/14 -> 6.6533 | L6: =K6/100 -> 0.066533 | M6: =F6/1000 -> 0.059196
A7: 2025-01-17 | B7: 17 | C7: 21/01/25 - 17/02/25 | D7: 1.59 | E7: 90.5928 | F7: =47.13*1.2 -> 56.556 | G7: 2025-01-21 | H7: 2025-02-17 | I7: 2025-01-01 | J7: =YEAR(G7) -> 2025 | K7: =E7/14 -> 6.470914286 | L7: =K7/100 -> 0.06470914286 | M7: =F7/1000 -> 0.056556
A8: 2024-12-15 | B8: 302 | C8: 17/12/24 - 20/01/25 | D8: 1.59 | E8: 92.1617 | F8: =41.74*1.2 -> 50.088 | G8: 2024-11-19 | H8: 2024-12-18 | I8: 2024-12-01 | J8: =YEAR(G8) -> 2024 | K8: =E8/14 -> 6.582978571 | L8: =K8/100 -> 0.06582978571 | M8: =F8/1000 -> 0.050088
A9: 2024-11-15 | B9: 278 | C9: 19/11/24 - 16/12/24 | D9: 1.59 | E9: 92.4689 | F9: =45.83*1.2 -> 54.996 | G9: 2024-11-19 | H9: 2024-12-18 | I9: 2024-11-01 | J9: =YEAR(G9) -> 2024 | K9: =E9/14 -> 6.604921429 | L9: =K9/100 -> 0.06604921429 | M9: =F9/1000 -> 0.054996
A10: 2024-10-14 | B10: 248 | C10: 17/10/24 - 18/11/24 | D10: 1.59 | E10: 90.2145 | F10: =39.36*1.2 -> 47.232 | G10: 2024-10-17 | H10: 2024-11-18 | I10: 2024-10-01 | J10: =YEAR(G10) -> 2024 | K10: =E10/14 -> 6.443892857 | L10: =K10/100 -> 0.06443892857 | M10: =F10/1000 -> 0.047232
A11: 2024-09-16 | B11: 224 | C11: 17/09/24 - 14/10/24 | D11: 1.59 | E11: 90.7317 | F11: =38.06*1.2 -> 45.672 | G11: =MID(C11,1,8) -> 17/09/24 | H11: =MID(C11,11,9) -> 14/10/24 | I11: 2024-09-01 | J11: =YEAR(G11) -> 2024 | K11: =E11/14 -> 6.480835714 | L11: =K11/100 -> 0.06480835714 | M11: =F11/1000 -> 0.045672
A12: 2024-08-19 | B12: 200 | C12: 20/08/24 - 16/09/24 | D12: 1.59 | E12: 88.2168 | F12: =38.55*1.2 -> 46.26 | G12: =MID(C12,1,8) -> 20/08/24 | H12: =MID(C12,11,9) -> 16/09/24 | I12: 2024-08-01 | J12: 2024 | K12: 6.3012 | L12: 0.063012 | M12: 0.04626
A13: 2024-07-15 | B13: 170 | C13: 16/07/24 - 19/08/24 | D13: 1.59 | E13: 88.4935 | F13: =32.38*1.2 -> 38.856 | G13: =MID(C13,1,8) -> 16/07/24 | H13: =MID(C13,11,9) -> 19/08/24 | I13: 2024-07-01 | J13: =YEAR(G13) -> 2024 | K13: =E13/14 -> 6.320964286 | L13: =K13/100 -> 0.06320964286 | M13: =F13/1000 -> 0.038856
A14: 2024-06-17 | B14: 146 | C14: 18/06/24 - 15/07/24 | D14: 1.59 | E14: 83.1329 | F14: =34.58*1.2 -> 41.496 | G14: =MID(C14,1,8) -> 18/06/24 | H14: =MID(C14,11,9) -> 15/07/24 | I14: 2024-06-01 | J14: =YEAR(G14) -> 2024 | K14: =E14/14 -> 5.938064286 | L14: =K14/100 -> 0.05938064286 | M14: =F14/1000 -> 0.041496
A15: 2024-05-20 | B15: 122 | C15: 21/05/24 - 17/06/24 | D15: 1.59 | E15: 84.3222 | F15: =30.552*1.2 -> 36.6624 | G15: =MID(C15,1,8) -> 21/05/24 | H15: =MID(C15,11,9) -> 17/06/24 | I15: 2024-05-01 | J15: =YEAR(G15) -> 2024 | K15: =E15/14 -> 6.023014286 | L15: =K15/100 -> 0.06023014286 | M15: =F15/1000 -> 0.0366624
A16: 2024-04-15 | B16: 92 | C16: 16/04/24 - 20/05/24 | D16: 1.59 | E16: 87.4985 | F16: =28.377*1.2 -> 34.0524 | G16: =MID(C16,1,8) -> 16/04/24 | H16: =MID(C16,11,9) -> 20/05/24 | I16: 2024-04-01 | J16: =YEAR(G16) -> 2024 | K16: =E16/14 -> 6.249892857 | L16: =K16/100 -> 0.06249892857 | M16: =F16/1000 -> 0.0340524
A17: 2024-03-18 | B17: 68 | C17: 19/03/24 - 15/04/24 | D17: 1.59 | E17: 88.3833 | F17: =25.309*1.2 -> 30.3708 | G17: =MID(C17,1,8) -> 19/03/24 | H17: =MID(C17,11,9) -> 15/04/24 | I17: 2024-03-01 | J17: =YEAR(G17) -> 2024 | K17: =E17/14 -> 6.313092857 | L17: =K17/100 -> 0.06313092857 | M17: =F17/1000 -> 0.0303708
A18: 2024-02-19 | B18: 44 | C18: 20/02/24 -18/03/24 | D18: 1.59 | E18: 86.4275 | F18: 31.14 | G18: 20/02/24 | H18: =MID(C18,11,9) -> 18/03/24 | I18: 2024-02-01 | J18: =YEAR(G18) -> 2024 | K18: =E18/14 -> 6.173392857 | L18: =K18/100 -> 0.06173392857 | M18: =F18/1000 -> 0.03114
A19: 2024-01-15 | B19: 13 | C19: 16/01/24 -19/02/24 | D19: 1.59 | E19: 86.7122 | F19: 38.4 | G19: 16/01/24 | H19: 19/02/24 | I19: 2024-01-01 | J19: 2024 | K19: 6.193728571 | L19: 0.06193728571 | M19: 0.0384
A20: 2023-12-18 | B20: 301 | C20: 19/12/23 -16/01/24 | D20: 1.59 | E20: 87.9557 | F20: 44.4 | G20: 19/12/23 | H20: 16/01/24 | I20: 2023-12-01 | J20: 2023 | K20: 6.28255 | L20: 0.0628255 | M20: 0.0444
A21: 2023-11-18 | B21: 276 | C21: 21/11/23 -18/12/22 | D21: 1.59 | E21: 91.5118 | F21: 52.4 | G21: 21/11/23 | H21: 18/12/22 | I21: 2023-11-01 | J21: 2023 | K21: 6.536557143 | L21: 0.06536557143 | M21: 0.0524
A22: 2023-10-16 | B22: 247 | C22: 17/10/23 -20/11/23 | D22: 1.59 | E22: 92.5348 | F22: 55.89 | G22: 17/10/23 | H22: 20/11/23 | I22: 2023-10-01 | J22: 2023 | K22: 6.609628571 | L22: 0.06609628571 | M22: 0.05589
A23: 2023-09-18 | B23: 223 | C23: 19/09/23 -16/10/23 | D23: 1.59 | E23: 87.6461 | F23: 43.81 | G23: 19/09/23 | H23: 16/10/23 | I23: 2023-09-01 | J23: 2023 | K23: 6.260435714 | L23: 0.06260435714 | M23: 0.04381
A24: 2023-08-14 | B24: 193 | C24: 15/08/23 -18/09/23 | D24: 1.59 | E24: 81.5751 | F24: 46.8 | G24: =MID(C24,1,8) -> 15/08/23 | H24: 18/09/23 | I24: 2023-08-01 | J24: 2023 | K24: 5.826792857 | L24: 0.05826792857 | M24: 0.0468
A25: 2023-07-17 | B25: 169 | C25: 18/07/23 -14/08/23 | D25: 1.59 | E25: 74.7851 | F25: 40.8 | G25: 18/07/23 | H25: =MID(C25,11,9) -> 14/08/23 | I25: 2023-07-01 | J25: =YEAR(G25) -> 2023 | K25: 5.341792857 | L25: 0.05341792857 | M25: 0.0408
A26: 2023-06-19 | B26: 145 | C26: 20/06/23 -17/07/23 | D26: 1.6 | E26: 76.3877 | F26: 35.4 | G26: 20/06/23 | H26: 17/07/23 | I26: 2023-06-01 | J26: 2023 | K26: 5.456264286 | L26: 0.05456264286 | M26: 0.0354
A27: 2023-05-15 | B27: 115 | C27: 16/05/23 -19/06/23 | D27: 1.6 | E27: 82.7651 | F27: 36 | G27: 16/05/23 | H27: 19/06/23 | I27: 2023-05-01 | J27: 2023 | K27: 5.911792857 | L27: 0.05911792857 | M27: 0.036
A28: 2023-04-17 | B28: 91 | C28: 18/04/23 -15/05/23 | D28: 1.6 | E28: 85.4139 | F28: 47.4 | G28: 18/04/23 | H28: 15/05/23 | I28: 2023-04-01 | J28: 2023 | K28: =E28/14 -> 6.100992857 | L28: 0.06100992857 | M28: =F28/1000 -> 0.0474
A29: 2023-03-20 | B29: 67 | C29: 21/03/23 -17/04/23 | D29: 1.6 | E29: 99.6469 | F29: 50.4 | G29: 21/03/23 | H29: 17/04/23 | I29: 2023-03-01 | J29: 2023 | K29: =E29/14 -> 7.117635714 | L29: 0.07117635714 | M29: =F29/1000 -> 0.0504
A30: 2023-02-20 | B30: 43 | C30: 21/02/23 - 20/03/23 | D30: 1.6 | E30: 103.9322 | F30: 60.36 | G30: =MID(C30,1,9) -> 21/02/23 | H30: 20/03/23 | I30: 2023-02-01 | J30: 2023 | K30: 7.423728571 | L30: 0.07423728571 | M30: 0.06036
A31: 2023-01-16 | B31: 13 | C31: 16/01/23 - 20/02/23 | D31: 1.6 | E31: 92.7195 | F31: 66.85 | G31: =MID(C31,1,9) -> 16/01/23 | H31: =MID(C31,11,9) -> 20/02/23 | I31: 2023-01-01 | J31: =YEAR(G31) -> 2023 | K31: 6.622821429 | L31: =K31/100 -> 0.06622821429 | M31: 0.06685
A32: 2022-12-19 | B32: 303 | C32: 20/12/22 -16/01/23 | D32: 1.6 | E32: 97.1189 | F32: 108 | G32: =MID(C32,1,9) -> 20/12/22 | H32: =MID(C32,11,9) -> 16/01/23 | I32: 2022-12-01 | J32: 2022 | K32: 6.937064286 | L32: 0.06937064286 | M32: 0.108
A33: 2022-11-14 | B33: 273 | C33: 15/11/22 - 19/12/22 | D33: 1.6 | E33: 97.6649 | F33: 57.5 | G33: =MID(C33,1,8) -> 15/11/22 | H33: 19/12/22 | I33: 2022-11-15 | J33: 2022 | K33: 6.976064286 | L33: 0.06976064286 | M33: 0.0575
A34: 2022-10-17 | B34: 249 | C34: 18/10/22-14/11/22 | D34: 1.6 | E34: 94.139 | F34: 94.41 | G34: 18/10/22 | H34: 4/11/22 | I34: 2022-10-18 | J34: 2022 | K34: 6.724214286 | L34: 0.06724214286 | M34: 0.09441
A35: 2022-09-20 | B35: 225 | C35: 20/09/22 - 17/10/22 | D35: 1.6 | E35: 101.0859 | F35: 125.48 | G35: 20/09/22 | H35: 17/10/22 | I35: 2022-09-20 | J35: 2022 | K35: 7.220421429 | L35: 0.07220421429 | M35: 0.12548
A36: 2022-08-15 | B36: 193 | C36: 16/08/22 -19/09/22 | D36: 1.6 | E36: 102.7336 | F36: 161.9893548 | G36: =MID(C36,1,9) -> 16/08/22 | H36: 19/09/22 | I36: 2022-08-01 | J36: 2022 | K36: =E36/14 -> 7.338114286 | L36: 0.07338114286 | M36: =F36/1000 -> 0.1619893548
A37: 2022-07-18 | B37: 171 | C37: 19/07/22 -16/08/22 | D37: 1.6 | E37: 104.1211 | F37: 130.4367742 | G37: =MID(C37,1,9) -> 19/07/22 | H37: 16/08/22 | I37: 2022-07-01 | J37: =YEAR(G37) -> 2022 | K37: 7.437221429 | L37: =K37/100 -> 0.07437221429 | M37: 0.1304367742
A38: 2022-06-20 | B38: 146 | C38: 21/06/22 - 18/07/22 | D38: 1.57 | E38: 108.9416 | F38: 111.693125 | G38: =MID(C38,1,9) -> 21/06/22 | H38: =MID(C38,11,9) -> 18/07/22 | I38: 2022-06-01 | J38: =YEAR(G38) -> 2022 | K38: 7.781542857 | L38: 0.07781542857 | M38: 0.111693125
A39: 2022-05-16 | B39: 116 | C39: 17/05/22 - 20/06/22 | D39: 1.57 | E39: 107.384 | F39: 111.693125 | G39: 17/05/22 | H39: =MID(C39,11,9) -> 20/06/22 | I39: 2022-05-01 | J39: =YEAR(G39) -> 2022 | K39: 7.670285714 | L39: 0.07670285714 | M39: 0.111693125
A40: 2022-04-18 | B40: 92 | C40: 15/04/22 - 16/05/22 | D40: 1.57 | E40: 117.058 | F40: 110 | G40: 15/04/22 | H40: 16/05/22 | I40: 2022-04-01 | J40: 2022 | K40: 8.361285714 | L40: 0.08361285714 | M40: 0.11
A41: 2022-03-14 | B41: 62 | C41: 15/03/22 - 18/04/22 | D41: 1.57 | E41: 110.4489 | F41: 109 | G41: 15/03/22 | H41: 18/04/22 | I41: 2022-03-01 | J41: 2022 | K41: 7.889207143 | L41: 0.07889207143 | M41: 0.109
A42: 2022-02-14 | B42: 38 | C42: 15/02/22 – 14/03/22 | D42: 1.57 | E42: 101.3826 | F42: 108 | G42: 15/02/22 | H42: 14/03/22 | I42: 2022-02-01 | J42: 2022 | K42: 7.241614286 | L42: 0.07241614286 | M42: 0.108
A43: 2022-01-17 | B43: 14 | C43: 18/01/22 –14/02/22 | D43: 1.57 | E43: 99.346 | F43: 107 | G43: 18/01/22 | H43: 14/02/22 | I43: 2022-01-01 | J43: 2022 | K43: 7.096142857 | L43: 0.07096142857 | M43: 0.107
A44: 2021-12-20 | B44: 303 | C44: 21/12/21 – 17/01/22 | D44: 1.57 | E44: 100.9809 | F44: 110.1971429 | G44: 21/12/21 | H44: 17/01/22 | I44: 2021-12-01 | J44: 2021 | K44: 7.212921429 | L44: 0.07212921429 | M44: 0.1101971429
A45: 2021-11-15 | B45: 273 | C45: 16/11/21 – 20/12/21 | D45: 1.57 | E45: 107.6637 | F45: 83.955 | G45: 16/11/21 | H45: 20/12/21 | I45: 2021-11-01 | J45: 2021 | K45: 7.690264286 | L45: 0.07690264286 | M45: 0.083955
A46: 2021-10-18 | B46: 249 | C46: 19/10/21 – 15/11/21 | D46: 1.57 | E46: 104.1726 | F46: 91.78410959 | G46: 19/10/21 | H46: 15/11/21 | I46: 2021-10-01 | J46: 2021 | K46: 7.4409 | L46: 0.074409 | M46: 0.09178410959
A47: 2021-09-20 | B47: 225 | C47: 21/09/21 – 18/10/21 | D47: 1.57 | E47: 91.8684 | F47: 64.74970588 | G47: 21/09/21 | H47: 18/10/21 | I47: 2021-09-01 | J47: 2021 | K47: 6.562028571 | L47: 0.06562028571 | M47: 0.06474970588
A48: 2021-08-16 | B48: 195 | C48: 17/08/21 – 20/09/21 | D48: 1.57 | E48: 89.9981 | F48: 45.6875 | G48: 17/08/21 | H48: 20/09/21 | I48: 2021-08-01 | J48: 2021 | K48: 6.428435714 | L48: 0.06428435714 | M48: 0.0456875
A49: 2021-07-19 | B49: 171 | C49: 20/07/21 – 16/08/21 | D49: 1.57 | E49: 86.7033 | F49: 38.05674419 | G49: 20/07/21 | H49: 16/08/21 | I49: 2021-07-01 | J49: 2021 | K49: 6.193092857 | L49: 0.06193092857 | M49: 0.03805674419
A50: 2021-06-14 | B50: 141 | C50: 15/06/21 – 19/07/21 | D50: 1.56 | E50: 77.8328 | F50: 30.17420455 | G50: 15/06/21 | H50: 19/07/21 | I50: 2021-06-01 | J50: 2021 | K50: 5.559485714 | L50: 0.05559485714 | M50: 0.03017420455
A51: 2021-05-17 | B51: 117 | C51: 18/05/21 – 14/06/21 | D51: 1.56 | E51: 75.9397 | F51: 26.74755556 | G51: 18/05/21 | H51: 14/06/21 | I51: 2021-05-01 | J51: 2021 | K51: 5.424264286 | L51: 0.05424264286 | M51: 0.02674755556
A52: 2021-04-19 | B52: 93 | C52: 20/04/21 – 17/05/21 | D52: 1.56 | E52: 78.912 | F52: 22.82016949 | G52: 20/04/21 | H52: 17/05/21 | I52: 2021-04-01 | J52: 2021 | K52: 5.636571429 | L52: 0.05636571429 | M52: 0.02282016949
A53: 2021-03-15 | B53: 63 | C53: 16/03/21 – 19/04/21 | D53: 1.56 | E53: 81.6545 | F53: 17.78967742 | G53: 16/03/21 | H53: 19/04/21 | I53: 2021-03-01 | J53: 2021 | K53: 5.832464286 | L53: 0.05832464286 | M53: 0.01778967742
A54: 2021-02-15 | B54: 39 | C54: 16/02/21 – 15/03/21 | D54: 1.56 | E54: 78.4616 | F54: 17.07185185 | G54: 16/02/21 | H54: 15/03/21 | I54: 2021-02-01 | J54: 2021 | K54: 5.6044 | L54: 0.056044 | M54: 0.01707185185
A55: 2021-01-18 | B55: 15 | C55: 19/01/21 – 15/02/21 | D55: 1.56 | E55: 77.7374 | F55: 27.92607143 | G55: 19/01/21 | H55: 15/02/21 | I55: 2021-01-01 | J55: 2021 | K55: 5.552671429 | L55: 0.05552671429 | M55: 0.02792607143
A56: 2020-12-14 | B56: 325 | C56: 15/12/20 – 18/01/21 | D56: 1.56 | E56: 69.7393 | F56: 18.34225806 | G56: 15/12/20 | H56: 18/01/21 | I56: 2020-12-01 | J56: 2020 | K56: 4.981378571 | L56: 0.04981378571 | M56: 0.01834225806
A57: 2020-11-16 | B57: 301 | C57: 17/11/20 – 14/12/20 | D57: 1.56 | E57: 68.4659 | F57: 14.39466667 | G57: 17/11/20 | H57: 14/12/20 | I57: 2020-11-01 | J57: 2020 | K57: 4.890421429 | L57: 0.04890421429 | M57: 0.01439466667
A58: 2020-10-19 | B58: 276 | C58: 20/10/20 – 16/11/20 | D58: 1.56 | E58: 66.366 | F58: 13.49096774 | G58: 20/10/20 | H58: 16/11/20 | I58: 2020-10-01 | J58: 2020 | K58: 4.740428571 | L58: 0.04740428571 | M58: 0.01349096774
A59: 2020-09-14 | B59: 245 | C59: 15/09/20 – 19/10/20 | D59: 1.56 | E59: 63.98 | F59: 11.52214286 | G59: 15/09/20 | H59: 19/10/20 | I59: 2020-09-01 | J59: 2020 | K59: 4.57 | L59: 0.0457 | M59: 0.01152214286
A60: 2020-08-17 | B60: 221 | C60: 18/08/20 – 14/09/20 | D60: 1.56 | E60: 62.245 | F60: 9.276551724 | G60: 18/08/20 | H60: 14/09/20 | I60: 2020-08-01 | J60: 2020 | K60: 4.446071429 | L60: 0.04446071429 | M60: 0.009276551724
A61: 2020-07-20 | B61: 197 | C61: 21/07/20 – 17/08/20 | D61: 1.56 | E61: 61.3557 | F61: 6.574 | G61: 21/07/20 | H61: 17/08/20 | I61: 2020-07-01 | J61: 2020 | K61: 4.38255 | L61: 0.0438255 | M61: 0.006574
A62: 2020-06-15 | B62: 167 | C62: 16/06/20 – 20/07/20 | D62: 1.57 | E62: 60.7113 | F62: 6.486 | G62: 16/06/20 | H62: 20/07/20 | I62: 2020-06-01 | J62: 2020 | K62: 4.336521429 | L62: 0.04336521429 | M62: 0.006486
A63: 2020-05-18 | B63: 140 | C63: 19/05/20 – 15/06/20 | D63: 1.57 | E63: 56.74 | F63: 5.287857143 | G63: 19/05/20 | H63: 15/06/20 | I63: 2020-05-01 | J63: 2020 | K63: 4.052857143 | L63: 0.04052857143 | M63: 0.005287857143
A64: 2020-04-20 | B64: 110 | C64: 21/04/20 – 18/05/20 | D64: 1.57 | E64: 51.6345 | F64: 7.324 | G64: 21/04/20 | H64: 18/05/20 | I64: 2020-04-01 | J64: 2020 | K64: 3.688178571 | L64: 0.03688178571 | M64: 0.007324
A65: 2020-03-16 | B65: 69 | C65: 17/03/20 – 20/04/20 | D65: 1.57 | E65: 67.9027 | F65: 8.616451613 | G65: 17/03/20 | H65: 20/04/20 | I65: 2020-03-01 | J65: 2020 | K65: 4.850192857 | L65: 0.04850192857 | M65: 0.008616451613
A66: 2020-02-17 | B66: 41 | C66: 18/02/20 – 16/03/20 | D66: 1.57 | E66: 72.7172 | F66: 9.963793103 | G66: 18/02/20 | H66: 16/03/20 | I66: 2020-02-01 | J66: 2020 | K66: 5.194085714 | L66: 0.05194085714 | M66: 0.009963793103
A67: 2020-01-20 | B67: 17 | C67: 21/01/20 – 17/02/20 | D67: 1.57 | E67: 80.3638 | F67: 11.92612903 | G67: 21/01/20 | H67: 17/02/20 | I67: 2020-01-01 | J67: 2020 | K67: 5.740271429 | L67: 0.05740271429 | M67: 0.01192612903
A68: 2019-12-16 | B68: 301 | C68: 17/12/19 – 20/01/20 | D68: 1.57 | E68: 76.0355 | F68: 12.175 | G68: 17/12/19 | H68: 20/01/20 | I68: 2019-12-01 | J68: 2019 | K68: =E68/14 -> 5.431107143 | L68: 0.05431107143 | M68: =F68/1000 -> 0.012175
A69: 2019-11-18 | B69: 277 | C69: 19/11/19 – 16/12/19 | D69: 1.57 | E69: 72.5191 | F69: 13.6575 | G69: 19/11/19 | H69: 16/12/19 | I69: 2019-11-01 | J69: 2019 | K69: 5.179935714 | L69: 0.05179935714 | M69: 0.0136575
A70: 2019-10-14 | B70: 247 | C70: 15/10/19 – 18/10/19 | D70: 1.57 | E70: 68.9253 | F70: 13.03580645 | G70: 15/10/19 | H70: 18/10/19 | I70: 2019-10-01 | J70: 2019 | K70: 4.923235714 | L70: 0.04923235714 | M70: 0.01303580645
A71: 2019-09-16 | B71: 222 | C71: 17/09/19 – 14/10/19 | D71: 1.57 | E71: 64.2284 | F71: 12.09214286 | G71: 17/09/19 | H71: 14/10/19 | I71: 2019-09-01 | J71: 2019 | K71: 4.587742857 | L71: 0.04587742857 | M71: 0.01209214286
A72: 2019-08-19 | B72: 198 | C72: 20/08/19 – 16/09/19 | D72: 1.57 | E72: 63.7475 | F72: 12.03516129 | G72: 20/08/19 | H72: 16/09/19 | I72: 2019-08-01 | J72: 2019 | K72: 4.553392857 | L72: 0.04553392857 | M72: 0.01203516129
A73: 2019-07-15 | B73: 168 | C73: 16/07/19 – 19/08/19 | D73: 1.57 | E73: 67.9415 | F73: 14.24448276 | G73: 16/07/19 | H73: 19/08/19 | I73: 2019-07-01 | J73: 2019 | K73: 4.852964286 | L73: 0.04852964286 | M73: 0.01424448276
A74: 2019-07-15 | B74: 168 | C74: 16/07/19 – 19/08/19 | D74: 1.57 | E74: 67.9415 | F74: 13.49666667 | G74: 16/07/19 | H74: 19/08/19 | I74: 2019-06-01 | J74: 2019 | K74: 4.852964286 | L74: 0.04852964286 | M74: 0.01349666667
A75: 2019-06-17 | B75: 144 | C75: 18/06/19 – 15/07/19 | D75: 1.57 | E75: 71.6289 | F75: 14.75612903 | G75: 18/06/19 | H75: 15/07/19 | I75: 2019-05-01 | J75: 2019 | K75: 5.11635 | L75: 0.0511635 | M75: 0.01475612903
A76: 2019-05-20 | B76: 120 | C76: 21/05/19 – 17/06/19 | D76: 1.57 | E76: 76.4026 | F76: 16.90466667 | G76: 21/05/19 | H76: 17/06/19 | I76: 2019-04-01 | J76: 2019 | K76: 5.457328571 | L76: 0.05457328571 | M76: 0.01690466667
A77: 2019-04-15 | B77: 90 | C77: 16/04/19 – 20/05/19 | D77: 1.57 | E77: 74.7432 | F77: 18.11612903 | G77: 16/04/19 | H77: 20/05/19 | I77: 2019-03-01 | J77: 2019 | K77: 5.3388 | L77: 0.053388 | M77: 0.01811612903
A78: 2019-02-18 | B78: 42 | C78: 19/02/19 – 15/04/19 | D78: 1.57 | E78: 73.0707 | F78: 21.03357143 | G78: 19/02/19 | H78: 15/04/19 | I78: 2019-02-01 | J78: 2019 | K78: 5.219335714 | L78: 0.05219335714 | M78: 0.02103357143
A79: 2019-01-14 | B79: 14 | C79: 15/01/19 – 18/02/19 | D79: 1.57 | E79: 70.8477 | F79: 25.45483871 | G79: 15/01/19 | H79: 18/02/19 | I79: 2019-01-01 | J79: 2019 | K79: 5.06055 | L79: 0.0506055 | M79: 0.02545483871
A80: 2018-12-17 | B80: 303 | C80: 18/12/18 – 14/01/19 | D80: 1.57 | E80: 71.1666 | F80: 25.39806452 | G80: 18/12/18 | H80: 14/01/19 | I80: 2018-12-01 | J80: 2018 | K80: 5.083328571 | L80: 0.05083328571 | M80: 0.02539806452
A81: 2018-11-19 | B81: 279 | C81: 20/11/18 – 17/12/18 | D81: 1.57 | E81: 82.3368 | F81: 26.10033333 | G81: 20/11/18 | H81: 17/12/18 | I81: 2018-11-01 | J81: 2018 | K81: 5.8812 | L81: 0.058812 | M81: 0.02610033333
A82: 2018-10-15 | B82: 249 | C82: 16/10/18 – 19/11/18 | D82: 1.57 | E82: 91.3469 | F82: 27.06193548 | G82: 16/10/18 | H82: 19/11/18 | I82: 2018-10-01 | J82: 2018 | K82: 6.524778571 | L82: 0.06524778571 | M82: 0.02706193548
A83: 2018-09-17 | B83: 225 | C83: 18/09/18 – 15/10/18 | D83: 1.57 | E83: 88.3176 | F83: 29.289 | G83: 18/09/18 | H83: 15/10/18 | I83: 2018-09-01 | J83: 2018 | K83: 6.3084 | L83: 0.063084 | M83: 0.029289
A84: 2018-08-20 | B84: 201 | C84: 21/08/18 – 17/09/18 | D84: 1.57 | E84: 84.9942 | F84: 26.55774194 | G84: 21/08/18 | H84: 17/09/18 | I84: 2018-08-01 | J84: 2018 | K84: 6.071014286 | L84: 0.06071014286 | M84: 0.02655774194
A85: 2018-07-16 | B85: 171 | C85: 17/07/18 – 20/08/18 | D85: 1.57 | E85: 82.7528 | F85: 25.31129032 | G85: 17/07/18 | H85: 20/08/18 | I85: 2018-07-01 | J85: 2018 | K85: 5.910914286 | L85: 0.05910914286 | M85: 0.02531129032
A86: 2018-06-18 | B86: 147 | C86: 19/06/18 – 16/07/18 | D86: 1.57 | E86: 82.0297 | F86: 23.03766667 | G86: 19/06/18 | H86: 16/07/18 | I86: 2018-06-01 | J86: 2018 | K86: 5.859264286 | L86: 0.05859264286 | M86: 0.02303766667
A87: 2018-05-14 | B87: 117 | C87: 15/05/18 – 18/06/18 | D87: 1.57 | E87: 75.2941 | F87: 22.49193548 | G87: 15/05/18 | H87: 18/06/18 | I87: 2018-05-01 | J87: 2018 | K87: 5.37815 | L87: 0.0537815 | M87: 0.02249193548
A88: 2018-04-16 | B88: 92 | C88: 17/04/18 – 14/05/18 | D88: 1.57 | E88: 72.6209 | F88: 21.39433333 | G88: 17/04/18 | H88: 14/05/18 | I88: 2018-04-01 | J88: 2018 | K88: 5.187207143 | L88: 0.05187207143 | M88: 0.02139433333
A89: 2018-03-19 | B89: 68 | C89: 20/03/18 – 16/04/18 | D89: 1.57 | E89: 72.076 | F89: 23.9916129 | G89: 20/03/18 | H89: 16/04/18 | I89: 2018-03-01 | J89: 2018 | K89: 5.148285714 | L89: 0.05148285714 | M89: 0.0239916129
A90: 2018-02-19 | B90: 44 | C90: 20/02/18 – 19/03/18 | D90: 1.57 | E90: 76.1041 | F90: 22.63185185 | G90: 20/02/18 | H90: 19/03/18 | I90: 2018-02-01 | J90: 2018 | K90: 5.436007143 | L90: 0.05436007143 | M90: 0.02263185185
A91: 2018-01-15 | B91: 13 | C91: 16/01/18-19/02/18 | D91: 1.57 | E91: 83.0516 | F91: 21.05225806 | G91: =MID(C91,1,8) -> 16/01/18 | H91: 9/02/18 | I91: 2018-01-01 | J91: 2018 | K91: 5.932257143 | L91: 0.05932257143 | M91: 0.02105225806
A92: 2017-12-18 | B92: 306 | C92: 19/12/17-15/01/17 | D92: 1.57 | E92: 84.2755 | F92: 26.17645161 | G92: =MID(C92,1,8) -> 19/12/17 | H92: 5/01/17 | I92: 2017-12-01 | J92: 2017 | K92: 6.019678571 | L92: 0.06019678571 | M92: 0.02617645161
A93: 2017-11-20 | B93: 282 | C93: 21/11/17-18/12/17 | D93: 1.57 | E93: 82.0534 | F93: 24.01166667 | G93: 21/11/17 | H93: 8/12/17 | I93: 2017-11-01 | J93: 2017 | K93: 5.860957143 | L93: 0.05860957143 | M93: 0.02401166667
A94: 2017-10-16 | B94: 249 | C94: 17/10/17-20/11/17 | D94: 1.57 | E94: 81.0564 | F94: 21.15541667 | G94: 17/10/17 | H94: 0/11/17 | I94: 2017-10-01 | J94: 2017 | K94: 5.789742857 | L94: 0.05789742857 | M94: 0.02115541667
A95: 2017-09-18 | B95: 225 | C95: 19/09/17-16/10/17 | D95: 1.57 | E95: 76.8931 | F95: 17.64452055 | G95: 19/09/17 | H95: 6/10/17 | I95: 2017-09-01 | J95: 2017 | K95: 5.492364286 | L95: 0.05492364286 | M95: 0.01764452055
A96: 2017-08-14 | B96: 193 | C96: 15/08/17-18/09/17 | D96: 1.57 | E96: 72.0669 | F96: 16.61205479 | G96: 15/08/17 | H96: 8/09/17 | I96: 2017-08-01 | J96: 2017 | K96: 5.147635714 | L96: 0.05147635714 | M96: 0.01661205479
A97: 2017-07-17 | B97: 169 | C97: 18/07/17-14/08/17 | D97: 1.57 | E97: 65.557 | F97: 16.87974684 | G97: 18/07/17 | H97: 4/08/17 | I97: 2017-07-01 | J97: 2017 | K97: 4.682642857 | L97: 0.04682642857 | M97: 0.01687974684
A98: 2017-06-19 | B98: 145 | C98: 20/06/17-17/07/17 | D98: 1.56 | E98: 69.4146 | F98: 17.61934211 | G98: 20/06/17 | H98: 7/07/17 | I98: 2017-06-01 | J98: 2017 | K98: 4.958185714 | L98: 0.04958185714 | M98: 0.01761934211
A99: 2017-05-15 | B99: 115 | C99: 16/05/17-19/06/17 | D99: 1.56 | E99: 68.6449 | F99: 18.02356164 | G99: 16/05/17 | H99: 9/06/17 | I99: 2017-05-01 | J99: 2017 | K99: 4.903207143 | L99: 0.04903207143 | M99: 0.01802356164
A100: 2017-04-18 | B100: 92 | C100: 19/04/17-15/05/17 | D100: 1.56 | E100: 70.802 | F100: 18.03911765 | G100: 19/04/17 | H100: 5/05/17 | I100: 2017-04-01 | J100: 2017 | K100: =E100/14 -> 5.057285714 | L100: 0.05057285714 | M100: 0.01803911765
A101: 2017-03-20 | B101: 67 | C101: 21/03/17-18/04/17 | D101: 1.56 | E101: 77.1006 | F101: 16.96064516 | G101: 21/03/17 | H101: 8/04/17 | I101: 2017-03-01 | J101: 2017 | K101: 5.507185714 | L101: =K101/100 -> 0.05507185714 | M101: =F101/1000 -> 0.01696064516
A102: 2017-02-20 | B102: 43 | C102: 21/02/17-20/03/17 | D102: 1.56 | E102: 80.0633 | F102: 22.11285714 | G102: 21/02/17 | H102: 0/03/17 | I102: 2017-02-01 | J102: 2017 | K102: 5.718807143 | L102: 0.05718807143 | M102: 0.02211285714
A103: 2017-01-16 | B103: 13 | C103: 17/01/17-20/02/17 | D103: 1.56 | E103: 75.7749 | F103: 37.46967742 | G103: 17/01/17 | H103: =MID(C103,11,9) -> 0/02/17 | I103: 2017-01-01 | J103: =YEAR(G103) -> 2017 | K103: 5.412492857 | L103: 0.05412492857 | M103: 0.03746967742
A104: 2016-12-19 | B104: 305 | C104: 20/12/16-16/01/17 | D104: 1.56 | E104: 69.8554 | F104: 24.15 | G104: 20/12/16 | H104: 6/01/17 | I104: 2016-12-01 | J104: 2016 | K104: 4.989671429 | L104: 0.04989671429 | M104: 0.02415
A105: 2016-11-14 | B105: 275 | C105: 15/11/16-19/12/16 | D105: 1.56 | E105: 69.6103 | F105: 21.89733333 | G105: 15/11/16 | H105: 9/12/16 | I105: 2016-11-01 | J105: 2016 | K105: 4.972164286 | L105: 0.04972164286 | M105: 0.02189733333
A106: 2016-10-17 | B106: 251 | C106: 18/10/16-14/11/16 | D106: 1.56 | E106: 65.317 | F106: 19.341 | G106: 18/10/16 | H106: 4/11/16 | I106: 2016-10-01 | J106: 2016 | K106: 4.6655 | L106: 0.046655 | M106: 0.019341
A107: 2016-09-19 | B107: 226 | C107: 20/09/16-17/10/16 | D107: 1.56 | E107: 62.6886 | F107: 16.80666667 | G107: 20/09/16 | H107: 7/10/16 | I107: 2016-09-01 | J107: 2016 | K107: 4.477757143 | L107: 0.04477757143 | M107: 0.01680666667
A108: 2016-08-15 | B108: 196 | C108: 16/08/16-19/09/16 | D108: 1.56 | E108: 60.2615 | F108: 15.68443709 | G108: 16/08/16 | H108: 9/09/16 | I108: 2016-08-01 | J108: 2016 | K108: 4.304392857 | L108: 0.04304392857 | M108: 0.01568443709
A109: 2016-07-18 | B109: 172 | C109: 19/07/16-15/08/16 | D109: 1.56 | E109: 63.3598 | F109: 15.36045455 | G109: 19/07/16 | H109: 5/08/16 | I109: 2016-07-01 | J109: 2016 | K109: 4.5257 | L109: 0.045257 | M109: 0.01536045455
A110: 2016-06-20 | B110: 148 | C110: 21/06/16-18/07/16 | D110: 1.57 | E110: 63.4227 | F110: 14.87784314 | G110: 21/06/16 | H110: 8/07/16 | I110: 2016-06-01 | J110: 2016 | K110: 4.530192857 | L110: 0.04530192857 | M110: 0.01487784314
A111: 2016-05-16 | B111: 118 | C111: 17/05/16-20/06/16 | D111: 1.57 | E111: 62.113 | F111: 13.26258065 | G111: 17/05/16 | H111: 0/06/16 | I111: 2016-05-01 | J111: 2016 | K111: 4.436642857 | L111: 0.04436642857 | M111: 0.01326258065
A112: 2016-04-18 | B112: 93 | C112: 19/04/16-16/05/16 | D112: 1.57 | E112: 61.7582 | F112: 13.31266667 | G112: 19/04/16 | H112: 6/05/16 | I112: 2016-04-01 | J112: 2016 | K112: 4.4113 | L112: 0.044113 | M112: 0.01331266667
A113: 2016-03-14 | B113: 63 | C113: 15/03/16-18/04/16 | D113: 1.57 | E113: 59.4804 | F113: 15.84322581 | G113: 15/03/16 | H113: 8/04/16 | I113: 2016-03-01 | J113: 2016 | K113: 4.2486 | L113: 0.042486 | M113: 0.01584322581
A114: 2016-02-15 | B114: 39 | C114: 16/02/16-14/03/16 | D114: 1.57 | E114: 60.2305 | F114: 16.32448276 | G114: 16/02/16 | H114: 4/03/16 | I114: 2016-02-01 | J114: 2016 | K114: 4.302178571 | L114: 0.04302178571 | M114: 0.01632448276
A115: 2016-01-18 | B115: 15 | C115: 19/01/16-15/02/16 | D115: 1.57 | E115: 66.226 | F115: 17.11611111 | G115: 19/01/16 | H115: 5/02/16 | I115: 2016-01-01 | J115: 2016 | K115: 4.730428571 | L115: 0.04730428571 | M115: 0.01711611111
A116: 2015-12-14 | B116: 298 | C116: 15/12/15-18/01/16 | D116: 1.57 | E116: 72.3597 | G116: 15/12/15 | H116: 8/01/16 | I116: 2015-12-01 | J116: 2015

Sheet GRAFICO precios año (hidden)
A1: Año | B1: Precio medio (*) | C1: Variacion sobre el promedio ultimos años
A2: 2015 | B2: 0.71244475 | C2: =B2/$B$13 -> 0.8993598597
A3: 2016 | B3: 0.6369361667 | C3: 0.8040410453
A4: 2017 | B4: 0.7449325455 | C4: 0.9403710668
A5: 2018 | B5: 0.8085395 | C5: 1.020665773
A6: 2019 | B6: 0.70669325 | C6: 0.8920994115
A7: 2020 | B7: 0.65178925 | C7: 0.8227909441
A8: 2021 | B8: =0.8628 -> 0.8628 | C8: 1.089161913
A9: 2022 | B9: =AVERAGEIF(Evolucion_Precio[Año],"2022",Evolucion_Precio[Término Variable (c€/Kg)])/100 -> 1.034520417 | C9: =B9/$B$13 -> 1.305934442
A10: 2023 | B10: =AVERAGEIF(Evolucion_Precio[Año],"2023",Evolucion_Precio[Término Variable (c€/Kg)])/100 -> 0.88072825 | C10: =B10/$B$13 -> 1.111793771
A11: 2024 | B11: =AVERAGEIF(Evolucion_Precio[Año],"2024",Evolucion_Precio[Término Variable (c€/Kg)])/100 -> 0.8823030833 | C11: =B11/$B$13 -> 1.113781774
A12: 2025 | B12: =AVERAGEIF(Evolucion_Precio[Año],"2025",Evolucion_Precio[Término Variable (c€/Kg)])/100 -> 0.870711 | C12: =B12/$B$13 -> 1.099148422
A13: media periodo | B13: =AVERAGE(B2:B11) -> 0.7921687212 | C13: =B13/$B$13 -> 1
A15: (*) Actualizar dato de la hoja evolución de precios

Sheet GRAFICO precios 12 ultimos mes (hidden)
A1: Mes | B1: Precio
G2: B2G
A3: ='Evolución precio'!I41 -> 2022-03-01 | B3: ='Evolución precio'!E41/100 -> 1.104489
A4: ='Evolución precio'!I40 -> 2022-04-01 | B4: ='Evolución precio'!E40/100 -> 1.17058
A5: ='Evolución precio'!I39 -> 2022-05-01 | B5: ='Evolución precio'!E39/100 -> 1.07384
A6: ='Evolución precio'!I38 -> 2022-06-01 | B6: ='Evolución precio'!E38/100 -> 1.089416
A7: ='Evolución precio'!I37 -> 2022-07-01 | B7: ='Evolución precio'!E37/100 -> 1.041211
A8: ='Evolución precio'!I36 -> 2022-08-01 | B8: ='Evolución precio'!E36/100 -> 1.027336
A9: ='Evolución precio'!I35 -> 2022-09-20 | B9: ='Evolución precio'!E35/100 -> 1.010859
A10: ='Evolución precio'!I34 -> 2022-10-18 | B10: ='Evolución precio'!E34/100 -> 0.94139
A11: ='Evolución precio'!I33 -> 2022-11-15 | B11: ='Evolución precio'!E33/100 -> 0.976649
A12: ='Evolución precio'!I32 -> 2022-12-01 | B12: ='Evolución precio'!E32/100 -> 0.971189
A13: ='Evolución precio'!I31 -> 2023-01-01 | B13: ='Evolución precio'!E31/100 -> 0.927195
A14: ='Evolución precio'!I30 -> 2023-02-01 | B14: ='Evolución precio'!E30/100 -> 1.039322
A15: ='Evolución precio'!I29 -> 2023-03-01 | B15: ='Evolución precio'!E29/100 -> 0.996469
A16: ='Evolución precio'!I28 -> 2023-04-01 | B16: ='Evolución precio'!E28/100 -> 0.854139
A17: ='Evolución precio'!I27 -> 2023-05-01 | B17: ='Evolución precio'!E27/100 -> 0.827651
A18: ='Evolución precio'!I26 -> 2023-06-01 | B18: ='Evolución precio'!E26/100 -> 0.763877
A19: ='Evolución precio'!I25 -> 2023-07-01 | B19: ='Evolución precio'!E25/100 -> 0.747851
A20: ='Evolución precio'!I24 -> 2023-08-01 | B20: ='Evolución precio'!E24/100 -> 0.815751
A21: ='Evolución precio'!I23 -> 2023-09-01 | B21: ='Evolución precio'!E23/100 -> 0.876461
A22: ='Evolución precio'!I22 -> 2023-10-01 | B22: ='Evolución precio'!E22/100 -> 0.925348
A23: ='Evolución precio'!I21 -> 2023-11-01 | B23: ='Evolución precio'!E21/100 -> 0.915118
A24: ='Evolución precio'!I20 -> 2023-12-01 | B24: ='Evolución precio'!E20/100 -> 0.879557
A25: ='Evolución precio'!I19 -> 2024-01-01 | B25: ='Evolución precio'!E19/100 -> 0.867122
A26: ='Evolución precio'!I18 -> 2024-02-01 | B26: ='Evolución precio'!E18/100 -> 0.864275
A27: ='Evolución precio'!I17 -> 2024-03-01 | B27: ='Evolución precio'!E17/100 -> 0.883833
A28: ='Evolución precio'!I16 -> 2024-04-01 | B28: ='Evolución precio'!E16/100 -> 0.874985
A29: ='Evolución precio'!I15 -> 2024-05-01 | B29: ='Evolución precio'!E15/100 -> 0.843222
A30: ='Evolución precio'!I14 -> 2024-06-01 | B30: ='Evolución precio'!E14/100 -> 0.831329
A31: ='Evolución precio'!I13 -> 2024-07-01 | B31: ='Evolución precio'!E13/100 -> 0.884935
A32: ='Evolución precio'!I12 -> 2024-08-01 | B32: ='Evolución precio'!E12/100 -> 0.882168
A33: ='Evolución precio'!I11 -> 2024-09-01 | B33: ='Evolución precio'!E11/100 -> 0.907317
A34: ='Evolución precio'!I10 -> 2024-10-01 | B34: ='Evolución precio'!E10/100 -> 0.902145
A35: ='Evolución precio'!I9 -> 2024-11-01 | B35: ='Evolución precio'!E9/100 -> 0.924689
A36: ='Evolución precio'!I8 -> 2024-12-01 | B36: ='Evolución precio'!E8/100 -> 0.921617
A37: ='Evolución precio'!I7 -> 2025-01-01 | B37: ='Evolución precio'!E7/100 -> 0.905928
A38: ='Evolución precio'!I6 -> 2025-02-01 | B38: ='Evolución precio'!E6/100 -> 0.931462
A39: ='Evolución precio'!I5 -> 2025-03-01 | B39: ='Evolución precio'!E5/100 -> 0.918548
A40: ='Evolución precio'!I4 -> 2025-04-01 | B40: ='Evolución precio'!E4/100 -> 0.886778
A41: ='Evolución precio'!I3 -> 2025-05-01 | B41: ='Evolución precio'!E3/100 -> 0.808606
A42: ='Evolución precio'!I2 -> 2025-06-01 | B42: ='Evolución precio'!E2/100 -> 0.772944

Sheet GRAFICO precios año GLP+GN (hidden)
A1: Año | B1: Precio medio GLP | C1: Precio medio GN
A2: 2016 | B2: 0.0455 | C2: 0.017
A3: 2017 | B3: 0.054 | C3: 0.0211
A4: 2018 | B4: 0.05573 | C4: 0.0245
A5: 2019 | B5: 0.0505 | C5: 0.016
A6: 2020 | B6: 0.0466 | C6: 0.0103
A7: 2021 | B7: 0.0626 | C7: 0.0481
A8: 2022 | B8: =AVERAGEIF(Evolucion_Precio[Año],"2022",Evolucion_Precio[GLP (€/KWh)]) -> 0.07389431548 | C8: =AVERAGEIF(Evolucion_Precio[Año],"2022",Evolucion_Precio[GN (€/kWh)]) -> 0.1112668649
A9: 2023 | B9: =AVERAGEIF(Evolucion_Precio[Año],"2023",Evolucion_Precio[GLP (€/KWh)]) -> 0.06290916071 | C9: =AVERAGEIF(Evolucion_Precio[Año],"2023",Evolucion_Precio[GN (€/kWh)]) -> 0.04837583333
A10: 2024 | B10: =AVERAGEIF(Evolucion_Precio[Año],"2024",Evolucion_Precio[GLP (€/KWh)]) -> 0.06302164881 | C10: =AVERAGEIF(Evolucion_Precio[Año],"2024",Evolucion_Precio[GN (€/kWh)]) -> 0.0412688
A11: 2025 | B11: =AVERAGEIF(Evolucion_Precio[Año],"2025",Evolucion_Precio[GLP (€/KWh)]) -> 0.06219364286 | C11: =AVERAGEIF(Evolucion_Precio[Año],"2025",Evolucion_Precio[GN (€/kWh)]) -> 0.048378
A17: Año | B17: Precio medio GLP | C17: Precio medio GN
A18: 2021-04-01 | B18: ='Evolución precio'!L52 -> 0.05636571429 | C18: 0.02282016949
A19: 2021-05-01 | B19: ='Evolución precio'!L51 -> 0.05424264286 | C19: 0.02674755556
A20: 2021-06-01 | B20: ='Evolución precio'!L50 -> 0.05559485714 | C20: 0.03017420455
A21: 2021-07-01 | B21: ='Evolución precio'!L49 -> 0.06193092857 | C21: 0.03805674419
A22: 2021-08-01 | B22: ='Evolución precio'!L48 -> 0.06428435714 | C22: 0.0456875
A23: 2021-09-01 | B23: ='Evolución precio'!L47 -> 0.06562028571 | C23: 0.06474970588
A24: 2021-10-01 | B24: ='Evolución precio'!L46 -> 0.074409 | C24: 0.09178410959
A25: 2021-11-01 | B25: ='Evolución precio'!L45 -> 0.07690264286 | C25: 0.083955
A26: 2021-12-01 | B26: ='Evolución precio'!L44 -> 0.07212921429 | C26: 0.1101971429
A27: 2022-01-01 | B27: ='Evolución precio'!L43 -> 0.07096142857 | C27: 0.107
A28: 2022-02-01 | B28: ='Evolución precio'!L42 -> 0.07241614286 | C28: 0.108
A29: 2022-03-01 | B29: ='Evolución precio'!L41 -> 0.07889207143 | C29: 0.109
A30: 2022-04-01 | B30: ='Evolución precio'!L40 -> 0.08361285714 | C30: 0.11
A31: 2022-05-01 | B31: ='Evolución precio'!L39 -> 0.07670285714 | C31: 0.111693125
A32: 2022-06-01 | B32: ='Evolución precio'!L38 -> 0.07781542857 | C32: 0.111693125
A33: 2022-07-01 | B33: ='Evolución precio'!L37 -> 0.07437221429 | C33: 0.1304367742
A34: 2022-08-01 | B34: ='Evolución precio'!L36 -> 0.07338114286 | C34: 0.1619893548
A35: 2022-09-01 | B35: ='Evolución precio'!L35 -> 0.07220421429 | C35: 0.1618
A36: 2022-10-01 | B36: ='Evolución precio'!L34 -> 0.06724214286 | C36: 0.09441
A37: 2022-11-02 | B37: ='Evolución precio'!L33 -> 0.06976064286 | C37: 0.1129
A38: dic.-22 | B38: ='Evolución precio'!L32 -> 0.06937064286 | C38: 0.1113
A39: ene.-23 | B39: ='Evolución precio'!L31 -> 0.06622821429 | C39: 0.0669
A40: feb.-23 | B40: ='Evolución precio'!L30 -> 0.07423728571 | C40: =0.0636 -> 0.0636
A41: mar.-23 | B41: ='Evolución precio'!L29 -> 0.07117635714 | C41: =C8 -> 0.1112668649
A42: 2023-04-01 | B42: ='Evolución precio'!L28 -> 0.06100992857 | C42: 0.066
A43: 2023-05-01 | B43: ='Evolución precio'!L27 -> 0.05911792857 | C43: 0.0522
A44: 2023-06-01 | B44: ='Evolución precio'!L26 -> 0.05456264286 | C44: 0.0494
A45: 2023-07-01 | B45: ='Evolución precio'!L25 -> 0.05341792857 | C45: 0.0482
A46: 2023-08-01 | B46: ='Evolución precio'!L24 -> 0.05826792857 | C46: 0.04800125
A47: 2023-09-01 | B47: ='Evolución precio'!L23 -> 0.06260435714 | C47: 0.0475
A48: 2023-10-01 | B48: ='Evolución precio'!L22 -> 0.06609628571 | C48: 0.048371
A49: 2023-11-01 | B49: ='Evolución precio'!L21 -> 0.06536557143 | C49: 0.0487
A50: 2023-12-01 | B50: ='Evolución precio'!L20 -> 0.0628255 | C50: 0.04837583333
A51: 2024-01-01 | B51: ='Evolución precio'!L19 -> 0.06193728571 | C51: 0.0384
A52: 2024-02-01 | B52: ='Evolución precio'!L18 -> 0.06173392857 | C52: 0.03477
A53: 2024-03-01 | B53: ='Evolución precio'!L17 -> 0.06313092857 | C53: 0.0333036
A54: 2024-04-01 | B54: ='Evolución precio'!L16 -> 0.06249892857 | C54: 0.0334908
A55: 2024-05-01 | B55: ='Evolución precio'!L15 -> 0.06023014286 | C55: 0.03412512
A56: 2024-06-01 | B56: ='Evolución precio'!L14 -> 0.05938064286 | C56: =0.0354 -> 0.0354
A57: 2024-07-01 | B57: ='Evolución precio'!L13 -> 0.06320964286 | C57: =+'Evolución precio'!M14 -> 0.041496
A58: 2024-08-01 | B58: ='Evolución precio'!L12 -> 0.063012 | C58: =+'Evolución precio'!M13 -> 0.038856
A59: 2024-09-01 | B59: ='Evolución precio'!L11 -> 0.06480835714 | C59: =+'Evolución precio'!M12 -> 0.04626
A60: 2024-10-01 | B60: ='Evolución precio'!L10 -> 0.06443892857 | C60: =+'Evolución precio'!M11 -> 0.045672
A61: 2024-11-01 | B61: ='Evolución precio'!L9 -> 0.06604921429 | C61: =+'Evolución precio'!M10 -> 0.047232
A62: 2024-12-01 | B62: ='Evolución precio'!L8 -> 0.06582978571 | C62: =+'Evolución precio'!M9 -> 0.054996
A63: 2025-01-01 | B63: ='Evolución precio'!L7 -> 0.06470914286 | C63: =+'Evolución precio'!M8 -> 0.050088
A64: 2025-02-01 | B64: ='Evolución precio'!L6 -> 0.066533 | C64: =+'Evolución precio'!M6 -> 0.059196
A65: 2025-03-01 | B65: ='Evolución precio'!L5 -> 0.06561057143 | C65: =+'Evolución precio'!M5 -> 0.049056
A66: 2025-04-01 | B66: ='Evolución precio'!L4 -> 0.06334128571 | C66: ='Evolución precio'!M4 -> 0.039672
A67: 2025-05-01 | B67: ='Evolución precio'!L3 -> 0.05775757143 | C67: ='Evolución precio'!M3 -> 0.040908
A68: 2025-06-01 | B68: ='Evolución precio'!L2 -> 0.05521028571 | C68: ='Evolución precio'!M2 -> 0.04488

Sheet Contadores (hidden)
A4: TIPO | B4: ALQUILER DE CONTADORES | C4: €/mes
A5: - | D5: 0
A6: G-1,6 | B6: Hasta 3m³/hora | C6: 1.16 | D6: 1.6
A7: G-4 | B7: Hasta 6m³/hora | C7: 1.16 | D7: 4
A8: G-6 | B8: Hasta 10m³/hora | C8: 1.22 | D8: 6
A9: G-16 | B9: Hasta 25m³/hora | C9: 9.70625 | D9: 16
A10: G-25 | B10: Hasta 40m³/hora | C10: 18.82425 | D10: 25
A11: G-40 | B11: Hasta 65m³/hora | C11: 38.45525 | D11: 40
A12: G-65 | B12: Hasta 100m³/hora | C12: 52.06025 | D12: 65
A13: G-100 | B13: Hasta 160m³/hora | C13: 81.658 | D13: 100
A14: G-160 | B14: Hasta 250m³/hora | C14: 172.81675 | D14: 160
A15: G-250 | B15: Hasta 400m³/hora | C15: 172.81674 | D15: 250
A16: G-400 | B16: Hasta 650m³/hora | C16: 172.81674 | D16: 400
A17: G-650 | B17: Hasta1000m³/hora | C17: 172.81674 | D17: 650
A18: G-1000 | B18: Hasta 1600m³/hora | C18: 240.645334 | D18: 1000
A19: G-1600 | B19: Hasta 2500m³/hora | C19: 310.365126 | D19: 1600
A20: G-2500 | B20: Hasta 4000m³/hora | C20: 399.80625 | D20: 2500

Sheet D.altas y acometida (hidden)
A1: Precio | B1: Tipo precio | C1: Nivel de precio | D1: Válido de | E1: Validez a | F1: Importe precio | G1: Moneda transacción | H1: Descripción | J1: Sector | K1: Clase de cálculo | L1: Unidad de medida | M1: Base de tiempo | N1: Tipo de tiempo
A2: ACOM0131 | B2: 1 | D2: 2019-01-01 | E2: 2019-12-31 | F2: 106.34 | G2: EUR | H2: Derechos de acometida Andalucía 3.1 | I2: Andalucía | J2: 02 | K2: RG01 | L2: US
A3: ACOM0131 | B3: 1 | D3: 2020-01-01 | E3: 2020-09-30 | F3: 106.34 | G3: EUR | H3: Derechos de acometida Andalucía 3.1 | J3: 02 | K3: RG01 | L3: US
A4: ACOM0131 | B4: 1 | D4: 2020-10-01 | E4: 9999-12-31 | F4: 106.34 | G4: EUR | H4: Derechos de acometida Andalucía 3.1 | J4: 02 | K4: RG01 | L4: US
A5: ACOM0132A | B5: 1 | D5: 2019-01-01 | E5: 2019-12-31 | F5: 106.34 | G5: EUR | H5: Derechos de acometida Andalucía 3.2a (cont<G-4) | J5: 02 | K5: RG01 | L5: US
A6: ACOM0132A | B6: 1 | D6: 2020-01-01 | E6: 2020-09-30 | F6: 106.34 | G6: EUR | H6: Derechos de acometida Andalucía 3.2a (cont<G-4) | J6: 02 | K6: RG01 | L6: US
A7: ACOM0132A | B7: 1 | D7: 2020-10-01 | E7: 9999-12-31 | F7: 106.34 | G7: EUR | H7: Derechos de acometida Andalucía 3.2a (cont<G-4) | J7: 02 | K7: RG01 | L7: US
A8: ACOM0132B | B8: 1 | D8: 2019-01-01 | E8: 2019-12-31 | F8: 244.4 | G8: EUR | H8: Derechos de acometida Andalucía 3.2b | J8: 02 | K8: RG01 | L8: US
A9: ACOM0132B | B9: 1 | D9: 2020-01-01 | E9: 2020-09-30 | F9: 244.4 | G9: EUR | H9: Derechos de acometida Andalucía 3.2b | J9: 02 | K9: RG01 | L9: US
A10: ACOM0132B | B10: 1 | D10: 2020-10-01 | E10: 9999-12-31 | F10: 244.4 | G10: EUR | H10: Derechos de acometida Andalucía 3.2b | J10: 02 | K10: RG01 | L10: US
A11: ACOM0133 | B11: 1 | D11: 2019-01-01 | E11: 2019-12-31 | F11: 488.83 | G11: EUR | H11: Derechos de acometida Andalucía 3.3 | J11: 02 | K11: RG01 | L11: US
A12: ACOM0133 | B12: 1 | D12: 2020-01-01 | E12: 2020-09-30 | F12: 488.83 | G12: EUR | H12: Derechos de acometida Andalucía 3.3 | J12: 02 | K12: RG01 | L12: US
A13: ACOM0133 | B13: 1 | D13: 2020-10-01 | E13: 9999-12-31 | F13: 488.83 | G13: EUR | H13: Derechos de acometida Andalucía 3.3 | J13: 02 | K13: RG01 | L13: US
A14: ACOM0134 | B14: 1 | D14: 2019-01-01 | E14: 2019-12-31 | F14: 488.83 | G14: EUR | H14: Derechos de acometida Andalucía 3.4 | J14: 02 | K14: RG01 | L14: US
A15: ACOM0134 | B15: 1 | D15: 2020-01-01 | E15: 2020-09-30 | F15: 488.83 | G15: EUR | H15: Derechos de acometida Andalucía 3.4 | J15: 02 | K15: RG01 | L15: US
A16: ACOM0134 | B16: 1 | D16: 2020-10-01 | E16: 9999-12-31 | F16: 488.83 | G16: EUR | H16: Derechos de acometida Andalucía 3.4 | J16: 02 | K16: RG01 | L16: US
A17: ACOM01GLPA | B17: 1 | D17: 2019-01-01 | E17: 2019-12-31 | F17: 106.34 | G17: EUR | H17: Derechos de acometida Andalucía GLP A (cont.<G-4) | J17: 02 | K17: RG01 | L17: US
A18: ACOM01GLPA | B18: 1 | D18: 2020-01-01 | E18: 2020-09-30 | F18: 106.34 | G18: EUR | H18: Derechos de acometida Andalucía GLP A (cont.<G-4) | J18: 02 | K18: RG01 | L18: US
A19: ACOM01GLPA | B19: 1 | D19: 2020-10-01 | E19: 9999-12-31 | F19: 106.34 | G19: EUR | H19: Derechos de acometida Andalucía GLP A (cont.<G-4) | J19: 02 | K19: RG01 | L19: US
A20: ACOM01GLPB | B20: 1 | D20: 2019-01-01 | E20: 2019-12-31 | F20: 244.4 | G20: EUR | H20: Derechos de acometida Andalucía GLP B (cont.>G-4) | J20: 02 | K20: RG01 | L20: US
A21: ACOM01GLPB | B21: 1 | D21: 2020-01-01 | E21: 2020-09-30 | F21: 244.4 | G21: EUR | H21: Derechos de acometida Andalucía GLP B (cont.>G-4) | J21: 02 | K21: RG01 | L21: US
A22: ACOM01GLPB | B22: 1 | D22: 2020-10-01 | E22: 9999-12-31 | F22: 244.4 | G22: EUR | H22: Derechos de acometida Andalucía GLP B (cont.>G-4) | J22: 02 | K22: RG01 | L22: US
A23: ACOM01IN | B23: 1 | D23: 2019-01-01 | E23: 2019-12-31 | F23: 488.83 | G23: EUR | H23: Derechos de acometida Andalucía IN | J23: 02 | K23: RG01 | L23: US
A24: ACOM01IN | B24: 1 | D24: 2020-01-01 | E24: 2020-09-30 | F24: 488.83 | G24: EUR | H24: Derechos de acometida Andalucía IN | J24: 02 | K24: RG01 | L24: US
A25: ACOM01IN | B25: 1 | D25: 2020-10-01 | E25: 9999-12-31 | F25: 488.83 | G25: EUR | H25: Derechos de acometida Andalucía IN | J25: 02 | K25: RG01 | L25: US
A26: ACOM0231 | B26: 1 | D26: 2019-01-01 | E26: 2019-12-31 | F26: 106.34 | G26: EUR | H26: Derechos de acometida Aragón 3.1 | J26: 02 | K26: RG01 | L26: US
A27: ACOM0231 | B27: 1 | D27: 2020-01-01 | E27: 2020-09-30 | F27: 106.34 | G27: EUR | H27: Derechos de acometida Aragón 3.1 | J27: 02 | K27: RG01 | L27: US
A28: ACOM0231 | B28: 1 | D28: 2020-10-01 | E28: 9999-12-31 | F28: 106.34 | G28: EUR | H28: Derechos de acometida Aragón 3.1 | J28: 02 | K28: RG01 | L28: US
A29: ACOM0232A | B29: 1 | D29: 2019-01-01 | E29: 2019-12-31 | F29: 106.34 | G29: EUR | H29: Derechos de acometida Aragón 3.2a (cont<G-4) | J29: 02 | K29: RG01 | L29: US
A30: ACOM0232A | B30: 1 | D30: 2020-01-01 | E30: 2020-09-30 | F30: 106.34 | G30: EUR | H30: Derechos de acometida Aragón 3.2a (cont<G-4) | J30: 02 | K30: RG01 | L30: US
A31: ACOM0232A | B31: 1 | D31: 2020-10-01 | E31: 9999-12-31 | F31: 106.34 | G31: EUR | H31: Derechos de acometida Aragón 3.2a (cont<G-4) | J31: 02 | K31: RG01 | L31: US
A32: ACOM0232B | B32: 1 | D32: 2019-01-01 | E32: 2019-12-31 | F32: 244.4 | G32: EUR | H32: Derechos de acometida Aragón 3.2b | J32: 02 | K32: RG01 | L32: US
A33: ACOM0232B | B33: 1 | D33: 2020-01-01 | E33: 2020-09-30 | F33: 244.4 | G33: EUR | H33: Derechos de acometida Aragón 3.2b | J33: 02 | K33: RG01 | L33: US
A34: ACOM0232B | B34: 1 | D34: 2020-10-01 | E34: 9999-12-31 | F34: 244.4 | G34: EUR | H34: Derechos de acometida Aragón 3.2b | J34: 02 | K34: RG01 | L34: US
A35: ACOM0233 | B35: 1 | D35: 2019-01-01 | E35: 2019-12-31 | F35: 488.83 | G35: EUR | H35: Derechos de acometida Aragón 3.3 | J35: 02 | K35: RG01 | L35: US
A36: ACOM0233 | B36: 1 | D36: 2020-01-01 | E36: 2020-09-30 | F36: 488.83 | G36: EUR | H36: Derechos de acometida Aragón 3.3 | J36: 02 | K36: RG01 | L36: US
A37: ACOM0233 | B37: 1 | D37: 2020-10-01 | E37: 9999-12-31 | F37: 488.83 | G37: EUR | H37: Derechos de acometida Aragón 3.3 | J37: 02 | K37: RG01 | L37: US
A38: ACOM0234 | B38: 1 | D38: 2019-01-01 | E38: 2019-12-31 | F38: 488.83 | G38: EUR | H38: Derechos de acometida Aragón 3.4 | J38: 02 | K38: RG01 | L38: US
A39: ACOM0234 | B39: 1 | D39: 2020-01-01 | E39: 2020-09-30 | F39: 488.83 | G39: EUR | H39: Derechos de acometida Aragón 3.4 | J39: 02 | K39: RG01 | L39: US
A40: ACOM0234 | B40: 1 | D40: 2020-10-01 | E40: 9999-12-31 | F40: 488.83 | G40: EUR | H40: Derechos de acometida Aragón 3.4 | J40: 02 | K40: RG01 | L40: US
A41: ACOM02GLPA | B41: 1 | D41: 2019-01-01 | E41: 2019-12-31 | F41: 106.34 | G41: EUR | H41: Derechos de acometida Aragón GLP A (cont.<G-4) | J41: 02 | K41: RG01 | L41: US
A42: ACOM02GLPA | B42: 1 | D42: 2020-01-01 | E42: 2020-09-30 | F42: 106.34 | G42: EUR | H42: Derechos de acometida Aragón GLP A (cont.<G-4) | J42: 02 | K42: RG01 | L42: US
A43: ACOM02GLPA | B43: 1 | D43: 2020-10-01 | E43: 9999-12-31 | F43: 106.34 | G43: EUR | H43: Derechos de acometida Aragón GLP A (cont.<G-4) | J43: 02 | K43: RG01 | L43: US
A44: ACOM02GLPB | B44: 1 | D44: 2019-01-01 | E44: 2019-12-31 | F44: 244.4 | G44: EUR | H44: Derechos de acometida Aragón GLP B (cont.>G-4) | J44: 02 | K44: RG01 | L44: US
A45: ACOM02GLPB | B45: 1 | D45: 2020-01-01 | E45: 2020-09-30 | F45: 244.4 | G45: EUR | H45: Derechos de acometida Aragón GLP B (cont.>G-4) | J45: 02 | K45: RG01 | L45: US
A46: ACOM02GLPB | B46: 1 | D46: 2020-10-01 | E46: 9999-12-31 | F46: 244.4 | G46: EUR | H46: Derechos de acometida Aragón GLP B (cont.>G-4) | J46: 02 | K46: RG01 | L46: US
A47: ACOM02IN | B47: 1 | D47: 2019-01-01 | E47: 2019-12-31 | F47: 488.83 | G47: EUR | H47: Derechos de acometida Aragón IN | J47: 02 | K47: RG01 | L47: US
A48: ACOM02IN | B48: 1 | D48: 2020-01-01 | E48: 2020-09-30 | F48: 488.83 | G48: EUR | H48: Derechos de acometida Aragón IN | J48: 02 | K48: RG01 | L48: US
A49: ACOM02IN | B49: 1 | D49: 2020-10-01 | E49: 9999-12-31 | F49: 488.83 | G49: EUR | H49: Derechos de acometida Aragón IN | J49: 02 | K49: RG01 | L49: US
A50: ACOM0431 | B50: 1 | D50: 2019-01-01 | E50: 2019-12-31 | F50: 106.34 | G50: EUR | H50: Derechos de acometida Illes Balears 3.1 | J50: 02 | K50: RG01 | L50: US
A51: ACOM0431 | B51: 1 | D51: 2020-01-01 | E51: 2020-09-30 | F51: 106.34 | G51: EUR | H51: Derechos de acometida Illes Balears 3.1 | J51: 02 | K51: RG01 | L51: US
A52: ACOM0431 | B52: 1 | D52: 2020-10-01 | E52: 9999-12-31 | F52: 106.34 | G52: EUR | H52: Derechos de acometida Illes Balears 3.1 | J52: 02 | K52: RG01 | L52: US
A53: ACOM0432A | B53: 1 | D53: 2019-01-01 | E53: 2019-12-31 | F53: 106.34 | G53: EUR | H53: Derechos de acometida Illes Balears 3.2a (cont<G-4 | J53: 02 | K53: RG01 | L53: US
A54: ACOM0432A | B54: 1 | D54: 2020-01-01 | E54: 2020-09-30 | F54: 106.34 | G54: EUR | H54: Derechos de acometida Illes Balears 3.2a (cont<G-4 | J54: 02 | K54: RG01 | L54: US
A55: ACOM0432A | B55: 1 | D55: 2020-10-01 | E55: 9999-12-31 | F55: 106.34 | G55: EUR | H55: Derechos de acometida Illes Balears 3.2a (cont<G-4 | J55: 02 | K55: RG01 | L55: US
A56: ACOM0432B | B56: 1 | D56: 2019-01-01 | E56: 2019-12-31 | F56: 244.4 | G56: EUR | H56: Derechos de acometida Illes Balears 3.2b | J56: 02 | K56: RG01 | L56: US
A57: ACOM0432B | B57: 1 | D57: 2020-01-01 | E57: 2020-09-30 | F57: 244.4 | G57: EUR | H57: Derechos de acometida Illes Balears 3.2b | J57: 02 | K57: RG01 | L57: US
A58: ACOM0432B | B58: 1 | D58: 2020-10-01 | E58: 9999-12-31 | F58: 244.4 | G58: EUR | H58: Derechos de acometida Illes Balears 3.2b | J58: 02 | K58: RG01 | L58: US
A59: ACOM0433 | B59: 1 | D59: 2019-01-01 | E59: 2019-12-31 | F59: 488.83 | G59: EUR | H59: Derechos de acometida Illes Balears 3.3 | J59: 02 | K59: RG01 | L59: US
A60: ACOM0433 | B60: 1 | D60: 2020-01-01 | E60: 2020-09-30 | F60: 488.83 | G60: EUR | H60: Derechos de acometida Illes Balears 3.3 | J60: 02 | K60: RG01 | L60: US
A61: ACOM0433 | B61: 1 | D61: 2020-10-01 | E61: 9999-12-31 | F61: 488.83 | G61: EUR | H61: Derechos de acometida Illes Balears 3.3 | J61: 02 | K61: RG01 | L61: US
A62: ACOM0434 | B62: 1 | D62: 2019-01-01 | E62: 2019-12-31 | F62: 488.83 | G62: EUR | H62: Derechos de acometida Illes Balears 3.4 | J62: 02 | K62: RG01 | L62: US
A63: ACOM0434 | B63: 1 | D63: 2020-01-01 | E63: 2020-09-30 | F63: 488.83 | G63: EUR | H63: Derechos de acometida Illes Balears 3.4 | J63: 02 | K63: RG01 | L63: US
A64: ACOM0434 | B64: 1 | D64: 2020-10-01 | E64: 9999-12-31 | F64: 488.83 | G64: EUR | H64: Derechos de acometida Illes Balears 3.4 | J64: 02 | K64: RG01 | L64: US
A65: ACOM04GLPA | B65: 1 | D65: 2019-01-01 | E65: 2019-12-31 | F65: 106.34 | G65: EUR | H65: Derechos de acometida Illes Balears GLP A (<G-4) | J65: 02 | K65: RG01 | L65: US
A66: ACOM04GLPA | B66: 1 | D66: 2020-01-01 | E66: 2020-09-30 | F66: 106.34 | G66: EUR | H66: Derechos de acometida Illes Balears GLP A (<G-4) | J66: 02 | K66: RG01 | L66: US
A67: ACOM04GLPA | B67: 1 | D67: 2020-10-01 | E67: 9999-12-31 | F67: 106.34 | G67: EUR | H67: Derechos de acometida Illes Balears GLP A (<G-4) | J67: 02 | K67: RG01 | L67: US
A68: ACOM04GLPB | B68: 1 | D68: 2019-01-01 | E68: 2019-12-31 | F68: 244.4 | G68: EUR | H68: Derechos de acometida Illes Balears GLP B (>G-4) | J68: 02 | K68: RG01 | L68: US
A69: ACOM04GLPB | B69: 1 | D69: 2020-01-01 | E69: 2020-09-30 | F69: 244.4 | G69: EUR | H69: Derechos de acometida Illes Balears GLP B (>G-4) | J69: 02 | K69: RG01 | L69: US
A70: ACOM04GLPB | B70: 1 | D70: 2020-10-01 | E70: 9999-12-31 | F70: 244.4 | G70: EUR | H70: Derechos de acometida Illes Balears GLP B (>G-4) | J70: 02 | K70: RG01 | L70: US
A71: ACOM04IN | B71: 1 | D71: 2019-01-01 | E71: 2019-12-31 | F71: 488.83 | G71: EUR | H71: Derechos de acometida Illes Balears IN | J71: 02 | K71: RG01 | L71: US
A72: ACOM04IN | B72: 1 | D72: 2020-01-01 | E72: 2020-09-30 | F72: 488.83 | G72: EUR | H72: Derechos de acometida Illes Balears IN | J72: 02 | K72: RG01 | L72: US
A73: ACOM04IN | B73: 1 | D73: 2020-10-01 | E73: 9999-12-31 | F73: 488.83 | G73: EUR | H73: Derechos de acometida Illes Balears IN | J73: 02 | K73: RG01 | L73: US
A74: ACOM0731 | B74: 1 | D74: 2019-01-01 | E74: 2019-12-31 | F74: 106.34 | G74: EUR | H74: Derechos de acometida Castilla y León 3.1 | J74: 02 | K74: RG01 | L74: US
A75: ACOM0731 | B75: 1 | D75: 2020-01-01 | E75: 2020-09-30 | F75: 106.34 | G75: EUR | H75: Derechos de acometida Castilla y León 3.1 | J75: 02 | K75: RG01 | L75: US
A76: ACOM0731 | B76: 1 | D76: 2020-10-01 | E76: 9999-12-31 | F76: 106.34 | G76: EUR | H76: Derechos de acometida Castilla y León 3.1 | J76: 02 | K76: RG01 | L76: US
A77: ACOM0732A | B77: 1 | D77: 2019-01-01 | E77: 2019-12-31 | F77: 106.34 | G77: EUR | H77: Derechos de acometida Castilla y León 3.2a (cont<G | J77: 02 | K77: RG01 | L77: US
A78: ACOM0732A | B78: 1 | D78: 2020-01-01 | E78: 2020-09-30 | F78: 106.34 | G78: EUR | H78: Derechos de acometida Castilla y León 3.2a (cont<G | J78: 02 | K78: RG01 | L78: US
A79: ACOM0732A | B79: 1 | D79: 2020-10-01 | E79: 9999-12-31 | F79: 106.34 | G79: EUR | H79: Derechos de acometida Castilla y León 3.2a (cont<G | J79: 02 | K79: RG01 | L79: US
A80: ACOM0732B | B80: 1 | D80: 2019-01-01 | E80: 2019-12-31 | F80: 244.4 | G80: EUR | H80: Derechos de acometida Castilla y León 3.2b | J80: 02 | K80: RG01 | L80: US
A81: ACOM0732B | B81: 1 | D81: 2020-01-01 | E81: 2020-09-30 | F81: 244.4 | G81: EUR | H81: Derechos de acometida Castilla y León 3.2b | J81: 02 | K81: RG01 | L81: US
A82: ACOM0732B | B82: 1 | D82: 2020-10-01 | E82: 9999-12-31 | F82: 244.4 | G82: EUR | H82: Derechos de acometida Castilla y León 3.2b | J82: 02 | K82: RG01 | L82: US
A83: ACOM0733 | B83: 1 | D83: 2019-01-01 | E83: 2019-12-31 | F83: 488.83 | G83: EUR | H83: Derechos de acometida Castilla y León 3.3 | J83: 02 | K83: RG01 | L83: US
A84: ACOM0733 | B84: 1 | D84: 2020-01-01 | E84: 2020-09-30 | F84: 488.83 | G84: EUR | H84: Derechos de acometida Castilla y León 3.3 | J84: 02 | K84: RG01 | L84: US
A85: ACOM0733 | B85: 1 | D85: 2020-10-01 | E85: 9999-12-31 | F85: 488.83 | G85: EUR | H85: Derechos de acometida Castilla y León 3.3 | J85: 02 | K85: RG01 | L85: US
A86: ACOM0734 | B86: 1 | D86: 2019-01-01 | E86: 2019-12-31 | F86: 488.83 | G86: EUR | H86: Derechos de acometida Castilla y León 3.4 | J86: 02 | K86: RG01 | L86: US
A87: ACOM0734 | B87: 1 | D87: 2020-01-01 | E87: 2020-09-30 | F87: 488.83 | G87: EUR | H87: Derechos de acometida Castilla y León 3.4 | J87: 02 | K87: RG01 | L87: US
A88: ACOM0734 | B88: 1 | D88: 2020-10-01 | E88: 9999-12-31 | F88: 488.83 | G88: EUR | H88: Derechos de acometida Castilla y León 3.4 | J88: 02 | K88: RG01 | L88: US
A89: ACOM07GLPA | B89: 1 | D89: 2019-01-01 | E89: 2019-12-31 | F89: 106.34 | G89: EUR | H89: Derechos de acometida Castilla y León GLP (<G-4) | J89: 02 | K89: RG01 | L89: US
A90: ACOM07GLPA | B90: 1 | D90: 2020-01-01 | E90: 2020-09-30 | F90: 106.34 | G90: EUR | H90: Derechos de acometida Castilla y León GLP (<G-4) | J90: 02 | K90: RG01 | L90: US
A91: ACOM07GLPA | B91: 1 | D91: 2020-10-01 | E91: 9999-12-31 | F91: 106.34 | G91: EUR | H91: Derechos de acometida Castilla y León GLP (<G-4) | J91: 02 | K91: RG01 | L91: US
A92: ACOM07GLPB | B92: 1 | D92: 2019-01-01 | E92: 2019-12-31 | F92: 244.4 | G92: EUR | H92: Derechos de acometida Castilla y León GLP (>G-4) | J92: 02 | K92: RG01 | L92: US
A93: ACOM07GLPB | B93: 1 | D93: 2020-01-01 | E93: 2020-09-30 | F93: 244.4 | G93: EUR | H93: Derechos de acometida Castilla y León GLP (>G-4) | J93: 02 | K93: RG01 | L93: US
A94: ACOM07GLPB | B94: 1 | D94: 2020-10-01 | E94: 9999-12-31 | F94: 244.4 | G94: EUR | H94: Derechos de acometida Castilla y León GLP (>G-4) | J94: 02 | K94: RG01 | L94: US
A95: ACOM07IN | B95: 1 | D95: 2019-01-01 | E95: 2019-12-31 | F95: 488.83 | G95: EUR | H95: Derechos de acometida Castilla y León IN | J95: 02 | K95: RG01 | L95: US
A96: ACOM07IN | B96: 1 | D96: 2020-01-01 | E96: 2020-09-30 | F96: 488.83 | G96: EUR | H96: Derechos de acometida Castilla y León IN | J96: 02 | K96: RG01 | L96: US
A97: ACOM07IN | B97: 1 | D97: 2020-10-01 | E97: 9999-12-31 | F97: 488.83 | G97: EUR | H97: Derechos de acometida Castilla y León IN | J97: 02 | K97: RG01 | L97: US
A98: ACOM0831 | B98: 1 | D98: 2019-01-01 | E98: 2019-12-31 | F98: 106.34 | G98: EUR | H98: Derechos de acometida Castilla la Mancha 3.1 | J98: 02 | K98: RG01 | L98: US
A99: ACOM0831 | B99: 1 | D99: 2020-01-01 | E99: 2020-09-30 | F99: 106.34 | G99: EUR | H99: Derechos de acometida Castilla la Mancha 3.1 | J99: 02 | K99: RG01 | L99: US
A100: ACOM0831 | B100: 1 | D100: 2020-10-01 | E100: 9999-12-31 | F100: 106.34 | G100: EUR | H100: Derechos de acometida Castilla la Mancha 3.1 | J100: 02 | K100: RG01 | L100: US
A101: ACOM0832A | B101: 1 | D101: 2019-01-01 | E101: 2019-12-31 | F101: 106.34 | G101: EUR | H101: Derechos de acometida Castilla la Mancha 3.2a (<G4 | J101: 02 | K101: RG01 | L101: US
A102: ACOM0832A | B102: 1 | D102: 2020-01-01 | E102: 2020-09-30 | F102: 106.34 | G102: EUR | H102: Derechos de acometida Castilla la Mancha 3.2a (<G4 | J102: 02 | K102: RG01 | L102: US
A103: ACOM0832A | B103: 1 | D103: 2020-10-01 | E103: 9999-12-31 | F103: 106.34 | G103: EUR | H103: Derechos de acometida Castilla la Mancha 3.2a (<G4 | J103: 02 | K103: RG01 | L103: US
A104: ACOM0832B | B104: 1 | D104: 2019-01-01 | E104: 2019-12-31 | F104: 244.4 | G104: EUR | H104: Derechos de acometida Castilla la Mancha 3.2b | J104: 02 | K104: RG01 | L104: US
A105: ACOM0832B | B105: 1 | D105: 2020-01-01 | E105: 2020-09-30 | F105: 244.4 | G105: EUR | H105: Derechos de acometida Castilla la Mancha 3.2b | J105: 02 | K105: RG01 | L105: US
A106: ACOM0832B | B106: 1 | D106: 2020-10-01 | E106: 9999-12-31 | F106: 244.4 | G106: EUR | H106: Derechos de acometida Castilla la Mancha 3.2b | J106: 02 | K106: RG01 | L106: US
A107: ACOM0833 | B107: 1 | D107: 2019-01-01 | E107: 2019-12-31 | F107: 488.83 | G107: EUR | H107: Derechos de acometida Castilla la Mancha 3.3 | J107: 02 | K107: RG01 | L107: US
A108: ACOM0833 | B108: 1 | D108: 2020-01-01 | E108: 2020-09-30 | F108: 488.83 | G108: EUR | H108: Derechos de acometida Castilla la Mancha 3.3 | J108: 02 | K108: RG01 | L108: US
A109: ACOM0833 | B109: 1 | D109: 2020-10-01 | E109: 9999-12-31 | F109: 488.83 | G109: EUR | H109: Derechos de acometida Castilla la Mancha 3.3 | J109: 02 | K109: RG01 | L109: US
A110: ACOM0834 | B110: 1 | D110: 2019-01-01 | E110: 2019-12-31 | F110: 488.83 | G110: EUR | H110: Derechos de acometida Castilla la Mancha 3.4 | J110: 02 | K110: RG01 | L110: US
A111: ACOM0834 | B111: 1 | D111: 2020-01-01 | E111: 2020-09-30 | F111: 488.83 | G111: EUR | H111: Derechos de acometida Castilla la Mancha 3.4 | J111: 02 | K111: RG01 | L111: US
A112: ACOM0834 | B112: 1 | D112: 2020-10-01 | E112: 9999-12-31 | F112: 488.83 | G112: EUR | H112: Derechos de acometida Castilla la Mancha 3.4 | J112: 02 | K112: RG01 | L112: US
A113: ACOM08GLPA | B113: 1 | D113: 2019-01-01 | E113: 2019-12-31 | F113: 106.34 | G113: EUR | H113: Derechos de acometida Castilla la Mancha GLP A <G4 | J113: 02 | K113: RG01 | L113: US
A114: ACOM08GLPA | B114: 1 | D114: 2020-01-01 | E114: 2020-09-30 | F114: 106.34 | G114: EUR | H114: Derechos de acometida Castilla la Mancha GLP A <G4 | J114: 02 | K114: RG01 | L114: US
A115: ACOM08GLPA | B115: 1 | D115: 2020-10-01 | E115: 9999-12-31 | F115: 106.34 | G115: EUR | H115: Derechos de acometida Castilla la Mancha GLP A <G4 | J115: 02 | K115: RG01 | L115: US
A116: ACOM08GLPB | B116: 1 | D116: 2019-01-01 | E116: 2019-12-31 | F116: 244.4 | G116: EUR | H116: Derechos de acometida Castilla la Mancha GLP B >G4 | J116: 02 | K116: RG01 | L116: US
A117: ACOM08GLPB | B117: 1 | D117: 2020-01-01 | E117: 2020-09-30 | F117: 244.4 | G117: EUR | H117: Derechos de acometida Castilla la Mancha GLP B >G4 | J117: 02 | K117: RG01 | L117: US
A118: ACOM08GLPB | B118: 1 | D118: 2020-10-01 | E118: 9999-12-31 | F118: 244.4 | G118: EUR | H118: Derechos de acometida Castilla la Mancha GLP B >G4 | J118: 02 | K118: RG01 | L118: US
A119: ACOM08IN | B119: 1 | D119: 2019-01-01 | E119: 2019-12-31 | F119: 488.83 | G119: EUR | H119: Derechos de acometida Castilla la Mancha IN | J119: 02 | K119: RG01 | L119: US
A120: ACOM08IN | B120: 1 | D120: 2020-01-01 | E120: 2020-09-30 | F120: 488.83 | G120: EUR | H120: Derechos de acometida Castilla la Mancha IN | J120: 02 | K120: RG01 | L120: US
A121: ACOM08IN | B121: 1 | D121: 2020-10-01 | E121: 9999-12-31 | F121: 488.83 | G121: EUR | H121: Derechos de acometida Castilla la Mancha IN | J121: 02 | K121: RG01 | L121: US
A122: ACOM0931 | B122: 1 | D122: 2019-01-01 | E122: 2019-12-31 | F122: 106.34 | G122: EUR | H122: Derechos de acometida Cataluña 3.1 | J122: 02 | K122: RG01 | L122: US
A123: ACOM0931 | B123: 1 | D123: 2020-01-01 | E123: 2020-09-30 | F123: 106.34 | G123: EUR | H123: Derechos de acometida Cataluña 3.1 | J123: 02 | K123: RG01 | L123: US
A124: ACOM0931 | B124: 1 | D124: 2020-10-01 | E124: 9999-12-31 | F124: 106.34 | G124: EUR | H124: Derechos de acometida Cataluña 3.1 | J124: 02 | K124: RG01 | L124: US
A125: ACOM0932A | B125: 1 | D125: 2019-01-01 | E125: 2019-12-31 | F125: 106.34 | G125: EUR | H125: Derechos de acometida Cataluña 3.2a (cont<G-4) | J125: 02 | K125: RG01 | L125: US
A126: ACOM0932A | B126: 1 | D126: 2020-01-01 | E126: 2020-09-30 | F126: 106.34 | G126: EUR | H126: Derechos de acometida Cataluña 3.2a (cont<G-4) | J126: 02 | K126: RG01 | L126: US
A127: ACOM0932A | B127: 1 | D127: 2020-10-01 | E127: 9999-12-31 | F127: 106.34 | G127: EUR | H127: Derechos de acometida Cataluña 3.2a (cont<G-4) | J127: 02 | K127: RG01 | L127: US
A128: ACOM0932B | B128: 1 | D128: 2019-01-01 | E128: 2019-12-31 | F128: 244.4 | G128: EUR | H128: Derechos de acometida Cataluña 3.2b | J128: 02 | K128: RG01 | L128: US
A129: ACOM0932B | B129: 1 | D129: 2020-01-01 | E129: 2020-09-30 | F129: 244.4 | G129: EUR | H129: Derechos de acometida Cataluña 3.2b | J129: 02 | K129: RG01 | L129: US
A130: ACOM0932B | B130: 1 | D130: 2020-10-01 | E130: 9999-12-31 | F130: 244.4 | G130: EUR | H130: Derechos de acometida Cataluña 3.2b | J130: 02 | K130: RG01 | L130: US
A131: ACOM0933 | B131: 1 | D131: 2019-01-01 | E131: 2019-12-31 | F131: 488.83 | G131: EUR | H131: Derechos de acometida Cataluña 3.3 | J131: 02 | K131: RG01 | L131: US
A132: ACOM0933 | B132: 1 | D132: 2020-01-01 | E132: 2020-09-30 | F132: 488.83 | G132: EUR | H132: Derechos de acometida Cataluña 3.3 | J132: 02 | K132: RG01 | L132: US
A133: ACOM0933 | B133: 1 | D133: 2020-10-01 | E133: 9999-12-31 | F133: 488.83 | G133: EUR | H133: Derechos de acometida Cataluña 3.3 | J133: 02 | K133: RG01 | L133: US
A134: ACOM0934 | B134: 1 | D134: 2019-01-01 | E134: 2019-12-31 | F134: 488.83 | G134: EUR | H134: Derechos de acometida Cataluña 3.4 | J134: 02 | K134: RG01 | L134: US
A135: ACOM0934 | B135: 1 | D135: 2020-01-01 | E135: 2020-09-30 | F135: 488.83 | G135: EUR | H135: Derechos de acometida Cataluña 3.4 | J135: 02 | K135: RG01 | L135: US
A136: ACOM0934 | B136: 1 | D136: 2020-10-01 | E136: 9999-12-31 | F136: 488.83 | G136: EUR | H136: Derechos de acometida Cataluña 3.4 | J136: 02 | K136: RG01 | L136: US
A137: ACOM09GLPA | B137: 1 | D137: 2019-01-01 | E137: 2019-12-31 | F137: 106.34 | G137: EUR | H137: Derechos de acometida Cataluña GLP A (cont.<G-4) | J137: 02 | K137: RG01 | L137: US
A138: ACOM09GLPA | B138: 1 | D138: 2020-01-01 | E138: 2020-09-30 | F138: 106.34 | G138: EUR | H138: Derechos de acometida Cataluña GLP A (cont.<G-4) | J138: 02 | K138: RG01 | L138: US
A139: ACOM09GLPA | B139: 1 | D139: 2020-10-01 | E139: 9999-12-31 | F139: 106.34 | G139: EUR | H139: Derechos de acometida Cataluña GLP A (cont.<G-4) | J139: 02 | K139: RG01 | L139: US
A140: ACOM09GLPB | B140: 1 | D140: 2019-01-01 | E140: 2019-12-31 | F140: 244.4 | G140: EUR | H140: Derechos de acometida Cataluña GLP B (cont.>G-4) | J140: 02 | K140: RG01 | L140: US
A141: ACOM09GLPB | B141: 1 | D141: 2020-01-01 | E141: 2020-09-30 | F141: 244.4 | G141: EUR | H141: Derechos de acometida Cataluña GLP B (cont.>G-4) | J141: 02 | K141: RG01 | L141: US
A142: ACOM09GLPB | B142: 1 | D142: 2020-10-01 | E142: 9999-12-31 | F142: 244.4 | G142: EUR | H142: Derechos de acometida Cataluña GLP B (cont.>G-4) | J142: 02 | K142: RG01 | L142: US
A143: ACOM09IN | B143: 1 | D143: 2019-01-01 | E143: 2019-12-31 | F143: 488.83 | G143: EUR | H143: Derechos de acometida Cataluña IN | J143: 02 | K143: RG01 | L143: US
A144: ACOM09IN | B144: 1 | D144: 2020-01-01 | E144: 2020-09-30 | F144: 488.83 | G144: EUR | H144: Derechos de acometida Cataluña IN | J144: 02 | K144: RG01 | L144: US
A145: ACOM09IN | B145: 1 | D145: 2020-10-01 | E145: 9999-12-31 | F145: 488.83 | G145: EUR | H145: Derechos de acometida Cataluña IN | J145: 02 | K145: RG01 | L145: US
A146: ACOM1031 | B146: 1 | D146: 2019-01-01 | E146: 2019-12-31 | F146: 106.34 | G146: EUR | H146: Derechos de acometida Comunidad Valenciana 3.1 | J146: 02 | K146: RG01 | L146: US
A147: ACOM1031 | B147: 1 | D147: 2020-01-01 | E147: 2020-09-30 | F147: 106.34 | G147: EUR | H147: Derechos de acometida Comunidad Valenciana 3.1 | J147: 02 | K147: RG01 | L147: US
A148: ACOM1031 | B148: 1 | D148: 2020-10-01 | E148: 9999-12-31 | F148: 106.34 | G148: EUR | H148: Derechos de acometida Comunidad Valenciana 3.1 | J148: 02 | K148: RG01 | L148: US
A149: ACOM1032A | B149: 1 | D149: 2019-01-01 | E149: 2019-12-31 | F149: 106.34 | G149: EUR | H149: Derechos de acometida Com. Valenciana 3.2a (<G-4) | J149: 02 | K149: RG01 | L149: US
A150: ACOM1032A | B150: 1 | D150: 2020-01-01 | E150: 2020-09-30 | F150: 106.34 | G150: EUR | H150: Derechos de acometida Com. Valenciana 3.2a (<G-4) | J150: 02 | K150: RG01 | L150: US
A151: ACOM1032A | B151: 1 | D151: 2020-10-01 | E151: 9999-12-31 | F151: 106.34 | G151: EUR | H151: Derechos de acometida Com. Valenciana 3.2a (<G-4) | J151: 02 | K151: RG01 | L151: US
A152: ACOM1032B | B152: 1 | D152: 2019-01-01 | E152: 2019-12-31 | F152: 244.4 | G152: EUR | H152: Derechos de acometida Comunidad Valenciana 3.2b | J152: 02 | K152: RG01 | L152: US
A153: ACOM1032B | B153: 1 | D153: 2020-01-01 | E153: 2020-09-30 | F153: 244.4 | G153: EUR | H153: Derechos de acometida Comunidad Valenciana 3.2b | J153: 02 | K153: RG01 | L153: US
A154: ACOM1032B | B154: 1 | D154: 2020-10-01 | E154: 9999-12-31 | F154: 244.4 | G154: EUR | H154: Derechos de acometida Comunidad Valenciana 3.2b | J154: 02 | K154: RG01 | L154: US
A155: ACOM1033 | B155: 1 | D155: 2019-01-01 | E155: 2019-12-31 | F155: 488.83 | G155: EUR | H155: Derechos de acometida Comunidad Valenciana 3.3 | J155: 02 | K155: RG01 | L155: US
A156: ACOM1033 | B156: 1 | D156: 2020-01-01 | E156: 2020-09-30 | F156: 488.83 | G156: EUR | H156: Derechos de acometida Comunidad Valenciana 3.3 | J156: 02 | K156: RG01 | L156: US
A157: ACOM1033 | B157: 1 | D157: 2020-10-01 | E157: 9999-12-31 | F157: 488.83 | G157: EUR | H157: Derechos de acometida Comunidad Valenciana 3.3 | J157: 02 | K157: RG01 | L157: US
A158: ACOM1034 | B158: 1 | D158: 2019-01-01 | E158: 2019-12-31 | F158: 488.83 | G158: EUR | H158: Derechos de acometida Comunidad Valenciana 3.4 | J158: 02 | K158: RG01 | L158: US
A159: ACOM1034 | B159: 1 | D159: 2020-01-01 | E159: 2020-09-30 | F159: 488.83 | G159: EUR | H159: Derechos de acometida Comunidad Valenciana 3.4 | J159: 02 | K159: RG01 | L159: US
A160: ACOM1034 | B160: 1 | D160: 2020-10-01 | E160: 9999-12-31 | F160: 488.83 | G160: EUR | H160: Derechos de acometida Comunidad Valenciana 3.4 | J160: 02 | K160: RG01 | L160: US
A161: ACOM10GLPA | B161: 1 | D161: 2019-01-01 | E161: 2019-12-31 | F161: 106.34 | G161: EUR | H161: Derechos de acometida Com. Valenciana GLP A (<G-4) | J161: 02 | K161: RG01 | L161: US
A162: ACOM10GLPA | B162: 1 | D162: 2020-01-01 | E162: 2020-09-30 | F162: 106.34 | G162: EUR | H162: Derechos de acometida Com. Valenciana GLP A (<G-4) | J162: 02 | K162: RG01 | L162: US
A163: ACOM10GLPA | B163: 1 | D163: 2020-10-01 | E163: 9999-12-31 | F163: 106.34 | G163: EUR | H163: Derechos de acometida Com. Valenciana GLP A (<G-4) | J163: 02 | K163: RG01 | L163: US
A164: ACOM10GLPB | B164: 1 | D164: 2019-01-01 | E164: 2019-12-31 | F164: 244.4 | G164: EUR | H164: Derechos de acometida Com. Valenciana GLP B (>G-4) | J164: 02 | K164: RG01 | L164: US
A165: ACOM10GLPB | B165: 1 | D165: 2020-01-01 | E165: 2020-09-30 | F165: 244.4 | G165: EUR | H165: Derechos de acometida Com. Valenciana GLP B (>G-4) | J165: 02 | K165: RG01 | L165: US
A166: ACOM10GLPB | B166: 1 | D166: 2020-10-01 | E166: 9999-12-31 | F166: 244.4 | G166: EUR | H166: Derechos de acometida Com. Valenciana GLP B (>G-4) | J166: 02 | K166: RG01 | L166: US
A167: ACOM10IN | B167: 1 | D167: 2019-01-01 | E167: 2019-12-31 | F167: 488.83 | G167: EUR | H167: Derechos de acometida Comunidad Valenciana IN | J167: 02 | K167: RG01 | L167: US
A168: ACOM10IN | B168: 1 | D168: 2020-01-01 | E168: 2020-09-30 | F168: 488.83 | G168: EUR | H168: Derechos de acometida Comunidad Valenciana IN | J168: 02 | K168: RG01 | L168: US
A169: ACOM10IN | B169: 1 | D169: 2020-10-01 | E169: 9999-12-31 | F169: 488.83 | G169: EUR | H169: Derechos de acometida Comunidad Valenciana IN | J169: 02 | K169: RG01 | L169: US
A170: ACOM1131 | B170: 1 | D170: 2019-01-01 | E170: 2019-12-31 | F170: 106.34 | G170: EUR | H170: Derechos de acometida Extremadura 3.1 | J170: 02 | K170: RG01 | L170: US
A171: ACOM1131 | B171: 1 | D171: 2020-01-01 | E171: 2020-09-30 | F171: 106.34 | G171: EUR | H171: Derechos de acometida Extremadura 3.1 | J171: 02 | K171: RG01 | L171: US
A172: ACOM1131 | B172: 1 | D172: 2020-10-01 | E172: 9999-12-31 | F172: 106.34 | G172: EUR | H172: Derechos de acometida Extremadura 3.1 | J172: 02 | K172: RG01 | L172: US
A173: ACOM1132A | B173: 1 | D173: 2019-01-01 | E173: 2019-12-31 | F173: 106.34 | G173: EUR | H173: Derechos de acometida Extremadura 3.2a (cont<G-4) | J173: 02 | K173: RG01 | L173: US
A174: ACOM1132A | B174: 1 | D174: 2020-01-01 | E174: 2020-09-30 | F174: 106.34 | G174: EUR | H174: Derechos de acometida Extremadura 3.2a (cont<G-4) | J174: 02 | K174: RG01 | L174: US
A175: ACOM1132A | B175: 1 | D175: 2020-10-01 | E175: 9999-12-31 | F175: 106.34 | G175: EUR | H175: Derechos de acometida Extremadura 3.2a (cont<G-4) | J175: 02 | K175: RG01 | L175: US
A176: ACOM1132B | B176: 1 | D176: 2019-01-01 | E176: 2019-12-31 | F176: 244.4 | G176: EUR | H176: Derechos de acometida Extremadura 3.2b | J176: 02 | K176: RG01 | L176: US
A177: ACOM1132B | B177: 1 | D177: 2020-01-01 | E177: 2020-09-30 | F177: 244.4 | G177: EUR | H177: Derechos de acometida Extremadura 3.2b | J177: 02 | K177: RG01 | L177: US
A178: ACOM1132B | B178: 1 | D178: 2020-10-01 | E178: 9999-12-31 | F178: 244.4 | G178: EUR | H178: Derechos de acometida Extremadura 3.2b | J178: 02 | K178: RG01 | L178: US
A179: ACOM1133 | B179: 1 | D179: 2019-01-01 | E179: 2019-12-31 | F179: 488.83 | G179: EUR | H179: Derechos de acometida Extremadura 3.3 | J179: 02 | K179: RG01 | L179: US
A180: ACOM1133 | B180: 1 | D180: 2020-01-01 | E180: 2020-09-30 | F180: 488.83 | G180: EUR | H180: Derechos de acometida Extremadura 3.3 | J180: 02 | K180: RG01 | L180: US
A181: ACOM1133 | B181: 1 | D181: 2020-10-01 | E181: 9999-12-31 | F181: 488.83 | G181: EUR | H181: Derechos de acometida Extremadura 3.3 | J181: 02 | K181: RG01 | L181: US
A182: ACOM1134 | B182: 1 | D182: 2019-01-01 | E182: 2019-12-31 | F182: 488.83 | G182: EUR | H182: Derechos de acometida Extremadura 3.4 | J182: 02 | K182: RG01 | L182: US
A183: ACOM1134 | B183: 1 | D183: 2020-01-01 | E183: 2020-09-30 | F183: 488.83 | G183: EUR | H183: Derechos de acometida Extremadura 3.4 | J183: 02 | K183: RG01 | L183: US
A184: ACOM1134 | B184: 1 | D184: 2020-10-01 | E184: 9999-12-31 | F184: 488.83 | G184: EUR | H184: Derechos de acometida Extremadura 3.4 | J184: 02 | K184: RG01 | L184: US
A185: ACOM11GLPA | B185: 1 | D185: 2019-01-01 | E185: 2019-12-31 | F185: 106.34 | G185: EUR | H185: Derechos de acometida Extremadura GLP A (cont.<G-4 | J185: 02 | K185: RG01 | L185: US
A186: ACOM11GLPA | B186: 1 | D186: 2020-01-01 | E186: 2020-09-30 | F186: 106.34 | G186: EUR | H186: Derechos de acometida Extremadura GLP A (cont.<G-4 | J186: 02 | K186: RG01 | L186: US
A187: ACOM11GLPA | B187: 1 | D187: 2020-10-01 | E187: 9999-12-31 | F187: 106.34 | G187: EUR | H187: Derechos de acometida Extremadura GLP A (cont.<G-4 | J187: 02 | K187: RG01 | L187: US
A188: ACOM11GLPB | B188: 1 | D188: 2019-01-01 | E188: 2019-12-31 | F188: 244.4 | G188: EUR | H188: Derechos de acometida Extremadura GLP B (cont.>G-4 | J188: 02 | K188: RG01 | L188: US
A189: ACOM11GLPB | B189: 1 | D189: 2020-01-01 | E189: 2020-09-30 | F189: 244.4 | G189: EUR | H189: Derechos de acometida Extremadura GLP B (cont.>G-4 | J189: 02 | K189: RG01 | L189: US
A190: ACOM11GLPB | B190: 1 | D190: 2020-10-01 | E190: 9999-12-31 | F190: 244.4 | G190: EUR | H190: Derechos de acometida Extremadura GLP B (cont.>G-4 | J190: 02 | K190: RG01 | L190: US
A191: ACOM11IN | B191: 1 | D191: 2019-01-01 | E191: 2019-12-31 | F191: 488.83 | G191: EUR | H191: Derechos de acometida Extremadura IN | J191: 02 | K191: RG01 | L191: US
A192: ACOM11IN | B192: 1 | D192: 2020-01-01 | E192: 2020-09-30 | F192: 488.83 | G192: EUR | H192: Derechos de acometida Extremadura IN | J192: 02 | K192: RG01 | L192: US
A193: ACOM11IN | B193: 1 | D193: 2020-10-01 | E193: 9999-12-31 | F193: 488.83 | G193: EUR | H193: Derechos de acometida Extremadura IN | J193: 02 | K193: RG01 | L193: US
A194: ACOM1331 | B194: 1 | D194: 2019-01-01 | E194: 2019-12-31 | F194: 106.34 | G194: EUR | H194: Derechos de acometida Madrid 3.1 | J194: 02 | K194: RG01 | L194: US
A195: ACOM1331 | B195: 1 | D195: 2020-01-01 | E195: 2020-09-30 | F195: 106.34 | G195: EUR | H195: Derechos de acometida Madrid 3.1 | J195: 02 | K195: RG01 | L195: US
A196: ACOM1331 | B196: 1 | D196: 2020-10-01 | E196: 9999-12-31 | F196: 106.34 | G196: EUR | H196: Derechos de acometida Madrid 3.1 | J196: 02 | K196: RG01 | L196: US
A197: ACOM1332A | B197: 1 | D197: 2019-01-01 | E197: 2019-12-31 | F197: 106.34 | G197: EUR | H197: Derechos de acometida Madrid 3.2a (cont<G-4) | J197: 02 | K197: RG01 | L197: US
A198: ACOM1332A | B198: 1 | D198: 2020-01-01 | E198: 2020-09-30 | F198: 106.34 | G198: EUR | H198: Derechos de acometida Madrid 3.2a (cont<G-4) | J198: 02 | K198: RG01 | L198: US
A199: ACOM1332A | B199: 1 | D199: 2020-10-01 | E199: 9999-12-31 | F199: 106.34 | G199: EUR | H199: Derechos de acometida Madrid 3.2a (cont<G-4) | J199: 02 | K199: RG01 | L199: US
A200: ACOM1332B | B200: 1 | D200: 2019-01-01 | E200: 2019-12-31 | F200: 244.4 | G200: EUR | H200: Derechos de acometida Madrid 3.2b | J200: 02 | K200: RG01 | L200: US
... 206 more rows

Sheet ZonaClimatica (hidden)
B2: Redexis Gas
B3: Zonas climáticas
B5: Listado preparado por "Business Intelligence fácil" a partir de la información del INE y de Google Maps | P5: Provincia | Q5: Capital | R5: Altura de referencia (m) | S5: >200 y <400 | T5: >=400 y <600 | U5: >=600 y <800 | V5: >=800 y <1000 | W5: >=1000
B6: Más información en: | C6: htttp://www.businessintelligence.info | P6: Albacete | Q6: D3 | R6: 677 | S6: D2 | T6: El | U6: El | V6: El | W6: El | Y6: Albacete | Z6: Alicante | AA6: Almería | AB6: Ávila | AC6: Badajoz | AD6: Barcelona | AE6: Bilbao | AF6: Burgos | AG6: Cáceres | AH6: Cádiz | AI6: Castellón | AJ6: Ceuta | AK6: Ciudad_Real | AL6: Córdoba | AM6: Coruña | AN6: Cuenca | AO6: Donostia_San_Sebastián | AP6: Girona | AQ6: Granada | AR6: Guadalajara | AS6: Huelva | AT6: Huesca | AU6: Jaén | AV6: León | AW6: Lleida | AX6: Logroño | AY6: Lugo | AZ6: Madrid | BA6: Málaga | BB6: Melilla | BC6: Murcia | BD6: Ourense | BE6: Oviedo | BF6: Palencia | BG6: Palma_Mallorca | BH6: Las_Palmas | BI6: Pamplona | BJ6: Pontevedra | BK6: Salamanca | BL6: Santander | BM6: Segovia | BN6: Sevilla | BO6: Soria | BP6: Tarragona | BQ6: Tenerife | BR6: Teruel | BS6: Toledo | BT6: Valencia | BU6: Valladolid | BV6: Vitoria | BW6: Zamora | BX6: Zaragoza
B7: Comunidad | C7: Provincia | D7: Población | E7: Latitud | F7: Longitud | G7: Altitud | H7: Habitantes | I7: Hombres | J7: Mujeres | K7: Metros | L7: Diferencia | M7: # selector | N7: Zona Climática | P7: Alicante | Q7: B4 | R7: 7 | S7: C3 | T7: Cl | U7: D1 | V7: D1 | W7: El | Y7: Abengibre | Z7: Adsubia | AA7: Abla | AB7: Adanero | AC7: Acedera | AD7: Abrera | AE7: Abadiño | AF7: Abajas | AG7: Abadía | AH7: Alcalá de los Gazules | AI7: Aín | AJ7: Ceuta | AK7: Abenójar | AL7: Adamuz | AM7: Abegondo | AN7: Abia de la Obispalía | AO7: Abaltzisketa | AP7: Agullana | AQ7: Agrón | AR7: Abánades | AS7: Alájar | AT7: Abiego | AU7: Albanchez de Mágina | AV7: Acebedo | AW7: Abella de la Conca | AX7: Ábalos | AY7: Abadín | AZ7: Acebeda (La) | BA7: Alameda | BB7: Melilla | BC7: Abanilla | BD7: Allariz | BE7: Allande | BF7: Abarca de Campos | BG7: Alaior | BH7: Agaete | BI7: Abáigar | BJ7: Agolada | BK7: Abusejo | BL7: Alfoz de Lloredo | BM7: Abades | BN7: Aguadulce | BO7: Abejar | BP7: Aiguamúrcia | BQ7: Adeje | BR7: Ababuj | BS7: Ajofrín | BT7: Ademuz | BU7: Adalia | BV7: Alegría-Dulantzi | BW7: Fresno de la Ribera | BX7: Abanto
B8: Castilla La Mancha | C8: Albacete | D8: Abengibre | E8: 39.20999 | F8: -1.544182 | G8: 635.9763 | H8: 930 | I8: 473 | J8: 457 | K8: 677 | L8: -41.0237 | M8: 2 | N8: D | P8: Almería | Q8: A4 | R8: 0 | S8: B3 | T8: B3 | U8: C1 | V8: Cl | W8: D1 | Y8: Alatoz | Z8: Agost | AA8: Abrucena | AB8: Adrada (La) | AC8: Aceuchal | AD8: Aguilar de Segarra | AE8: Abanto y Ciérvana-Abanto Zierbena | AF8: Adrada de Haza | AG8: Abertura | AH8: Alcalá del Valle | AI8: Albocàsser | AK8: Agudo | AL8: Aguilar de la Frontera | AM8: Ames | AN8: Acebrón (El) | AO8: Aduna | AP8: Aiguaviva | AQ8: Alamedilla | AR8: Ablanque | AS8: Aljaraque | AT8: Abizanda | AU8: Alcalá la Real | AV8: Algadefe | AW8: Àger | AX8: Agoncillo | AY8: Alfoz | AZ8: Ajalvir | BA8: Alcaucín | BC8: Abarán | BD8: Amoeiro | BE8: Aller | BF8: Abia de las Torres | BG8: Alaró | BH8: Agüimes | BI8: Abárzuza | BJ8: Arbo | BK8: Agallas | BL8: Ampuero | BM8: Adrada de Pirón | BN8: Alanís | BO8: Adradas | BP8: Albinyana | BQ8: Agulo | BR8: Abejuela | BS8: Alameda de la Sagra | BT8: Ador | BU8: Aguasal | BV8: Amurrio | BW8: Fresno de Sayago | BX8: Acered
B9: Castilla La Mancha | C9: Albacete | D9: Alatoz | E9: 39.09464 | F9: -1.361155 | G9: 856.581 | H9: 591 | I9: 322 | J9: 269 | K9: 677 | L9: 179.581 | M9: 2 | N9: D | P9: Avila | Q9: El | R9: 1054 | S9: El | T9: El | U9: El | V9: El | W9: El | Y9: Albacete | Z9: Agres | AA9: Adra | AB9: Albornos | AC9: Ahillones | AD9: Aiguafreda | AE9: Ajangiz | AF9: Aguas Cándidas | AG9: Acebo | AH9: Algar | AI9: Alcalà de Xivert | AK9: Alamillo | AL9: Alcaracejos | AM9: Aranga | AN9: Alarcón | AO9: Aia | AP9: Albanyà | AQ9: Albolote | AR9: Adobes | AS9: Almendro (El) | AT9: Adahuesca | AU9: Alcaudete | AV9: Alija del Infantado | AW9: Agramunt | AX9: Aguilar del Río Alhama | AY9: Antas de Ulla | AZ9: Alameda del Valle | BA9: Alfarnate | BC9: Águilas | BD9: Arnoia (A) | BE9: Amieva | BF9: Aguilar de Campoo | BG9: Alcúdia | BH9: Aldea de San Nicolás (La) | BI9: Abaurregaina/Abaurrea Alta | BJ9: Baiona | BK9: Ahigal de los Aceiteros | BL9: Anievas | BM9: Adrados | BN9: Albaida del Aljarafe | BO9: Ágreda | BP9: Albiol (L') | BQ9: Alajeró | BR9: Aguatón | BS9: Albarreal de Tajo | BT9: Agullent | BU9: Aguilar de Campos | BV9: Añana | BW9: Friera de Valverde | BX9: Agón
B10: Castilla La Mancha | C10: Albacete | D10: Albacete | E10: 38.99765 | F10: -1.86007 | G10: 685.9573 | H10: 169716 | I10: 83838 | J10: 85878 | K10: 677 | L10: 8.9573 | M10: 2 | N10: D | P10: Badajoz | Q10: C4 | R10: 168 | S10: C3 | T10: D1 | U10: D1 | V10: El | W10: El | Y10: Albatana | Z10: Aigües | AA10: Albánchez | AB10: Aldeanueva de Santa Cruz | AC10: Alange | AD10: Alella | AE10: Alonsotegi | AF10: Aguilar de Bureba | AG10: Acehúche | AH10: Algeciras | AI10: Alcora (l') | AK10: Albaladejo | AL10: Almedinilla | AM10: Ares | AN10: Albaladejo del Cuende | AO10: Aizarnazabal | AP10: Albons | AQ10: Albondón | AR10: Alaminos | AS10: Almonaster la Real | AT10: Agüero | AU10: Aldeaquemada | AV10: Almanza | AW10: Aitona | AX10: Ajamil de Cameros | AY10: Baleira | AZ10: Álamo (El) | BA10: Alfarnatejo | BC10: Albudeite | BD10: Avión | BE10: Avilés | BF10: Alar del Rey | BG10: Algaida | BH10: Antigua | BI10: Abaurrepea/Abaurrea Baja | BJ10: Barro | BK10: Ahigal de Villarino | BL10: Arenas de Iguña | BM10: Aguilafuente | BN10: Alcalá de Guadaíra | BO10: Alconaba | BP10: Alcanar | BQ10: Arafo | BR10: Aguaviva | BS10: Alcabón | BT10: Aielo de Malferit | BU10: Alaejos | BV10: Aramaio | BW10: Fuente Encalada | BX10: Aguarón
B11: Castilla La Mancha | C11: Albacete | D11: Albatana | E11: 38.56977 | F11: -1.524207 | G11: 583.8509 | H11: 810 | I11: 412 | J11: 398 | K11: 677 | L11: -93.1491 | M11: 2 | N11: D | P11: Barcelona | Q11: C2 | R11: 1 | S11: Cl | T11: D1 | U11: D1 | V11: El | W11: El | Y11: Alborea | Z11: Albatera | AA11: Alboloduy | AB11: Aldeaseca | AC11: Albuera (La) | AD11: Alpens | AE11: Amorebieta-Etxano | AF11: Albillos | AG11: Aceituna | AH11: Algodonales | AI11: Alcudia de Veo | AK11: Alcázar de San Juan | AL11: Almodóvar del Río | AM11: Arteixo | AN11: Albalate de las Nogueras | AO11: Albiztur | AP11: Alp | AQ11: Albuñán | AR11: Alarilla | AS11: Almonte | AT11: Aínsa-Sobrarbe | AU11: Andújar | AV11: Antigua (La) | AW11: Alamús (Els) | AX11: Albelda de Iregua | AY11: Baralla | AZ11: Alcalá de Henares | BA11: Algarrobo | BC11: Alcantarilla | BD11: Baltar | BE11: Belmonte de Miranda | BF11: Alba de Cerrato | BG11: Andratx | BH11: Arrecife | BI11: Aberin | BJ11: Bueu | BK11: Alameda de Gardón (La) | BL11: Argoños | BM11: Alconada de Maderuelo | BN11: Alcalá del Río | BO11: Alcubilla de Avellaneda | BP11: Alcover | BQ11: Arico | BR11: Aguilar del Alfambra | BS11: Alcañizo | BT11: Aielo de Rugat | BU11: Alcazarén | BV11: Armiñón | BW11: Fuentelapeña | BX11: Aguilón
B12: Castilla La Mancha | C12: Albacete | D12: Alborea | E12: 39.27951 | F12: -1.39587 | G12: 700.4382 | H12: 870 | I12: 446 | J12: 424 | K12: 677 | L12: 23.4382 | M12: 2 | N12: D | P12: Bilbao | Q12: Cl | R12: 214 | S12: D1 | T12: D1 | U12: El | V12: El | W12: El | Y12: Alcadozo | Z12: Alcalalí | AA12: Albox | AB12: Aldehuela (La) | AC12: Alburquerque | AD12: Ametlla del Vallès (L') | AE12: Amoroto | AF12: Alcocero de Mola | AG12: Ahigal | AH12: Arcos de la Frontera | AI12: Alfondeguilla | AK12: Alcoba | AL12: Añora | AM12: Arzúa | AN12: Albendea | AO12: Alegia | AP12: Amer | AQ12: Albuñol | AR12: Albalate de Zorita | AS12: Alosno | AT12: Aisa | AU12: Arjona | AV12: Ardón | AW12: Alàs i Cerc | AX12: Alberite | AY12: Barreiros | AZ12: Alcobendas | BA12: Algatocín | BC12: Alcázares (Los) | BD12: Bande | BE12: Bimenes | BF12: Amayuelas de Arriba | BG12: Ariany | BH12: Artenara | BI12: Ablitas | BJ12: Caldas de Reis | BK12: Alamedilla (La) | BL12: Arnuero | BM12: Aldea Real | BN12: Alcolea del Río | BO12: Alcubilla de las Peñas | BP12: Aldea (L') | BQ12: Arona | BR12: Alacón | BS12: Alcaudete de la Jara | BT12: Alaquàs | BU12: Aldea de San Miguel | BV12: Arraia-Maeztu | BW12: Fuentes de Ropel | BX12: Ainzón
B13: Castilla La Mancha | C13: Albacete | D13: Alcadozo | E13: 38.64877 | F13: -1.981464 | G13: 926.3744 | H13: 727 | I13: 375 | J13: 352 | K13: 677 | L13: 249.3744 | M13: 4 | N13: D | P13: Burgos | Q13: El | R13: 861 | S13: El | T13: El | U13: El | V13: El | W13: El | Y13: Alcalá del Júcar | Z13: Alcocer de Planes | AA13: Alcolea | AB13: Amavida | AC13: Alconchel | AD13: Arenys de Mar | AE13: Arakaldo | AF13: Alfoz de Bricia | AG13: Albalá | AH13: Barbate | AI13: Algimia de Almonacid | AK13: Alcolea de Calatrava | AL13: Baena | AM13: Baña (A) | AN13: Alberca de Záncara (La) | AO13: Alkiza | AP13: Anglès | AQ13: Albuñuelas | AR13: Albares | AS13: Aracena | AT13: Albalate de Cinca | AU13: Arjonilla | AV13: Arganza | AW13: Albagés (L') | AX13: Alcanadre | AY13: Becerreá | AZ13: Alcorcón | BA13: Alhaurín de la Torre | BC13: Aledo | BD13: Baños de Molgas | BE13: Boal | BF13: Ampudia | BG13: Artà | BH13: Arucas | BI13: Adiós | BJ13: Cambados | BK13: Alaraz | BL13: Arredondo | BM13: Aldealcorvo | BN13: Algaba (La) | BO13: Aldealafuente | BP13: Aldover | BQ13: Barlovento | BR13: Alba | BS13: Alcolea de Tajo | BT13: Albaida | BU13: Aldeamayor de San Martín | BV13: Arrazua-Ubarrundia | BW13: Fuentesaúco | BX13: Aladrén
B14: Castilla La Mancha | C14: Albacete | D14: Alcalá del Júcar | E14: 39.19346 | F14: -1.429671 | G14: 564.6768 | H14: 1361 | I14: 720 | J14: 641 | K14: 677 | L14: -112.3232 | M14: 2 | N14: D | P14: Cáceres | Q14: C4 | R14: 385 | S14: D3 | T14: D1 | U14: El | V14: El | W14: El | Y14: Alcaraz | Z14: Alcoleja | AA14: Alcóntar | AB14: Arenal (El) | AC14: Alconera | AD14: Arenys de Munt | AE14: Arantzazu | AF14: Alfoz de Quintanadueñas | AG14: Alcántara | AH14: Barrios (Los) | AI14: Almazora/Almassora | AK14: Alcubillas | AL14: Belalcázar | AM14: Bergondo | AN14: Alcalá de la Vega | AO14: Altzaga | AP14: Arbúcies | AQ14: Aldeire | AR14: Albendiego | AS14: Aroche | AT14: Albalatillo | AU14: Arquillos | AV14: Astorga | AW14: Albatàrrec | AX14: Aldeanueva de Ebro | AY14: Begonte | AZ14: Aldea del Fresno | BA14: Alhaurín el Grande | BC14: Alguazas | BD14: Barbadás | BE14: Cabrales | BF14: Amusco | BG14: Banyalbufar | BH14: Betancuria | BI14: Aguilar de Codés | BJ14: Campo Lameiro | BK14: Alba de Tormes | BL14: Astillero (El) | BM14: Aldealengua de Pedraza | BN14: Algámitas | BO14: Aldealices | BP14: Aleixar (L') | BQ14: Breña Alta | BR14: Albalate del Arzobispo | BS14: Aldea en Cabo | BT14: Albal | BU14: Almenara de Adaja | BV14: Artziniega | BW14: Fuentesecas | BX14: Alagón
B15: Castilla La Mancha | C15: Albacete | D15: Alcaraz | E15: 38.66966 | F15: -2.492647 | G15: 946.7922 | H15: 1664 | I15: 828 | J15: 836 | K15: 677 | L15: 269.7922 | M15: 4 | N15: D | P15: Cádiz | Q15: A3 | R15: 0 | S15: B3 | T15: B3 | U15: C1 | V15: Cl | W15: D1 | Y15: Almansa | Z15: Alcoy/Alcoi | AA15: Alcudia de Monteagud | AB15: Arenas de San Pedro | AC15: Aljucén | AD15: Argençola | AE15: Areatza | AF15: Alfoz de Santa Gadea | AG15: Alcollarín | AH15: Benalup-Casas Viejas | AI15: Almedíjar | AK15: Aldea del Rey | AL15: Belmez | AM15: Betanzos | AN15: Alcantud | AO15: Altzo | AP15: Argelaguer | AQ15: Alfacar | AR15: Alcocer | AS15: Arroyomolinos de León | AT15: Albelda | AU15: Arroyo del Ojanco | AV15: Balboa | AW15: Albesa | AX15: Alesanco | AY15: Bóveda | AZ15: Algete | BA15: Almáchar | BC15: Alhama de Murcia | BD15: Barco de Valdeorras (O) | BE15: Cabranes | BF15: Antigüedad | BG15: Binissalem | BH15: Firgas | BI15: Aibar/Oibar | BJ15: Cangas | BK15: Alba de Yeltes | BL15: Bárcena de Cicero | BM15: Aldealengua de Santa María | BN15: Almadén de la Plata | BO15: Aldealpozo | BP15: Alfara de Carles | BQ15: Breña Baja | BR15: Albarracín | BS15: Aldeanueva de Barbarroya | BT15: Albalat de la Ribera | BU15: Amusquillo | BV15: Asparrena | BW15: Fuentespreadas | BX15: Alarba
B16: Castilla La Mancha | C16: Albacete | D16: Almansa | E16: 38.86941 | F16: -1.097517 | G16: 699.0923 | H16: 25727 | I16: 12760 | J16: 12967 | K16: 677 | L16: 22.0923 | M16: 2 | N16: D | P16: Castellón de la Plana | Q16: B3 | R16: 18 | S16: C2 | T16: Cl | U16: D1 | V16: D1 | W16: El | Y16: Alpera | Z16: Alfafara | AA16: Alhabia | AB16: Arevalillo | AC16: Almendral | AD16: Argentona | AE16: Arrankudiaga | AF16: Altable | AG16: Alcuéscar | AH16: Benaocaz | AI16: Almenara | AK16: Alhambra | AL16: Benamejí | AM16: Boimorto | AN16: Alcázar del Rey | AO16: Amezketa | AP16: Armentera (L') | AQ16: Algarinejo | AR16: Alcolea de las Peñas | AS16: Ayamonte | AT16: Albero Alto | AU16: Baeza | AV16: Bañeza (La) | AW16: Albi (L') | AX16: Alesón | AY16: Burela | AZ16: Alpedrete | BA16: Almargen | BC16: Archena | BD16: Beade | BE16: Candamo | BF16: Arconada | BG16: Búger | BH16: Gáldar | BI16: Allín | BJ16: Cañiza (A) | BK16: Alberca (La) | BL16: Bárcena de Pie de Concha | BM16: Aldeanueva de la Serrezuela | BN16: Almensilla | BO16: Aldealseñor | BP16: Alforja | BQ16: Buenavista del Norte | BR16: Albentosa | BS16: Aldeanueva de San Bartolomé | BT16: Albalat dels Sorells | BU16: Arroyo de la Encomienda | BV16: Ayala/Aiara | BW16: Galende | BX16: Alberite de San Juan
B17: Castilla La Mancha | C17: Albacete | D17: Alpera | E17: 38.95939 | F17: -1.231247 | G17: 855.4849 | H17: 2409 | I17: 1245 | J17: 1164 | K17: 677 | L17: 178.4849 | M17: 2 | N17: D | P17: Ceuta | Q17: B3 | R17: 0 | S17: B3 | T17: Cl | U17: C1 | V17: D1 | W17: D1 | Y17: Ayna | Z17: Alfàs del Pi (l') | AA17: Alhama de Almería | AB17: Arévalo | AC17: Almendralejo | AD17: Artés | AE17: Arratzu | AF17: Altos (Los) | AG17: Aldea del Cano | AH17: Bornos | AI17: Alquerías del Niño Perdido | AK17: Almadén | AL17: Blázquez (Los) | AM17: Boiro | AN17: Alcohujate | AO17: Andoain | AP17: Avinyonet de Puigventós | AQ17: Alhama de Granada | AR17: Alcolea del Pinar | AS17: Beas | AT17: Albero Bajo | AU17: Bailén | AV17: Barjas | AW17: Alcanó | AX17: Alfaro | AY17: Carballedo | AZ17: Ambite | BA17: Almogía | BC17: Beniel | BD17: Beariz | BE17: Cangas de Onís | BF17: Astudillo | BG17: Bunyola | BH17: Haría | BI17: Allo | BJ17: Catoira | BK17: Alberguería de Argañán (La) | BL17: Bareyo | BM17: Aldeanueva del Codonal | BN17: Arahal | BO17: Aldehuela de Periáñez | BP17: Alió | BQ17: Candelaria | BR17: Alcaine | BS17: Almendral de la Cañada | BT17: Albalat dels Tarongers | BU17: Ataquines | BV17: Baños de Ebro/Mañueta | BW17: Gallegos del Pan | BX17: Albeta
B18: Castilla La Mancha | C18: Albacete | D18: Ayna | E18: 38.55318 | F18: -2.070846 | G18: 705.988 | H18: 827 | I18: 442 | J18: 385 | K18: 677 | L18: 28.988 | M18: 2 | N18: D | P18: Ciudad real | Q18: D3 | R18: 630 | S18: D2 | T18: El | U18: El | V18: El | W18: El | Y18: Balazote | Z18: Algorfa | AA18: Alicún | AB18: Aveinte | AC18: Arroyo de San Serván | AD18: Avià | AE18: Arrieta | AF18: Ameyugo | AG18: Aldea del Obispo (La) | AH18: Bosque (El) | AI18: Altura | AK18: Almadenejos | AL18: Bujalance | AM18: Boqueixón | AN18: Alconchel de la Estrella | AO18: Anoeta | AP18: Banyoles | AQ18: Alhendín | AR18: Alcoroches | AS18: Berrocal | AT18: Alberuela de Tubo | AU18: Baños de la Encina | AV18: Barrios de Luna (Los) | AW18: Alcarràs | AX18: Almarza de Cameros | AY18: Castro de Rei | AZ18: Anchuelo | BA18: Álora | BC18: Blanca | BD18: Blancos (Os) | BE18: Cangas del Narcea | BF18: Autilla del Pino | BG18: Calvià | BH18: Ingenio | BI18: Altsasu/Alsasua | BJ18: Cerdedo | BK18: Alconada | BL18: Cabezón de la Sal | BM18: Aldeasoña | BN18: Aznalcázar | BO18: Aldehuelas (Las) | BP18: Almoster | BQ18: Fasnia | BR18: Alcalá de la Selva | BS18: Almonacid de Toledo | BT18: Alberic | BU18: Bahabón | BV18: Barrundia | BW18: Gallegos del Río | BX18: Alborge
B19: Castilla La Mancha | C19: Albacete | D19: Balazote | E19: 38.88408 | F19: -2.150826 | G19: 774.1191 | H19: 2453 | I19: 1266 | J19: 1187 | K19: 677 | L19: 97.1191 | M19: 2 | N19: D | P19: Córdoba | Q19: B4 | R19: 113 | S19: C3 | T19: C2 | U19: D1 | V19: D1 | W19: El | Y19: Ballestero (El) | Z19: Algueña | AA19: Almería | AB19: Avellaneda | AC19: Atalaya | AD19: Avinyó | AE19: Arrigorriaga | AF19: Anguix | AG19: Aldeacentenera | AH19: Cádiz | AI19: Arañuel | AK19: Almagro | AL19: Cabra | AM19: Brión | AN19: Algarra | AO19: Antzuola | AP19: Bàscara | AQ19: Alicún de Ortega | AR19: Aldeanueva de Guadalajara | AS19: Bollullos Par del Condado | AT19: Alcalá de Gurrea | AU19: Beas de Segura | AV19: Bembibre | AW19: Alcoletge | AX19: Anguciana | AY19: Castroverde | AZ19: Aranjuez | BA19: Alozaina | BC19: Bullas | BD19: Boborás | BE19: Caravia | BF19: Autillo de Campos | BG19: Campanet | BH19: Mogán | BI19: Améscoa Baja | BJ19: Cotobade | BK19: Aldea del Obispo | BL19: Cabezón de Liébana | BM19: Aldehorno | BN19: Aznalcóllar | BO19: Alentisque | BP19: Altafulla | BQ19: Frontera | BR19: Alcañiz | BS19: Almorox | BT19: Alborache | BU19: Barcial de la Loma | BV19: Berantevilla | BW19: Gamones | BX19: Alcalá de Ebro
B20: Castilla La Mancha | C20: Albacete | D20: Ballestero (El) | E20: 38.84107 | F20: -2.455432 | G20: 1022.816 | H20: 481 | I20: 246 | J20: 235 | K20: 677 | L20: 345.816 | M20: 4 | N20: D | P20: Coruña (a) | Q20: Cl | R20: 0 | S20: Cl | T20: D1 | U20: D1 | V20: El | W20: El | Y20: Balsa de Ves | Z20: Alicante/Alacant | AA20: Almócita | AB20: Ávila | AC20: Azuaga | AD20: Avinyonet del Penedès | AE20: Artea | AF20: Aranda de Duero | AG20: Aldeanueva de la Vera | AH20: Castellar de la Frontera | AI20: Ares del Maestre | AK20: Almedina | AL20: Cañete de las Torres | AM20: Cabana de Bergantiños | AN20: Aliaguilla | AO20: Arama | AP20: Begur | AQ20: Almegíjar | AR20: Algar de Mesa | AS20: Bonares | AT20: Alcalá del Obispo | AU20: Bedmar y Garcíez | AV20: Benavides | AW20: Alfarràs | AX20: Anguiano | AY20: Cervantes | AZ20: Arganda del Rey | BA20: Alpandeire | BC20: Calasparra | BD20: Bola (A) | BE20: Carreño | BF20: Ayuela | BG20: Campos | BH20: Moya | BI20: Ancín | BJ20: Covelo | BK20: Aldeacipreste | BL20: Cabuérniga | BM20: Aldehuela del Codonal | BN20: Badolatosa | BO20: Aliud | BP20: Ametlla de Mar (L') | BQ20: Fuencaliente de la Palma | BR20: Alcorisa | BS20: Añover de Tajo | BT20: Alboraya | BU20: Barruelo del Valle | BV20: Bernedo | BW20: Gema | BX20: Alcalá de Moncayo
B21: Castilla La Mancha | C21: Albacete | D21: Balsa de Ves | E21: 39.26442 | F21: -1.195344 | G21: 753.8686 | H21: 226 | I21: 116 | J21: 110 | K21: 677 | L21: 76.8686 | M21: 2 | N21: D | P21: Cuenca | Q21: D2 | R21: 975 | S21: El | T21: El | U21: El | V21: El | W21: El | Y21: Barrax | Z21: Almoradí | AA21: Alsodux | AB21: Barco de Ávila (El) | AC21: Badajoz | AD21: Badalona | AE21: Artzentales | AF21: Arandilla | AG21: Aldeanueva del Camino | AH21: Chiclana de la Frontera | AI21: Argelita | AK21: Almodóvar del Campo | AL21: Carcabuey | AM21: Cabanas | AN21: Almarcha (La) | AO21: Aretxabaleta | AP21: Bellcaire d'Empordà | AQ21: Almuñécar | AR21: Algora | AS21: Cabezas Rubias | AT21: Alcampell | AU21: Begíjar | AV21: Benuza | AW21: Alfés | AX21: Arenzana de Abajo | AY21: Cervo | AZ21: Arroyomolinos | BA21: Antequera | BC21: Campos del Río | BD21: Bolo (O) | BE21: Caso | BF21: Baltanás | BG21: Capdepera | BH21: Oliva (La) | BI21: Andosilla | BJ21: Crecente | BK21: Aldeadávila de la Ribera | BL21: Camaleño | BM21: Aldeonte | BN21: Benacazón | BO21: Almajano | BP21: Ampolla (L') | BQ21: Garachico | BR21: Alfambra | BS21: Arcicóllar | BT21: Albuixech | BU21: Becilla de Valderaduey | BV21: Campezo/Kanpezu | BW21: Granja de Moreruela | BX21: Alconchel de Ariza
B22: Castilla La Mancha | C22: Albacete | D22: Barrax | E22: 39.04573 | F22: -2.200169 | G22: 730.8005 | H22: 2049 | I22: 1043 | J22: 1006 | K22: 677 | L22: 53.8005 | M22: 2 | N22: D | P22: Donostia-San Sebastián | Q22: Cl | R22: 5 | S22: D1 | T22: D1 | U22: El | V22: El | W22: El | Y22: Bienservida | Z22: Almudaina | AA22: Antas | AB22: Barraco (El) | AC22: Barcarrota | AD22: Badia del Vallès | AE22: Atxondo | AF22: Arauzo de Miel | AG22: Aldehuela de Jerte | AH22: Chipiona | AI22: Artana | AK22: Almuradiel | AL22: Cardeña | AM22: Camariñas | AN22: Almendros | AO22: Arrasate/Mondragón | AP22: Besalú | AQ22: Alpujarra de la Sierra | AR22: Alhóndiga | AS22: Cala | AT22: Alcolea de Cinca | AU22: Bélmez de la Moraleda | AV22: Bercianos del Páramo | AW22: Algerri | AX22: Arenzana de Arriba | AY22: Chantada | AZ22: Atazar (El) | BA22: Árchez | BC22: Caravaca de la Cruz | BD22: Calvos de Randín | BE22: Castrillón | BF22: Baquerín de Campos | BG22: Castell (Es) | BH22: Pájara | BI22: Añorbe | BJ22: Cuntis | BK22: Aldealengua | BL22: Camargo | BM22: Anaya | BN22: Bollullos de la Mitación | BO22: Almaluez | BP22: Amposta | BQ22: Garafía | BR22: Aliaga | BS22: Argés | BT22: Alcàntera de Xúquer | BU22: Benafarces | BV22: Elburgo/Burgelu | BW22: Granucillo | BX22: Aldehuela de Liestos
B23: Castilla La Mancha | C23: Albacete | D23: Bienservida | E23: 38.51517 | F23: -2.611526 | G23: 892.105 | H23: 742 | I23: 381 | J23: 361 | K23: 677 | L23: 215.105 | M23: 4 | N23: D | P23: Girona | Q23: C2 | R23: 143 | S23: D1 | T23: D1 | U23: El | V23: El | W23: El | Y23: Bogarra | Z23: Alqueria d'Asnar (l') | AA23: Arboleas | AB23: Barromán | AC23: Baterno | AD23: Bagà | AE23: Aulesti | AF23: Arauzo de Salce | AG23: Alía | AH23: Conil de la Frontera | AI23: Atzeneta del Maestrat | AK23: Anchuras | AL23: Carlota (La) | AM23: Cambre | AN23: Almodóvar del Pinar | AO23: Asteasu | AP23: Bescanó | AQ23: Alquife | AR23: Alique | AS23: Calañas | AT23: Alcubierre | AU23: Benatae | AV23: Bercianos del Real Camino | AW23: Alguaire | AX23: Arnedillo | AY23: Corgo (O) | AZ23: Batres | BA23: Archidona | BC23: Cartagena | BD23: Carballeda de Avia | BE23: Castropol | BF23: Bárcena de Campos | BG23: Ciutadella de Menorca | BH23: Palmas de Gran Canaria (Las) | BI23: Ansoáin | BJ23: Dozón | BK23: Aldeanueva de Figueroa | BL23: Campoo de Enmedio | BM23: Añe | BN23: Bormujos | BO23: Almarza | BP23: Arboç (L') | BQ23: Granadilla de Abona | BR23: Allepuz | BS23: Azután | BT23: Alcàsser | BU23: Bercero | BV23: Elciego | BW23: Guarrate | BX23: Alfajarín
B24: Castilla La Mancha | C24: Albacete | D24: Bogarra | E24: 38.58138 | F24: -2.214221 | G24: 877.0484 | H24: 1021 | I24: 531 | J24: 490 | K24: 677 | L24: 200.0484 | M24: 4 | N24: D | P24: Granada | Q24: C3 | R24: 754 | S24: D2 | T24: D1 | U24: El | V24: El | W24: El | Y24: Bonete | Z24: Altea | AA24: Armuña de Almanzora | AB24: Becedas | AC24: Benquerencia de la Serena | AD24: Balenyà | AE24: Bakio | AF24: Arauzo de Torre | AG24: Aliseda | AH24: Espera | AI24: Ayódar | AK24: Arenales de San Gregorio | AL24: Carpio (El) | AM24: Capela (A) | AN24: Almonacid del Marquesado | AO24: Astigarraga | AP24: Beuda | AQ24: Arenas del Rey | AR24: Almadrones | AS24: Campillo (El) | AT24: Alerre | AU24: Cabra del Santo Cristo | AV24: Berlanga del Bierzo | AW24: Alins | AX24: Arnedo | AY24: Cospeito | AZ24: Becerril de la Sierra | BA24: Ardales | BC24: Cehegín | BD24: Carballeda de Valdeorras | BE24: Coaña | BF24: Barruelo de Santullán | BG24: Consell | BH24: Puerto del Rosario | BI24: Anue | BJ24: Estrada (A) | BK24: Aldeanueva de la Sierra | BL24: Campoo de Yuso | BM24: Arahuetes | BN24: Brenes | BO24: Almazán | BP24: Arbolí | BQ24: Guancha (La) | BR24: Alloza | BS24: Barcience | BT24: Alcublas | BU24: Berceruelo | BV24: Elvillar/Bilar | BW24: Hermisende | BX24: Alfamén
B25: Castilla La Mancha | C25: Albacete | D25: Bonete | E25: 38.8693 | F25: -1.348517 | G25: 892.0386 | H25: 1231 | I25: 636 | J25: 595 | K25: 677 | L25: 215.0386 | M25: 4 | N25: D | P25: Guadalajara | Q25: D3 | R25: 708 | S25: D1 | T25: El | U25: El | V25: El | W25: El | Y25: Bonillo (El) | Z25: Aspe | AA25: Bacares | AB25: Becedillas | AC25: Berlanga | AD25: Balsareny | AE25: Balmaseda | AF25: Arcos | AG25: Almaraz | AH25: Gastor (El) | AI25: Azuébar | AK25: Arenas de San Juan | AL25: Castro del Río | AM25: Carballo | AN25: Altarejos | AO25: Ataun | AP25: Bisbal d'Empordà (La) | AQ25: Armilla | AR25: Almoguera | AS25: Campofrío | AT25: Alfántega | AU25: Cambil | AV25: Boca de Huérgano | AW25: Almacelles | AX25: Arrúbal | AY25: Folgoso do Courel | AZ25: Belmonte de Tajo | BA25: Arenas | BC25: Ceutí | BD25: Carballiño (O) | BE25: Colunga | BF25: Báscones de Ojeda | BG25: Costitx | BH25: San Bartolomé | BI25: Aoiz/Agoitz | BJ25: Forcarei | BK25: Aldearrodrigo | BL25: Cartes | BM25: Arcones | BN25: Burguillos | BO25: Almazul | BP25: Argentera (L') | BQ25: Guía de Isora | BR25: Allueva | BS25: Bargas | BT25: Alcúdia (l') | BU25: Berrueces | BV25: Erriberagoitia/Ribera Alta | BW25: Hiniesta (La) | BX25: Alforque
B26: Castilla La Mancha | C26: Albacete | D26: Bonillo (El) | E26: 38.95073 | F26: -2.539598 | G26: 1068.339 | H26: 3069 | I26: 1558 | J26: 1511 | K26: 677 | L26: 391.339 | M26: 4 | N26: D | P26: Huelva | Q26: B4 | R26: 50 | S26: B3 | T26: Cl | U26: C1 | V26: D1 | W26: D1 | Y26: Carcelén | Z26: Balones | AA26: Bayárcal | AB26: Bercial de Zapardiel | AC26: Bienvenida | AD26: Barberà del Vallès | AE26: Barakaldo | AF26: Arenillas de Riopisuerga | AG26: Almoharín | AH26: Grazalema | AI26: Barracas | AK26: Argamasilla de Alba | AL26: Conquista | AM26: Cariño | AN26: Arandilla del Arroyo | AO26: Azkoitia | AP26: Biure | AQ26: Atarfe | AR26: Almonacid de Zorita | AS26: Cañaveral de León | AT26: Almudévar | AU26: Campillo de Arenas | AV26: Boñar | AW26: Almatret | AX26: Ausejo | AY26: Fonsagrada (A) | AZ26: Berrueco (El) | BA26: Arriate | BC26: Cieza | BD26: Cartelle | BE26: Corvera de Asturias | BF26: Becerril de Campos | BG26: Deyá | BH26: San Bartolomé de Tirajana | BI26: Araitz | BJ26: Fornelos de Montes | BK26: Aldearrubia | BL26: Castañeda | BM26: Arevalillo de Cega | BN26: Cabezas de San Juan (Las) | BO26: Almenar de Soria | BP26: Arnes | BQ26: Güímar | BR26: Almohaja | BS26: Belvís de la Jara | BT26: Alcúdia de Crespins (l') | BU26: Bobadilla del Campo | BV26: Harana/Valle de Arana | BW26: Jambrina | BX26: Alhama de Aragón
B27: Castilla La Mancha | C27: Albacete | D27: Carcelén | E27: 39.10189 | F27: -1.308891 | G27: 917.2548 | H27: 643 | I27: 342 | J27: 301 | K27: 677 | L27: 240.2548 | M27: 4 | N27: D | P27: Huesca | Q27: D2 | R27: 432 | S27: El | T27: El | U27: El | V27: El | W27: El | Y27: Casas-Ibáñez | Z27: Banyeres de Mariola | AA27: Bayarque | AB27: Berlanas (Las) | AC27: Bodonal de la Sierra | AD27: Barcelona | AE27: Barrika | AF27: Arija | AG27: Arroyo de la Luz | AH27: Jerez de la Frontera | AI27: Bejís | AK27: Argamasilla de Calatrava | AL27: Córdoba | AM27: Carnota | AN27: Arcas del Villar | AO27: Azpeitia | AP27: Blanes | AQ27: Baza | AR27: Alocén | AS27: Cartaya | AT27: Almunia de San Juan | AU27: Canena | AV27: Borrenes | AW27: Almenar | AX27: Autol | AY27: Foz | AZ27: Berzosa del Lozoya | BA27: Atajate | BC27: Fortuna | BD27: Castrelo de Miño | BE27: Cudillero | BF27: Belmonte de Campos | BG27: Eivissa | BH27: Santa Brígida | BI27: Arakil | BJ27: Gondomar | BK27: Aldeaseca de Alba | BL27: Castro-Urdiales | BM27: Armuña | BN27: Camas | BO27: Alpanseque | BP27: Ascó | BQ27: Hermigua | BR27: Alobras | BS27: Borox | BT27: Aldaia | BU27: Bocigas | BV27: Iruña Oka/Iruña de Oca | BW27: Justel | BX27: Almochuel
B28: Castilla La Mancha | C28: Albacete | D28: Casas-Ibáñez | E28: 39.28518 | F28: -1.47113 | G28: 708.7758 | H28: 4724 | I28: 2441 | J28: 2283 | K28: 677 | L28: 31.7758 | M28: 2 | N28: D | P28: Jaén | Q28: C4 | R28: 436 | S28: C3 | T28: D2 | U28: D1 | V28: El | W28: El | Y28: Casas de Juan Núñez | Z28: Benasau | AA28: Bédar | AB28: Bernuy-Zapardiel | AC28: Burguillos del Cerro | AD28: Begues | AE28: Basauri | AF28: Arlanzón | AG28: Arroyomolinos | AH28: Jimena de la Frontera | AI28: Benafer | AK28: Arroba de los Montes | AL28: Doña Mencía | AM28: Carral | AN28: Arcos de la Sierra | AO28: Baliarrain | AP28: Boadella i les Escaules | AQ28: Beas de Granada | AR28: Alovera | AS28: Castaño del Robledo | AT28: Almuniente | AU28: Carboneros | AV28: Brazuelo | AW28: Alòs de Balaguer | AX28: Azofra | AY28: Friol | AZ28: Boadilla del Monte | BA28: Benadalid | BC28: Fuente Álamo de Murcia | BD28: Castrelo do Val | BE28: Degaña | BF28: Berzosilla | BG28: Escorca | BH28: Santa Lucía de Tirajana | BI28: Aranarache | BJ28: Grove (O) | BK28: Aldeaseca de la Frontera | BL28: Cieza | BM28: Ayllón | BN28: Campana (La) | BO28: Arancón | BP28: Banyeres del Penedès | BQ28: Icod de los Vinos | BR28: Alpeñés | BS28: Buenaventura | BT28: Alfafar | BU28: Bocos de Duero | BV28: Iruraiz-Gauna | BW28: Losacino | BX28: Almolda (La)
B29: Castilla La Mancha | C29: Albacete | D29: Casas de Juan Núñez | E29: 39.10187 | F29: -1.557571 | G29: 708.0665 | H29: 1420 | I29: 731 | J29: 689 | K29: 677 | L29: 31.0665 | M29: 2 | N29: D | P29: León | Q29: El | R29: 346 | S29: El | T29: El | U29: El | V29: El | W29: El | Y29: Casas de Lázaro | Z29: Beneixama | AA29: Beires | AB29: Berrocalejo de Aragona | AC29: Cabeza del Buey | AD29: Bellprat | AE29: Bedia | AF29: Arraya de Oca | AG29: Arroyomolinos de la Vera | AH29: Línea de la Concepción (La) | AI29: Benafigos | AK29: Ballesteros de Calatrava | AL29: Dos Torres | AM29: Cedeira | AN29: Arguisuelas | AO29: Beasain | AP29: Bolvir | AQ29: Beas de Guadix | AR29: Alustante | AS29: Cerro de Andévalo (El) | AT29: Alquézar | AU29: Cárcheles | AV29: Burgo Ranero (El) | AW29: Alpicat | AX29: Badarán | AY29: Guitiriz | AZ29: Boalo (El) | BA29: Benahavís | BC29: Jumilla | BD29: Castro Caldelas | BE29: Franco (El) | BF29: Boada de Campos | BG29: Esporles | BH29: Santa María de Guía de Gran Canaria | BI29: Aranguren | BJ29: Guarda (A) | BK29: Aldeatejada | BL29: Cillorigo de Liébana | BM29: Barbolla | BN29: Cañada Rosal | BO29: Arcos de Jalón | BP29: Barberà de la Conca | BQ29: Llanos de Aridane (Los) | BR29: Anadón | BS29: Burguillos de Toledo | BT29: Alfara de Algimia | BU29: Boecillo | BV29: Kripan | BW29: Losacio | BX29: Almonacid de la Cuba
B30: Castilla La Mancha | C30: Albacete | D30: Casas de Lázaro | E30: 38.77105 | F30: -2.241862 | G30: 955.0565 | H30: 451 | I30: 247 | J30: 204 | K30: 677 | L30: 278.0565 | M30: 4 | N30: D | P30: Lleida | Q30: D3 | R30: 131 | S30: D2 | T30: El | U30: El | V30: El | W30: El | Y30: Casas de Ves | Z30: Benejúzar | AA30: Benahadux | AB30: Blascomillán | AC30: Cabeza la Vaca | AD30: Berga | AE30: Berango | AF30: Atapuerca | AG30: Baños de Montemayor | AH30: Medina-Sidonia | AI30: Benasal | AK30: Bolaños de Calatrava | AL30: Encinas Reales | AM30: Cee | AN30: Arrancacepas | AO30: Beizama | AP30: Bordils | AQ30: Benalúa | AR30: Angón | AS30: Chucena | AT30: Altorricón | AU30: Carolina (La) | AV30: Burón | AW30: Alt Àneu | AX30: Bañares | AY30: Guntín | AZ30: Braojos | BA30: Benalauría | BC30: Librilla | BD30: Celanova | BE30: Gijón | BF30: Boadilla de Rioseco | BG30: Estellencs | BH30: Teguise | BI30: Arano | BJ30: Illa de Arousa (A) | BK30: Aldeavieja de Tormes | BL30: Colindres | BM30: Basardilla | BN30: Cantillana | BO30: Arenillas | BP30: Batea | BQ30: Matanza de Acentejo (La) | BR30: Andorra | BS30: Burujón | BT30: Alfara del Patriarca | BU30: Bolaños de Campos | BV30: Kuartango | BW30: Lubián | BX30: Almonacid de la Sierra
B31: Castilla La Mancha | C31: Albacete | D31: Casas de Ves | E31: 39.2584 | F31: -1.335103 | G31: 705.2325 | H31: 774 | I31: 411 | J31: 363 | K31: 677 | L31: 28.2325 | M31: 2 | N31: D | P31: Logroño | Q31: D2 | R31: 379 | S31: D1 | T31: El | U31: El | V31: El | W31: El | Y31: Caudete | Z31: Benferri | AA31: Benitagla | AB31: Blasconuño de Matacabras | AC31: Calamonte | AD31: Bigues i Riells | AE31: Bermeo | AF31: Ausines (Los) | AG31: Barrado | AH31: Olvera | AI31: Benicarló | AK31: Brazatortas | AL31: Espejo | AM31: Cerceda | AN31: Atalaya del Cañavate | AO31: Belauntza | AP31: Borrassà | AQ31: Benalúa de las Villas | AR31: Anguita | AS31: Corteconcepción | AT31: Angüés | AU31: Castellar | AV31: Bustillo del Páramo | AW31: Anglesola | AX31: Baños de Río Tobía | AY31: Incio (O) | AZ31: Brea de Tajo | BA31: Benalmádena | BC31: Lorca | BD31: Cenlle | BE31: Gozón | BF31: Boadilla del Camino | BG31: Felanitx | BH31: Tejeda | BI31: Arantza | BJ31: Lalín | BK31: Aldehuela de la Bóveda | BL31: Comillas | BM31: Bercial | BN31: Carmona | BO31: Arévalo de la Sierra | BP31: Bellmunt del Priorat | BQ31: Orotava (La) | BR31: Arcos de las Salinas | BS31: Cabañas de la Sagra | BT31: Alfarp | BU31: Brahojos de Medina | BV31: Labastida/Bastida | BW31: Luelmo | BX31: Almunia de Doña Godina (La)
B32: Castilla La Mancha | C32: Albacete | D32: Caudete | E32: 38.70274 | F32: -0.9915481 | G32: 576.1887 | H32: 10330 | I32: 5232 | J32: 5098 | K32: 677 | L32: -100.8113 | M32: 2 | N32: D | P32: Lugo | Q32: D1 | R32: 412 | S32: El | T32: El | U32: El | V32: El | W32: El | Y32: Cenizate | Z32: Beniarbeig | AA32: Benizalón | AB32: Blascosancho | AC32: Calera de León | AD32: Borredà | AE32: Berriatua | AF32: Avellanosa de Muñó | AG32: Belvís de Monroy | AH32: Paterna de Rivera | AI32: Benicasim/Benicàssim | AK32: Cabezarados | AL32: Espiel | AM32: Cerdido | AN32: Barajas de Melo | AO32: Berastegi | AP32: Breda | AQ32: Benamaurel | AR32: Anquela del Ducado | AS32: Cortegana | AT32: Ansó | AU32: Castillo de Locubín | AV32: Cabañas Raras | AW32: Arbeca | AX32: Baños de Rioja | AY32: Láncara | AZ32: Brunete | BA32: Benamargosa | BC32: Lorquí | BD32: Chandrexa de Queixa | BE32: Grado | BF32: Brañosera | BG32: Ferreries | BH32: Telde | BI32: Aras | BJ32: Lama (A) | BK32: Aldehuela de Yeltes | BL32: Corrales de Buelna (Los) | BM32: Bercimuel | BN32: Carrión de los Céspedes | BO32: Ausejo de la Sierra | BP32: Bellvei | BQ32: Paso (El) | BR32: Arens de Lledó | BS32: Cabañas de Yepes | BT32: Alfarrasí | BU32: Bustillo de Chaves | BV32: Lagrán | BW32: Maderal (El) | BX32: Alpartir
B33: Castilla La Mancha | C33: Albacete | D33: Cenizate | E33: 39.3043 | F33: -1.661456 | G33: 709.0714 | H33: 1330 | I33: 705 | J33: 625 | K33: 677 | L33: 32.0714 | M33: 2 | N33: D | P33: Madrid | Q33: D3 | R33: 589 | S33: D1 | T33: El | U33: El | V33: El | W33: El | Y33: Chinchilla de Monte-Aragón | Z33: Beniardá | AA33: Bentarique | AB33: Bohodón (El) | AC33: Calzadilla de los Barros | AD33: Bruc (El) | AE33: Berriz | AF33: Bahabón de Esgueva | AG33: Benquerencia | AH33: Prado del Rey | AI33: Benlloch | AK33: Cabezarrubias del Puerto | AL33: Fernán-Núñez | AM33: Cesuras | AN33: Barchín del Hoyo | AO33: Bergara | AP33: Brunyola | AQ33: Bérchules | AR33: Anquela del Pedregal | AS33: Cortelazor | AT33: Antillón | AU33: Cazalilla | AV33: Cabreros del Río | AW33: Arres | AX33: Berceo | AY33: Lourenzá | AZ33: Buitrago del Lozoya | BA33: Benamocarra | BC33: Mazarrón | BD33: Coles | BE33: Grandas de Salime | BF33: Buenavista de Valdavia | BG33: Formentera | BH33: Teror | BI33: Arbizu | BJ33: Marín | BK33: Almenara de Tormes | BL33: Corvera de Toranzo | BM33: Bernardos | BN33: Casariche | BO33: Baraona | BP33: Benifallet | BQ33: Pinar de El Hierro (El) | BR33: Argente | BS33: Cabezamesada | BT33: Alfauir | BU33: Cabezón de Pisuerga | BV33: Laguardia | BW33: Madridanos | BX33: Ambel
B34: Castilla La Mancha | C34: Albacete | D34: Chinchilla de Monte-Aragón | E34: 38.91862 | F34: -1.722758 | G34: 886.0651 | H34: 3803 | I34: 2005 | J34: 1798 | K34: 677 | L34: 209.0651 | M34: 4 | N34: D | P34: Málaga | Q34: A3 | R34: 0 | S34: B3 | T34: Cl | U34: C1 | V34: DI | W34: DI | Y34: Corral-Rubio | Z34: Beniarrés | AA34: Berja | AB34: Bohoyo | AC34: Campanario | AD34: Brull (El) | AE34: Bilbao | AF34: Balbases (Los) | AG34: Berrocalejo | AH34: Puerto de Santa María (El) | AI34: Betxí | AK34: Calzada de Calatrava | AL34: Fuente-Tójar | AM34: Coirós | AN34: Bascuñana de San Pedro | AO34: Berrobi | AP34: Cabanelles | AQ34: Bubión | AR34: Aranzueque | AS34: Cumbres de Enmedio | AT34: Aragüés del Puerto | AU34: Cazorla | AV34: Cabrillanes | AW34: Arsèguel | AX34: Bergasa | AY34: Lugo | AZ34: Bustarviejo | BA34: Benaoján | BC34: Molina de Segura | BD34: Cortegada | BE34: Ibias | BF34: Bustillo de la Vega | BG34: Fornalutx | BH34: Tías | BI34: Arce/Artzi | BJ34: Meaño | BK34: Almendra | BL34: Entrambasaguas | BM34: Bernuy de Porreros | BN34: Castilblanco de los Arroyos | BO34: Barca | BP34: Benissanet | BQ34: Puerto de la Cruz | BR34: Ariño | BS34: Calera y Chozas | BT34: Algar de Palancia | BU34: Cabezón de Valderaduey | BV34: Lanciego/Lantziego | BW34: Mahide | BX34: Anento
B35: Castilla La Mancha | C35: Albacete | D35: Corral-Rubio | E35: 38.83509 | F35: -1.460988 | G35: 874.6991 | H35: 413 | I35: 212 | J35: 201 | K35: 677 | L35: 197.6991 | M35: 2 | N35: D | P35: Melilla | Q35: A3 | R35: 130 | S35: B3 | T35: B3 | U35: C1 | V35: Cl | W35: D1 | Y35: Cotillas | Z35: Benidoleig | AA35: Canjáyar | AB35: Bonilla de la Sierra | AC35: Campillo de Llerena | AD35: Cabanyes (Les) | AE35: Busturia | AF35: Baños de Valdearados | AG35: Berzocana | AH35: Puerto Real | AI35: Borriana/Burriana | AK35: Campo de Criptana | AL35: Fuente la Lancha | AM35: Corcubión | AN35: Beamud | AO35: Bidegoian | AP35: Cabanes | AQ35: Busquístar | AR35: Arbancón | AS35: Cumbres de San Bartolomé | AT35: Arén | AU35: Chiclana de Segura | AV35: Cacabelos | AW35: Artesa de Lleida | AX35: Bergasillas Bajera | AY35: Meira | AZ35: Cabanillas de la Sierra | BA35: Benarrabá | BC35: Moratalla | BD35: Cualedro | BE35: Illano | BF35: Bustillo del Páramo de Carrión | BG35: Inca | BH35: Tinajo | BI35: Arcos (Los) | BJ35: Meis | BK35: Anaya de Alba | BL35: Escalante | BM35: Boceguillas | BN35: Castilleja de Guzmán | BO35: Barcones | BP35: Bisbal de Falset (La) | BQ35: Puntagorda | BR35: Azaila | BS35: Caleruela | BT35: Algemesí | BU35: Cabreros del Monte | BV35: Lantarón | BW35: Maire de Castroponce | BX35: Aniñón
B36: Castilla La Mancha | C36: Albacete | D36: Cotillas | E36: 38.4311 | F36: -2.506876 | G36: 937.312 | H36: 161 | I36: 86 | J36: 75 | K36: 677 | L36: 260.312 | M36: 4 | N36: D | P36: Murcia | Q36: B3 | R36: 25 | S36: C2 | T36: Cl | U36: D1 | V36: D1 | W36: El | Y36: Elche de la Sierra | Z36: Benidorm | AA36: Cantoria | AB36: Brabos | AC36: Capilla | AD36: Cabrera d'Anoia | AE36: Derio | AF36: Bañuelos de Bureba | AG36: Bohonal de Ibor | AH36: Puerto Serrano | AI36: Borriol | AK36: Cañada de Calatrava | AL36: Fuente Obejuna | AM36: Coristanco | AN36: Belinchón | AO36: Deba | AP36: Cadaqués | AQ36: Cacín | AR36: Arbeteta | AS36: Cumbres Mayores | AT36: Argavieso | AU36: Chilluévar | AV36: Calzada del Coto | AW36: Artesa de Segre | AX36: Bezares | AY36: Mondoñedo | AZ36: Cabrera (La) | BA36: Borge (El) | BC36: Mula | BD36: Entrimo | BE36: Illas | BF36: Calahorra de Boedo | BG36: Lloret de Vistalegre | BH36: Tuineje | BI36: Arellano | BJ36: Moaña | BK36: Añover de Tormes | BL36: Guriezo | BM36: Brieva | BN36: Castilleja de la Cuesta | BO36: Bayubas de Abajo | BP36: Bisbal del Penedès (La) | BQ36: Puntallana | BR36: Bádenas | BS36: Calzada de Oropesa | BT36: Algimia de Alfara | BU36: Campaspero | BV36: Lapuebla de Labarca | BW36: Malva | BX36: Añón de Moncayo
B37: Castilla La Mancha | C37: Albacete | D37: Elche de la Sierra | E37: 38.44759 | F37: -2.048343 | G37: 641.3206 | H37: 3962 | I37: 1971 | J37: 1991 | K37: 677 | L37: -35.6794 | M37: 2 | N37: D | P37: Ourense | Q37: C2 | R37: 327 | S37: D1 | T37: El | U37: El | V37: El | W37: El | Y37: Férez | Z37: Benifallim | AA37: Carboneras | AB37: Bularros | AC37: Carmonita | AD37: Cabrera de Mar | AE37: Dima | AF37: Barbadillo de Herreros | AG37: Botija | AH37: Rota | AI37: Cabanes | AK37: Caracuel de Calatrava | AL37: Fuente Palmera | AM37: Coruña (A) | AN37: Belmonte | AO37: Donostia-San Sebastián | AP37: Caldes de Malavella | AQ37: Cádiar | AR37: Argecilla | AS37: Encinasola | AT37: Arguis | AU37: Escañuela | AV37: Campazas | AW37: Aspa | AX37: Bobadilla | AY37: Monforte de Lemos | AZ37: Cadalso de los Vidrios | BA37: Burgo (El) | BC37: Murcia | BD37: Esgos | BE37: Langreo | BF37: Calzada de los Molinos | BG37: Lloseta | BH37: Valleseco | BI37: Areso | BJ37: Mondariz | BK37: Arabayona de Mógica | BL37: Hazas de Cesto | BM37: Caballar | BN37: Castilleja del Campo | BO37: Bayubas de Arriba | BP37: Blancafort | BQ37: Realejos (Los) | BR37: Báguena | BS37: Camarena | BT37: Alginet | BU37: Campillo (El) | BV37: Laudio/Llodio | BW37: Manganeses de la Lampreana | BX37: Aranda de Moncayo
B38: Castilla La Mancha | C38: Albacete | D38: Férez | E38: 38.35604 | F38: -2.010168 | G38: 678.098 | H38: 724 | I38: 366 | J38: 358 | K38: 677 | L38: 1.098 | M38: 2 | N38: D | P38: Oviedo | Q38: Cl | R38: 214 | S38: D1 | T38: D1 | U38: El | V38: El | W38: El | Y38: Fuensanta | Z38: Benifato | AA38: Castro de Filabres | AB38: Burgohondo | AC38: Carrascalejo (El) | AD38: Cabrils | AE38: Durango | AF38: Barbadillo del Mercado | AG38: Brozas | AH38: San Fernando | AI38: Càlig | AK38: Carrión de Calatrava | AL38: Granjuela (La) | AM38: Culleredo | AN38: Belmontejo | AO38: Eibar | AP38: Calonge | AQ38: Cájar | AR38: Armallones | AS38: Escacena del Campo | AT38: Ayerbe | AU38: Espelúy | AV38: Campo de Villavidel | AW38: Avellanes i Santa Linya (Les) | AX38: Brieva de Cameros | AY38: Monterroso | AZ38: Camarma de Esteruelas | BA38: Campillos | BC38: Ojós | BD38: Gomesende | BE38: Laviana | BF38: Capillas | BG38: Llubí | BH38: Valsequillo de Gran Canaria | BI38: Arguedas | BJ38: Mondariz-Balneario | BK38: Arapiles | BL38: Hermandad de Campoo de Suso | BM38: Cabañas de Polendos | BN38: Castillo de las Guardas (El) | BO38: Beratón | BP38: Bonastre | BQ38: Rosario (El) | BR38: Bañón | BS38: Camarenilla | BT38: Almàssera | BU38: Camporredondo | BV38: Legutiano | BW38: Manganeses de la Polvorosa | BX38: Arándiga
B39: Castilla La Mancha | C39: Albacete | D39: Fuensanta | E39: 39.24641 | F39: -2.065142 | G39: 704.071 | H39: 355 | I39: 193 | J39: 162 | K39: 677 | L39: 27.071 | M39: 2 | N39: D | P39: Palencia | Q39: D1 | R39: 722 | S39: El | T39: El | U39: El | V39: El | W39: El | Y39: Fuente-Álamo | Z39: Benigembla | AA39: Chercos | AB39: Cabezas de Alambre | AC39: Casas de Don Pedro | AD39: Calaf | AE39: Ea | AF39: Barbadillo del Pez | AG39: Cabañas del Castillo | AH39: San José del Valle | AI39: Canet lo Roig | AK39: Carrizosa | AL39: Guadalcázar | AM39: Curtis | AN39: Beteta | AO39: Elduain | AP39: Camós | AQ39: Calahorra (La) | AR39: Armuña de Tajuña | AS39: Fuenteheridos | AT39: Azanuy-Alins | AU39: Frailes | AV39: Camponaraya | AW39: Baix Pallars | AX39: Briñas | AY39: Muras | AZ39: Campo Real | BA39: Cañete la Real | BC39: Pliego | BD39: Gudiña (A) | BE39: Lena | BF39: Cardeñosa de Volpejera | BG39: Llucmajor | BH39: Vega de San Mateo | BI39: Aria | BJ39: Moraña | BK39: Arcediano | BL39: Herrerías | BM39: Cabezuela | BN39: Cazalla de la Sierra | BO39: Berlanga de Duero | BP39: Borges del Camp (Les) | BQ39: San Andrés y Sauces | BR39: Barrachina | BS39: Campillo de la Jara (El) | BT39: Almiserà | BU39: Canalejas de Peñafiel | BV39: Leza | BW39: Manzanal de Arriba | BX39: Ardisa
B40: Castilla La Mancha | C40: Albacete | D40: Fuente-Álamo | E40: 38.69322 | F40: -1.431773 | G40: 823.3177 | H40: 2716 | I40: 1434 | J40: 1282 | K40: 677 | L40: 146.3177 | M40: 2 | N40: D | P40: Palma de Mallorca | Q40: B3 | R40: 1 | S40: B3 | T40: C1 | U40: Cl | V40: D1 | W40: D1 | Y40: Fuentealbilla | Z40: Benijófar | AA40: Chirivel | AB40: Cabezas del Pozo | AC40: Casas de Reina | AD40: Calders | AE40: Elantxobe | AF40: Barrio de Muñó | AG40: Cabezabellosa | AH40: San Roque | AI40: Castell de Cabres | AK40: Castellar de Santiago | AL40: Guijo (El) | AM40: Dodro | AN40: Boniches | AO40: Elgeta | AP40: Campdevànol | AQ40: Calicasas | AR40: Arroyo de las Fraguas | AS40: Galaroza | AT40: Azara | AU40: Fuensanta de Martos | AV40: Candín | AW40: Balaguer | AX40: Briones | AY40: Navia de Suarna | AZ40: Canencia | BA40: Canillas de Aceituno | BC40: Puerto Lumbreras | BD40: Irixo (O) | BE40: Llanera | BF40: Carrión de los Condes | BG40: Manacor | BH40: Yaiza | BI40: Aribe | BJ40: Mos | BK40: Arco (El) | BL40: Lamasón | BM40: Calabazas de Fuentidueña | BN40: Constantina | BO40: Blacos | BP40: Bot | BQ40: San Cristóbal de La Laguna | BR40: Bea | BS40: Camuñas | BT40: Almoines | BU40: Canillas de Esgueva | BV40: Moreda de Álava | BW40: Manzanal de los Infantes | BX40: Ariza
B41: Castilla La Mancha | C41: Albacete | D41: Fuentealbilla | E41: 39.26686 | F41: -1.549186 | G41: 664.727 | H41: 2071 | I41: 1062 | J41: 1009 | K41: 677 | L41: -12.273 | M41: 2 | N41: D | P41: Palmas de gran canaria (las) | Q41: A3 | R41: 114 | S41: A3 | T41: A3 | U41: A3 | V41: B3 | W41: B3 | Y41: Gineta (La) | Z41: Benilloba | AA41: Cóbdar | AB41: Cabezas del Villar | AC41: Castilblanco | AD41: Caldes d'Estrac | AE41: Elorrio | AF41: Barrios de Bureba (Los) | AG41: Cabezuela del Valle | AH41: Sanlúcar de Barrameda | AI41: Castellfort | AK41: Chillón | AL41: Hinojosa del Duque | AM41: Dumbría | AN41: Buciegas | AO41: Elgoibar | AP41: Campelles | AQ41: Campotéjar | AR41: Atanzón | AS41: Gibraleón | AT41: Azlor | AU41: Fuerte del Rey | AV41: Cármenes | AW41: Barbens | AX41: Cabezón de Cameros | AY41: Negueira de Muñiz | AZ41: Carabaña | BA41: Canillas de Albaida | BC41: Ricote | BD41: Larouco | BE41: Llanes | BF41: Castil de Vela | BG41: Mancor de la Vall | BI41: Armañanzas | BJ41: Neves (As) | BK41: Armenteros | BL41: Laredo | BM41: Campo de San Pedro | BN41: Coria del Río | BO41: Bliecos | BP41: Botarell | BQ41: San Juan de la Rambla | BR41: Beceite | BS41: Cardiel de los Montes | BT41: Almussafes | BU41: Carpio | BV41: Navaridas | BW41: Manzanal del Barco | BX41: Artieda
B42: Castilla La Mancha | C42: Albacete | D42: Gineta (La) | E42: 39.11287 | F42: -1.996003 | G42: 691.8901 | H42: 2418 | I42: 1239 | J42: 1179 | K42: 677 | L42: 14.8901 | M42: 2 | N42: D | P42: Pamplona | Q42: D1 | R42: 456 | S42: El | T42: El | U42: El | V42: El | W42: El | Y42: Golosalvo | Z42: Benillup | AA42: Cuevas del Almanzora | AB42: Cabizuela | AC42: Castuera | AD42: Caldes de Montbui | AE42: Erandio | AF42: Barrios de Colina | AG42: Cabrero | AH42: Setenil de las Bodegas | AI42: Castellnovo | AK42: Ciudad Real | AL42: Hornachuelos | AM42: Fene | AN42: Buenache de Alarcón | AO42: Errenteria | AP42: Campllong | AQ42: Cáñar | AR42: Atienza | AS42: Granada de Río-Tinto (La) | AT42: Baélls | AU42: Génave | AV42: Carracedelo | AW42: Baronia de Rialb (La) | AX42: Calahorra | AY42: Nogais (As) | AZ42: Casarrubuelos | BA42: Carratraca | BC42: San Javier | BD42: Laza | BE42: Mieres | BF42: Castrejón de la Peña | BG42: Maó | BI42: Arróniz | BJ42: Nigrán | BK42: Atalaya (La) | BL42: Liendo | BM42: Cantalejo | BN42: Coripe | BO42: Borjabad | BP42: Bràfim | BQ42: San Miguel de Abona | BR42: Bello | BS42: Carmena | BT42: Alpuente | BU42: Casasola de Arión | BV42: Okondo | BW42: Matilla de Arzón | BX42: Asín
B43: Castilla La Mancha | C43: Albacete | D43: Golosalvo | E43: 39.23994 | F43: -1.636626 | G43: 737.8311 | H43: 124 | I43: 61 | J43: 63 | K43: 677 | L43: 60.8311 | M43: 2 | N43: D | P43: Pontevedra | Q43: Cl | R43: 77 | S43: Cl | T43: D1 | U43: D1 | V43: El | W43: El | Y43: Hellín | Z43: Benimantell | AA43: Dalías | AB43: Canales | AC43: Cheles | AD43: Calella | AE43: Ereño | AF43: Basconcillos del Tozo | AG43: Cáceres | AH43: Tarifa | AI43: Castellón de la Plana/Castelló de la Plana | AK43: Corral de Calatrava | AL43: Iznájar | AM43: Ferrol | AN43: Buenache de la Sierra | AO43: Errezil | AP43: Camprodon | AQ43: Caniles | AR43: Auñón | AS43: Granado (El) | AT43: Bailo | AU43: Guardia de Jaén (La) | AV43: Carrizo | AW43: Bassella | AX43: Camprovín | AY43: Ourol | AZ43: Cenicientos | BA43: Cartajima | BC43: San Pedro del Pinatar | BD43: Leiro | BE43: Morcín | BF43: Castrillo de Don Juan | BG43: Maria de la Salut | BI43: Arruazu | BJ43: Oia | BK43: Babilafuente | BL43: Liérganes | BM43: Cantimpalos | BN43: Coronil (El) | BO43: Borobia | BP43: Cabacés | BQ43: San Sebastián de la Gomera | BR43: Belmonte de San José | BS43: Carpio de Tajo (El) | BT43: Alqueria de la Comtessa (l') | BU43: Castrejón de Trabancos | BV43: Oyón-Oion | BW43: Matilla la Seca | BX43: Atea
B44: Castilla La Mancha | C44: Albacete | D44: Hellín | E44: 38.51216 | F44: -1.70331 | G44: 571.8438 | H44: 30976 | I44: 15507 | J44: 15469 | K44: 677 | L44: -105.1562 | M44: 2 | N44: D | P44: Salamanca | Q44: D2 | R44: 770 | S44: El | T44: El | U44: El | V44: El | W44: El | Y44: Herrera (La) | Z44: Benimarfull | AA44: Ejido (El) | AB44: Candeleda | AC44: Codosera (La) | AD44: Calldetenes | AE44: Ermua | AF44: Bascuñana | AG44: Cachorrilla | AH44: Torre Alháquime | AI44: Castillo de Villamalefa | AK44: Cortijos (Los) | AL44: Lucena | AM44: Fisterra | AN44: Buendía | AO44: Eskoriatza | AP44: Canet d'Adri | AQ44: Capileira | AR44: Azuqueca de Henares | AS44: Higuera de la Sierra | AT44: Baldellou | AU44: Guarromán | AV44: Carrocera | AW44: Bausen | AX44: Canales de la Sierra | AY44: Outeiro de Rei | AZ44: Cercedilla | BA44: Cártama | BC44: Santomera | BD44: Lobeira | BE44: Muros de Nalón | BF44: Castrillo de Onielo | BG44: Marratxí | BI44: Artajona | BJ44: Pazos de Borbén | BK44: Bañobárez | BL44: Limpias | BM44: Carbonero el Mayor | BN44: Corrales (Los) | BO44: Buberos | BP44: Cabra del Camp | BQ44: Santa Cruz de la Palma | BR44: Berge | BS44: Carranque | BT44: Alzira | BU44: Castrillo-Tejeriego | BV44: Peñacerrada-Urizaharra | BW44: Mayalde | BX44: Ateca
B45: Castilla La Mancha | C45: Albacete | D45: Herrera (La) | E45: 38.96182 | F45: -2.126546 | G45: 715.7388 | H45: 350 | I45: 176 | J45: 174 | K45: 677 | L45: 38.7388 | M45: 2 | N45: D | P45: Santa cruz de Tenerife | Q45: A3 | R45: 0 | S45: A3 | T45: A3 | U45: A3 | V45: B3 | W45: B3 | Y45: Higueruela | Z45: Benimassot | AA45: Enix | AB45: Cantiveros | AC45: Cordobilla de Lácara | AD45: Callús | AE45: Errigoiti | AF45: Belbimbre | AG45: Cadalso | AH45: Trebujena | AI45: Catí | AK45: Cózar | AL45: Luque | AM45: Frades | AN45: Campillo de Altobuey | AO45: Ezkio-Itsaso | AP45: Cantallops | AQ45: Carataunas | AR45: Baides | AS45: Hinojales | AT45: Ballobar | AU45: Higuera de Calatrava | AV45: Carucedo | AW45: Belianes | AX45: Cañas | AY45: Palas de Rei | AZ45: Cervera de Buitrago | BA45: Casabermeja | BC45: Torre-Pacheco | BD45: Lobios | BE45: Nava | BF45: Castrillo de Villavega | BG45: Mercadal (Es) | BI45: Artazu | BJ45: Poio | BK45: Barbadillo | BL45: Luena | BM45: Carrascal del Río | BN45: Cuervo de Sevilla (El) | BO45: Buitrago | BP45: Calafell | BQ45: Santa Cruz de Tenerife | BR45: Bezas | BS45: Carriches | BT45: Andilla | BU45: Castrillo de Duero | BV45: Ribera Baja/Erribera Beitia | BW45: Melgar de Tera | BX45: Azuara
B46: Castilla La Mancha | C46: Albacete | D46: Higueruela | E46: 38.96424 | F46: -1.445101 | G46: 1038.131 | H46: 1263 | I46: 635 | J46: 628 | K46: 677 | L46: 361.131 | M46: 4 | N46: D | P46: Santander | Q46: Cl | R46: 1 | S46: Cl | T46: D1 | U46: D1 | V46: El | W46: El | Y46: Hoya-Gonzalo | Z46: Benimeli | AA46: Felix | AB46: Cardeñosa | AC46: Coronada (La) | AD46: Calonge de Segarra | AE46: Etxebarri | AF46: Belorado | AG46: Calzadilla | AH46: Ubrique | AI46: Caudiel | AK46: Daimiel | AL46: Montalbán de Córdoba | AM46: Irixoa | AN46: Campillos-Paravientos | AO46: Gabiria | AP46: Capmany | AQ46: Cástaras | AR46: Baños de Tajo | AS46: Hinojos | AT46: Banastás | AU46: Hinojares | AV46: Castilfalé | AW46: Bell-lloc d'Urgell | AX46: Canillas de Río Tuerto | AY46: Pantón | AZ46: Chapinería | BA46: Casarabonela | BC46: Torres de Cotillas (Las) | BD46: Maceda | BE46: Navia | BF46: Castromocho | BG46: Migjorn Gran (Es) | BI46: Atez | BJ46: Ponte Caldelas | BK46: Barbalos | BL46: Marina de Cudeyo | BM46: Casla | BN46: Dos Hermanas | BO46: Burgo de Osma-Ciudad de Osma | BP46: Camarles | BQ46: Santa Úrsula | BR46: Blancas | BS46: Casar de Escalona (El) | BT46: Anna | BU46: Castrobol | BV46: Salvatierra/Agurain | BW46: Micereces de Tera | BX46: Badules
B47: Castilla La Mancha | C47: Albacete | D47: Hoya-Gonzalo | E47: 38.96017 | F47: -1.554348 | G47: 935.8157 | H47: 741 | I47: 382 | J47: 359 | K47: 677 | L47: 258.8157 | M47: 4 | N47: D | P47: Segovia | Q47: D2 | R47: 1013 | S47: El | T47: El | U47: El | V47: El | W47: El | Y47: Jorquera | Z47: Benissa | AA47: Fiñana | AB47: Carrera (La) | AC47: Corte de Peleas | AD47: Campins | AE47: Etxebarria | AF47: Berberana | AG47: Caminomorisco | AH47: Vejer de la Frontera | AI47: Cervera del Maestre | AK47: Fernán Caballero | AL47: Montemayor | AM47: Laracha (A) | AN47: Campillos-Sierra | AO47: Gaintza | AP47: Cassà de la Selva | AQ47: Castilléjar | AR47: Bañuelos | AS47: Huelva | AT47: Barbastro | AU47: Hornos | AV47: Castrillo de Cabrera | AW47: Bellaguarda | AX47: Cárdenas | AY47: Paradela | AZ47: Chinchón | BA47: Casares | BC47: Totana | BD47: Manzaneda | BE47: Noreña | BF47: Cervatos de la Cueza | BG47: Montuïri | BI47: Auritz/Burguete | BJ47: Ponteareas | BK47: Barceo | BL47: Mazcuerras | BM47: Castillejo de Mesleón | BN47: Écija | BO47: Cabrejas del Campo | BP47: Cambrils | BQ47: Santiago del Teide | BR47: Blesa | BS47: Casarrubios del Monte | BT47: Antella | BU47: Castrodeza | BV47: Samaniego | BW47: Milles de la Polvorosa | BX47: Bagüés
B48: Castilla La Mancha | C48: Albacete | D48: Jorquera | E48: 39.17475 | F48: -1.521044 | G48: 620.2926 | H48: 477 | I48: 242 | J48: 235 | K48: 677 | L48: -56.7074 | M48: 2 | N48: D | P48: Sevilla | Q48: B4 | R48: 9 | S48: B3 | T48: C2 | U48: C1 | V48: DI | W48: El | Y48: Letur | Z48: Benitachell/Poble Nou de Benitatxell (el) | AA48: Fines | AB48: Casas del Puerto | AC48: Cristina | AD48: Canet de Mar | AE48: Forua | AF48: Berlangas de Roa | AG48: Campillo de Deleitosa | AH48: Villaluenga del Rosario | AI48: Chert/Xert | AK48: Fontanarejo | AL48: Montilla | AM48: Laxe | AN48: Campos del Paraíso | AO48: Gaztelu | AP48: Castell-Platja d'Aro | AQ48: Castril | AR48: Barriopedro | AS48: Isla Cristina | AT48: Barbués | AU48: Huelma | AV48: Castrillo de la Valduerna | AW48: Bellcaire d'Urgell | AX48: Casalarreina | AY48: Páramo (O) | AZ48: Ciempozuelos | BA48: Coín | BC48: Ulea | BD48: Maside | BE48: Onís | BF48: Cervera de Pisuerga | BG48: Muro | BI48: Ayegui | BJ48: Pontecesures | BK48: Barruecopardo | BL48: Medio Cudeyo | BM48: Castro de Fuentidueña | BN48: Espartinas | BO48: Cabrejas del Pinar | BP48: Capafonts | BQ48: Sauzal (El) | BR48: Bordón | BS48: Casasbuenas | BT48: Aras de los Olmos | BU48: Castromembibre | BV48: San Millán/Donemiliaga | BW48: Molacillos | BX48: Balconchán
B49: Castilla La Mancha | C49: Albacete | D49: Letur | E49: 38.36555 | F49: -2.101964 | G49: 746.7882 | H49: 1122 | I49: 555 | J49: 567 | K49: 677 | L49: 69.7882 | M49: 2 | N49: D | P49: Soria | Q49: El | R49: 984 | S49: El | T49: El | U49: El | V49: El | W49: El | Y49: Lezuza | Z49: Biar | AA49: Fondón | AB49: Casasola | AC49: Don Álvaro | AD49: Canovelles | AE49: Fruiz | AF49: Berzosa de Bureba | AG49: Campo Lugar | AH49: Villamartín | AI49: Chilches/Xilxes | AK49: Fuencaliente | AL49: Montoro | AM49: Lousame | AN49: Cañada del Hoyo | AO49: Getaria | AP49: Castellfollit de la Roca | AQ49: Cenes de la Vega | AR49: Berninches | AS49: Jabugo | AT49: Barbuñales | AU49: Huesa | AV49: Castrocalbón | AW49: Bellmunt d'Urgell | AX49: Castañares de Rioja | AY49: Pastoriza (A) | AZ49: Cobeña | BA49: Colmenar | BC49: Unión (La) | BD49: Melón | BE49: Oviedo | BF49: Cevico de la Torre | BG49: Palma | BI49: Azagra | BJ49: Pontevedra | BK49: Bastida (La) | BL49: Meruelo | BM49: Castrojimeno | BN49: Estepa | BO49: Calatañazor | BP49: Capçanes | BQ49: Silos (Los) | BR49: Bronchales | BS49: Castillo de Bayuela | BT49: Atzeneta d'Albaida | BU49: Castromonte | BV49: Urkabustaiz | BW49: Molezuelas de la Carballeda | BX49: Bárboles
B50: Castilla La Mancha | C50: Albacete | D50: Lezuza | E50: 38.94902 | F50: -2.353775 | G50: 916.73 | H50: 1650 | I50: 834 | J50: 816 | K50: 677 | L50: 239.73 | M50: 4 | N50: D | P50: Tarragona | Q50: B3 | R50: 1 | S50: C2 | T50: Cl | U50: D1 | V50: D1 | W50: El | Y50: Liétor | Z50: Bigastro | AA50: Gádor | AB50: Casavieja | AC50: Don Benito | AD50: Cànoves i Samalús | AE50: Galdakao | AF50: Bozoó | AG50: Cañamero | AH50: Zahara | AI50: Chodos/Xodos | AK50: Fuenllana | AL50: Monturque | AM50: Malpica de Bergantiños | AN50: Cañada Juncosa | AO50: Hernani | AP50: Castelló d'Empúries | AQ50: Chauchina | AR50: Bodera (La) | AS50: Lepe | AT50: Bárcabo | AU50: Ibros | AV50: Castrocontrigo | AW50: Bellpuig | AX50: Castroviejo | AY50: Pedrafita do Cebreiro | AZ50: Collado Mediano | BA50: Comares | BC50: Villanueva del Río Segura | BD50: Merca (A) | BE50: Parres | BF50: Cevico Navero | BG50: Petra | BI50: Azuelo | BJ50: Porriño (O) | BK50: Béjar | BL50: Miengo | BM50: Castroserna de Abajo | BN50: Fuentes de Andalucía | BO50: Caltojar | BP50: Caseres | BQ50: Tacoronte | BR50: Bueña | BS50: Cazalegas | BT50: Ayora | BU50: Castronuevo de Esgueva | BV50: Valdegovía/Gaubea | BW50: Mombuey | BX50: Bardallur
B51: Castilla La Mancha | C51: Albacete | D51: Liétor | E51: 38.5429 | F51: -1.952878 | G51: 671.197 | H51: 1445 | I51: 741 | J51: 704 | K51: 677 | L51: -5.803 | M51: 2 | N51: D | P51: Teruel | Q51: D2 | R51: 995 | S51: El | T51: El | U51: El | V51: El | W51: El | Y51: Madrigueras | Z51: Bolulla | AA51: Gallardos (Los) | AB51: Casillas | AC51: Entrín Bajo | AD51: Canyelles | AE51: Galdames | AF51: Brazacorta | AG51: Cañaveral | AI51: Chóvar | AK51: Fuente el Fresno | AL51: Moriles | AM51: Mañón | AN51: Canalejas del Arroyo | AO51: Hernialde | AP51: Cellera de Ter (La) | AQ51: Chimeneas | AR51: Brihuega | AS51: Linares de la Sierra | AT51: Belver de Cinca | AU51: Iruela (La) | AV51: Castropodame | AW51: Bellver de Cerdanya | AX51: Cellorigo | AY51: Pobra do Brollón (A) | AZ51: Collado Villalba | BA51: Cómpeta | BC51: Yecla | BD51: Mezquita (A) | BE51: Peñamellera Alta | BF51: Cisneros | BG51: Pobla (Sa) | BI51: Bakaiku | BJ51: Portas | BK51: Beleña | BL51: Miera | BM51: Castroserracín | BN51: Garrobo (El) | BO51: Cañamaque | BP51: Castellvell del Camp | BQ51: Tanque (El) | BR51: Burbáguena | BS51: Cebolla | BT51: Barx | BU51: Castronuño | BV51: Villabuena de Álava/Eskuernaga | BW51: Monfarracinos | BX51: Belchite
B52: Castilla La Mancha | C52: Albacete | D52: Madrigueras | E52: 39.23705 | F52: -1.800167 | G52: 692.8739 | H52: 4938 | I52: 2543 | J52: 2395 | K52: 677 | L52: 15.8739 | M52: 2 | N52: D | P52: Toledo | Q52: C4 | R52: 445 | S52: D3 | T52: D2 | U52: El | V52: El | W52: El | Y52: Mahora | Z52: Busot | AA52: Garrucha | AB52: Castellanos de Zapardiel | AC52: Esparragalejo | AD52: Capellades | AE52: Gamiz-Fika | AF52: Briviesca | AG52: Carbajo | AI52: Cinctorres | AK52: Granátula de Calatrava | AL52: Nueva Carteya | AM52: Mazaricos | AN52: Cañamares | AO52: Hondarribia | AP52: Celrà | AQ52: Churriana de la Vega | AR52: Budia | AS52: Lucena del Puerto | AT52: Benabarre | AU52: Iznatoraf | AV52: Castrotierra de Valmadrigal | AW52: Bellvís | AX52: Cenicero | AY52: Pol | AZ52: Colmenar de Oreja | BA52: Cortes de la Frontera | BD52: Montederramo | BE52: Peñamellera Baja | BF52: Cobos de Cerrato | BG52: Pollença | BI52: Barañain | BJ52: Redondela | BK52: Bermellar | BL52: Molledo | BM52: Cedillo de la Torre | BN52: Gelves | BO52: Candilichera | BP52: Catllar (El) | BQ52: Tazacorte | BR52: Cabra de Mora | BS52: Cedillo del Condado | BT52: Barxeta | BU52: Castroponce | BV52: Vitoria-Gasteiz | BW52: Montamarta | BX52: Belmonte de Gracián
B53: Castilla La Mancha | C53: Albacete | D53: Mahora | E53: 39.21283 | F53: -1.725332 | G53: 667.1957 | H53: 1422 | I53: 712 | J53: 710 | K53: 677 | L53: -9.8043 | M53: 2 | N53: D | P53: Valencia | Q53: B3 | R53: 8 | S53: C2 | T53: Cl | U53: D1 | V53: D1 | W53: El | Y53: Masegoso | Z53: Callosa d'En Sarrià | AA53: Gérgal | AB53: Cebreros | AC53: Esparragosa de la Serena | AD53: Capolat | AE53: Garai | AF53: Bugedo | AG53: Carcaboso | AI53: Cirat | AK53: Guadalmez | AL53: Obejo | AM53: Melide | AN53: Cañavate (El) | AO53: Ibarra | AP53: Cervià de Ter | AQ53: Cijuela | AR53: Bujalaro | AS53: Manzanilla | AT53: Benasque | AU53: Jabalquinto | AV53: Cea | AW53: Benavent de Segrià | AX53: Cervera del Río Alhama | AY53: Pontenova (A) | AZ53: Colmenar del Arroyo | BA53: Cuevas Bajas | BD53: Monterrei | BE53: Pesoz | BF53: Collazos de Boedo | BG53: Porreres | BI53: Barásoain | BJ53: Ribadumia | BK53: Berrocal de Huebra | BL53: Noja | BM53: Cerezo de Abajo | BN53: Gerena | BO53: Carabantes | BP53: Colldejou | BQ53: Tegueste | BR53: Calaceite | BS53: Cerralbos (Los) | BT53: Bèlgida | BU53: Castroverde de Cerrato | BV53: Yécora/Iekora | BW53: Moral de Sayago | BX53: Berdejo
B54: Castilla La Mancha | C54: Albacete | D54: Masegoso | E54: 38.71841 | F54: -2.315899 | G54: 1109.367 | H54: 95 | I54: 53 | J54: 42 | K54: 677 | L54: 432.367 | M54: 5 | N54: E | P54: Valladolid | Q54: D2 | R54: 704 | S54: El | T54: El | U54: El | V54: El | W54: El | Y54: Minaya | Z54: Callosa de Segura | AA54: Huécija | AB54: Cepeda la Mora | AC54: Esparragosa de Lares | AD54: Cardedeu | AE54: Gatika | AF54: Buniel | AG54: Carrascalejo | AI54: Cortes de Arenoso | AK54: Herencia | AL54: Palenciana | AM54: Mesía | AN54: Cañaveras | AO54: Idiazabal | AP54: Cistella | AQ54: Cogollos de Guadix | AR54: Bustares | AS54: Marines (Los) | AT54: Berbegal | AU54: Jaén | AV54: Cebanico | AW54: Biosca | AX54: Cidamón | AY54: Portomarín | AZ54: Colmenar Viejo | BA54: Cuevas de San Marcos | BD54: Muíños | BE54: Piloña | BF54: Congosto de Valdavia | BG54: Puigpunyent | BI54: Barbarin | BJ54: Rodeiro | BK54: Berrocal de Salvatierra | BL54: Penagos | BM54: Cerezo de Arriba | BN54: Gilena | BO54: Caracena | BP54: Conesa | BQ54: Tijarafe | BR54: Calamocha | BS54: Cervera de los Montes | BT54: Bellreguard | BU54: Ceinos de Campos | BV54: Zalduondo | BW54: Moraleja de Sayago | BX54: Berrueco
B55: Castilla La Mancha | C55: Albacete | D55: Minaya | E55: 39.27149 | F55: -2.319947 | G55: 725.5837 | H55: 1775 | I55: 900 | J55: 875 | K55: 677 | L55: 48.5837 | M55: 2 | N55: D | P55: Vitoria-Gasteiz | Q55: D1 | R55: 512 | S55: El | T55: El | U55: El | V55: El | W55: El | Y55: Molinicos | Z55: Calpe/Calp | AA55: Huércal-Overa | AB55: Chamartín | AC55: Feria | AD55: Cardona | AE55: Gautegiz Arteaga | AF55: Burgos | AG55: Casar de Cáceres | AI55: Costur | AK55: Hinojosas de Calatrava | AL55: Palma del Río | AM55: Miño | AN55: Cañaveruelas | AO55: Ikaztegieta | AP55: Colera | AQ55: Cogollos de la Vega | AR55: Cabanillas del Campo | AS55: Minas de Riotinto | AT55: Bielsa | AU55: Jamilena | AV55: Cebrones del Río | AW55: Bòrdes (Es) | AX55: Cihuri | AY55: Quiroga | AZ55: Colmenarejo | BA55: Cuevas del Becerro | BD55: Nogueira de Ramuín | BE55: Ponga | BF55: Cordovilla la Real | BG55: Salines (Ses) | BI55: Bargota | BJ55: Rosal (O) | BK55: Boada | BL55: Peñarrubia | BM55: Chañe | BN55: Gines | BO55: Carrascosa de Abajo | BP55: Constantí | BQ55: Valle Gran Rey | BR55: Calanda | BS55: Chozas de Canales | BT55: Bellús | BU55: Cervillego de la Cruz | BV55: Zambrana | BW55: Moraleja del Vino | BX55: Biel
B56: Castilla La Mancha | C56: Albacete | D56: Molinicos | E56: 38.46796 | F56: -2.237843 | G56: 857.9905 | H56: 1091 | I56: 558 | J56: 533 | K56: 677 | L56: 180.9905 | M56: 2 | N56: D | P56: Zamora | Q56: D2 | R56: 617 | S56: El | T56: El | U56: El | V56: El | W56: El | Y56: Montalvos | Z56: Campello (el) | AA56: Huércal de Almería | AB56: Cillán | AC56: Fregenal de la Sierra | AD56: Carme | AE56: Gernika-Lumo | AF56: Busto de Bureba | AG56: Casar de Palomero | AI56: Coves de Vinromà (les) | AK56: Horcajo de los Montes | AL56: Pedro Abad | AM56: Moeche | AN56: Cañete | AO56: Irun | AP56: Colomers | AQ56: Colomera | AR56: Campillo de Dueñas | AS56: Moguer | AT56: Bierge | AU56: Jimena | AV56: Chozas de Abajo | AW56: Borges Blanques (Les) | AX56: Cirueña | AY56: Rábade | AZ56: Corpa | BA56: Cútar | BD56: Oímbra | BE56: Pravia | BF56: Cubillas de Cerrato | BG56: Sant Antoni de Portmany | BI56: Barillas | BJ56: Salceda de Caselas | BK56: Bodón (El) | BL56: Pesaguero | BM56: Cilleruelo de San Mamés | BN56: Guadalcanal | BO56: Carrascosa de la Sierra | BP56: Corbera d'Ebre | BQ56: Vallehermoso | BR56: Calomarde | BS56: Chueca | BT56: Benagéber | BU56: Cigales | BV56: Zigoitia | BW56: Morales de Rey | BX56: Bijuesca
B57: Castilla La Mancha | C57: Albacete | D57: Montalvos | E57: 39.16689 | F57: -2.027694 | G57: 710 | H57: 134 | I57: 70 | J57: 64 | K57: 677 | L57: 33 | M57: 2 | N57: D | P57: Zaragoza | Q57: D3 | R57: 207 | S57: D2 | T57: El | U57: El | V57: El | W57: El | Y57: Montealegre del Castillo | Z57: Campo de Mirra/Camp de Mirra (el) | AA57: Illar | AB57: Cisla | AC57: Fuenlabrada de los Montes | AD57: Casserres | AE57: Getxo | AF57: Cabañes de Esgueva | AG57: Casares de las Hurdes | AI57: Culla | AK57: Labores (Las) | AL57: Pedroche | AM57: Monfero | AN57: Cañizares | AO57: Irura | AP57: Corçà | AQ57: Cortes de Baza | AR57: Campillo de Ranas | AS57: Nava (La) | AT57: Biescas | AU57: Jódar | AV57: Cimanes de la Vega | AW57: Bossòst | AX57: Clavijo | AY57: Ribadeo | AZ57: Coslada | BA57: Estepona | BD57: Ourense | BE57: Proaza | BF57: Dehesa de Montejo | BG57: Sant Joan | BI57: Basaburua | BJ57: Salvaterra de Miño | BK57: Bogajo | BL57: Pesquera | BM57: Cobos de Fuentidueña | BN57: Guillena | BO57: Casarejos | BP57: Cornudella de Montsant | BQ57: Valverde | BR57: Camañas | BS57: Ciruelos | BT57: Benaguasil | BU57: Ciguñuela | BV57: Zuia | BW57: Morales de Toro | BX57: Biota
B58: Castilla La Mancha | C58: Albacete | D58: Montealegre del Castillo | E58: 38.78697 | F58: -1.325303 | G58: 811.8585 | H58: 2305 | I58: 1197 | J58: 1108 | K58: 677 | L58: 134.8585 | M58: 2 | N58: D | Y58: Motilleja | Z58: Cañada | AA58: Instinción | AB58: Colilla (La) | AC58: Fuente de Cantos | AD58: Castell de l'Areny | AE58: Gizaburuaga | AF58: Cabezón de la Sierra | AG58: Casas de Don Antonio | AI58: Eslida | AK58: Llanos del Caudillo | AL58: Peñarroya-Pueblonuevo | AM58: Mugardos | AN58: Carboneras de Guadazaón | AO58: Itsasondo | AP58: Cornellà del Terri | AQ58: Cortes y Graena | AR58: Campisábalos | AS58: Nerva | AT58: Binaced | AU58: Lahiguera | AV58: Cimanes del Tejar | AW58: Bovera | AX58: Cordovín | AY58: Ribas de Sil | AZ58: Cubas de la Sagra | BA58: Faraján | BD58: Paderne de Allariz | BE58: Quirós | BF58: Dehesa de Romanos | BG58: Sant Joan de Labritja | BI58: Baztan | BJ58: Sanxenxo | BK58: Bouza (La) | BL58: Piélagos | BM58: Coca | BN58: Herrera | BO58: Castilfrío de la Sierra | BP58: Creixell | BQ58: Victoria de Acentejo (La) | BR58: Camarena de la Sierra | BS58: Cobeja | BT58: Benavites | BU58: Cistérniga | BW58: Morales de Valverde | BX58: Bisimbre
B59: Castilla La Mancha | C59: Albacete | D59: Motilleja | E59: 39.1806 | F59: -1.791874 | G59: 679.5121 | H59: 585 | I59: 288 | J59: 297 | K59: 677 | L59: 2.5121 | M59: 2 | N59: D | Y59: Munera | Z59: Castalla | AA59: Laroya | AB59: Collado de Contreras | AC59: Fuente del Arco | AD59: Castellar de n'Hug | AE59: Gordexola | AF59: Caleruega | AG59: Casas de Don Gómez | AI59: Espadilla | AK59: Luciana | AL59: Posadas | AM59: Muros | AN59: Cardenete | AO59: Larraul | AP59: Crespià | AQ59: Cuevas del Campo | AR59: Cañizar | AS59: Niebla | AT59: Binéfar | AU59: Larva | AV59: Cistierna | AW59: Cabanabona | AX59: Corera | AY59: Ribeira de Piquín | AZ59: Daganzo de Arriba | BA59: Frigiliana | BD59: Padrenda | BE59: Regueras (Las) | BF59: Dueñas | BG59: Sant Josep de sa Talaia | BI59: Beintza-Labaien | BJ59: Silleda | BK59: Bóveda del Río Almar | BL59: Polaciones | BM59: Codorniz | BN59: Huévar del Aljarafe | BO59: Castillejo de Robledo | BP59: Cunit | BQ59: Vilaflor | BR59: Camarillas | BS59: Cobisa | BT59: Beneixida | BU59: Cogeces de Íscar | BW59: Morales del Vino | BX59: Boquiñeni
B60: Castilla La Mancha | C60: Albacete | D60: Munera | E60: 39.03984 | F60: -2.482528 | G60: 934.6063 | H60: 3843 | I60: 1945 | J60: 1898 | K60: 677 | L60: 257.6063 | M60: 4 | N60: D | Y60: Navas de Jorquera | Z60: Castell de Castells | AA60: Láujar de Andarax | AB60: Collado del Mirón | AC60: Fuente del Maestre | AD60: Castellar del Riu | AE60: Gorliz | AF60: Campillo de Aranda | AG60: Casas de Millán | AI60: Fanzara | AK60: Malagón | AL60: Pozoblanco | AM60: Muxía | AN60: Carrascosa | AO60: Lasarte-Oria | AP60: Cruïlles, Monells i Sant Sadurní de l'Heura | AQ60: Cúllar | AR60: Canredondo | AS60: Palma del Condado (La) | AT60: Bisaurri | AU60: Linares | AV60: Congosto | AW60: Cabó | AX60: Cornago | AY60: Riotorto | AZ60: Escorial (El) | BA60: Fuengirola | BD60: Parada de Sil | BE60: Ribadedeva | BF60: Espinosa de Cerrato | BG60: Sant Llorenç des Cardassar | BI60: Beire | BJ60: Soutomaior | BK60: Brincones | BL60: Polanco | BM60: Collado Hermoso | BN60: Isla Mayor | BO60: Castilruiz | BP60: Deltebre | BQ60: Villa de Mazo | BR60: Caminreal | BS60: Consuegra | BT60: Benetússer | BU60: Cogeces del Monte | BW60: Moralina | BX60: Bordalba
B61: Castilla La Mancha | C61: Albacete | D61: Navas de Jorquera | E61: 39.28074 | F61: -1.71904 | G61: 711 | H61: 556 | I61: 284 | J61: 272 | K61: 677 | L61: 34 | M61: 2 | N61: D | Y61: Nerpio | Z61: Castell de Guadalest (el) | AA61: Líjar | AB61: Constanzana | AC61: Fuentes de León | AD61: Castellar del Vallès | AE61: Güeñes | AF61: Campolara | AG61: Casas de Miravete | AI61: Figueroles | AK61: Manzanares | AL61: Priego de Córdoba | AM61: Narón | AN61: Carrascosa de Haro | AO61: Lazkao | AP61: Darnius | AQ61: Cúllar Vega | AR61: Cantalojas | AS61: Palos de la Frontera | AT61: Biscarrués | AU61: Lopera | AV61: Corbillos de los Oteros | AW61: Camarasa | AX61: Corporales | AY61: Samos | AZ61: Estremera | BA61: Fuente de Piedra | BD61: Pereiro de Aguiar (O) | BE61: Ribadesella | BF61: Espinosa de Villagonzalo | BG61: Sant Lluís | BI61: Belascoáin | BJ61: Tomiño | BK61: Buenamadre | BL61: Potes | BM61: Condado de Castilnovo | BN61: Lantejuela (La) | BO61: Centenera de Andaluz | BP61: Duesaigües | BR61: Cañada de Benatanduz | BS61: Corral de Almaguer | BT61: Beniarjó | BU61: Corcos | BW61: Moreruela de los Infanzones | BX61: Borja
B62: Castilla La Mancha | C62: Albacete | D62: Nerpio | E62: 38.14801 | F62: -2.302496 | G62: 1084.768 | H62: 1538 | I62: 824 | J62: 714 | K62: 677 | L62: 407.768 | M62: 5 | N62: E | Y62: Ontur | Z62: Catral | AA62: Lubrín | AB62: Crespos | AC62: Garbayuela | AD62: Castellbell i el Vilar | AE62: Ibarrangelu | AF62: Canicosa de la Sierra | AG62: Casas del Castañar | AI62: Forcall | AK62: Membrilla | AL62: Puente Genil | AM62: Neda | AN62: Casas de Benítez | AO62: Leaburu | AP62: Das | AQ62: Darro | AR62: Cardoso de la Sierra (El) | AS62: Paterna del Campo | AT62: Blecua y Torres | AU62: Lupión | AV62: Corullón | AW62: Canejan | AX62: Cuzcurrita de Río Tirón | AY62: Sarria | AZ62: Fresnedillas de la Oliva | BA62: Gaucín | BD62: Peroxa (A) | BE62: Ribera de Arriba | BF62: Frechilla | BG62: Santa Eugènia | BI62: Bera/Vera de Bidasoa | BJ62: Tui | BK62: Buenavista | BL62: Puente Viesgo | BM62: Corral de Ayllón | BN62: Lebrija | BO62: Cerbón | BP62: Espluga de Francolí (L') | BR62: Cañada de Verich (La) | BS62: Cuerva | BT62: Beniatjar | BU62: Corrales de Duero | BW62: Moreruela de Tábara | BX62: Botorrita
B63: Castilla La Mancha | C63: Albacete | D63: Ontur | E63: 38.6147 | F63: -1.498491 | G63: 656.9244 | H63: 2349 | I63: 1158 | J63: 1191 | K63: 677 | L63: -20.0756 | M63: 2 | N63: D | Y63: Ossa de Montiel | Z63: Cocentaina | AA63: Lucainena de las Torres | AB63: Cuevas del Valle | AC63: Garlitos | AD63: Castellbisbal | AE63: Igorre | AF63: Cantabrana | AG63: Casas del Monte | AI63: Fuente la Reina | AK63: Mestanza | AL63: Rambla (La) | AM63: Negreira | AN63: Casas de Fernando Alonso | AO63: Legazpi | AP63: Escala (L') | AQ63: Dehesas de Guadix | AR63: Casa de Uceda | AS63: Paymogo | AT63: Boltaña | AU63: Mancha Real | AV63: Crémenes | AW63: Castell de Mur | AX63: Daroca de Rioja | AY63: Saviñao (O) | AZ63: Fresno de Torote | BA63: Genalguacil | BD63: Petín | BE63: Riosa | BF63: Fresno del Río | BG63: Santa Eulalia del Río | BI63: Berbinzana | BJ63: Valga | BK63: Cabaco (El) | BL63: Ramales de la Victoria | BM63: Cozuelos de Fuentidueña | BN63: Lora de Estepa | BO63: Cidones | BP63: Falset | BR63: Cañada Vellida | BS63: Domingo Pérez | BT63: Benicolet | BU63: Cubillas de Santa Marta | BW63: Muelas de los Caballeros | BX63: Brea de Aragón
B64: Castilla La Mancha | C64: Albacete | D64: Ossa de Montiel | E64: 38.96335 | F64: -2.745406 | G64: 911.2698 | H64: 2706 | I64: 1358 | J64: 1348 | K64: 677 | L64: 234.2698 | M64: 4 | N64: D | Y64: Paterna del Madera | Z64: Confrides | AA64: Lúcar | AB64: Diego del Carpio | AC64: Garrovilla (La) | AD64: Castellcir | AE64: Ispaster | AF64: Carazo | AG64: Casatejada | AI64: Fuentes de Ayódar | AK64: Miguelturra | AL64: Rute | AM64: Noia | AN64: Casas de Garcimolina | AO64: Legorreta | AP64: Espinelves | AQ64: Deifontes | AR64: Casar (El) | AS64: Puebla de Guzmán | AT64: Bonansa | AU64: Marmolejo | AV64: Cuadros | AW64: Castellar de la Ribera | AX64: Enciso | AY64: Sober | AZ64: Fuenlabrada | BA64: Guaro | BD64: Piñor | BE64: Salas | BF64: Frómista | BG64: Santa Margalida | BI64: Beriáin | BJ64: Vigo | BK64: Cabeza de Béjar (La) | BL64: Rasines | BM64: Cubillo | BN64: Lora del Río | BO64: Cigudosa | BP64: Fatarella (La) | BR64: Cañizar del Olivar | BS64: Dosbarrios | BT64: Benicull de Xúquer | BU64: Cuenca de Campos | BW64: Muelas del Pan | BX64: Bubierca
B65: Castilla La Mancha | C65: Albacete | D65: Paterna del Madera | E65: 38.59725 | F65: -2.346145 | G65: 1136.959 | H65: 473 | I65: 248 | J65: 225 | K65: 677 | L65: 459.959 | M65: 5 | N65: E | Y65: Peñas de San Pedro | Z65: Cox | AA65: Macael | AB65: Donjimeno | AC65: Granja de Torrehermosa | AD65: Castelldefels | AE65: Iurreta | AF65: Carcedo de Bureba | AG65: Casillas de Coria | AI65: Gaibiel | AK65: Montiel | AL65: San Sebastián de los Ballesteros | AM65: Oleiros | AN65: Casas de Guijarro | AO65: Leintz-Gatzaga | AP65: Espolla | AQ65: Diezma | AR65: Casas de San Galindo | AS65: Puerto Moral | AT65: Borau | AU65: Martos | AV65: Cubillas de los Oteros | AW65: Castelldans | AX65: Entrena | AY65: Taboada | AZ65: Fuente el Saz de Jarama | BA65: Humilladero | BD65: Pobra de Trives (A) | BE65: San Martín de Oscos | BF65: Fuentes de Nava | BG65: Santa María del Camí | BI65: Berrioplano | BJ65: Vila de Cruces | BK65: Cabeza del Caballo | BL65: Reinosa | BM65: Cuéllar | BN65: Luisiana (La) | BO65: Cihuela | BP65: Febró (La) | BR65: Cantavieja | BS65: Erustes | BT65: Benifaió | BU65: Curiel de Duero | BW65: Muga de Sayago | BX65: Bujaraloz
B66: Castilla La Mancha | C66: Albacete | D66: Peñas de San Pedro | E66: 38.72722 | F66: -2.004189 | G66: 1023.151 | H66: 1291 | I66: 717 | J66: 574 | K66: 677 | L66: 346.151 | M66: 4 | N66: D | Y66: Peñascosa | Z66: Crevillent | AA66: María | AB66: Donvidas | AC66: Guareña | AD66: Castellet i la Gornal | AE66: Izurtza | AF66: Carcedo de Burgos | AG66: Castañar de Ibor | AI66: Geldo | AK66: Moral de Calatrava | AL66: Santa Eufemia | AM66: Ordes | AN66: Casas de Haro | AO66: Lezo | AP66: Esponellà | AQ66: Dílar | AR66: Caspueñas | AS66: Punta Umbría | AT66: Broto | AU66: Mengíbar | AV66: Cubillas de Rueda | AW66: Castellnou de Seana | AX66: Estollo | AY66: Trabada | AZ66: Fuentidueña de Tajo | BA66: Igualeja | BD66: Pontedeva | BE66: San Martín del Rey Aurelio | BF66: Fuentes de Valdepero | BG66: Santanyí | BI66: Berriozar | BJ66: Vilaboa | BK66: Cabezabellosa de la Calzada | BL66: Reocín | BM66: Cuevas de Provanco | BN66: Madroño (El) | BO66: Ciria | BP66: Figuera (La) | BR66: Cascante del Río | BS66: Escalona | BT66: Benifairó de la Valldigna | BU66: Encinas de Esgueva | BW66: Navianos de Valverde | BX66: Bulbuente
B67: Castilla La Mancha | C67: Albacete | D67: Peñascosa | E67: 38.67118 | F67: -2.410708 | G67: 1170.48 | H67: 399 | I67: 202 | J67: 197 | K67: 677 | L67: 493.48 | M67: 5 | N67: E | Y67: Pétrola | Z67: Daya Nueva | AA67: Mojácar | AB67: Espinosa de los Caballeros | AC67: Haba (La) | AD67: Castellfollit de Riubregós | AE67: Karrantza Harana/Valle de Carranza | AF67: Cardeñadijo | AG67: Ceclavín | AI67: Herbés | AK67: Navalpino | AL67: Santaella | AM67: Oroso | AN67: Casas de los Pinos | AO67: Lizartza | AP67: Far d'Empordà (El) | AQ67: Dólar | AR67: Castejón de Henares | AS67: Rociana del Condado | AT67: Caldearenas | AU67: Montizón | AV67: Cubillos del Sil | AW67: Castelló de Farfanya | AX67: Ezcaray | AY67: Triacastela | AZ67: Galapagar | BA67: Istán | BD67: Porqueira | BE67: San Tirso de Abres | BF67: Grijota | BG67: Selva | BI67: Bertizarana | BJ67: Vilagarcía de Arousa | BK67: Cabrerizos | BL67: Ribamontán al Mar | BM67: Domingo García | BN67: Mairena del Alcor | BO67: Cirujales del Río | BP67: Figuerola del Camp | BR67: Castejón de Tornos | BS67: Escalonilla | BT67: Benifairó de les Valls | BU67: Esguevillas de Esgueva | BW67: Olmillos de Castro | BX67: Bureta
B68: Castilla La Mancha | C68: Albacete | D68: Pétrola | E68: 38.82572 | F68: -1.557605 | G68: 878.49 | H68: 839 | I68: 443 | J68: 396 | K68: 677 | L68: 201.49 | M68: 4 | N68: D | Y68: Povedilla | Z68: Daya Vieja | AA68: Mojonera (La) | AB68: Flores de Ávila | AC68: Helechosa de los Montes | AD68: Castellfollit del Boix | AE68: Kortezubi | AF68: Cardeñajimeno | AG68: Cedillo | AI68: Higueras | AK68: Navas de Estena | AL68: Torrecampo | AM68: Ortigueira | AN68: Casasimarro | AO68: Mendaro | AP68: Figueres | AQ68: Dúdar | AR68: Castellar de la Muela | AS68: Rosal de la Frontera | AT68: Campo | AU68: Navas de San Juan | AV68: Destriana | AW68: Castellserà | AX68: Foncea | AY68: Valadouro (O) | AZ68: Garganta de los Montes | BA68: Iznate | BD68: Punxín | BE68: Santa Eulalia de Oscos | BF68: Guardo | BG68: Sencelles | BI68: Betelu | BJ68: Vilanova de Arousa | BK68: Cabrillas | BL68: Ribamontán al Monte | BM68: Donhierro | BN68: Mairena del Aljarafe | BO68: Coscurita | BP68: Flix | BR68: Castel de Cabra | BS68: Espinoso del Rey | BT68: Beniflá | BU68: Fombellida | BW68: Otero de Bodas | BX68: Burgo de Ebro (El)
B69: Castilla La Mancha | C69: Albacete | D69: Povedilla | E69: 38.70169 | F69: -2.603873 | G69: 871.9346 | H69: 571 | I69: 304 | J69: 267 | K69: 677 | L69: 194.9346 | M69: 2 | N69: D | Y69: Pozo-Lorente | Z69: Dénia | AA69: Nacimiento | AB69: Fontiveros | AC69: Herrera del Duque | AD69: Castellgalí | AE69: Lanestosa | AF69: Cardeñuela Riopico | AG69: Cerezo | AI69: Jana (la) | AK69: Pedro Muñoz | AL69: Valenzuela | AM69: Outes | AN69: Castejón | AO69: Mutiloa | AP69: Flaçà | AQ69: Dúrcal | AR69: Castilforte | AS69: San Bartolomé de la Torre | AT69: Camporrélls | AU69: Noalejo | AV69: Encinedo | AW69: Cava | AX69: Fonzaleche | AY69: Vicedo (O) | AZ69: Gargantilla del Lozoya y Pinilla de Buitrago | BA69: Jimera de Líbar | BD69: Quintela de Leirado | BE69: Santo Adriano | BF69: Guaza de Campos | BG69: Sineu | BI69: Bidaurreta | BK69: Calvarrasa de Abajo | BL69: Rionansa | BM69: Duruelo | BN69: Marchena | BO69: Covaleda | BP69: Forès | BR69: Castellar (El) | BS69: Esquivias | BT69: Benigánim | BU69: Fompedraza | BW69: Pajares de la Lampreana | BX69: Buste (El)
B70: Castilla La Mancha | C70: Albacete | D70: Pozo-Lorente | E70: 39.07682 | F70: -1.506532 | G70: 773.0806 | H70: 478 | I70: 244 | J70: 234 | K70: 677 | L70: 96.0806 | M70: 2 | N70: D | Y70: Pozo Cañada | Z70: Dolores | AA70: Níjar | AB70: Fresnedilla | AC70: Higuera de la Serena | AD70: Castellnou de Bages | AE70: Larrabetzu | AF70: Carrias | AG70: Cilleros | AI70: Jérica | AK70: Picón | AL70: Valsequillo | AM70: Oza dos Ríos | AN70: Castillejo-Sierra | AO70: Mutriku | AP70: Foixà | AQ70: Escúzar | AR70: Castilnuevo | AS70: San Juan del Puerto | AT70: Canal de Berdún | AU70: Orcera | AV70: Ercina (La) | AW70: Cervera | AX70: Fuenmayor | AY70: Vilalba | AZ70: Gascones | BA70: Jubrique | BD70: Rairiz de Veiga | BE70: Sariego | BF70: Hérmedes de Cerrato | BG70: Sóller | BI70: Biurrun-Olcoz | BK70: Calvarrasa de Arriba | BL70: Riotuerto | BM70: Encinas | BN70: Marinaleda | BO70: Cubilla | BP70: Freginals | BR70: Castellote | BS70: Estrella (La) | BT70: Benimodo | BU70: Fontihoyuelo | BW70: Palacios de Sanabria | BX70: Cabañas de Ebro
B71: Castilla La Mancha | C71: Albacete | D71: Pozo Cañada | E71: 38.80128 | F71: -1.736837 | G71: 826.6574 | H71: 2895 | I71: 1460 | J71: 1435 | K71: 677 | L71: 149.6574 | M71: 2 | N71: D | Y71: Pozohondo | Z71: Elche/Elx | AA71: Ohanes | AB71: Fresno (El) | AC71: Higuera de Llerena | AD71: Castellolí | AE71: Laukiz | AF71: Cascajares de Bureba | AG71: Collado | AI71: Llosa (la) | AK71: Piedrabuena | AL71: Victoria (La) | AM71: Paderne | AN71: Castillejo de Iniesta | AO71: Oiartzun | AP71: Fontanals de Cerdanya | AQ71: Ferreira | AR71: Cendejas de Enmedio | AS71: San Silvestre de Guzmán | AT71: Candasnos | AU71: Peal de Becerro | AV71: Escobar de Campos | AW71: Cervià de les Garrigues | AX71: Galbárruli | AY71: Viveiro | AZ71: Getafe | BA71: Júzcar | BD71: Ramirás | BE71: Siero | BF71: Herrera de Pisuerga | BG71: Son Servera | BI71: Buñuel | BK71: Calzada de Béjar (La) | BL71: Rozas de Valdearroyo (Las) | BM71: Encinillas | BN71: Martín de la Jara | BO71: Cubo de la Solana | BP71: Galera (La) | BR71: Castelnou | BS71: Fuensalida | BT71: Benimuslem | BU71: Fresno el Viejo | BW71: Palacios del Pan | BX71: Cabolafuente
B72: Castilla La Mancha | C72: Albacete | D72: Pozohondo | E72: 38.72114 | F72: -1.911805 | G72: 872.5624 | H72: 1800 | I72: 947 | J72: 853 | K72: 677 | L72: 195.5624 | M72: 2 | N72: D | Y72: Pozuelo | Z72: Elda | AA72: Olula de Castro | AB72: Fuente el Saúz | AC72: Higuera de Vargas | AD72: Castellterçol | AE72: Leioa | AF72: Cascajares de la Sierra | AG72: Conquista de la Sierra | AI72: Lucena del Cid | AK72: Poblete | AL72: Villa del Río | AM72: Padrón | AN72: Castillo-Albaráñez | AO72: Olaberria | AP72: Fontanilles | AQ72: Fonelas | AR72: Cendejas de la Torre | AS72: Sanlúcar de Guadiana | AT72: Canfranc | AU72: Pegalajar | AV72: Fabero | AW72: Ciutadilla | AX72: Galilea | AY72: Xermade | AZ72: Griñón | BA72: Macharaviaya | BD72: Ribadavia | BE72: Sobrescobio | BF72: Herrera de Valdecañas | BG72: Valldemossa | BI72: Burgui/Burgi | BK72: Calzada de Don Diego | BL72: Ruente | BM72: Escalona del Prado | BN72: Molares (Los) | BO72: Cueva de Ágreda | BP72: Gandesa | BR72: Castelserás | BS72: Gálvez | BT72: Beniparrell | BU72: Fuensaldaña | BW72: Pedralba de la Pradería | BX72: Cadrete
B73: Castilla La Mancha | C73: Albacete | D73: Pozuelo | E73: 38.80923 | F73: -2.100707 | G73: 850.8868 | H73: 618 | I73: 320 | J73: 298 | K73: 677 | L73: 173.8868 | M73: 2 | N73: D | Y73: Recueja (La) | Z73: Facheca | AA73: Olula del Río | AB73: Fuentes de Año | AC73: Higuera la Real | AD73: Castellví de la Marca | AE73: Lekeitio | AF73: Castellanos de Castro | AG73: Coria | AI73: Ludiente | AK73: Porzuna | AL73: Villafranca de Córdoba | AM73: Pino (O) | AN73: Castillo de Garcimuñoz | AO73: Oñati | AP73: Fontcoberta | AQ73: Freila | AR73: Centenera | AS73: Santa Ana la Real | AT73: Capdesaso | AU73: Porcuna | AV73: Folgoso de la Ribera | AW73: Clariana de Cardener | AX73: Gallinero de Cameros | AY73: Xove | AZ73: Guadalix de la Sierra | BA73: Málaga | BD73: Riós | BE73: Somiedo | BF73: Hontoria de Cerrato | BG73: Vilafranca de Bonany | BI73: Burlada/Burlata | BK73: Calzada de Valdunciel | BL73: Ruesga | BM73: Escarabajosa de Cabezas | BN73: Montellano | BO73: Dévanos | BP73: Garcia | BR73: Cedrillas | BS73: Garciotum | BT73: Benirredrà | BU73: Fuente-Olmedo | BW73: Pego (El) | BX73: Calatayud
B74: Castilla La Mancha | C74: Albacete | D74: Recueja (La) | E74: 39.17558 | F74: -1.490451 | G74: 541.1991 | H74: 320 | I74: 159 | J74: 161 | K74: 677 | L74: -135.8009 | M74: 2 | N74: D | Y74: Riópar | Z74: Famorca | AA74: Oria | AB74: Gallegos de Altamiros | AC74: Hinojosa del Valle | AD74: Castellví de Rosanes | AE74: Lemoa | AF74: Castil de Peones | AG74: Cuacos de Yuste | AI74: Mata de Morella (la) | AK74: Pozuelo de Calatrava | AL74: Villaharta | AM74: Pobra do Caramiñal (A) | AN74: Cervera del Llano | AO74: Ordizia | AP74: Forallac | AQ74: Fuente Vaqueros | AR74: Checa | AS74: Santa Bárbara de Casa | AT74: Capella | AU74: Pozo Alcón | AV74: Fresno de la Vega | AW74: Cogul (El) | AX74: Gimileo | AZ74: Guadarrama | BA74: Manilva | BD74: Rúa (A) | BE74: Soto del Barco | BF74: Hornillos de Cerrato | BI74: Busto (El) | BK74: Campillo de Azaba | BL74: Ruiloba | BM74: Escobar de Polendos | BN74: Morón de la Frontera | BO74: Deza | BP74: Garidells (Els) | BR74: Celadas | BS74: Gerindote | BT74: Benisanó | BU74: Fuente el Sol | BW74: Peleagonzalo | BX74: Calatorao
B75: Castilla La Mancha | C75: Albacete | D75: Riópar | E75: 38.49912 | F75: -2.41725 | G75: 971.0583 | H75: 1507 | I75: 779 | J75: 728 | K75: 677 | L75: 294.0583 | M75: 4 | N75: D | Y75: Robledo | Z75: Finestrat | AA75: Padules | AB75: Gallegos de Sobrinos | AC75: Hornachos | AD75: Centelles | AE75: Lemoiz | AF75: Castildelgado | AG75: Cumbre (La) | AI75: Matet | AK75: Pozuelos de Calatrava (Los) | AL75: Villanueva de Córdoba | AM75: Ponteceso | AN75: Chillarón de Cuenca | AO75: Orendain | AP75: Fornells de la Selva | AQ75: Gabias (Las) | AR75: Chequilla | AS75: Santa Olalla del Cala | AT75: Casbas de Huesca | AU75: Puente de Génave | AV75: Fuentes de Carbajal | AW75: Coll de Nargó | AX75: Grañón | AZ75: Hiruela (La) | BA75: Marbella | BD75: Rubiá | BE75: Tapia de Casariego | BF75: Husillos | BI75: Cabanillas | BK75: Campo de Peñaranda (El) | BL75: San Felices de Buelna | BM75: Espinar (El) | BN75: Navas de la Concepción (Las) | BO75: Duruelo de la Sierra | BP75: Ginestar | BR75: Cella | BS75: Guadamur | BT75: Benissoda | BU75: Gallegos de Hornija | BW75: Peleas de Abajo | BX75: Calcena
B76: Castilla La Mancha | C76: Albacete | D76: Robledo | E76: 38.75912 | F76: -2.448879 | G76: 1029.824 | H76: 469 | I76: 235 | J76: 234 | K76: 677 | L76: 352.824 | M76: 4 | N76: D | Y76: Roda (La) | Z76: Fondó de les Neus (el)/Hondón de las Nieves | AA76: Partaloa | AB76: Garganta del Villar | AC76: Jerez de los Caballeros | AD76: Cercs | AE76: Lezama | AF76: Castrillo de la Reina | AG76: Deleitosa | AI76: Moncofa | AK76: Puebla de Don Rodrigo | AL76: Villanueva del Duque | AM76: Pontedeume | AN76: Chumillas | AO76: Orexa | AP76: Fortià | AQ76: Galera | AR76: Chillarón del Rey | AS76: Trigueros | AT76: Castejón de Monegros | AU76: Puerta de Segura (La) | AV76: Garrafe de Torío | AW76: Coma i la Pedra (La) | AX76: Grávalos | AZ76: Horcajo de la Sierra | BA76: Mijas | BD76: San Amaro | BE76: Taramundi | BF76: Itero de la Vega | BI76: Cabredo | BK76: Candelario | BL76: San Miguel de Aguayo | BM76: Espirdo | BN76: Olivares | BO76: Escobosa de Almazán | BP76: Godall | BR76: Cerollera (La) | BS76: Guardia (La) | BT76: Benisuera | BU76: Gatón de Campos | BW76: Peñausende | BX76: Calmarza
B77: Castilla La Mancha | C77: Albacete | D77: Roda (La) | E77: 39.0013 | F77: -1.868604 | G77: 679.9437 | H77: 16060 | I77: 8155 | J77: 7905 | K77: 677 | L77: 2.9437 | M77: 2 | N77: D | Y77: Salobre | Z77: Formentera del Segura | AA77: Paterna del Río | AB77: Gavilanes | AC77: Lapa (La) | AD77: Cerdanyola del Vallès | AE77: Loiu | AF77: Castrillo de la Vega | AG77: Descargamaría | AI77: Montán | AK77: Puebla del Príncipe | AL77: Villanueva del Rey | AM77: Pontes de García Rodríguez (As) | AN77: Cierva (La) | AO77: Orio | AP77: Garrigàs | AQ77: Gobernador | AR77: Chiloeches | AS77: Valdelarco | AT77: Castejón de Sos | AU77: Quesada | AV77: Gordaliza del Pino | AW77: Conca de Dalt | AX77: Haro | AZ77: Horcajuelo de la Sierra | BA77: Moclinejo | BD77: San Cibrao das Viñas | BE77: Teverga | BF77: Lagartos | BI77: Cadreita | BK77: Canillas de Abajo | BL77: San Pedro del Romeral | BM77: Fresneda de Cuéllar | BN77: Osuna | BO77: Espeja de San Marcelino | BP77: Gratallops | BR77: Codoñera (La) | BS77: Herencias (Las) | BT77: Bétera | BU77: Geria | BW77: Peque | BX77: Campillo de Aragón
B78: Castilla La Mancha | C78: Albacete | D78: Salobre | E78: 38.59158 | F78: -2.551266 | G78: 924.4268 | H78: 620 | I78: 322 | J78: 298 | K78: 677 | L78: 247.4268 | M78: 4 | N78: D | Y78: San Pedro | Z78: Gaianes | AA78: Pechina | AB78: Gemuño | AC78: Llera | AD78: Cervelló | AE78: Mallabia | AF78: Castrillo de Riopisuerga | AG78: Eljas | AI78: Montanejos | AK78: Puerto Lápice | AL78: Villaralto | AM78: Porto do Son | AN78: Cuenca | AO78: Ormaiztegi | AP78: Garrigoles | AQ78: Gójar | AR78: Cifuentes | AS78: Valverde del Camino | AT78: Castejón del Puente | AU78: Rus | AV78: Gordoncillo | AW78: Corbins | AX78: Herce | AZ78: Hoyo de Manzanares | BA78: Mollina | BD78: San Cristovo de Cea | BE78: Tineo | BF78: Lantadilla | BI78: Caparroso | BK78: Cantagallo | BL78: San Roque de Riomiera | BM78: Fresno de Cantespino | BN78: Palacios y Villafranca (Los) | BO78: Espejón | BP78: Guiamets (Els) | BR78: Corbalán | BS78: Herreruela de Oropesa | BT78: Bicorp | BU78: Herrín de Campos | BW78: Perdigón (El) | BX78: Carenas
B79: Castilla La Mancha | C79: Albacete | D79: San Pedro | E79: 38.82642 | F79: -2.186141 | G79: 844.3685 | H79: 1278 | I79: 663 | J79: 615 | K79: 677 | L79: 167.3685 | M79: 2 | N79: D | Y79: Socovos | Z79: Gata de Gorgos | AA79: Pulpí | AB79: Gil García | AC79: Llerena | AD79: Collbató | AE79: Mañaria | AF79: Castrillo del Val | AG79: Escurial | AI79: Morella | AK79: Puertollano | AL79: Villaviciosa de Córdoba | AM79: Rianxo | AN79: Cueva del Hierro | AO79: Pasaia | AP79: Garriguella | AQ79: Gor | AR79: Cincovillas | AS79: Villablanca | AT79: Castelflorite | AU79: Sabiote | AV79: Gradefes | AW79: Cubells | AX79: Herramélluri | AZ79: Humanes de Madrid | BA79: Monda | BD79: San Xoán de Río | BE79: Valdés | BF79: Ledigos | BI79: Cárcar | BK79: Cantalapiedra | BL79: San Vicente de la Barquera | BM79: Fresno de la Fuente | BN79: Palomares del Río | BO79: Estepa de San Juan | BP79: Horta de Sant Joan | BR79: Cortes de Aragón | BS79: Hinojosa de San Vicente | BT79: Bocairent | BU79: Hornillos de Eresma | BW79: Pereruela | BX79: Cariñena
B80: Castilla La Mancha | C80: Albacete | D80: Socovos | E80: 38.33348 | F80: -1.983432 | G80: 751.4481 | H80: 2015 | I80: 1032 | J80: 983 | K80: 677 | L80: 74.4481 | M80: 2 | N80: D | Y80: Tarazona de la Mancha | Z80: Gorga | AA80: Purchena | AB80: Gilbuena | AC80: Lobón | AD80: Collsuspina | AE80: Markina-Xemein | AF80: Castrillo Matajudíos | AG80: Fresnedoso de Ibor | AI80: Navajas | AK80: Retuerta del Bullaque | AL80: Viso (El) | AM80: Ribeira | AN80: Enguídanos | AO80: Segura | AP80: Ger | AQ80: Gorafe | AR80: Ciruelas | AS80: Villalba del Alcor | AT80: Castiello de Jaca | AU80: Santa Elena | AV80: Grajal de Campos | AW80: Espluga Calba (L') | AX80: Hervías | AZ80: Leganés | BA80: Montejaque | BD80: Sandiás | BE80: Vegadeo | BF80: Loma de Ucieza | BI80: Carcastillo | BK80: Cantalpino | BL80: Santa Cruz de Bezana | BM80: Frumales | BN80: Paradas | BO80: Frechilla de Almazán | BP80: Lloar (El) | BR80: Cosa | BS80: Hontanar | BT80: Bolbaite | BU80: Íscar | BW80: Perilla de Castro | BX80: Caspe
B81: Castilla La Mancha | C81: Albacete | D81: Tarazona de la Mancha | E81: 39.26531 | F81: -1.912836 | G81: 715.6435 | H81: 6755 | I81: 3443 | J81: 3312 | K81: 677 | L81: 38.6435 | M81: 2 | N81: D | Y81: Tobarra | Z81: Granja de Rocamora | AA81: Rágol | AB81: Gimialcón | AC81: Magacela | AD81: Copons | AE81: Maruri-Jatabe | AF81: Castrojeriz | AG81: Galisteo | AI81: Nules | AK81: Robledo (El) | AL81: Zuheros | AM81: Rois | AN81: Fresneda de Altarejos | AO81: Soraluze/Placencia de las Armas | AP81: Girona | AQ81: Granada | AR81: Ciruelos del Pinar | AS81: Villanueva de las Cruces | AT81: Castigaleu | AU81: Santiago-Pontones | AV81: Gusendos de los Oteros | AW81: Espot | AX81: Hormilla | AZ81: Loeches | BA81: Nerja | BD81: Sarreaus | BE81: Villanueva de Oscos | BF81: Lomas | BI81: Cascante | BK81: Cantaracillo | BL81: Santa María de Cayón | BM81: Fuente de Santa Cruz | BN81: Pedrera | BO81: Fresno de Caracena | BP81: Llorac | BR81: Cretas | BS81: Hormigos | BT81: Bonrepòs i Mirambell | BU81: Laguna de Duero | BW81: Pías | BX81: Castejón de Alarba
B82: Castilla La Mancha | C82: Albacete | D82: Tobarra | E82: 38.58844 | F82: -1.693783 | G82: 642.4951 | H82: 8029 | I82: 4062 | J82: 3967 | K82: 677 | L82: -34.5049 | M82: 2 | N82: D | Y82: Valdeganga | Z82: Guardamar del Segura | AA82: Rioja | AB82: Gotarrendura | AC82: Maguilla | AD82: Corbera de Llobregat | AE82: Meñaka | AF82: Cavia | AG82: Garciaz | AI82: Olocau del Rey | AK82: Ruidera | AM82: Sada | AN82: Fresneda de la Sierra | AO82: Tolosa | AP82: Gombrèn | AQ82: Guadahortuna | AR82: Cobeta | AS82: Villanueva de los Castillejos | AT82: Castillazuelo | AU82: Santiago de Calatrava | AV82: Hospital de Órbigo | AW82: Estamariu | AX82: Hormilleja | AZ82: Lozoya | BA82: Ojén | BD82: Taboadela | BE82: Villaviciosa | BF82: Magaz de Pisuerga | BI82: Cáseda | BK82: Carbajosa de la Sagrada | BL82: Santander | BM82: Fuente el Olmo de Fuentidueña | BN82: Pedroso (El) | BO82: Fuentearmegil | BP82: Llorenç del Penedès | BR82: Crivillén | BS82: Huecas | BT82: Bufali | BU82: Langayo | BW82: Piedrahita de Castro | BX82: Castejón de las Armas
B83: Castilla La Mancha | C83: Albacete | D83: Valdeganga | E83: 39.13523 | F83: -1.677004 | G83: 668.1237 | H83: 1953 | I83: 982 | J83: 971 | K83: 677 | L83: -8.8763 | M83: 2 | N83: D | Y83: Vianos | Z83: Hondón de los Frailes | AA83: Roquetas de Mar | AB83: Grandes y San Martín | AC83: Malcocinado | AD83: Cornellà de Llobregat | AE83: Mendata | AF83: Cayuela | AG83: Garganta (La) | AI83: Onda | AK83: Saceruela | AM83: San Sadurniño | AN83: Frontera (La) | AO83: Urnieta | AP83: Gualta | AQ83: Guadix | AR83: Cogollor | AS83: Villarrasa | AT83: Castillonroy | AU83: Santisteban del Puerto | AV83: Igüeña | AW83: Estaràs | AX83: Hornillos de Cameros | AZ83: Lozoyuela-Navas-Sieteiglesias | BA83: Parauta | BD83: Teixeira (A) | BE83: Villayón | BF83: Manquillos | BI83: Castejón | BK83: Carpio de Azaba | BL83: Santillana del Mar | BM83: Fuente el Olmo de Íscar | BN83: Peñaflor | BO83: Fuentecambrón | BP83: Marçà | BR83: Cuba (La) | BS83: Huerta de Valdecarábanos | BT83: Bugarra | BU83: Llano de Olmedo | BW83: Piñero (El) | BX83: Castejón de Valdejasa
B84: Castilla La Mancha | C84: Albacete | D84: Vianos | E84: 38.63218 | F84: -2.501559 | G84: 1117.031 | H84: 433 | I84: 216 | J84: 217 | K84: 677 | L84: 440.031 | M84: 5 | N84: E | Y84: Villa de Ves | Z84: Ibi | AA84: Santa Cruz de Marchena | AB84: Guisando | AC84: Malpartida de la Serena | AD84: Cubelles | AE84: Mendexa | AF84: Cebrecos | AG84: Garganta la Olla | AI84: Oropesa del Mar/Orpesa | AK84: San Carlos del Valle | AM84: Santa Comba | AN84: Fuente de Pedro Naharro | AO84: Urretxu | AP84: Guils de Cerdanya | AQ84: Guajares (Los) | AR84: Cogolludo | AS84: Zalamea la Real | AT84: Chalamera | AU84: Santo Tomé | AV84: Izagre | AW84: Esterri d'Àneu | AX84: Hornos de Moncalvillo | AZ84: Madarcos | BA84: Periana | BD84: Toén | BE84: Yernes y Tameza | BF84: Mantinos | BI84: Castillonuevo | BK84: Carrascal de Barregas | BL84: Santiurde de Reinosa | BM84: Fuentepelayo | BN84: Pilas | BO84: Fuentecantos | BP84: Margalef | BR84: Cubla | BS84: Iglesuela (La) | BT84: Buñol | BU84: Lomoviejo | BW84: Pinilla de Toro | BX84: Castiliscar
B85: Castilla La Mancha | C85: Albacete | D85: Villa de Ves | E85: 39.22327 | F85: -1.26016 | G85: 741.5894 | H85: 60 | I85: 29 | J85: 31 | K85: 677 | L85: 64.5894 | M85: 2 | N85: D | Y85: Villalgordo del Júcar | Z85: Jacarilla | AA85: Santa Fe de Mondújar | AB85: Gutierre-Muñoz | AC85: Manchita | AD85: Dosrius | AE85: Morga | AF85: Celada del Camino | AG85: Gargantilla | AI85: Palanques | AK85: San Lorenzo de Calatrava | AM85: Santiago de Compostela | AN85: Fuentelespino de Haro | AO85: Usurbil | AP85: Hostalric | AQ85: Gualchos | AR85: Condemios de Abajo | AS85: Zufre | AT85: Chía | AU85: Segura de la Sierra | AV85: Joarilla de las Matas | AW85: Esterri de Cardós | AX85: Huércanos | AZ85: Madrid | BA85: Pizarra | BD85: Trasmiras | BF85: Marcilla de Campos | BI85: Cendea de Olza/Oltza Zendea | BK85: Carrascal del Obispo | BL85: Santiurde de Toranzo | BM85: Fuentepiñel | BN85: Pruna | BO85: Fuentelmonge | BP85: Mas de Barberans | BR85: Cucalón | BS85: Illán de Vacas | BT85: Burjassot | BU85: Manzanillo | BW85: Pino del Oro | BX85: Cervera de la Cañada
B86: Castilla La Mancha | C86: Albacete | D86: Villalgordo del Júcar | E86: 39.29626 | F86: -2.06341 | G86: 687.8445 | H86: 1294 | I86: 669 | J86: 625 | K86: 677 | L86: 10.8445 | M86: 2 | N86: D | Y86: Villamalea | Z86: Jávea/Xàbia | AA86: Senés | AB86: Hernansancho | AC86: Medellín | AD86: Esparreguera | AE86: Mundaka | AF86: Cerezo de Río Tirón | AG86: Gargüera | AI86: Pavías | AK86: Santa Cruz de los Cáñamos | AM86: Santiso | AN86: Fuentelespino de Moya | AO86: Villabona | AP86: Isòvol | AQ86: Güejar Sierra | AR86: Condemios de Arriba | AT86: Chimillas | AU86: Siles | AV86: Laguna Dalga | AW86: Farrera | AX86: Igea | AZ86: Majadahonda | BA86: Pujerra | BD86: Veiga (A) | BF86: Mazariegos | BI86: Cintruénigo | BK86: Casafranca | BL86: Santoña | BM86: Fuenterrebollo | BN86: Puebla de Cazalla (La) | BO86: Fuentelsaz de Soria | BP86: Masdenverge | BR86: Cuervo (El) | BS86: Illescas | BT86: Calles | BU86: Marzales | BW86: Pobladura de Valderaduey | BX86: Cerveruela
B87: Castilla La Mancha | C87: Albacete | D87: Villamalea | E87: 39.36189 | F87: -1.599296 | G87: 743.7635 | H87: 4078 | I87: 2071 | J87: 2007 | K87: 677 | L87: 66.7635 | M87: 2 | N87: D | Y87: Villapalacios | Z87: Jijona/Xixona | AA87: Serón | AB87: Herradón de Pinares | AC87: Medina de las Torres | AD87: Esplugues de Llobregat | AE87: Mungia | AF87: Cerratón de Juarros | AG87: Garrovillas de Alconétar | AI87: Peníscola/Peñíscola | AK87: Santa Cruz de Mudela | AM87: Sobrado | AN87: Fuentenava de Jábaga | AO87: Zaldibia | AP87: Jafre | AQ87: Güevéjar | AR87: Congostrina | AT87: Colungo | AU87: Sorihuela del Guadalimar | AV87: Laguna de Negrillos | AW87: Fígols i Alinyà | AX87: Jalón de Cameros | AZ87: Manzanares el Real | BA87: Rincón de la Victoria | BD87: Verea | BF87: Mazuecos de Valdeginate | BI87: Cirauqui | BK87: Casas del Conde (Las) | BL87: Saro | BM87: Fuentesaúco de Fuentidueña | BN87: Puebla de los Infantes (La) | BO87: Fuentepinilla | BP87: Masllorenç | BR87: Cuevas de Almudén | BS87: Lagartera | BT87: Camporrobles | BU87: Matapozuelos | BW87: Pobladura del Valle | BX87: Cetina
B88: Castilla La Mancha | C88: Albacete | D88: Villapalacios | E88: 38.5746 | F88: -2.635532 | G88: 837.8229 | H88: 693 | I88: 354 | J88: 339 | K88: 677 | L88: 160.8229 | M88: 2 | N88: D | Y88: Villarrobledo | Z88: Llíber | AA88: Sierro | AB88: Herreros de Suso | AC88: Mengabril | AD88: Espunyola (L') | AE88: Munitibar-Arbatzegi Gerrikaitz | AF88: Ciadoncha | AG88: Garvín | AI88: Pina de Montalgrao | AK88: Socuéllamos | AM88: Somozas (As) | AN88: Fuentes | AO88: Zarautz | AP88: Jonquera (La) | AQ88: Huélago | AR88: Copernal | AT88: Esplús | AU88: Torre del Campo | AV88: León | AW88: Floresta (La) | AX88: Laguna de Cameros | AZ88: Meco | BA88: Riogordo | BD88: Verín | BF88: Melgar de Yuso | BI88: Ciriza | BK88: Casillas de Flores | BL88: Selaya | BM88: Fuentesoto | BN88: Puebla del Río (La) | BO88: Fuentes de Magaña | BP88: Masó (La) | BR88: Cuevas Labradas | BS88: Layos | BT88: Canals | BU88: Matilla de los Caños | BW88: Porto | BX88: Chiprana
B89: Castilla La Mancha | C89: Albacete | D89: Villarrobledo | E89: 39.26726 | F89: -2.607643 | G89: 728.5291 | H89: 26642 | I89: 13377 | J89: 13265 | K89: 677 | L89: 51.5291 | M89: 2 | N89: D | Y89: Villatoya | Z89: Lorcha/Orxa (l') | AA89: Somontín | AB89: Higuera de las Dueñas | AC89: Mérida | AD89: Estany (L') | AE89: Murueta | AF89: Cillaperlata | AG89: Gata | AI89: Pobla de Benifassà (la) | AK89: Solana (La) | AM89: Teo | AN89: Fuertescusa | AO89: Zegama | AP89: Juià | AQ89: Huéneja | AR89: Corduente | AT89: Estada | AU89: Torreblascopedro | AV89: Llamas de la Ribera | AW89: Fondarella | AX89: Lagunilla del Jubera | AZ89: Mejorada del Campo | BA89: Ronda | BD89: Viana do Bolo | BF89: Meneses de Campos | BI89: Cizur | BK89: Castellanos de Moriscos | BL89: Soba | BM89: Fuentidueña | BN89: Real de la Jara (El) | BO89: Fuentestrún | BP89: Maspujols | BR89: Ejulve | BS89: Lillo | BT89: Canet d'En Berenguer | BU89: Mayorga | BW89: Pozoantiguo | BX89: Chodes
B90: Castilla La Mancha | C90: Albacete | D90: Villatoya | E90: 39.33326 | F90: -1.340224 | G90: 416.7317 | H90: 143 | I90: 74 | J90: 69 | K90: 677 | L90: -260.2683 | M90: 2 | N90: D | Y90: Villavaliente | Z90: Millena | AA90: Sorbas | AB90: Hija de Dios (La) | AC90: Mirandilla | AD90: Figaró-Montmany | AE90: Muskiz | AF90: Cilleruelo de Abajo | AG90: Gordo (El) | AI90: Pobla Tornesa (la) | AK90: Solana del Pino | AM90: Toques | AN90: Gabaldón | AO90: Zerain | AP90: Lladó | AQ90: Huéscar | AR90: Cubillo de Uceda (El) | AT90: Estadilla | AU90: Torredonjimeno | AV90: Lucillo | AW90: Foradada | AX90: Lardero | AZ90: Miraflores de la Sierra | BA90: Salares | BD90: Vilamarín | BF90: Micieces de Ojeda | BI90: Corella | BK90: Castellanos de Villiquera | BL90: Solórzano | BM90: Gallegos | BN90: Rinconada (La) | BO90: Garray | BP90: Masroig (El) | BR90: Escorihuela | BS90: Lominchar | BT90: Carcaixent | BU90: Medina de Rioseco | BW90: Pozuelo de Tábara | BX90: Cimballa
B91: Castilla La Mancha | C91: Albacete | D91: Villavaliente | E91: 39.12596 | F91: -1.458606 | G91: 728.5188 | H91: 278 | I91: 154 | J91: 124 | K91: 677 | L91: 51.5188 | M91: 2 | N91: D | Y91: Villaverde de Guadalimar | Z91: Monforte del Cid | AA91: Suflí | AB91: Horcajada (La) | AC91: Monesterio | AD91: Fígols | AE91: Muxika | AF91: Cilleruelo de Arriba | AG91: Granja (La) | AI91: Portell de Morella | AK91: Terrinches | AM91: Tordoia | AN91: Garaballa | AO91: Zestoa | AP91: Llagostera | AQ91: Huétor de Santillán | AR91: Driebes | AT91: Estopiñán del Castillo | AU91: Torreperogil | AV91: Luyego | AW91: Fuliola (La) | AX91: Ledesma de la Cogolla | AZ91: Molar (El) | BA91: Sayalonga | BD91: Vilamartín de Valdeorras | BF91: Monzón de Campos | BI91: Cortes | BK91: Castillejo de Martín Viejo | BL91: Suances | BM91: Garcillán | BN91: Roda de Andalucía (La) | BO91: Golmayo | BP91: Milà (El) | BR91: Escucha | BS91: Lucillos | BT91: Càrcer | BU91: Medina del Campo | BW91: Prado | BX91: Cinco Olivas
B92: Castilla La Mancha | C92: Albacete | D92: Villaverde de Guadalimar | E92: 38.4555 | F92: -2.517869 | G92: 796.1951 | H92: 424 | I92: 226 | J92: 198 | K92: 677 | L92: 119.1951 | M92: 2 | N92: D | Y92: Viveros | Z92: Monóvar/Monòver | AA92: Tabernas | AB92: Horcajo de las Torres | AC92: Montemolín | AD92: Fogars de la Selva | AE92: Nabarniz | AF92: Ciruelos de Cervera | AG92: Guadalupe | AI92: Puebla de Arenoso | AK92: Tomelloso | AM92: Touro | AN92: Gascueña | AO92: Zizurkil | AP92: Llambilles | AQ92: Huétor Tájar | AR92: Durón | AT92: Fago | AU92: Torres | AV92: Magaz de Cepeda | AW92: Fulleda | AX92: Leiva | AZ92: Molinos (Los) | BA92: Sedella | BD92: Vilar de Barrio | BF92: Moratinos | BI92: Desojo | BK92: Castraz | BL92: Tojos (Los) | BM92: Gomezserracín | BN92: Ronquillo (El) | BO92: Gómara | BP92: Miravet | BR92: Estercuel | BS92: Madridejos | BT92: Carlet | BU92: Megeces | BW92: Puebla de Sanabria | BX92: Clarés de Ribota
B93: Castilla La Mancha | C93: Albacete | D93: Viveros | E93: 38.7733 | F93: -2.576014 | G93: 1012.303 | H93: 395 | I93: 203 | J93: 192 | K93: 677 | L93: 335.303 | M93: 4 | N93: D | Y93: Yeste | Z93: Montesinos (Los) | AA93: Taberno | AB93: Hornillo (El) | AC93: Monterrubio de la Serena | AD93: Fogars de Montclús | AE93: Ondarroa | AF93: Cogollos | AG93: Guijo de Coria | AI93: Ribesalbes | AK93: Torralba de Calatrava | AM93: Trazo | AN93: Graja de Campalbo | AO93: Zumaia | AP93: Llanars | AQ93: Huétor Vega | AR93: Embid | AT93: Fanlo | AU93: Torres de Albánchez | AV93: Mansilla de las Mulas | AW93: Gavet de la Conca | AX93: Leza de Río Leza | AZ93: Montejo de la Sierra | BA93: Sierra de Yeguas | BD93: Vilar de Santos | BF93: Mudá | BI93: Dicastillo | BK93: Cepeda | BL93: Torrelavega | BM93: Grajera | BN93: Rubio (El) | BO93: Gormaz | BP93: Molar (El) | BR93: Ferreruela de Huerva | BS93: Magán | BT93: Carrícola | BU93: Melgar de Abajo | BW93: Pueblica de Valverde | BX93: Codo
B94: Castilla La Mancha | C94: Albacete | D94: Yeste | E94: 38.36583 | F94: -2.318711 | G94: 862.6873 | H94: 3397 | I94: 1734 | J94: 1663 | K94: 677 | L94: 185.6873 | M94: 2 | N94: D | Z94: Murla | AA94: Tahal | AB94: Hoyo de Pinares (El) | AC94: Montijo | AD94: Folgueroles | AE94: Orozko | AF94: Condado de Treviño | AG94: Guijo de Galisteo | AI94: Rossell | AK94: Torre de Juan Abad | AM94: Val do Dubra | AN94: Graja de Iniesta | AO94: Zumarraga | AP94: Llançà | AQ94: Illora | AR94: Escamilla | AT94: Fiscal | AU94: Úbeda | AV94: Mansilla Mayor | AW94: Gimenells i el Pla de la Font | AX94: Logroño | AZ94: Moraleja de Enmedio | BA94: Teba | BD94: Vilardevós | BF94: Nogal de las Huertas | BI94: Donamaria | BK94: Cereceda de la Sierra | BL94: Tresviso | BM94: Honrubia de la Cuesta | BN94: Salteras | BO94: Herrera de Soria | BP94: Mont-ral | BR94: Fonfría | BS94: Malpica de Tajo | BT94: Casas Altas | BU94: Melgar de Arriba | BW94: Quintanilla de Urz | BX94: Codos
B95: Valencia | C95: Alicante | D95: Adsubia | E95: 38.84783 | F95: -0.1499264 | G95: 106.0243 | H95: 693 | I95: 353 | J95: 340 | K95: 7 | L95: 99.0243 | M95: 2 | N95: B | Z95: Muro de Alcoy | AA95: Terque | AB95: Hoyocasero | AC95: Morera (La) | AD95: Fonollosa | AE95: Ortuella | AF95: Contreras | AG95: Guijo de Granadilla | AI95: Sacañet | AK95: Torrenueva | AM95: Valdoviño | AN95: Henarejos | AP95: Llers | AQ95: Itrabo | AR95: Escariche | AT95: Fonz | AU95: Valdepeñas de Jaén | AV95: Maraña | AW95: Golmés | AX95: Lumbreras | AZ95: Moralzarzal | BA95: Tolox | BD95: Vilariño de Conso | BF95: Olea de Boedo | BI95: Doneztebe/Santesteban | BK95: Cerezal de Peñahorcada | BL95: Tudanca | BM95: Hontalbilla | BN95: San Juan de Aznalfarache | BO95: Hinojosa del Campo | BP95: Mont-roig del Camp | BR95: Formiche Alto | BS95: Manzaneque | BT95: Casas Bajas | BU95: Mojados | BW95: Quintanilla del Monte | BX95: Contamina
B96: Valencia | C96: Alicante | D96: Agost | E96: 38.44117 | F96: -0.6395459 | G96: 332.424 | H96: 4810 | I96: 2432 | J96: 2378 | K96: 7 | L96: 325.424 | M96: 4 | N96: C | Z96: Mutxamel | AA96: Tíjola | AB96: Hoyorredondo | AC96: Nava de Santiago (La) | AD96: Font-rubí | AE96: Otxandio | AF96: Coruña del Conde | AG96: Guijo de Santa Bárbara | AI96: Salzadella (la) | AK96: Valdemanco del Esteras | AM96: Vedra | AN96: Herrumblar (El) | AP96: Llívia | AQ96: Iznalloz | AR96: Escopete | AT96: Foradada del Toscar | AU96: Vilches | AV96: Matadeón de los Oteros | AW96: Gósol | AX96: Manjarrés | AZ96: Morata de Tajuña | BA96: Torremolinos | BD96: Xinzo de Limia | BF96: Olmos de Ojeda | BI96: Echarri | BK96: Cerralbo | BL96: Udías | BM96: Hontanares de Eresma | BN96: San Nicolás del Puerto | BO96: Langa de Duero | BP96: Montblanc | BR96: Fórnoles | BS96: Maqueda | BT96: Casinos | BU96: Monasterio de Vega | BW96: Quintanilla del Olmo | BX96: Cosuenda
B97: Valencia | C97: Alicante | D97: Agres | E97: 38.77988 | F97: -0.5156772 | G97: 724.617 | H97: 619 | I97: 325 | J97: 294 | K97: 7 | L97: 717.617 | M97: 6 | N97: D | Z97: Novelda | AA97: Tres Villas (Las) | AB97: Hoyos de Miguel Muñoz | AC97: Navalvillar de Pela | AD97: Franqueses del Vallès (Les) | AE97: Plentzia | AF97: Covarrubias | AG97: Herguijuela | AI97: San Rafael del Río | AK97: Valdepeñas | AM97: Vilarmaior | AN97: Hinojosa (La) | AP97: Lloret de Mar | AQ97: Jayena | AR97: Espinosa de Henares | AT97: Fraga | AU97: Villacarrillo | AV97: Matallana de Torío | AW97: Granadella (La) | AX97: Mansilla de la Sierra | AZ97: Móstoles | BA97: Torrox | BD97: Xunqueira de Ambía | BF97: Osornillo | BI97: Egüés | BK97: Cerro (El) | BL97: Val de San Vicente | BM97: Huertos (Los) | BN97: Sanlúcar la Mayor | BO97: Liceras | BP97: Montbrió del Camp | BR97: Fortanete | BS97: Marjaliza | BT97: Castelló de Rugat | BU97: Montealegre de Campos | BW97: Quiruelas de Vidriales | BX97: Cuarte de Huerva
B98: Valencia | C98: Alicante | D98: Aigües | E98: 38.49932 | F98: -0.3627366 | G98: 325.356 | H98: 1064 | I98: 547 | J98: 517 | K98: 7 | L98: 318.356 | M98: 4 | N98: C | Z98: Nucia (la) | AA98: Turre | AB98: Hoyos del Collado | AC98: Nogales | AD98: Gaià | AE98: Portugalete | AF98: Cubillo del Campo | AG98: Hernán-Pérez | AI98: Sant Joan de Moró | AK98: Valenzuela de Calatrava | AM98: Vilasantar | AN98: Hinojosos (Los) | AP98: Llosses (Les) | AQ98: Jerez del Marquesado | AR98: Esplegares | AT98: Fueva (La) | AU98: Villanueva de la Reina | AV98: Matanza | AW98: Granja d'Escarp (La) | AX98: Manzanares de Rioja | AZ98: Navacerrada | BA98: Totalán | BD98: Xunqueira de Espadanedo | BF98: Osorno la Mayor | BI98: Elgorriaga | BK98: Cespedosa de Tormes | BL98: Valdáliga | BM98: Ituero y Lama | BN98: Santiponce | BO98: Losilla (La) | BP98: Montferri | BR98: Foz-Calanda | BS98: Marrupe | BT98: Castellonet de la Conquesta | BU98: Montemayor de Pililla | BW98: Rabanales | BX98: Cubel
B99: Valencia | C99: Alicante | D99: Albatera | E99: 38.1806 | F99: -0.8696246 | G99: 21.50101 | H99: 11745 | I99: 6079 | J99: 5666 | K99: 7 | L99: 14.50101 | M99: 2 | N99: B | Z99: Ondara | AA99: Turrillas | AB99: Hoyos del Espino | AC99: Oliva de la Frontera | AD99: Gallifa | AE99: Santurtzi | AF99: Cubo de Bureba | AG99: Herrera de Alcántara | AI99: Sant Jordi/San Jorge | AK99: Villahermosa | AM99: Vimianzo | AN99: Hito (El) | AP99: Maçanet de Cabrenys | AQ99: Jete | AR99: Establés | AT99: Gistaín | AU99: Villanueva del Arzobispo | AV99: Molinaseca | AW99: Granyanella | AX99: Matute | AZ99: Navalafuente | BA99: Valle de Abdalajís | BF99: Palencia | BI99: Enériz | BK99: Chagarcía Medianero | BL99: Valdeolea | BM99: Juarros de Riomoros | BN99: Saucejo (El) | BO99: Magaña | BP99: Montmell (El) | BR99: Fresneda (La) | BS99: Mascaraque | BT99: Castielfabib | BU99: Moral de la Reina | BW99: Rábano de Aliste | BX99: Cuerlas (Las)
B100: Valencia | C100: Alicante | D100: Alcalalí | E100: 38.75568 | F100: -0.046652 | G100: 290.6824 | H100: 1507 | I100: 762 | J100: 745 | K100: 7 | L100: 283.6824 | M100: 4 | N100: C | Z100: Onil | AA100: Uleila del Campo | AB100: Hurtumpascual | AC100: Oliva de Mérida | AD100: Garriga (La) | AE100: Sestao | AF100: Cueva de Roa (La) | AG100: Herreruela | AI100: Sant Mateu | AK100: Villamanrique | AM100: Zas | AN100: Honrubia | AP100: Maçanet de la Selva | AQ100: Jun | AR100: Estriégana | AT100: Grado (El) | AU100: Villardompardo | AV100: Murias de Paredes | AW100: Granyena de les Garrigues | AX100: Medrano | AZ100: Navalagamella | BA100: Vélez-Málaga | BF100: Palenzuela | BI100: Eratsun | BK100: Cilleros de la Bastida | BL100: Valdeprado del Río | BM100: Juarros de Voltoya | BN100: Sevilla | BO100: Maján | BP100: Móra d'Ebre | BR100: Frías de Albarracín | BS100: Mata (La) | BT100: Catadau | BU100: Moraleja de las Panaderas | BW100: Requejo | BX100: Daroca
B101: Valencia | C101: Alicante | D101: Alcocer de Planes | E101: 38.79493 | F101: -0.4027004 | G101: 352.7985 | H101: 228 | I101: 108 | J101: 120 | K101: 7 | L101: 345.7985 | M101: 4 | N101: C | Z101: Orba | AA101: Urrácal | AB101: Junciana | AC101: Olivenza | AD101: Gavà | AE101: Sondika | AF101: Cuevas de San Clemente | AG101: Hervás | AI101: Santa Magdalena de Pulpis | AK101: Villamayor de Calatrava | AN101: Hontanaya | AP101: Madremanya | AQ101: Juviles | AR101: Fontanar | AT101: Grañén | AU101: Villares (Los) | AV101: Noceda del Bierzo | AW101: Granyena de Segarra | AX101: Munilla | AZ101: Navalcarnero | BA101: Villanueva de Algaidas | BF101: Páramo de Boedo | BI101: Ergoiena | BK101: Cipérez | BL101: Valderredible | BM101: Labajos | BN101: Tocina | BO101: Matalebreras | BP101: Móra la Nova | BR101: Fuenferrada | BS101: Mazarambroz | BT101: Catarroja | BU101: Morales de Campos | BW101: Revellinos | BX101: Ejea de los Caballeros
B102: Valencia | C102: Alicante | D102: Alcoleja | E102: 38.67542 | F102: -0.3323183 | G102: 751.6678 | H102: 206 | I102: 108 | J102: 98 | K102: 7 | L102: 744.6678 | M102: 6 | N102: D | Z102: Orihuela | AA102: Velefique | AB102: Langa | AC102: Orellana de la Sierra | AD102: Gelida | AE102: Sopelana | AF102: Encío | AG102: Higuera | AI102: Sarratella | AK102: Villanueva de la Fuente | AN102: Hontecillas | AP102: Maià de Montcal | AQ102: Láchar | AR102: Fuembellida | AT102: Graus | AU102: Villarrodrigo | AV102: Oencia | AW102: Guimerà | AX102: Murillo de Río Leza | AZ102: Navarredonda y San Mamés | BA102: Villanueva de Tapia | BF102: Paredes de Nava | BI102: Erro | BK102: Ciudad Rodrigo | BL102: Valle de Villaverde | BM102: Laguna de Contreras | BN102: Tomares | BO102: Matamala de Almazán | BP102: Morell (El) | BR102: Fuentes Calientes | BS102: Mejorada | BT102: Caudete de las Fuentes | BU102: Mota del Marqués | BW102: Riofrío de Aliste | BX102: Embid de Ariza
B103: Valencia | C103: Alicante | D103: Alcoy/Alcoi | E103: 38.69763 | F103: -0.4730959 | G103: 578.9285 | H103: 61552 | I103: 29854 | J103: 31698 | K103: 7 | L103: 571.9285 | M103: 5 | N103: C | Z103: Orxeta | AA103: Vélez-Blanco | AB103: Lanzahíta | AC103: Orellana la Vieja | AD103: Gironella | AE103: Sopuerta | AF103: Espinosa de Cervera | AG103: Hinojal | AI103: Segorbe | AK103: Villanueva de los Infantes | AN103: Horcajo de Santiago | AP103: Masarac | AQ103: Lanjarón | AR103: Fuencemillán | AT103: Gurrea de Gállego | AU103: Villatorres | AV103: Omañas (Las) | AW103: Guingueta d'Àneu (La) | AX103: Muro de Aguas | AZ103: Navas del Rey | BA103: Villanueva del Rosario | BF103: Payo de Ojeda | BI103: Eslava | BK103: Coca de Alba | BL103: Vega de Liébana | BM103: Languilla | BN103: Umbrete | BO103: Medinaceli | BP103: Morera de Montsant (La) | BR103: Fuentes Claras | BS103: Menasalbas | BT103: Cerdà | BU103: Mucientes | BW103: Rionegro del Puente | BX103: Encinacorba
B104: Valencia | C104: Alicante | D104: Alfafara | E104: 38.77266 | F104: -0.5552129 | G104: 587.1841 | H104: 413 | I104: 211 | J104: 202 | K104: 7 | L104: 580.1841 | M104: 5 | N104: C | Z104: Parcent | AA104: Vélez-Rubio | AB104: Llanos de Tormes (Los) | AC104: Palomas | AD104: Gisclareny | AE104: Sukarrieta | AF104: Espinosa de los Monteros | AG104: Holguera | AI104: Sierra Engarcerán | AK104: Villanueva de San Carlos | AN104: Huélamo | AP104: Massanes | AQ104: Lanteira | AR104: Fuentelahiguera de Albatages | AT104: Hoz de Jaca | AV104: Onzonilla | AW104: Guissona | AX104: Muro en Cameros | AZ104: Nuevo Baztán | BA104: Villanueva del Trabuco | BF104: Pedraza de Campos | BI104: Esparza de Salazar/Espartza Zaraitzu | BK104: Colmenar de Montemayor | BL104: Vega de Pas | BM104: Lastras de Cuéllar | BN104: Utrera | BO104: Miño de Medinaceli | BP104: Nou de Gaià (La) | BR104: Fuentes de Rubielos | BS104: Méntrida | BT104: Chella | BU104: Mudarra (La) | BW104: Roales | BX104: Épila
B105: Valencia | C105: Alicante | D105: Alfàs del Pi (l') | E105: 38.58055 | F105: -0.1032094 | G105: 96.30521 | H105: 21011 | I105: 10498 | J105: 10513 | K105: 7 | L105: 89.30521 | M105: 2 | N105: B | Z105: Pedreguer | AA105: Vera | AB105: Losar del Barco (El) | AC105: Parra (La) | AD105: Granada (La) | AE105: Trucios-Turtzioz | AF105: Espinosa del Camino | AG105: Hoyos | AI105: Soneja | AK105: Villar del Pozo | AN105: Huelves | AP105: Meranges | AQ105: Lecrín | AR105: Fuentelencina | AT105: Hoz y Costean | AV105: Oseja de Sajambre | AW105: Guixers | AX105: Nájera | AZ105: Olmeda de las Fuentes | BA105: Viñuela | BF105: Pedrosa de la Vega | BI105: Espronceda | BK105: Cordovilla | BL105: Villacarriedo | BM105: Lastras del Pozo | BN105: Valencina de la Concepción | BO105: Miño de San Esteban | BP105: Nulles | BR105: Fuentespalda | BS105: Mesegar de Tajo | BT105: Chelva | BU105: Muriel | BW105: Robleda-Cervantes | BX105: Erla
B106: Valencia | C106: Alicante | D106: Algorfa | E106: 38.08587 | F106: -0.7957607 | G106: 29.95276 | H106: 4346 | I106: 2162 | J106: 2184 | K106: 7 | L106: 22.95276 | M106: 2 | N106: B | Z106: Pego | AA106: Viator | AB106: Madrigal de las Altas Torres | AC106: Peñalsordo | AD106: Granera | AE106: Ubide | AF106: Estépar | AG106: Huélaga | AI106: Sot de Ferrer | AK106: Villarrubia de los Ojos | AN106: Huérguina | AP106: Mieres | AQ106: Lentegí | AR106: Fuentelsaz | AT106: Huerto | AV106: Pajares de los Oteros | AW106: Isona i Conca Dellà | AX106: Nalda | AZ106: Orusco de Tajuña | BA106: Yunquera | BF106: Perales | BI106: Estella/Lizarra | BK106: Cristóbal | BL106: Villaescusa | BM106: Lastrilla (La) | BN106: Villamanrique de la Condesa | BO106: Molinos de Duero | BP106: Pallaresos (Els) | BR106: Galve | BS106: Miguel Esteban | BT106: Chera | BU106: Nava del Rey | BW106: Roelos de Sayago | BX106: Escatrón
B107: Valencia | C107: Alicante | D107: Algueña | E107: 38.33886 | F107: -1.003234 | G107: 536.0125 | H107: 1551 | I107: 767 | J107: 784 | K107: 7 | L107: 529.0125 | M107: 5 | N107: C | Z107: Penàguila | AA107: Vícar | AB107: Maello | AC107: Peraleda del Zaucejo | AD107: Granollers | AE107: Ugao-Miraballes | AF107: Fontioso | AG107: Ibahernando | AI107: Sueras/Suera | AK107: Villarta de San Juan | AN107: Huerta de la Obispalía | AP107: Mollet de Peralada | AQ107: Lobras | AR107: Fuentelviejo | AT107: Huesca | AV107: Palacios de la Valduerna | AW107: Ivars d'Urgell | AX107: Navajún | AZ107: Paracuellos de Jarama | BF107: Pernía (La) | BI107: Esteribar | BK107: Cubo de Don Sancho (El) | BL107: Villafufre | BM107: Losa (La) | BN107: Villanueva de San Juan | BO107: Momblona | BP107: Palma d'Ebre (La) | BR107: Gargallo | BS107: Mocejón | BT107: Cheste | BU107: Nueva Villa de las Torres | BW107: Rosinos de la Requejada | BX107: Fabara
B108: Valencia | C108: Alicante | D108: Alicante/Alacant | E108: 38.3452 | F108: -0.481006 | G108: 16.63256 | H108: 334757 | I108: 162853 | J108: 171904 | K108: 7 | L108: 9.63256 | M108: 2 | N108: B | Z108: Petrer | AA108: Zurgena | AB108: Malpartida de Corneja | AC108: Puebla de Alcocer | AD108: Gualba | AE108: Urduliz | AF108: Frandovínez | AG108: Jaraicejo | AI108: Tales | AK108: Viso del Marqués | AN108: Huerta del Marquesado | AP108: Molló | AQ108: Loja | AR108: Fuentenovilla | AT108: Ibieca | AV108: Palacios del Sil | AW108: Ivars de Noguera | AX108: Navarrete | AZ108: Parla | BF108: Piña de Campos | BI108: Etayo | BK108: Dios le Guarde | BL108: Voto | BM108: Maderuelo | BN108: Villanueva del Ariscal | BO108: Monteagudo de las Vicarías | BP108: Passanant i Belltall | BR108: Gea de Albarracín | BS108: Mohedas de la Jara | BT108: Chiva | BU108: Olivares de Duero | BW108: Salce | BX108: Farlete
B109: Valencia | C109: Alicante | D109: Almoradí | E109: 38.10963 | F109: -0.7920032 | G109: 17.38357 | H109: 19147 | I109: 9772 | J109: 9375 | K109: 7 | L109: 10.38357 | M109: 2 | N109: B | Z109: Pilar de la Horadada | AB109: Mamblas | AC109: Puebla de la Calzada | AD109: Guardiola de Berguedà | AE109: Urduña/Orduña | AF109: Fresneda de la Sierra Tirón | AG109: Jaraíz de la Vera | AI109: Teresa | AN109: Huete | AP109: Mont-ras | AQ109: Lugros | AR109: Gajanejos | AT109: Igriés | AV109: Páramo del Sil | AW109: Ivorra | AX109: Nestares | AZ109: Patones | BF109: Pino del Río | BI109: Etxalar | BK109: Doñinos de Ledesma | BM109: Marazoleja | BN109: Villanueva del Río y Minas | BO109: Montejo de Tiermes | BP109: Paüls | BR109: Ginebrosa (La) | BS109: Montearagón | BT109: Chulilla | BU109: Olmedo | BW109: Samir de los Caños | BX109: Fayón
B110: Valencia | C110: Alicante | D110: Almudaina | E110: 38.76115 | F110: -0.35386 | G110: 575.8386 | H110: 129 | I110: 70 | J110: 59 | K110: 7 | L110: 568.8386 | M110: 5 | N110: C | Z110: Pinós (el)/Pinoso | AB110: Mancera de Arriba | AC110: Puebla de la Reina | AD110: Gurb | AE110: Valle de Trápaga-Trapagaran | AF110: Fresneña | AG110: Jarandilla de la Vera | AI110: Tírig | AN110: Iniesta | AP110: Montagut i Oix | AQ110: Lújar | AR110: Galápagos | AT110: Ilche | AV110: Peranzanes | AW110: Josa i Tuixén | AX110: Nieva de Cameros | AZ110: Pedrezuela | BF110: Población de Arroyo | BI110: Etxarri-Aranatz | BK110: Doñinos de Salamanca | BM110: Marazuela | BN110: Villaverde del Río | BO110: Montenegro de Cameros | BP110: Perafort | BR110: Griegos | BS110: Montesclaros | BT110: Cofrentes | BU110: Olmos de Esgueva | BW110: San Agustín del Pozo | BX110: Fayos (Los)
B111: Valencia | C111: Alicante | D111: Alqueria d'Asnar (l') | E111: 38.77235 | F111: -0.4256638 | G111: 358.3362 | H111: 508 | I111: 244 | J111: 264 | K111: 7 | L111: 351.3362 | M111: 4 | N111: C | Z111: Planes | AB111: Manjabálago | AC111: Puebla de Obando | AD111: Hospitalet de Llobregat (L') | AE111: Zaldibar | AF111: Fresnillo de las Dueñas | AG111: Jarilla | AI111: Todolella | AN111: Laguna del Marquesado | AP111: Navata | AQ111: Malahá (La) | AR111: Galve de Sorbe | AT111: Isábena | AV111: Pobladura de Pelayo García | AW111: Juncosa | AX111: Ochánduri | AZ111: Pelayos de la Presa | BF111: Población de Campos | BI111: Etxauri | BK111: Ejeme | BM111: Martín Miguel | BN111: Viso del Alcor (El) | BO111: Morón de Almazán | BP111: Perelló (El) | BR111: Guadalaviar | BS111: Mora | BT111: Corbera | BU111: Olmos de Peñafiel | BW111: San Cebrián de Castro | BX111: Figueruelas
B112: Valencia | C112: Alicante | D112: Altea | E112: 38.60032 | F112: -0.0491708 | G112: 21.23566 | H112: 23780 | I112: 11884 | J112: 11896 | K112: 7 | L112: 14.23566 | M112: 2 | N112: B | Z112: Poblets (els) | AB112: Marlín | AC112: Puebla de Sancho Pérez | AD112: Hostalets de Pierola (Els) | AE112: Zalla | AF112: Fresno de Río Tirón | AG112: Jerte | AI112: Toga | AN112: Lagunaseca | AP112: Ogassa | AQ112: Maracena | AR112: Gascueña de Bornova | AT112: Jaca | AV112: Pola de Gordón (La) | AW112: Juneda | AX112: Ocón | AZ112: Perales de Tajuña | BF112: Población de Cerrato | BI112: Eulate | BK112: Encina (La) | BM112: Martín Muñoz de la Dehesa | BO112: Muriel de la Fuente | BP112: Piles (Les) | BR112: Gúdar | BS112: Nambroca | BT112: Cortes de Pallás | BU112: Palazuelo de Vedija | BW112: San Cristóbal de Entreviñas | BX112: Fombuena
B113: Valencia | C113: Alicante | D113: Aspe | E113: 38.34857 | F113: -0.7694142 | G113: 230.3877 | H113: 20180 | I113: 10190 | J113: 9990 | K113: 7 | L113: 223.3877 | M113: 4 | N113: C | Z113: Polop | AB113: Martiherrero | AC113: Puebla del Maestre | AD113: Igualada | AE113: Zamudio | AF113: Fresno de Rodilla | AG113: Ladrillar | AI113: Torás | AN113: Landete | AP113: Olot | AQ113: Marchal | AR113: Guadalajara | AT113: Jasa | AV113: Ponferrada | AW113: Les | AX113: Ojacastro | AZ113: Pezuela de las Torres | BF113: Polentinos | BI113: Ezcabarte | BK113: Encina de San Silvestre | BM113: Martín Muñoz de las Posadas | BO113: Muriel Viejo | BP113: Pinell de Brai (El) | BR113: Híjar | BS113: Nava de Ricomalillo (La) | BT113: Cotes | BU113: Parrilla (La) | BW113: San Esteban del Molar | BX113: Frago (El)
B114: Valencia | C114: Alicante | D114: Balones | E114: 38.73683 | F114: -0.3420584 | G114: 663.7676 | H114: 163 | I114: 81 | J114: 82 | K114: 7 | L114: 656.7676 | M114: 6 | N114: D | Z114: Quatretondeta | AB114: Martínez | AC114: Puebla del Prior | AD114: Jorba | AE114: Zaratamo | AF114: Frías | AG114: Logrosán | AI114: Toro (El) | AN114: Ledaña | AP114: Ordis | AQ114: Moclín | AR114: Henche | AT114: Labuerda | AV114: Posada de Valdeón | AW114: Linyola | AX114: Ollauri | AZ114: Pinilla del Valle | BF114: Pomar de Valdivia | BI114: Ezcároz/Ezkaroze | BK114: Encinas de Abajo | BM114: Marugán | BO114: Nafría de Ucero | BP114: Pira | BR114: Hinojosa de Jarque | BS114: Navahermosa | BT114: Cullera | BU114: Pedraja de Portillo (La) | BW114: San Justo | BX114: Frasno (El)
B115: Valencia | C115: Alicante | D115: Banyeres de Mariola | E115: 38.71685 | F115: -0.6558753 | G115: 825.7204 | H115: 7240 | I115: 3614 | J115: 3626 | K115: 7 | L115: 818.7204 | M115: 7 | N115: D | Z115: Rafal | AB115: Mediana de Voltoya | AC115: Pueblonuevo del Guadiana | AD115: Llacuna (La) | AE115: Zeanuri | AF115: Fuentebureba | AG115: Losar de la Vera | AI115: Torralba del Pinar | AN115: Leganiel | AP115: Osor | AQ115: Molvízar | AR115: Heras de Ayuso | AT115: Laluenga | AV115: Pozuelo del Páramo | AW115: Lladorre | AX115: Ortigosa de Cameros | AZ115: Pinto | BF115: Poza de la Vega | BI115: Ezkurra | BK115: Encinas de Arriba | BM115: Mata de Cuéllar | BO115: Narros | BP115: Pla de Santa Maria (El) | BR115: Hoz de la Vieja (La) | BS115: Navalcán | BT115: Daimús | BU115: Pedrajas de San Esteban | BW115: San Martín de Valderaduey | BX115: Fréscano
B116: Valencia | C116: Alicante | D116: Benasau | E116: 38.69114 | F116: -0.3437617 | G116: 695.5562 | H116: 190 | I116: 93 | J116: 97 | K116: 7 | L116: 688.5562 | M116: 6 | N116: D | Z116: Ràfol d'Almúnia (El) | AB116: Medinilla | AC116: Quintana de la Serena | AD116: Llagosta (La) | AE116: Zeberio | AF116: Fuentecén | AG116: Madrigal de la Vera | AI116: Torre d'En Besora (la) | AN116: Majadas (Las) | AP116: Palafrugell | AQ116: Monachil | AR116: Herrería | AT116: Lalueza | AV116: Prado de la Guzpeña | AW116: Lladurs | AX116: Pazuengos | AZ116: Piñuécar-Gandullas | BF116: Pozo de Urama | BI116: Ezprogui | BK116: Encinasola de los Comendadores | BM116: Matabuena | BO116: Navaleno | BP116: Pobla de Mafumet (La) | BR116: Huesa del Común | BS116: Navalmoralejo | BT116: Domeño | BU116: Pedrosa del Rey | BW116: San Miguel de la Ribera | BX116: Fuendejalón
B117: Valencia | C117: Alicante | D117: Beneixama | E117: 38.69995 | F117: -0.7661394 | G117: 595.4329 | H117: 1811 | I117: 910 | J117: 901 | K117: 7 | L117: 588.4329 | M117: 5 | N117: C | Z117: Redován | AB117: Mengamuñoz | AC117: Reina | AD117: Lliçà d'Amunt | AE117: Zierbena | AF117: Fuentelcésped | AG117: Madrigalejo | AI117: Torre d'en Doménec (la) | AN117: Mariana | AP117: Palamós | AQ117: Montefrío | AR117: Hiendelaencina | AT117: Lanaja | AV117: Priaranza del Bierzo | AW117: Llardecans | AX117: Pedroso | AZ117: Pozuelo de Alarcón | BF117: Prádanos de Ojeda | BI117: Falces | BK117: Endrinal | BM117: Matilla (La) | BO117: Nepas | BP117: Pobla de Massaluca (La) | BR117: Iglesuela del Cid (La) | BS117: Navalmorales (Los) | BT117: Dos Aguas | BU117: Peñafiel | BW117: San Miguel del Valle | BX117: Fuendetodos
B118: Valencia | C118: Alicante | D118: Benejúzar | E118: 38.07839 | F118: -0.8384452 | G118: 25.65035 | H118: 5467 | I118: 2741 | J118: 2726 | K118: 7 | L118: 18.65035 | M118: 2 | N118: B | Z118: Relleu | AB118: Mesegar de Corneja | AC118: Rena | AD118: Lliçà de Vall | AE118: Ziortza-Bolibar | AF118: Fuentelisendo | AG118: Madroñera | AI118: Torreblanca | AN118: Masegosa | AP118: Palau-sator | AQ118: Montejícar | AR118: Hijes | AT118: Laperdiguera | AV118: Prioro | AW118: Llavorsí | AX118: Pinillos | AZ118: Pozuelo del Rey | BF118: Puebla de Valdavia (La) | BI118: Fitero | BK118: Escurial de la Sierra | BM118: Melque de Cercos | BO118: Nolay | BP118: Pobla de Montornès (La) | BR118: Jabaloyas | BS118: Navalucillos (Los) | BT118: Eliana (l') | BU118: Peñaflor de Hornija | BW118: San Pedro de Ceque | BX118: Fuentes de Ebro
B119: Valencia | C119: Alicante | D119: Benferri | E119: 38.14063 | F119: -0.9632033 | G119: 54.47756 | H119: 1876 | I119: 970 | J119: 906 | K119: 7 | L119: 47.47756 | M119: 2 | N119: B | Z119: Rojales | AB119: Mijares | AC119: Retamal de Llerena | AD119: Llinars del Vallès | AF119: Fuentemolinos | AG119: Majadas | AI119: Torrechiva | AN119: Mesas (Las) | AP119: Palau-saverdera | AQ119: Montillana | AR119: Hita | AT119: Lascellas-Ponzano | AV119: Puebla de Lillo | AW119: Lleida | AX119: Pradejón | AZ119: Prádena del Rincón | BF119: Quintana del Puente | BI119: Fontellas | BK119: Espadaña | BM119: Membibre de la Hoz | BO119: Noviercas | BP119: Poboleda | BR119: Jarque de la Val | BS119: Navamorcuende | BT119: Emperador | BU119: Pesquera de Duero | BW119: San Pedro de la Nave-Almendra | BX119: Fuentes de Jiloca
B120: Valencia | C120: Alicante | D120: Beniarbeig | E120: 38.82312 | F120: -0.0020653 | G120: 46.27847 | H120: 1997 | I120: 995 | J120: 1002 | K120: 7 | L120: 39.27847 | M120: 2 | N120: B | Z120: Romana (la) | AB120: Mingorría | AC120: Ribera del Fresno | AD120: Lluçà | AF120: Fuentenebro | AG120: Malpartida de Cáceres | AI120: Traiguera | AN120: Minglanilla | AP120: Palau de Santa Eulàlia | AQ120: Moraleda de Zafayona | AR120: Hombrados | AT120: Lascuarre | AV120: Puente de Domingo Flórez | AW120: Lles de Cerdanya | AX120: Pradillo | AZ120: Puebla de la Sierra | BF120: Quintanilla de Onsoña | BI120: Funes | BK120: Espeja | BM120: Migueláñez | BO120: Ólvega | BP120: Pont d'Armentera (El) | BR120: Jatiel | BS120: Noblejas | BT120: Enguera | BU120: Piña de Esgueva | BW120: San Vicente de la Cabeza | BX120: Gallocanta
B121: Valencia | C121: Alicante | D121: Beniardá | E121: 38.68372 | F121: -0.2160712 | G121: 469.4673 | H121: 238 | I121: 129 | J121: 109 | K121: 7 | L121: 462.4673 | M121: 5 | N121: C | Z121: Sagra | AB121: Mirón (El) | AC121: Risco | AD121: Malgrat de Mar | AF121: Fuentespina | AG121: Malpartida de Plasencia | AI121: Useras/Useres (les) | AN121: Mira | AP121: Palol de Revardit | AQ121: Morelábor | AR121: Hontoba | AT121: Laspaúles | AV121: Quintana del Castillo | AW121: Llimiana | AX121: Préjano | AZ121: Puentes Viejas | BF121: Reinoso de Cerrato | BI121: Fustiñana | BK121: Espino de la Orbada | BM121: Montejo de Arévalo | BO121: Oncala | BP121: Pontils | BR121: Jorcas | BS121: Noez | BT121: Ènova (l') | BU121: Piñel de Abajo | BW121: San Vitero | BX121: Gallur
B122: Valencia | C122: Alicante | D122: Beniarrés | E122: 38.81952 | F122: -0.3782794 | G122: 391.1873 | H122: 1323 | I122: 657 | J122: 666 | K122: 7 | L122: 384.1873 | M122: 4 | N122: C | Z122: Salinas | AB122: Mironcillo | AC122: Roca de la Sierra (La) | AD122: Malla | AF122: Galbarros | AG122: Marchagaz | AI122: Vall d'Alba | AN122: Monreal del Llano | AP122: Pals | AQ122: Motril | AR122: Horche | AT122: Laspuña | AV122: Quintana del Marco | AW122: Llobera | AX122: Quel | AZ122: Quijorna | BF122: Renedo de la Vega | BI122: Galar | BK122: Florida de Liébana | BM122: Montejo de la Vega de la Serrezuela | BO122: Pinilla del Campo | BP122: Porrera | BR122: Josa | BS122: Nombela | BT122: Estivella | BU122: Piñel de Arriba | BW122: Santa Clara de Avedillo | BX122: Gelsa
B123: Valencia | C123: Alicante | D123: Benidoleig | E123: 38.79387 | F123: -0.0281963 | G123: 102.7022 | H123: 1275 | I123: 621 | J123: 654 | K123: 7 | L123: 95.7022 | M123: 2 | N123: B | Z123: San Fulgencio | AB123: Mirueña de los Infanzones | AC123: Salvaleón | AD123: Manlleu | AF123: Gallega (La) | AG123: Mata de Alcántara | AI123: Vall d'Uixó (la) | AN123: Montalbanejo | AP123: Pardines | AQ123: Murtas | AR123: Hortezuela de Océn | AT123: Loarre | AV123: Quintana y Congosto | AW123: Maials | AX123: Rabanera | AZ123: Rascafría | BF123: Requena de Campos | BI123: Gallipienzo | BK123: Forfoleda | BM123: Monterrubio | BO123: Portillo de Soria | BP123: Pradell de la Teixeta | BR123: Lagueruela | BS123: Novés | BT123: Estubeny | BU123: Pollos | BW123: Santa Colomba de las Monjas | BX123: Godojos
B124: Valencia | C124: Alicante | D124: Benidorm | E124: 38.53704 | F124: -0.1290771 | G124: 21.19977 | H124: 71034 | I124: 35796 | J124: 35238 | K124: 7 | L124: 14.19977 | M124: 2 | N124: B | Z124: San Isidro | AB124: Mombeltrán | AC124: Salvatierra de los Barros | AD124: Manresa | AF124: Grijalba | AG124: Membrío | AI124: Vall de Almonacid | AN124: Montalbo | AP124: Parlavà | AQ124: Nevada | AR124: Huerce (La) | AT124: Loporzano | AV124: Regueras de Arriba | AW124: Maldà | AX124: Rasillo de Cameros (El) | AZ124: Redueña | BF124: Respenda de la Peña | BI124: Gallués/Galoze | BK124: Frades de la Sierra | BM124: Moral de Hornuez | BO124: Póveda de Soria (La) | BP124: Prades | BR124: Lanzuela | BS124: Numancia de la Sagra | BT124: Faura | BU124: Portillo | BW124: Santa Cristina de la Polvorosa | BX124: Gotor
B125: Valencia | C125: Alicante | D125: Benifallim | E125: 38.66279 | F125: -0.4003207 | G125: 730.8427 | H125: 109 | I125: 52 | J125: 57 | K125: 7 | L125: 723.8427 | M125: 6 | N125: D | Z125: San Miguel de Salinas | AB125: Monsalupe | AC125: San Pedro de Mérida | AD125: Marganell | AF125: Grisaleña | AG125: Mesas de Ibor | AI125: Vallat | AN125: Monteagudo de las Salinas | AP125: Pau | AQ125: Nigüelas | AR125: Huérmeces del Cerro | AT125: Loscorrales | AV125: Reyero | AW125: Massalcoreig | AX125: Redal (El) | AZ125: Ribatejada | BF125: Revenga de Campos | BI125: Garaioa | BK125: Fregeneda (La) | BM125: Mozoncillo | BO125: Pozalmuro | BP125: Prat de Comte | BR125: Libros | BS125: Nuño Gómez | BT125: Favara | BU125: Pozal de Gallinas | BW125: Santa Croya de Tera | BX125: Grisel
B126: Valencia | C126: Alicante | D126: Benifato | E126: 38.67406 | F126: -0.2300378 | G126: 654.8287 | H126: 187 | I126: 97 | J126: 90 | K126: 7 | L126: 647.8287 | M126: 6 | N126: D | Z126: San Vicente del Raspeig/Sant Vicent del Raspeig | AB126: Moraleja de Matacabras | AC126: San Vicente de Alcántara | AD126: Martorell | AF126: Gumiel de Izán | AG126: Miajadas | AI126: Vallibona | AN126: Mota de Altarejos | AP126: Pedret i Marzà | AQ126: Nívar | AR126: Huertahernando | AT126: Lupiñén-Ortilla | AV126: Riaño | AW126: Massoteres | AX126: Ribafrecha | AZ126: Rivas-Vaciamadrid | BF126: Revilla de Collazos | BI126: Garde | BK126: Fresnedoso | BM126: Muñopedro | BO126: Quiñonería | BP126: Pratdip | BR126: Lidón | BS126: Ocaña | BT126: Foios | BU126: Pozaldez | BW126: Santa Eufemia del Barco | BX126: Grisén
B127: Valencia | C127: Alicante | D127: Benigembla | E127: 38.75606 | F127: -0.1102239 | G127: 310.3394 | H127: 589 | I127: 299 | J127: 290 | K127: 7 | L127: 303.3394 | M127: 4 | N127: C | Z127: Sanet y Negrals | AB127: Muñana | AC127: Sancti-Spíritus | AD127: Martorelles | AF127: Gumiel de Mercado | AG127: Millanes | AI127: Vila-real | AN127: Mota del Cuervo | AP127: Pera (La) | AQ127: Ogíjares | AR127: Hueva | AT127: Monesma y Cajigar | AV127: Riego de la Vega | AW127: Menàrguens | AX127: Rincón de Soto | AZ127: Robledillo de la Jara | BF127: Ribas de Campos | BI127: Garínoain | BK127: Fresno Alhándiga | BM127: Muñoveros | BO127: Quintana Redonda | BP127: Puigpelat | BR127: Linares de Mora | BS127: Olías del Rey | BT127: Font d'En Carròs (la) | BU127: Pozuelo de la Orden | BW127: Santa María de la Vega | BX127: Herrera de los Navarros
B128: Valencia | C128: Alicante | D128: Benijófar | E128: 38.07811 | F128: -0.73795 | G128: 35.03075 | H128: 3976 | I128: 1977 | J128: 1999 | K128: 7 | L128: 28.03075 | M128: 2 | N128: B | Z128: Sant Joan d'Alacant | AB128: Muñico | AC128: Santa Amalia | AD128: Masies de Roda (Les) | AF128: Hacinas | AG128: Mirabel | AI128: Vilafamés | AN128: Motilla del Palancar | AP128: Peralada | AQ128: Orce | AR128: Humanes | AT128: Monflorite-Lascasas | AV128: Riello | AW128: Miralcamp | AX128: Robres del Castillo | AZ128: Robledo de Chavela | BF128: Riberos de la Cueza | BI128: Garralda | BK128: Fuente de San Esteban (La) | BM128: Nava de la Asunción | BO128: Quintanas de Gormaz | BP128: Querol | BR128: Lledó | BS128: Ontígola | BT128: Font de la Figuera (la) | BU128: Puras | BW128: Santa María de Valverde | BX128: Ibdes
B129: Valencia | C129: Alicante | D129: Benilloba | E129: 38.70023 | F129: -0.3904273 | G129: 535.0692 | H129: 839 | I129: 415 | J129: 424 | K129: 7 | L129: 528.0692 | M129: 5 | N129: C | Z129: Santa Pola | AB129: Muñogalindo | AC129: Santa Marta | AD129: Masies de Voltregà (Les) | AF129: Haza | AG129: Mohedas de Granadilla | AI129: Vilanova d'Alcolea | AN129: Moya | AP129: Planes d'Hostoles (Les) | AQ129: Órgiva | AR129: Illana | AT129: Montanuy | AV129: Rioseco de Tapia | AW129: Mollerussa | AX129: Rodezno | AZ129: Robregordo | BF129: Saldaña | BI129: Genevilla | BK129: Fuenteguinaldo | BM129: Navafría | BO129: Rábanos (Los) | BP129: Rasquera | BR129: Loscos | BS129: Orgaz | BT129: Fontanars dels Alforins | BU129: Quintanilla de Arriba | BW129: Santibáñez de Tera | BX129: Illueca
B130: Valencia | C130: Alicante | D130: Benillup | E130: 38.75348 | F130: -0.3789057 | G130: 561.1097 | H130: 99 | I130: 43 | J130: 56 | K130: 7 | L130: 554.1097 | M130: 5 | N130: C | Z130: Sax | AB130: Muñogrande | AC130: Santos de Maimona (Los) | AD130: Masnou (El) | AF130: Hontanas | AG130: Monroy | AI130: Vilar de Canes | AN130: Narboneta | AP130: Planoles | AQ130: Otívar | AR130: Iniéstola | AT130: Monzón | AV130: Robla (La) | AW130: Molsosa (La) | AX130: Sajazarra | AZ130: Rozas de Madrid (Las) | BF130: Salinas de Pisuerga | BI130: Goizueta | BK130: Fuenteliante | BM130: Navalilla | BO130: Rebollar | BP130: Renau | BR130: Maicas | BS130: Oropesa | BT130: Fortaleny | BU130: Quintanilla de Onésimo | BW130: Santibáñez de Vidriales | BX130: Isuerre
B131: Valencia | C131: Alicante | D131: Benimantell | E131: 38.67443 | F131: -0.207443 | G131: 562.9584 | H131: 490 | I131: 237 | J131: 253 | K131: 7 | L131: 555.9584 | M131: 5 | N131: C | Z131: Sella | AB131: Muñomer del Peco | AC131: Segura de León | AD131: Masquefa | AF131: Hontangas | AG131: Montánchez | AI131: Vilavella (la) | AN131: Olivares de Júcar | AP131: Pont de Molins | AQ131: Otura | AR131: Inviernas (Las) | AT131: Naval | AV131: Roperuelos del Páramo | AW131: Montellà i Martinet | AX131: San Asensio | AZ131: Rozas de Puerto Real | BF131: San Cebrián de Campos | BI131: Goñi | BK131: Fuenterroble de Salvatierra | BM131: Navalmanzano | BO131: Recuerda | BP131: Reus | BR131: Manzanera | BS131: Otero | BT131: Fuenterrobles | BU131: Quintanilla de Trigueros | BW131: Santovenia | BX131: Jaraba
B132: Valencia | C132: Alicante | D132: Benimarfull | E132: 38.7751 | F132: -0.3934855 | G132: 427.3933 | H132: 440 | I132: 224 | J132: 216 | K132: 7 | L132: 420.3933 | M132: 5 | N132: C | Z132: Senija | AB132: Muñopepe | AC132: Siruela | AD132: Matadepera | AF132: Hontoria de la Cantera | AG132: Montehermoso | AI132: Villafranca del Cid/Vilafranca | AN132: Olmeda de la Cuesta | AP132: Pontós | AQ132: Padul | AR132: Irueste | AT132: Novales | AV132: Sabero | AW132: Montferrer i Castellbò | AX132: San Millán de la Cogolla | AZ132: San Agustín del Guadalix | BF132: San Cebrián de Mudá | BI132: Güesa/Gorza | BK132: Fuentes de Béjar | BM132: Navares de Ayuso | BO132: Rello | BP132: Riba-roja d'Ebre | BR132: Martín del Río | BS132: Palomeque | BT132: Gandia | BU132: Quintanilla del Molar | BW132: Sanzoles | BX132: Jarque
B133: Valencia | C133: Alicante | D133: Benimassot | E133: 38.74907 | F133: -0.2923697 | G133: 729.0436 | H133: 123 | I133: 67 | J133: 56 | K133: 7 | L133: 722.0436 | M133: 6 | N133: D | Z133: Tàrbena | AB133: Muñosancho | AC133: Solana de los Barros | AD133: Mataró | AF133: Hontoria de Valdearados | AG133: Moraleja | AI133: Villahermosa del Río | AN133: Olmeda del Rey | AP133: Porqueres | AQ133: Pampaneira | AR133: Jadraque | AT133: Nueno | AV133: Sahagún | AW133: Montgai | AX133: San Millán de Yécora | AZ133: San Fernando de Henares | BF133: San Cristóbal de Boedo | BI133: Guesálaz | BK133: Fuentes de Oñoro | BM133: Navares de Enmedio | BO133: Renieblas | BP133: Riba (La) | BR133: Mas de las Matas | BS133: Pantoja | BT133: Gátova | BU133: Rábano | BW133: Tábara | BX133: Jaulín
B134: Valencia | C134: Alicante | D134: Benimeli | E134: 38.82294 | F134: -0.0417273 | G134: 95.25533 | H134: 402 | I134: 202 | J134: 200 | K134: 7 | L134: 88.25533 | M134: 2 | N134: B | Z134: Teulada | AB134: Muñotello | AC134: Talarrubias | AD134: Mediona | AF134: Hontoria del Pinar | AG134: Morcillo | AI134: Villamalur | AN134: Olmedilla de Alarcón | AP134: Port de la Selva (El) | AQ134: Pedro Martínez | AR134: Jirueque | AT134: Olvena | AV134: San Adrián del Valle | AW134: Montoliu de Lleida | AX134: San Román de Cameros | AZ134: San Lorenzo de El Escorial | BF134: San Mamés de Campos | BI134: Guirguillano | BK134: Gajates | BM134: Navares de las Cuevas | BO134: Retortillo de Soria | BP134: Riera de Gaià (La) | BR134: Mata de los Olmos (La) | BS134: Paredes de Escalona | BT134: Gavarda | BU134: Ramiro | BW134: Tapioles | BX134: Joyosa (La)
B135: Valencia | C135: Alicante | D135: Benissa | E135: 38.71623 | F135: 0.0533722 | G135: 253.765 | H135: 13221 | I135: 6668 | J135: 6553 | K135: 7 | L135: 246.765 | M135: 4 | N135: C | Z135: Tibi | AB135: Narrillos del Álamo | AC135: Talavera la Real | AD135: Moià | AF135: Hormazas (Las) | AG135: Navaconcejo | AI135: Villanueva de Viver | AN135: Olmedilla de Eliz | AP135: Portbou | AQ135: Peligros | AR135: Ledanca | AT135: Ontiñena | AV135: San Andrés del Rabanedo | AW135: Montoliu de Segarra | AX135: San Torcuato | AZ135: San Martín de la Vega | BF135: San Román de la Cuba | BI135: Hiriberri/Villanueva de Aezkoa | BK135: Galindo y Perahuy | BM135: Navas de Oro | BO135: Reznos | BP135: Riudecanyes | BR135: Mazaleón | BS135: Parrillas | BT135: Genovés | BU135: Renedo de Esgueva | BW135: Toro | BX135: Lagata
B136: Valencia | C136: Alicante | D136: Benitachell/Poble Nou de Benitatxell (el) | E136: 38.73225 | F136: 0.1447876 | G136: 154.6002 | H136: 5399 | I136: 2723 | J136: 2676 | K136: 7 | L136: 147.6002 | M136: 2 | N136: B | Z136: Tollos | AB136: Narrillos del Rebollar | AC136: Táliga | AD136: Molins de Rei | AF136: Hornillos del Camino | AG136: Navalmoral de la Mata | AI136: Villores | AN136: Osa de la Vega | AP136: Preses (Les) | AQ136: Peza (La) | AR136: Loranca de Tajuña | AT136: Osso de Cinca | AV136: San Cristóbal de la Polantera | AW136: Montornès de Segarra | AX136: San Vicente de la Sonsierra | AZ136: San Martín de Valdeiglesias | BF136: Santa Cecilia del Alcor | BI136: Huarte/Uharte | BK136: Galinduste | BM136: Navas de Riofrío | BO136: Riba de Escalote (La) | BP136: Riudecols | BR136: Mezquita de Jarque | BS136: Pelahustán | BT136: Gestalgar | BU136: Roales de Campos | BW136: Torre del Valle (La) | BX136: Langa del Castillo
B137: Valencia | C137: Alicante | D137: Biar | E137: 38.6297 | F137: -0.7654974 | G137: 703.2366 | H137: 3723 | I137: 1837 | J137: 1886 | K137: 7 | L137: 696.2366 | M137: 6 | N137: D | Z137: Tormos | AB137: Narros de Saldueña | AC137: Tamurejo | AD137: Mollet del Vallès | AF137: Horra (La) | AG137: Navalvillar de Ibor | AI137: Vinaròs | AN137: Pajarón | AP137: Puigcerdà | AQ137: Píñar | AR137: Lupiana | AT137: Palo | AV137: San Emiliano | AW137: Nalec | AX137: Santa Coloma | AZ137: San Sebastián de los Reyes | BF137: Santa Cruz de Boedo | BI137: Ibargoiti | BK137: Galisancho | BM137: Navas de San Antonio | BO137: Rioseco de Soria | BP137: Riudoms | BR137: Mirambel | BS137: Pepino | BT137: Gilet | BU137: Robladillo | BW137: Torregamones | BX137: Layana
B138: Valencia | C138: Alicante | D138: Bigastro | E138: 38.06304 | F138: -0.8955043 | G138: 29.8936 | H138: 6744 | I138: 3442 | J138: 3302 | K138: 7 | L138: 22.8936 | M138: 2 | N138: B | Z138: Torremanzanas/Torre de les Maçanes (la) | AB138: Narros del Castillo | AC138: Torre de Miguel Sesmero | AD138: Monistrol de Calders | AF138: Hortigüela | AG138: Navas del Madroño | AI138: Vistabella del Maestrazgo | AN138: Pajaroncillo | AP138: Quart | AQ138: Pinar (El) | AR138: Luzaga | AT138: Panticosa | AV138: San Esteban de Nogales | AW138: Naut Aran | AX138: Santa Engracia del Jubera | AZ138: Santa María de la Alameda | BF138: Santervás de la Vega | BI138: Igantzi | BK138: Gallegos de Argañán | BM138: Nieva | BO138: Rollamienta | BP138: Rocafort de Queralt | BR138: Miravete de la Sierra | BS138: Polán | BT138: Godella | BU138: Roturas | BW138: Torres del Carrizal | BX138: Lécera
B139: Valencia | C139: Alicante | D139: Bolulla | E139: 38.67622 | F139: -0.1117929 | G139: 220.4359 | H139: 433 | I139: 221 | J139: 212 | K139: 7 | L139: 213.4359 | M139: 4 | N139: C | Z139: Torrevieja | AB139: Narros del Puerto | AC139: Torremayor | AD139: Monistrol de Montserrat | AF139: Hoyales de Roa | AG139: Navezuelas | AI139: Viver | AN139: Palomares del Campo | AP139: Queralbs | AQ139: Pinos Genil | AR139: Luzón | AT139: Peñalba | AV139: San Justo de la Vega | AW139: Navès | AX139: Santa Eulalia Bajera | AZ139: Santorcaz | BF139: Santibáñez de Ecla | BI139: Igúzquiza | BK139: Gallegos de Solmirón | BM139: Olombrada | BO139: Royo (El) | BP139: Roda de Barà | BR139: Molinos | BS139: Portillo de Toledo | BT139: Godelleta | BU139: Rubí de Bracamonte | BW139: Trabazos | BX139: Lechón
B140: Valencia | C140: Alicante | D140: Busot | E140: 38.48483 | F140: -0.4172711 | G140: 331.5273 | H140: 3148 | I140: 1580 | J140: 1568 | K140: 7 | L140: 324.5273 | M140: 4 | N140: C | Z140: Vall d'Alcalà (la) | AB140: Nava de Arévalo | AC140: Torremejía | AD140: Montcada i Reixac | AF140: Huérmeces | AG140: Nuñomoral | AI140: Zorita del Maestrazgo | AN140: Palomera | AP140: Rabós | AQ140: Pinos Puente | AR140: Majaelrayo | AT140: Peñas de Riglos (Las) | AV140: San Millán de los Caballeros | AW140: Odèn | AX140: Santo Domingo de la Calzada | AZ140: Santos de la Humosa (Los) | BF140: Santibáñez de la Peña | BI140: Imotz | BK140: Garcibuey | BM140: Orejana | BO140: Salduero | BP140: Rodonyà | BR140: Monforte de Moyuela | BS140: Puebla de Almoradiel (La) | BT140: Granja de la Costera (la) | BU140: Rueda | BW140: Trefacio | BX140: Leciñena
B141: Valencia | C141: Alicante | D141: Callosa d'En Sarrià | E141: 38.65133 | F141: -0.1225342 | G141: 254.6619 | H141: 8056 | I141: 4182 | J141: 3874 | K141: 7 | L141: 247.6619 | M141: 4 | N141: C | Z141: Vall d'Ebo (la) | AB141: Nava del Barco | AC141: Trasierra | AD141: Montclar | AF141: Huerta de Arriba | AG141: Oliva de Plasencia | AI141: Zucaina | AN141: Paracuellos | AP141: Regencós | AQ141: Polícar | AR141: Málaga del Fresno | AT141: Peralta de Alcofea | AV141: San Pedro Bercianos | AW141: Oliana | AX141: Santurde de Rioja | AZ141: Serna del Monte (La) | BF141: Santoyo | BI141: Irañeta | BK141: Garcihernández | BM141: Ortigosa de Pestaño | BO141: San Esteban de Gormaz | BP141: Roquetes | BR141: Monreal del Campo | BS141: Puebla de Montalbán (La) | BT141: Guadasequies | BU141: Saelices de Mayorga | BW141: Uña de Quintana | BX141: Letux
B142: Valencia | C142: Alicante | D142: Callosa de Segura | E142: 38.12413 | F142: -0.8784829 | G142: 22.56134 | H142: 17924 | I142: 9090 | J142: 8834 | K142: 7 | L142: 15.56134 | M142: 2 | N142: B | Z142: Vall de Gallinera | AB142: Navacepedilla de Corneja | AC142: Trujillanos | AD142: Montesquiu | AF142: Huerta de Rey | AG142: Palomero | AN142: Paredes | AP142: Ribes de Freser | AQ142: Polopos | AR142: Malaguilla | AT142: Peralta de Calasanz | AV142: Sancedo | AW142: Oliola | AX142: Santurdejo | AZ142: Serranillos del Valle | BF142: Serna (La) | BI142: Irurtzun | BK142: Garcirrey | BM142: Ortigosa del Monte | BO142: San Felices | BP142: Rourell (El) | BR142: Monroyo | BS142: Pueblanueva (La) | BT142: Guadassuar | BU142: Salvador de Zapardiel | BW142: Vadillo de la Guareña | BX142: Litago
B143: Valencia | C143: Alicante | D143: Calpe/Calp | E143: 38.64483 | F143: 0.0454063 | G143: 53.52462 | H143: 29666 | I143: 15177 | J143: 14489 | K143: 7 | L143: 46.52462 | M143: 2 | N143: B | Z143: Vall de Laguar (la) | AB143: Navadijos | AC143: Usagre | AD143: Montgat | AF143: Humada | AG143: Pasarón de la Vera | AN143: Parra de las Vegas (La) | AP143: Riells i Viabrea | AQ143: Pórtugos | AR143: Mandayona | AT143: Peraltilla | AV143: Santa Colomba de Curueño | AW143: Olius | AX143: Sojuela | AZ143: Sevilla la Nueva | BF143: Soto de Cerrato | BI143: Isaba/Izaba | BK143: Gejuelo del Barro | BM143: Otero de Herreros | BO143: San Leonardo de Yagüe | BP143: Salomó | BR143: Montalbán | BS143: Puente del Arzobispo (El) | BT143: Guardamar de la Safor | BU143: San Cebrián de Mazote | BW143: Valcabado | BX143: Lituénigo
B144: Valencia | C144: Alicante | D144: Campello (el) | E144: 38.42892 | F144: -0.3978871 | G144: 25.46509 | H144: 26511 | I144: 13199 | J144: 13312 | K144: 7 | L144: 18.46509 | M144: 2 | N144: B | Z144: Verger (el) | AB144: Navaescurial | AC144: Valdecaballeros | AD144: Montmajor | AF144: Hurones | AG144: Pedroso de Acim | AN144: Pedernoso (El) | AP144: Ripoll | AQ144: Puebla de Don Fadrique | AR144: Mantiel | AT144: Perarrúa | AV144: Santa Colomba de Somoza | AW144: Oluges (Les) | AX144: Sorzano | AZ144: Somosierra | BF144: Sotobañado y Priorato | BI144: Ituren | BK144: Golpejas | BM144: Pajarejos | BO144: San Pedro Manrique | BP144: Salou | BR144: Monteagudo del Castillo | BS144: Puerto de San Vicente | BT144: Higueruelas | BU144: San Llorente | BW144: Valdefinjas | BX144: Lobera de Onsella
B145: Valencia | C145: Alicante | D145: Campo de Mirra/Camp de Mirra (el) | E145: 38.68671 | F145: -0.7770379 | G145: 588.4718 | H145: 424 | I145: 209 | J145: 215 | K145: 7 | L145: 581.4718 | M145: 5 | N145: C | Z145: Villajoyosa/Vila Joiosa (la) | AB145: Navahondilla | AC145: Valdelacalzada | AD145: Montmaneu | AF145: Ibeas de Juarros | AG145: Peraleda de la Mata | AN145: Pedroñeras (Las) | AP145: Riudarenes | AQ145: Pulianas | AR145: Maranchón | AT145: Pertusa | AV145: Santa Cristina de Valmadrigal | AW145: Omellons (Els) | AX145: Sotés | AZ145: Soto del Real | BF145: Tabanera de Cerrato | BI145: Iturmendi | BK145: Gomecello | BM145: Palazuelos de Eresma | BO145: Santa Cruz de Yanguas | BP145: Sant Carles de la Ràpita | BR145: Monterde de Albarracín | BS145: Pulgar | BT145: Jalance | BU145: San Martín de Valvení | BW145: Valdescorriel | BX145: Longares
B146: Valencia | C146: Alicante | D146: Cañada | E146: 38.67524 | F146: -0.8098581 | G146: 561.0671 | H146: 1231 | I146: 599 | J146: 632 | K146: 7 | L146: 554.0671 | M146: 5 | N146: C | Z146: Villena | AB146: Navalacruz | AC146: Valdetorres | AD146: Montmeló | AF146: Ibrillos | AG146: Peraleda de San Román | AN146: Peral (El) | AP146: Riudaura | AQ146: Purullena | AR146: Marchamalo | AT146: Piracés | AV146: Santa Elena de Jamuz | AW146: Omells de na Gaia (Els) | AX146: Soto en Cameros | AZ146: Talamanca de Jarama | BF146: Tabanera de Valdavia | BI146: Iza | BK146: Guadramiro | BM146: Pedraza | BO146: Santa María de Huerta | BP146: Sant Jaume d'Enveja | BR146: Mora de Rubielos | BS146: Quero | BT146: Jarafuel | BU146: San Miguel del Arroyo | BW146: Vallesa de la Guareña | BX146: Longás
B147: Valencia | C147: Alicante | D147: Castalla | E147: 38.59519 | F147: -0.6722506 | G147: 685.3792 | H147: 10327 | I147: 5208 | J147: 5119 | K147: 7 | L147: 678.3792 | M147: 6 | N147: D | Z147: Xaló | AB147: Navalmoral | AC147: Valencia de las Torres | AD147: Montornès del Vallès | AF147: Iglesiarrubia | AG147: Perales del Puerto | AN147: Peraleja (La) | AP147: Riudellots de la Selva | AQ147: Quéntar | AR147: Masegoso de Tajuña | AT147: Plan | AV147: Santa María de la Isla | AW147: Organyà | AX147: Terroba | AZ147: Tielmes | BF147: Támara de Campos | BI147: Izagaondoa | BK147: Guijo de Ávila | BM147: Pelayos del Arroyo | BO147: Santa María de las Hoyas | BP147: Sant Jaume dels Domenys | BR147: Moscardón | BS147: Quintanar de la Orden | BT147: Llanera de Ranes | BU147: San Miguel del Pino | BW147: Vega de Tera | BX147: Lucena de Jalón
B148: Valencia | C148: Alicante | D148: Castell de Castells | E148: 38.75242 | F148: -0.1748384 | G148: 425.5766 | H148: 508 | I148: 248 | J148: 260 | K148: 7 | L148: 418.5766 | M148: 5 | N148: C | AB148: Navalonguilla | AC148: Valencia del Mombuey | AD148: Montseny | AF148: Iglesias | AG148: Pescueza | AN148: Pesquera (La) | AP148: Riumors | AQ148: Rubite | AR148: Matarrubia | AT148: Poleñino | AV148: Santa María de Ordás | AW148: Os de Balaguer | AX148: Tirgo | AZ148: Titulcia | BF148: Tariego de Cerrato | BI148: Izalzu/Itzaltzu | BK148: Guijuelo | BM148: Perosillo | BO148: Serón de Nágima | BP148: Santa Bàrbara | BR148: Mosqueruela | BS148: Quismondo | BT148: Llaurí | BU148: San Pablo de la Moraleja | BW148: Vega de Villalobos | BX148: Luceni
B149: Valencia | C149: Alicante | D149: Castell de Guadalest (el) | E149: 38.67644 | F149: -0.198618 | G149: 555.7478 | H149: 231 | I149: 114 | J149: 117 | K149: 7 | L149: 548.7478 | M149: 5 | N149: C | AB149: Navalosa | AC149: Valencia del Ventoso | AD149: Muntanyola | AF149: Isar | AG149: Pesga (La) | AN149: Picazo (El) | AP149: Roses | AQ149: Salar | AR149: Matillas | AT149: Pozán de Vero | AV149: Santa María del Monte de Cea | AW149: Ossó de Sió | AX149: Tobía | AZ149: Torrejón de Ardoz | BF149: Torquemada | BI149: Jaurrieta | BK149: Herguijuela de Ciudad Rodrigo | BM149: Pinarejos | BO149: Soliedra | BP149: Santa Coloma de Queralt | BR149: Muniesa | BS149: Real de San Vicente (El) | BT149: Llíria | BU149: San Pedro de Latarce | BW149: Vegalatrave | BX149: Luesia
B150: Valencia | C150: Alicante | D150: Catral | E150: 38.16095 | F150: -0.8014995 | G150: 11 | H150: 8745 | I150: 4470 | J150: 4275 | K150: 7 | L150: 4 | M150: 2 | N150: B | AB150: Navalperal de Pinares | AC150: Valle de la Serena | AD150: Mura | AF150: Itero del Castillo | AG150: Piedras Albas | AN150: Pinarejo | AP150: Rupià | AQ150: Salobreña | AR150: Mazarete | AT150: Puebla de Castro (La) | AV150: Santa María del Páramo | AW150: Palau d'Anglesola (El) | AX150: Tormantos | AZ150: Torrejón de la Calzada | BF150: Torremormojón | BI150: Javier | BK150: Herguijuela de la Sierra | BM150: Pinarnegrillo | BO150: Soria | BP150: Santa Oliva | BR150: Noguera de Albarracín | BS150: Recas | BT150: Llocnou d'En Fenollet | BU150: San Pelayo | BW150: Venialbo | BX150: Luesma
B151: Valencia | C151: Alicante | D151: Cocentaina | E151: 38.74228 | F151: -0.4384323 | G151: 446.2317 | H151: 11467 | I151: 5739 | J151: 5728 | K151: 7 | L151: 439.2317 | M151: 5 | N151: C | AB151: Navalperal de Tormes | AC151: Valle de Matamoros | AD151: Navarcles | AF151: Jaramillo de la Fuente | AG151: Pinofranqueado | AN151: Pineda de Gigüela | AP151: Sales de Llierca | AQ151: Santa Cruz del Comercio | AR151: Mazuecos | AT151: Puente de Montañana | AV151: Santa Marina del Rey | AW151: Penelles | AX151: Torre en Cameros | AZ151: Torrejón de Velasco | BF151: Triollo | BI151: Juslapeña | BK151: Herguijuela del Campo | BM151: Pradales | BO151: Sotillo del Rincón | BP151: Sarral | BR151: Nogueras | BS151: Retamoso de la Jara | BT151: Llocnou de la Corona | BU151: San Román de Hornija | BW151: Vezdemarbán | BX151: Lumpiaque
B152: Valencia | C152: Alicante | D152: Confrides | E152: 38.68329 | F152: -0.2685593 | G152: 789.8048 | H152: 299 | I152: 165 | J152: 134 | K152: 7 | L152: 782.8048 | M152: 6 | N152: D | AB152: Navaluenga | AC152: Valle de Santa Ana | AD152: Navàs | AF152: Jaramillo Quemado | AG152: Piornal | AN152: Piqueras del Castillo | AP152: Salt | AQ152: Santa Fe | AR152: Medranda | AT152: Puente la Reina de Jaca | AV152: Santas Martas | AW152: Peramola | AX152: Torrecilla en Cameros | AZ152: Torrelaguna | BF152: Valbuena de Pisuerga | BI152: Lakuntza | BK152: Hinojosa de Duero | BM152: Prádena | BO152: Suellacabras | BP152: Savallà del Comtat | BR152: Nogueruelas | BS152: Rielves | BT152: Llocnou de Sant Jeroni | BU152: San Salvador | BW152: Vidayanes | BX152: Luna
B153: Valencia | C153: Alicante | D153: Cox | E153: 38.1416 | F153: -0.8870501 | G153: 20.62896 | H153: 6826 | I153: 3480 | J153: 3346 | K153: 7 | L153: 13.62896 | M153: 2 | N153: B | AB153: Navaquesera | AC153: Valverde de Burguillos | AD153: Nou de Berguedà (La) | AF153: Junta de Traslaloma | AG153: Plasencia | AN153: Portalrubio de Guadamejud | AP153: Sant Andreu Salou | AQ153: Soportújar | AR153: Megina | AT153: Puértolas | AV153: Santiago Millas | AW153: Pinell de Solsonès | AX153: Torrecilla sobre Alesanco | AZ153: Torrelodones | BF153: Valde-Ucieza | BI153: Lana | BK153: Horcajo de Montemayor | BM153: Puebla de Pedraza | BO153: Tajahuerce | BP153: Secuita (La) | BR153: Obón | BS153: Robledo del Mazo | BT153: Llombai | BU153: San Vicente del Palacio | BW153: Videmala | BX153: Maella
B154: Valencia | C154: Alicante | D154: Crevillent | E154: 38.24703 | F154: -0.803492 | G154: 120.1649 | H154: 28609 | I154: 14647 | J154: 13962 | K154: 7 | L154: 113.1649 | M154: 2 | N154: B | AB154: Navarredonda de Gredos | AC154: Valverde de Leganés | AD154: Òdena | AF154: Junta de Villalba de Losa | AG154: Plasenzuela | AN154: Portilla | AP154: Sant Aniol de Finestres | AQ154: Sorvilán | AR154: Membrillera | AT154: Pueyo de Araguás (El) | AV154: Santovenia de la Valdoncina | AW154: Pinós | AX154: Torremontalbo | AZ154: Torremocha de Jarama | BF154: Valdeolmillos | BI154: Lantz | BK154: Horcajo Medianero | BM154: Rapariegos | BO154: Tajueco | BP154: Selva del Camp (La) | BR154: Odón | BS154: Romeral (El) | BT154: Llosa de Ranes (la) | BU154: Santa Eufemia del Arroyo | BW154: Villabrázaro | BX154: Magallón
B155: Valencia | C155: Alicante | D155: Daya Nueva | E155: 38.11316 | F155: -0.7592378 | G155: 8.224919 | H155: 1942 | I155: 979 | J155: 963 | K155: 7 | L155: 1.224919 | M155: 2 | N155: B | AB155: Navarredondilla | AC155: Valverde de Llerena | AD155: Olèrdola | AF155: Jurisdicción de Lara | AG155: Portaje | AN155: Poyatos | AP155: Sant Climent Sescebes | AQ155: Taha (La) | AR155: Miedes de Atienza | AT155: Pueyo de Santa Cruz | AV155: Sariegos | AW155: Plans de Sió (Els) | AX155: Treviana | AZ155: Torres de la Alameda | BF155: Valderrábano | BI155: Lapoblación | BK155: Hoya (La) | BM155: Rebollo | BO155: Talveila | BP155: Senan | BR155: Ojos Negros | BS155: San Bartolomé de las Abiertas | BT155: Llutxent | BU155: Santervás de Campos | BW155: Villabuena del Puente | BX155: Mainar
B156: Valencia | C156: Alicante | D156: Daya Vieja | E156: 38.10484 | F156: -0.7387287 | G156: 6.833565 | H156: 674 | I156: 343 | J156: 331 | K156: 7 | L156: -0.166435 | M156: 2 | N156: B | AB156: Navarrevisca | AC156: Valverde de Mérida | AD156: Olesa de Bonesvalls | AF156: Jurisdicción de San Zadornil | AG156: Portezuelo | AN156: Pozoamargo | AP156: Sant Feliu de Buixalleu | AQ156: Torre-Cardela | AR156: Mierla (La) | AT156: Quicena | AV156: Sena de Luna | AW156: Poal (El) | AX156: Tricio | AZ156: Tres Cantos | BF156: Valle de Cerrato | BI156: Larraga | BK156: Huerta | BM156: Remondo | BO156: Tardelcuende | BP156: Sénia (La) | BR156: Olba | BS156: San Martín de Montalbán | BT156: Loriguilla | BU156: Santibáñez de Valcorba | BW156: Villadepera | BX156: Malanquilla
B157: Valencia | C157: Alicante | D157: Dénia | E157: 38.84043 | F157: 0.1085751 | G157: 11.78009 | H157: 44464 | I157: 22105 | J157: 22359 | K157: 7 | L157: 4.78009 | M157: 2 | N157: B | AB157: Navas del Marqués (Las) | AC157: Villafranca de los Barros | AD157: Olesa de Montserrat | AF157: Lerma | AG157: Pozuelo de Zarzón | AN157: Pozorrubielos de la Mancha | AP157: Sant Feliu de Guíxols | AQ157: Torvizcón | AR157: Millana | AT157: Robres | AV157: Sobrado | AW157: Pobla de Cérvoles (La) | AX157: Tudelilla | AZ157: Valdaracete | BF157: Valle del Retortillo | BI157: Larraona | BK157: Iruelos | BM157: Riaguas de San Bartolomé | BO157: Taroda | BP157: Solivella | BR157: Oliete | BS157: San Martín de Pusa | BT157: Losa del Obispo | BU157: Santovenia de Pisuerga | BW157: Villaescusa | BX157: Maleján
B158: Valencia | C158: Alicante | D158: Dolores | E158: 38.14058 | F158: -0.7692993 | G158: 9.227216 | H158: 7427 | I158: 3743 | J158: 3684 | K158: 7 | L158: 2.227216 | M158: 2 | N158: B | AB158: Navatalgordo | AC158: Villagarcía de la Torre | AD158: Olivella | AF158: Llano de Bureba | AG158: Puerto de Santa Cruz | AN158: Pozorrubio | AP158: Sant Feliu de Pallerols | AQ158: Trevélez | AR158: Milmarcos | AT158: Sabiñánigo | AV158: Soto de la Vega | AW158: Pobla de Segur (La) | AX158: Uruñuela | AZ158: Valdeavero | BF158: Velilla del Río Carrión | BI158: Larraun | BK158: Ituero de Azaba | BM158: Riaza | BO158: Tejado | BP158: Tarragona | BR158: Olmos (Los) | BS158: San Pablo de los Montes | BT158: Macastre | BU158: Sardón de Duero | BW158: Villafáfila | BX158: Mallén
B159: Valencia | C159: Alicante | D159: Elche/Elx | E159: 38.2655 | F159: -0.6984587 | G159: 89.97423 | H159: 230112 | I159: 115289 | J159: 114823 | K159: 7 | L159: 82.97423 | M159: 2 | N159: B | AB159: Navatejares | AC159: Villagonzalo | AD159: Olost | AF159: Madrigal del Monte | AG159: Rebollar | AN159: Pozuelo (El) | AP159: Sant Ferriol | AQ159: Turón | AR159: Miñosa (La) | AT159: Sahún | AV159: Soto y Amío | AW159: Pont de Bar (El) | AX159: Valdemadera | AZ159: Valdelaguna | BF159: Venta de Baños | BI159: Lazagurría | BK159: Juzbado | BM159: Ribota | BO159: Torlengua | BP159: Tivenys | BR159: Orihuela del Tremedal | BS159: San Román de los Montes | BT159: Manises | BU159: Seca (La) | BW159: Villaferrueña | BX159: Malón
B160: Valencia | C160: Alicante | D160: Elda | E160: 38.47803 | F160: -0.7904639 | G160: 413.189 | H160: 55168 | I160: 27101 | J160: 28067 | K160: 7 | L160: 406.189 | M160: 5 | N160: C | AB160: Neila de San Miguel | AC160: Villalba de los Barros | AD160: Olvan | AF160: Madrigalejo del Monte | AG160: Riolobos | AN160: Priego | AP160: Sant Gregori | AQ160: Ugíjar | AR160: Mirabueno | AT160: Salas Altas | AV160: Toral de los Guzmanes | AW160: Pont de Suert (El) | AX160: Valgañón | AZ160: Valdemanco | BF160: Vertavillo | BI160: Leache | BK160: Lagunilla | BM160: Riofrío de Riaza | BO160: Torreblacos | BP160: Tivissa | BR160: Orrios | BS160: Santa Ana de Pusa | BT160: Manuel | BU160: Serrada | BW160: Villageriz | BX160: Maluenda
B161: Valencia | C161: Alicante | D161: Facheca | E161: 38.73502 | F161: -0.2678879 | G161: 780.0387 | H161: 106 | I161: 54 | J161: 52 | K161: 7 | L161: 773.0387 | M161: 6 | N161: D | AB161: Niharra | AC161: Villanueva de la Serena | AD161: Orís | AF161: Mahamud | AG161: Robledillo de Gata | AN161: Provencio (El) | AP161: Sant Hilari Sacalm | AQ161: Valle (El) | AR161: Miralrío | AT161: Salas Bajas | AV161: Toreno | AW161: Ponts | AX161: Ventosa | AZ161: Valdemaqueda | BF161: Vid de Ojeda (La) | BI161: Legarda | BK161: Larrodrigo | BM161: Roda de Eresma | BO161: Torrubia de Soria | BP161: Torre de Fontaubella (La) | BR161: Palomar de Arroyos | BS161: Santa Cruz de la Zarza | BT161: Marines | BU161: Siete Iglesias de Trabancos | BW161: Villalazán | BX161: Manchones
B162: Valencia | C162: Alicante | D162: Famorca | E162: 38.73206 | F162: -0.2463927 | G162: 691.6473 | H162: 44 | I162: 20 | J162: 24 | K162: 7 | L162: 684.6473 | M162: 6 | N162: D | AB162: Ojos-Albos | AC162: Villanueva del Fresno | AD162: Oristà | AF162: Mambrilla de Castrejón | AG162: Robledillo de la Vera | AN162: Puebla de Almenara | AP162: Sant Jaume de Llierca | AQ162: Valle del Zalabí | AR162: Mochales | AT162: Salillas | AV162: Torre del Bierzo | AW162: Portella (La) | AX162: Ventrosa | AZ162: Valdemorillo | BF162: Villabasta de Valdavia | BI162: Legaria | BK162: Ledesma | BM162: Sacramenia | BO162: Trévago | BP162: Torre de l'Espanyol (La) | BR162: Pancrudo | BS162: Santa Cruz del Retamar | BT162: Masalavés | BU162: Simancas | BW162: Villalba de la Lampreana | BX162: Mara
B163: Valencia | C163: Alicante | D163: Finestrat | E163: 38.56909 | F163: -0.2107335 | G163: 261.4681 | H163: 6137 | I163: 3125 | J163: 3012 | K163: 7 | L163: 254.4681 | M163: 4 | N163: C | AB163: Orbita | AC163: Villar de Rena | AD163: Orpí | AF163: Mambrillas de Lara | AG163: Robledillo de Trujillo | AN163: Puebla de Don Francisco | AP163: Sant Joan de les Abadesses | AQ163: Válor | AR163: Mohernando | AT163: Sallent de Gállego | AV163: Trabadelo | AW163: Prats i Sansor | AX163: Viguera | AZ163: Valdemoro | BF163: Villacidaler | BI163: Leitza | BK163: Ledrada | BM163: Samboal | BO163: Ucero | BP163: Torredembarra | BR163: Parras de Castellote (Las) | BS163: Santa Olalla | BT163: Massalfassar | BU163: Tamariz de Campos | BW163: Villalcampo | BX163: María de Huerva
B164: Valencia | C164: Alicante | D164: Fondó de les Neus (el)/Hondón de las Nieves | E164: 38.30504 | F164: -0.9341582 | G164: 493.7399 | H164: 2862 | I164: 1475 | J164: 1387 | K164: 7 | L164: 486.7399 | M164: 5 | N164: C | AB164: Oso (El) | AC164: Villar del Rey | AD164: Òrrius | AF164: Mamolar | AG164: Robledollano | AN164: Puebla del Salvador | AP164: Sant Joan de Mollet | AQ164: Vegas del Genil | AR164: Molina de Aragón | AT164: San Esteban de Litera | AV164: Truchas | AW164: Preixana | AX164: Villalba de Rioja | AZ164: Valdeolmos-Alalpardo | BF164: Villaconancio | BI164: Lekunberri | BK164: Linares de Riofrío | BM164: San Cristóbal de Cuéllar | BO164: Vadillo | BP164: Torroja del Priorat | BR164: Peñarroya de Tastavins | BS164: Santo Domingo-Caudilla | BT164: Massamagrell | BU164: Tiedra | BW164: Villalobos | BX164: Marracos
B165: Valencia | C165: Alicante | D165: Formentera del Segura | E165: 38.08562 | F165: -0.7453506 | G165: 10.79573 | H165: 4285 | I165: 2248 | J165: 2037 | K165: 7 | L165: 3.79573 | M165: 2 | N165: B | AB165: Padiernos | AC165: Villarta de los Montes | AD165: Pacs del Penedès | AF165: Manciles | AG165: Romangordo | AN165: Quintanar del Rey | AP165: Sant Joan les Fonts | AQ165: Vélez de Benaudalla | AR165: Monasterio | AT165: San Juan de Plan | AV165: Turcia | AW165: Preixens | AX165: Villalobar de Rioja | AZ165: Valdepiélagos | BF165: Villada | BI165: Leoz | BK165: Lumbrales | BM165: San Cristóbal de la Vega | BO165: Valdeavellano de Tera | BP165: Tortosa | BR165: Peracense | BS165: Sartajada | BT165: Massanassa | BU165: Tordehumos | BW165: Villalonso | BX165: Mediana de Aragón
B166: Valencia | C166: Alicante | D166: Gaianes | E166: 38.81155 | F166: -0.4103162 | G166: 414.3354 | H166: 378 | I166: 193 | J166: 185 | K166: 7 | L166: 407.3354 | M166: 5 | N166: C | AB166: Pajares de Adaja | AC166: Zafra | AD166: Palafolls | AF166: Mazuela | AG166: Rosalejo | AN166: Rada de Haro | AP166: Sant Jordi Desvalls | AQ166: Ventas de Huelma | AR166: Mondéjar | AT166: San Miguel del Cinca | AV166: Urdiales del Páramo | AW166: Prullans | AX166: Villamediana de Iregua | AZ166: Valdetorres de Jarama | BF166: Villaeles de Valdavia | BI166: Lerga | BK166: Machacón | BM166: San Cristóbal de Segovia | BO166: Valdegeña | BP166: Ulldecona | BR166: Peralejos | BS166: Segurilla | BT166: Meliana | BU166: Tordesillas | BW166: Villalpando | BX166: Mequinenza
B167: Valencia | C167: Alicante | D167: Gata de Gorgos | E167: 38.77425 | F167: 0.0812124 | G167: 85.46293 | H167: 6291 | I167: 3221 | J167: 3070 | K167: 7 | L167: 78.46293 | M167: 2 | N167: B | AB167: Palacios de Goda | AC167: Zahínos | AD167: Palau-solità i Plegamans | AF167: Mecerreyes | AG167: Ruanes | AN167: Reíllo | AP167: Sant Julià de Ramis | AQ167: Villamena | AR167: Montarrón | AT167: Sangarrén | AV167: Val de San Lorenzo | AW167: Puiggròs | AX167: Villanueva de Cameros | AZ167: Valdilecha | BF167: Villahán | BI167: Lerín | BK167: Macotera | BM167: San Ildefonso | BO167: Valdelagua del Cerro | BP167: Ulldemolins | BR167: Perales del Alfambra | BS167: Seseña | BT167: Millares | BU167: Torre de Esgueva | BW167: Villalube | BX167: Mesones de Isuela
B168: Valencia | C168: Alicante | D168: Gorga | E168: 38.72056 | F168: -0.3560984 | G168: 555.8732 | H168: 232 | I168: 123 | J168: 109 | K168: 7 | L168: 548.8732 | M168: 5 | N168: C | AB168: Papatrigo | AC168: Zalamea de la Serena | AD168: Pallejà | AF168: Medina de Pomar | AG168: Salorino | AN168: Rozalén del Monte | AP168: Sant Julià del Llor i Bonmatí | AQ168: Villanueva de las Torres | AR168: Moratilla de los Meleros | AT168: Santa Cilia | AV168: Valdefresno | AW168: Puigverd d'Agramunt | AX168: Villar de Arnedo (El) | AZ168: Valverde de Alcalá | BF168: Villaherreros | BI168: Lesaka | BK168: Madroñal | BM168: San Martín y Mudrián | BO168: Valdemaluque | BP168: Vallclara | BR168: Pitarque | BS168: Sevilleja de la Jara | BT168: Miramar | BU168: Torre de Peñafiel | BW168: Villamayor de Campos | BX168: Mezalocha
B169: Valencia | C169: Alicante | D169: Granja de Rocamora | E169: 38.15253 | F169: -0.8909073 | G169: 18.04087 | H169: 2362 | I169: 1235 | J169: 1127 | K169: 7 | L169: 11.04087 | M169: 2 | N169: B | AB169: Parral (El) | AC169: Zarza-Capilla | AD169: Palma de Cervelló (La) | AF169: Melgar de Fernamental | AG169: Salvatierra de Santiago | AN169: Saceda-Trasierra | AP169: Sant Llorenç de la Muga | AQ169: Villanueva Mesía | AR169: Morenilla | AT169: Santa Cruz de la Serós | AV169: Valdefuentes del Páramo | AW169: Puigverd de Lleida | AX169: Villar de Torre | AZ169: Velilla de San Antonio | BF169: Villalaco | BI169: Lezáun | BK169: Maíllo (El) | BM169: San Miguel de Bernuy | BO169: Valdenebro | BP169: Vallfogona de Riucorb | BR169: Plou | BS169: Sonseca | BT169: Mislata | BU169: Torrecilla de la Abadesa | BW169: Villamor de los Escuderos | BX169: Mianos
B170: Valencia | C170: Alicante | D170: Guardamar del Segura | E170: 38.08615 | F170: -0.651254 | G170: 26.48124 | H170: 16329 | I170: 8241 | J170: 8088 | K170: 7 | L170: 19.48124 | M170: 2 | N170: B | AB170: Pascualcobo | AC170: Zarza (La) | AD170: Papiol (El) | AF170: Merindad de Cuesta-Urria | AG170: San Martín de Trevejo | AN170: Saelices | AP170: Sant Martí de Llémena | AQ170: Víznar | AR170: Muduex | AT170: Santa María de Dulcis | AV170: Valdelugueros | AW170: Rialp | AX170: Villarejo | AZ170: Vellón (El) | BF170: Villalba de Guardo | BI170: Liédena | BK170: Malpartida | BM170: San Pedro de Gaíllos | BO170: Valdeprado | BP170: Vallmoll | BR170: Pobo (El) | BS170: Sotillo de las Palomas | BT170: Mogente/Moixent | BU170: Torrecilla de la Orden | BW170: Villanázar | BX170: Miedes de Aragón
B171: Valencia | C171: Alicante | D171: Hondón de los Frailes | E171: 38.27319 | F171: -0.9276314 | G171: 418.041 | H171: 1214 | I171: 636 | J171: 578 | K171: 7 | L171: 411.041 | M171: 5 | N171: C | AB171: Pedro-Rodríguez | AD171: Parets del Vallès | AF171: Merindad de Montija | AG171: Santa Ana | AN171: Salinas del Manzano | AP171: Sant Martí Vell | AQ171: Zafarraya | AR171: Navas de Jadraque (Las) | AT171: Santaliestra y San Quílez | AV171: Valdemora | AW171: Ribera d'Ondara | AX171: Villarroya | AZ171: Venturada | BF171: Villalcázar de Sirga | BI171: Lizoáin | BK171: Mancera de Abajo | BM171: Sanchonuño | BO171: Valderrodilla | BP171: Valls | BR171: Portellada (La) | BS171: Talavera de la Reina | BT171: Moncada | BU171: Torrecilla de la Torre | BW171: Villanueva de Azoague | BX171: Monegrillo
B172: Valencia | C172: Alicante | D172: Ibi | E172: 38.62551 | F172: -0.5713521 | G172: 753.7646 | H172: 24113 | I172: 12134 | J172: 11979 | K172: 7 | L172: 746.7646 | M172: 6 | N172: D | AB172: Pedro Bernardo | AD172: Perafita | AF172: Merindad de Río Ubierna | AG172: Santa Cruz de la Sierra | AN172: Salmeroncillos | AP172: Sant Miquel de Campmajor | AQ172: Zagra | AR172: Negredo | AT172: Sariñena | AV172: Valdepiélago | AW172: Ribera d'Urgellet | AX172: Villarta-Quintana | AZ172: Villa del Prado | BF172: Villalcón | BI172: Lodosa | BK172: Manzano (El) | BM172: Sangarcía | BO172: Valtajeros | BP172: Vandellòs i l'Hospitalet de l'Infant | BR172: Pozondón | BS172: Tembleque | BT172: Montaverner | BU172: Torrelobatón | BW172: Villanueva de Campeán | BX172: Moneva
B173: Valencia | C173: Alicante | D173: Jacarilla | E173: 38.06133 | F173: -0.8686115 | G173: 27.33402 | H173: 2096 | I173: 1040 | J173: 1056 | K173: 7 | L173: 20.33402 | M173: 2 | N173: B | AB173: Peguerinos | AD173: Piera | AF173: Merindad de Sotoscueva | AG173: Santa Cruz de Paniagua | AN173: Salvacañete | AP173: Sant Miquel de Fluvià | AQ173: Zubia (La) | AR173: Ocentejo | AT173: Secastilla | AV173: Valdepolo | AW173: Riner | AX173: Villavelayo | AZ173: Villaconejos | BF173: Villalobón | BI173: Lónguida/Longida | BK173: Martiago | BM173: Santa María la Real de Nieva | BO173: Velamazán | BP173: Vendrell (El) | BR173: Pozuel del Campo | BS173: Toboso (El) | BT173: Montesa | BU173: Torrescárcela | BW173: Villanueva de las Peras | BX173: Monreal de Ariza
B174: Valencia | C174: Alicante | D174: Jávea/Xàbia | E174: 38.79546 | F174: 0.1166293 | G174: 95.74202 | H174: 31593 | I174: 15844 | J174: 15749 | K174: 7 | L174: 88.74202 | M174: 2 | N174: B | AB174: Peñalba de Ávila | AD174: Pineda de Mar | AF174: Merindad de Valdeporres | AG174: Santa Marta de Magasca | AN174: San Clemente | AP174: Sant Mori | AQ174: Zújar | AR174: Olivar (El) | AT174: Seira | AV174: Valderas | AW174: Riu de Cerdanya | AX174: Villaverde de Rioja | AZ174: Villalbilla | BF174: Villaluenga de la Vega | BI174: Lumbier | BK174: Martín de Yeltes | BM174: Santa Marta del Cerro | BO174: Velilla de la Sierra | BP174: Vespella de Gaià | BR174: Puebla de Híjar (La) | BS174: Toledo | BT174: Montitxelvo/Montichelvo | BU174: Traspinedo | BW174: Villanueva del Campo | BX174: Monterde
B175: Valencia | C175: Alicante | D175: Jijona/Xixona | E175: 38.54006 | F175: -0.5077739 | G175: 473.1433 | H175: 7516 | I175: 3643 | J175: 3873 | K175: 7 | L175: 466.1433 | M175: 5 | N175: C | AB175: Piedrahíta | AD175: Pla del Penedès (El) | AF175: Merindad de Valdivielso | AG175: Santiago de Alcántara | AN175: San Lorenzo de la Parrilla | AP175: Sant Pau de Segúries | AR175: Olmeda de Cobeta | AT175: Sena | AV175: Valderrey | AW175: Rosselló | AX175: Villoslada de Cameros | AZ175: Villamanrique de Tajo | BF175: Villamartín de Campos | BI175: Luquin | BK175: Martinamor | BM175: Santiuste de Pedraza | BO175: Velilla de los Ajos | BP175: Vila-rodona | BR175: Puebla de Valverde (La) | BS175: Torralba de Oropesa | BT175: Montroy | BU175: Trigueros del Valle | BW175: Villar de Fallaves | BX175: Montón
B176: Valencia | C176: Alicante | D176: Llíber | E176: 38.74273 | F176: 0.0063282 | G176: 185.6137 | H176: 1057 | I176: 530 | J176: 527 | K176: 7 | L176: 178.6137 | M176: 2 | N176: B | AB176: Piedralaves | AD176: Pobla de Claramunt (La) | AF176: Milagros | AG176: Santiago del Campo | AN176: San Martín de Boniches | AP176: Sant Pere Pescador | AR176: Olmeda de Jadraque (La) | AT176: Senés de Alcubierre | AV176: Valderrueda | AW176: Salàs de Pallars | AX176: Viniegra de Abajo | AZ176: Villamanta | BF176: Villamediana | BI176: Luzaide/Valcarlos | BK176: Masueco | BM176: Santiuste de San Juan Bautista | BO176: Viana de Duero | BP176: Vila-seca | BR176: Puertomingalvo | BS176: Torre de Esteban Hambrán (La) | BT176: Montserrat | BU176: Tudela de Duero | BW176: Villar del Buey | BX176: Morata de Jalón
B177: Valencia | C177: Alicante | D177: Lorcha/Orxa (l') | E177: 38.84306 | F177: -0.309963 | G177: 273.9026 | H177: 749 | I177: 374 | J177: 375 | K177: 7 | L177: 266.9026 | M177: 4 | N177: C | AB177: Poveda | AD177: Pobla de Lillet (La) | AF177: Miranda de Ebro | AG177: Santibáñez el Alto | AN177: San Pedro Palmiches | AP177: Santa Coloma de Farners | AR177: Ordial (El) | AT177: Sesa | AV177: Valdesamario | AW177: Sanaüja | AX177: Viniegra de Arriba | AZ177: Villamantilla | BF177: Villameriel | BI177: Mañeru | BK177: Mata de Ledesma (La) | BM177: Santo Domingo de Pirón | BO177: Villaciervos | BP177: Vilabella | BR177: Ráfales | BS177: Torrecilla de la Jara | BT177: Museros | BU177: Unión de Campos (La) | BW177: Villaralbo | BX177: Morata de Jiloca
B178: Valencia | C178: Alicante | D178: Millena | E178: 38.73058 | F178: -0.3638289 | G178: 634.1902 | H178: 201 | I178: 100 | J178: 101 | K178: 7 | L178: 627.1902 | M178: 6 | N178: D | AB178: Poyales del Hoyo | AD178: Polinyà | AF178: Miraveche | AG178: Santibáñez el Bajo | AN178: Santa Cruz de Moya | AP178: Santa Cristina d'Aro | AR178: Orea | AT178: Sesué | AV178: Valdevimbre | AW178: Sant Esteve de la Sarga | AX178: Zarratón | AZ178: Villanueva de la Cañada | BF178: Villamoronta | BI178: Marañón | BK178: Matilla de los Caños del Río | BM178: Santo Tomé del Puerto | BO178: Villanueva de Gormaz | BP178: Vilalba dels Arcs | BR178: Rillo | BS178: Torrico | BT178: Náquera | BU178: Urones de Castroponce | BW178: Villardeciervos | BX178: Morés
B179: Valencia | C179: Alicante | D179: Monforte del Cid | E179: 38.37923 | F179: -0.7292369 | G179: 223.6606 | H179: 7366 | I179: 3893 | J179: 3473 | K179: 7 | L179: 216.6606 | M179: 4 | N179: C | AB179: Pozanco | AD179: Pont de Vilomara i Rocafort (El) | AF179: Modúbar de la Emparedada | AG179: Saucedilla | AN179: Santa María de los Llanos | AP179: Santa Llogaia d'Àlguema | AR179: Pálmaces de Jadraque | AT179: Siétamo | AV179: Valencia de Don Juan | AW179: Sant Guim de Freixenet | AX179: Zarzosa | AZ179: Villanueva de Perales | BF179: Villamuera de la Cueza | BI179: Marcilla | BK179: Maya (La) | BM179: Sauquillo de Cabezas | BO179: Villar del Ala | BP179: Vilallonga del Camp | BR179: Riodeva | BS179: Torrijos | BT179: Navarrés | BU179: Urueña | BW179: Villardiegua de la Ribera | BX179: Moros
B180: Valencia | C180: Alicante | D180: Monóvar/Monòver | E180: 38.43725 | F180: -0.8294068 | G180: 376.5502 | H180: 13060 | I180: 6504 | J180: 6556 | K180: 7 | L180: 369.5502 | M180: 4 | N180: C | AB180: Pradosegar | AD180: Pontons | AF180: Monasterio de la Sierra | AG180: Segura de Toro | AN180: Santa María del Campo Rus | AP180: Santa Pau | AR180: Pardos | AT180: Sopeira | AV180: Vallecillo | AW180: Sant Guim de la Plana | AX180: Zorraquín | AZ180: Villanueva del Pardillo | BF180: Villamuriel de Cerrato | BI180: Mélida | BK180: Membribe de la Sierra | BM180: Sebúlcor | BO180: Villar del Campo | BP180: Vilanova d'Escornalbou | BR180: Ródenas | BS180: Totanés | BT180: Novelé/Novetlè | BU180: Valbuena de Duero | BW180: Villárdiga | BX180: Moyuela
B181: Valencia | C181: Alicante | D181: Montesinos (Los) | E181: 38.02732 | F181: -0.743438 | G181: 21.59749 | H181: 4949 | I181: 2495 | J181: 2454 | K181: 7 | L181: 14.59749 | M181: 2 | N181: B | AB181: Puerto Castilla | AD181: Prat de Llobregat (El) | AF181: Monasterio de Rodilla | AG181: Serradilla | AN181: Santa María del Val | AP181: Sarrià de Ter | AR181: Paredes de Sigüenza | AT181: Sotonera (La) | AV181: Valverde-Enrique | AW181: Sant Llorenç de Morunys | AZ181: Villar del Olmo | BF181: Villanueva del Rebollar | BI181: Mendavia | BK181: Mieza | BM181: Segovia | BO181: Villar del Río | BP181: Vilanova de Prades | BR181: Royuela | BS181: Turleque | BT181: Oliva | BU181: Valdearcos de la Vega | BW181: Villardondiego | BX181: Mozota
B182: Valencia | C182: Alicante | D182: Murla | E182: 38.76031 | F182: -0.0829431 | G182: 291.5551 | H182: 612 | I182: 293 | J182: 319 | K182: 7 | L182: 284.5551 | M182: 4 | N182: C | AB182: Rasueros | AD182: Prats de Lluçanès | AF182: Moncalvillo | AG182: Serrejón | AN182: Sisante | AP182: Saus, Camallera i Llampaies | AR182: Pareja | AT182: Tamarite de Litera | AV182: Valverde de la Virgen | AW182: Sant Martí de Riucorb | AZ182: Villarejo de Salvanés | BF182: Villanuño de Valdavia | BI182: Mendaza | BK182: Milano (El) | BM182: Sepúlveda | BO182: Villares de Soria (Los) | BP182: Vilaplana | BR182: Rubiales | BS182: Ugena | BT182: Olleria (l') | BU182: Valdenebro de los Valles | BW182: Villarrín de Campos | BX182: Muel
B183: Valencia | C183: Alicante | D183: Muro de Alcoy | E183: 38.78075 | F183: -0.4402698 | G183: 411.4849 | H183: 8893 | I183: 4413 | J183: 4480 | K183: 7 | L183: 404.4849 | M183: 5 | N183: C | AB183: Riocabado | AD183: Prats de Rei (Els) | AF183: Monterrubio de la Demanda | AG183: Sierra de Fuentes | AN183: Solera de Gabaldón | AP183: Selva de Mar (La) | AR183: Pastrana | AT183: Tardienta | AV183: Vecilla (La) | AW183: Sant Ramon | AZ183: Villaviciosa de Odón | BF183: Villaprovedo | BI183: Mendigorría | BK183: Miranda de Azán | BM183: Sequera de Fresno | BO183: Villasayas | BP183: Vilaverd | BR183: Rubielos de la Cérida | BS183: Urda | BT183: Olocau | BU183: Valdestillas | BW183: Villaseco del Pan | BX183: Muela (La)
B184: Valencia | C184: Alicante | D184: Mutxamel | E184: 38.41235 | F184: -0.4432408 | G184: 65.50282 | H184: 22510 | I184: 11290 | J184: 11220 | K184: 7 | L184: 58.50282 | M184: 2 | N184: B | AB184: Riofrío | AD184: Premià de Dalt | AF184: Montorio | AG184: Talaván | AN184: Sotorribas | AP184: Serinyà | AR184: Pedregal (El) | AT184: Tella-Sin | AV184: Vega de Espinareda | AW184: Sarroca de Bellera | AZ184: Villavieja del Lozoya | BF184: Villarmentero de Campos | BI184: Metauten | BK184: Miranda del Castañar | BM184: Sotillo | BO184: Villaseca de Arciel | BP184: Vilella Alta (La) | BR184: Rubielos de Mora | BS184: Valdeverdeja | BT184: Ontinyent | BU184: Valdunquillo | BW184: Villavendimio | BX184: Munébrega
B185: Valencia | C185: Alicante | D185: Novelda | E185: 38.3853 | F185: -0.7653857 | G185: 247.5291 | H185: 27135 | I185: 13553 | J185: 13582 | K185: 7 | L185: 240.5291 | M185: 4 | N185: C | AB185: Rivilla de Barajas | AD185: Premià de Mar | AF185: Moradillo de Roa | AG185: Talaveruela de la Vera | AN185: Talayuelas | AP185: Serra de Daró | AR185: Peñalén | AT185: Tierz | AV185: Vega de Infanzones | AW185: Sarroca de Lleida | AZ185: Zarzalejo | BF185: Villarrabé | BI185: Milagro | BK185: Mogarraz | BM185: Sotosalbos | BO185: Vinuesa | BP185: Vilella Baixa (La) | BR185: Salcedillo | BS185: Valmojado | BT185: Otos | BU185: Valladolid | BW185: Villaveza de Valverde | BX185: Murero
B186: Valencia | C186: Alicante | D186: Nucia (la) | E186: 38.61438 | F186: -0.1257095 | G186: 235.7798 | H186: 17874 | I186: 9100 | J186: 8774 | K186: 7 | L186: 228.7798 | M186: 4 | N186: C | AB186: Salobral | AD186: Puig-reig | AF186: Nava de Roa | AG186: Talayuela | AN186: Tarancón | AP186: Setcases | AR186: Peñalver | AT186: Tolva | AV186: Vega de Valcarce | AW186: Senterada | BF186: Villarramiel | BI186: Mirafuentes | BK186: Molinillo | BM186: Tabanera la Luenga | BO186: Vizmanos | BP186: Vimbodí i Poblet | BR186: Saldón | BS186: Velada | BT186: Paiporta | BU186: Valoria la Buena | BW186: Villaveza del Agua | BX186: Murillo de Gállego
B187: Valencia | C187: Alicante | D187: Ondara | E187: 38.82607 | F187: 0.0159034 | G187: 37.3018 | H187: 6546 | I187: 3282 | J187: 3264 | K187: 7 | L187: 30.3018 | M187: 2 | N187: B | AB187: Salvadiós | AD187: Puigdàlber | AF187: Navas de Bureba | AG187: Tejeda de Tiétar | AN187: Tébar | AP187: Sils | AR187: Peralejos de las Truchas | AT187: Torla | AV187: Vegacervera | AW187: Sentiu de Sió (La) | BF187: Villasarracino | BI187: Miranda de Arga | BK187: Monforte de la Sierra | BM187: Tolocirio | BO187: Vozmediano | BP187: Vinebre | BR187: Samper de Calanda | BS187: Ventas con Peña Aguilera (Las) | BT187: Palma de Gandía | BU187: Valverde de Campos | BW187: Viñas | BX187: Navardún
B188: Valencia | C188: Alicante | D188: Onil | E188: 38.62606 | F188: -0.6731591 | G188: 676.8312 | H188: 7771 | I188: 3917 | J188: 3854 | K188: 7 | L188: 669.8312 | M188: 6 | N188: D | AB188: San Bartolomé de Béjar | AD188: Pujalt | AF188: Nebreda | AG188: Toril | AN188: Tejadillos | AP188: Siurana | AR188: Peralveche | AT188: Torralba de Aragón | AV188: Vegaquemada | AW188: Seròs | BF188: Villasila de Valdavia | BI188: Monreal | BK188: Monleón | BM188: Torre Val de San Pedro | BO188: Yanguas | BP188: Vinyols i els Arcs | BR188: San Agustín | BS188: Ventas de Retamosa (Las) | BT188: Palmera | BU188: Vega de Ruiponce | BW188: Zamora | BX188: Nigüella
B189: Valencia | C189: Alicante | D189: Orba | E189: 38.78033 | F189: -0.0637978 | G189: 160.1064 | H189: 2616 | I189: 1296 | J189: 1320 | K189: 7 | L189: 153.1064 | M189: 2 | N189: B | AB189: San Bartolomé de Corneja | AD189: Quar (La) | AF189: Neila | AG189: Tornavacas | AN189: Tinajas | AP189: Susqueda | AR189: Pinilla de Jadraque | AT189: Torre la Ribera | AV189: Vegas del Condado | AW189: Seu d'Urgell (La) | BF189: Villaturde | BI189: Monteagudo | BK189: Monleras | BM189: Torreadrada | BO189: Yelo | BP189: Xerta | BR189: San Martín del Río | BS189: Ventas de San Julián (Las) | BT189: Palomar (el) | BU189: Vega de Valdetronco | BX189: Nombrevilla
B190: Valencia | C190: Alicante | D190: Orihuela | E190: 38.08395 | F190: -0.9447829 | G190: 36.18137 | H190: 86164 | I190: 43368 | J190: 42796 | K190: 7 | L190: 29.18137 | M190: 2 | N190: B | AB190: San Bartolomé de Pinares | AD190: Rajadell | AF190: Olmedillo de Roa | AG190: Torno (El) | AN190: Torralba | AP190: Tallada d'Empordà (La) | AR190: Pinilla de Molina | AT190: Torrente de Cinca | AV190: Villablino | AW190: Sidamon | BF190: Villaumbrales | BI190: Morentin | BK190: Monsagro | BM190: Torrecaballeros | BR190: Santa Cruz de Nogueras | BS190: Villa de Don Fadrique (La) | BT190: Paterna | BU190: Velascálvaro | BX190: Nonaspe
B191: Valencia | C191: Alicante | D191: Orxeta | E191: 38.5636 | F191: -0.2619973 | G191: 186.9968 | H191: 870 | I191: 436 | J191: 434 | K191: 7 | L191: 179.9968 | M191: 2 | N191: B | AB191: San Esteban de los Patos | AD191: Rellinars | AF191: Olmillos de Muñó | AG191: Torre de Don Miguel | AN191: Torrejoncillo del Rey | AP191: Terrades | AR191: Pioz | AT191: Torres de Alcanadre | AV191: Villabraz | AW191: Soleràs (El) | BF191: Villaviudas | BI191: Mues | BK191: Montejo | BM191: Torrecilla del Pinar | BR191: Santa Eulalia | BS191: Villacañas | BT191: Pedralba | BU191: Velilla | BX191: Novallas
B192: Valencia | C192: Alicante | D192: Parcent | E192: 38.74553 | F192: -0.0661097 | G192: 289.9498 | H192: 1081 | I192: 526 | J192: 555 | K192: 7 | L192: 282.9498 | M192: 4 | N192: C | AB192: San Esteban de Zapardiel | AD192: Ripollet | AF192: Oña | AG192: Torre de Santa María | AN192: Torrubia del Campo | AP192: Torrent | AR192: Piqueras | AT192: Torres de Barbués | AV192: Villadangos del Páramo | AW192: Solsona | BF192: Villerías de Campos | BI192: Murchante | BK192: Montemayor del Río | BM192: Torreiglesias | BR192: Sarrión | BS192: Villafranca de los Caballeros | BT192: Petrés | BU192: Velliza | BX192: Novillas
B193: Valencia | C193: Alicante | D193: Pedreguer | E193: 38.79388 | F193: 0.0345502 | G193: 87.95199 | H193: 7602 | I193: 3802 | J193: 3800 | K193: 7 | L193: 80.95199 | M193: 2 | N193: B | AB193: San Esteban del Valle | AD193: Roca del Vallès (La) | AF193: Oquillas | AG193: Torrecilla de los Ángeles | AN193: Torrubia del Castillo | AP193: Torroella de Fluvià | AR193: Pobo de Dueñas (El) | AT193: Tramaced | AV193: Villadecanes | AW193: Soriguera | BF193: Villodre | BI193: Murieta | BK193: Monterrubio de Armuña | BM193: Trescasas | BR193: Segura de los Baños | BS193: Villaluenga de la Sagra | BT193: Picanya | BU193: Ventosa de la Cuesta | BX193: Nuévalos
B194: Valencia | C194: Alicante | D194: Pego | E194: 38.84324 | F194: -0.1175528 | G194: 83.52785 | H194: 11133 | I194: 5683 | J194: 5450 | K194: 7 | L194: 76.52785 | M194: 2 | N194: B | AB194: San García de Ingelmos | AD194: Roda de Ter | AF194: Orbaneja Riopico | AG194: Torrecillas de la Tiesa | AN194: Tragacete | AP194: Torroella de Montgrí | AR194: Poveda de la Sierra | AT194: Valfarta | AV194: Villademor de la Vega | AW194: Sort | BF194: Villodrigo | BI194: Murillo el Cuende | BK194: Monterrubio de la Sierra | BM194: Turégano | BR194: Seno | BS194: Villamiel de Toledo | BT194: Picassent | BU194: Viana de Cega | BX194: Nuez de Ebro
B195: Valencia | C195: Alicante | D195: Penàguila | E195: 38.67942 | F195: -0.3590004 | G195: 689.5314 | H195: 323 | I195: 169 | J195: 154 | K195: 7 | L195: 682.5314 | M195: 6 | N195: D | AB195: San Juan de Gredos | AD195: Rubí | AF195: Padilla de Abajo | AG195: Torrejón el Rubio | AN195: Tresjuncos | AP195: Tortellà | AR195: Pozo de Almoguera | AT195: Valle de Bardají | AV195: Villafranca del Bierzo | AW195: Soses | BF195: Villoldo | BI195: Murillo el Fruto | BK195: Morasverdes | BM195: Urueñas | BR195: Singra | BS195: Villaminaya | BT195: Piles | BU195: Villabáñez | BX195: Olvés
B196: Valencia | C196: Alicante | D196: Petrer | E196: 38.47744 | F196: -0.7742523 | G196: 437.8267 | H196: 34523 | I196: 17231 | J196: 17292 | K196: 7 | L196: 430.8267 | M196: 5 | N196: C | AB196: San Juan de la Encinilla | AD196: Rubió | AF196: Padilla de Arriba | AG196: Torrejoncillo | AN196: Tribaldos | AP196: Toses | AR196: Pozo de Guadalajara | AT196: Valle de Hecho | AV196: Villagatón | AW196: Sudanell | BF196: Villota del Páramo | BI196: Muruzábal | BK196: Morille | BM196: Valdeprados | BR196: Terriente | BS196: Villamuelas | BT196: Pinet | BU196: Villabaruz de Campos | BX196: Orcajo
B197: Valencia | C197: Alicante | D197: Pilar de la Horadada | E197: 37.86538 | F197: -0.7925081 | G197: 32.33976 | H197: 22050 | I197: 11450 | J197: 10600 | K197: 7 | L197: 25.33976 | M197: 2 | N197: B | AB197: San Juan de la Nava | AD197: Rupit i Pruit | AF197: Padrones de Bureba | AG197: Torremenga | AN197: Uclés | AP197: Tossa de Mar | AR197: Prádena de Atienza | AT197: Valle de Lierp | AV197: Villamañán | AW197: Sunyer | BF197: Villovieco | BI197: Navascués | BK197: Moríñigo | BM197: Valdevacas de Montejo | BR197: Teruel | BS197: Villanueva de Alcardete | BT197: Pobla de Farnals (la) | BU197: Villabrágima | BX197: Orera
B198: Valencia | C198: Alicante | D198: Pinós (el)/Pinoso | E198: 38.40112 | F198: -1.041577 | G198: 572.8075 | H198: 7689 | I198: 3896 | J198: 3793 | K198: 7 | L198: 565.8075 | M198: 5 | N198: C | AB198: San Juan del Molinillo | AD198: Sabadell | AF198: Palacios de la Sierra | AG198: Torremocha | AN198: Uña | AP198: Ullà | AR198: Prados Redondos | AT198: Velilla de Cinca | AV198: Villamandos | AW198: Talarn | BI198: Nazar | BK198: Moriscos | BM198: Valdevacas y Guijar | BR198: Toril y Masegoso | BS198: Villanueva de Bogas | BT198: Pobla de Vallbona (la) | BU198: Villacarralón | BX198: Orés
B199: Valencia | C199: Alicante | D199: Planes | E199: 38.7855 | F199: -0.344533 | G199: 444.3655 | H199: 844 | I199: 429 | J199: 415 | K199: 7 | L199: 437.3655 | M199: 5 | N199: C | AB199: San Juan del Olmo | AD199: Sagàs | AF199: Palacios de Riopisuerga | AG199: Torreorgaz | AN199: Valdecolmenas (Los) | AP199: Ullastret | AR199: Puebla de Beleña | AT199: Vencillón | AV199: Villamanín | AW199: Talavera | BI199: Noáin (Valle de Elorz)/Noain (Elortzibar) | BK199: Moronta | BM199: Valle de Tabladillo | BR199: Tormón | BS199: Villarejo de Montalbán | BT199: Pobla del Duc (la) | BU199: Villacid de Campos | BX199: Oseja
B200: Valencia | C200: Alicante | D200: Poblets (els) | E200: 38.85391 | F200: 0.018325 | G200: 12.50598 | H200: 3288 | I200: 1586 | J200: 1702 | K200: 7 | L200: 5.50598 | M200: 2 | N200: B | AB200: San Lorenzo de Tormes | AD200: Saldes | AF200: Palazuelos de la Sierra | AG200: Torrequemada | AN200: Valdemeca | AP200: Ultramort | AR200: Puebla de Valles | AT200: Veracruz | AV200: Villamartín de Don Sancho | AW200: Tàrrega | BI200: Obanos | BK200: Mozárbez | BM200: Vallelado | BR200: Tornos | BS200: Villarrubia de Santiago | BT200: Pobla Llarga (la) | BU200: Villaco | BX200: Osera de Ebro
B201: Valencia | C201: Alicante | D201: Polop | E201: 38.62263 | F201: -0.1259112 | G201: 237.3766 | H201: 4245 | I201: 2168 | J201: 2077 | K201: 7 | L201: 230.3766 | M201: 4 | N201: C | AB201: San Martín de la Vega del Alberche | AD201: Sallent | AF201: Palazuelos de Muñó | AG201: Trujillo | AN201: Valdemorillo de la Sierra | AP201: Urús | AR201: Quer | AT201: Viacamp y Litera | AV201: Villamejil | AW201: Tarrés | BI201: Ochagavía/Otsagabia | BK201: Narros de Matalayegua | BM201: Valleruela de Pedraza | BR201: Torralba de los Sisones | BS201: Villaseca de la Sagra | BT201: Polinyà de Xúquer | BU201: Villafrades de Campos | BX201: Paniza
B202: Valencia | C202: Alicante | D202: Quatretondeta | E202: 38.72365 | F202: -0.3159135 | G202: 622.546 | H202: 129 | I202: 62 | J202: 67 | K202: 7 | L202: 615.546 | M202: 6 | N202: D | AB202: San Martín del Pimpollar | AD202: Sant Adrià de Besòs | AF202: Pampliega | AG202: Valdastillas | AN202: Valdemoro-Sierra | AP202: Vajol (La) | AR202: Rebollosa de Jadraque | AT202: Vicién | AV202: Villamol | AW202: Tarroja de Segarra | BI202: Oco | BK202: Nava de Béjar | BM202: Valleruela de Sepúlveda | BR202: Torre de Arcas | BS202: Villasequilla | BT202: Potríes | BU202: Villafranca de Duero | BX202: Paracuellos de Jiloca
... 4298 more rows

Sheet Aux1 (hidden)
A1: Comunidad | B1: Provincia | C1: Población
A2: Abengibre | B2: Albacete | C2: Castilla La Mancha
A3: Alatoz | B3: Albacete | C3: Castilla La Mancha
A4: Albacete | B4: Albacete | C4: Castilla La Mancha
A5: Albatana | B5: Albacete | C5: Castilla La Mancha
A6: Alborea | B6: Albacete | C6: Castilla La Mancha
A7: Alcadozo | B7: Albacete | C7: Castilla La Mancha
A8: Alcalá del Júcar | B8: Albacete | C8: Castilla La Mancha
A9: Alcaraz | B9: Albacete | C9: Castilla La Mancha
A10: Almansa | B10: Albacete | C10: Castilla La Mancha
A11: Alpera | B11: Albacete | C11: Castilla La Mancha
A12: Ayna | B12: Albacete | C12: Castilla La Mancha
A13: Balazote | B13: Albacete | C13: Castilla La Mancha
A14: Ballestero (El) | B14: Albacete | C14: Castilla La Mancha
A15: Balsa de Ves | B15: Albacete | C15: Castilla La Mancha
A16: Barrax | B16: Albacete | C16: Castilla La Mancha
A17: Bienservida | B17: Albacete | C17: Castilla La Mancha
A18: Bogarra | B18: Albacete | C18: Castilla La Mancha
A19: Bonete | B19: Albacete | C19: Castilla La Mancha
A20: Bonillo (El) | B20: Albacete | C20: Castilla La Mancha
A21: Carcelén | B21: Albacete | C21: Castilla La Mancha
A22: Casas-Ibáñez | B22: Albacete | C22: Castilla La Mancha
